Workbook

Sheet README
D8: Aircraft: | E8: A320-200
E11: Model | F11: PW | G11: Pct Change | H11: Source | I11: #/AC | J11: Factor | K11: Item | L11: Alt Item (PW)
D12: 633#709 | E12: 46970 | F12: 30000 | G12: 0.5656666667 | H12: BFE option. Thales or Honeywell | I12: 2 | J12: G | K12: FMGC
D13: 633#710 | E13: 26094 | F13: 25000 | G13: 0.04376 | H13: BFE option. Thales or Honeywell | I13: 2 | J13: G | K13: MCDU
D14: 633#711 | E14: 20876 | F14: 20000 | G14: 0.0438 | H14: BFE option. Thales or Honeywell | I14: 1 | J14: C | K14: FCU | L14: FCU (part of FMGC above)
B28: File: | C28: $ AerospaceEdge\Clients\Counterpoint\Models\Named IDs - AvionicsUPDATER20240628_imported (rev04).xlsm
B29: Worksheet: | D29: Pt1-DATA | G29: component_id and aircraft_id lookup for unit cost and number of units/AC. Lee added: Cost ID, Factor, Category, MFGR, Model, Unit Description
B30: Worksheet: | D30: Pt1-AvionicsComponentCosts | G30: Source of aircraft level and component level IDs and Descriptions
B32: File: | C32: $ AerospaceEdge\Clients\Counterpoint\Source Data\PW - shipset model 3011.xlsx
C33: Peter W's source data:
D34: Narrow Body | F34: A320-200
D35: mil fighter | F35: Lockheed Martin F-35 Lightning II
D36: wide body (non IMA) | F36: Airbus A330-300
D37: wide body (IMA) | F37: Boeing 787 Dreamliner: 787-9
D38: regional | F38: Embraer E190
D39: mil trainer | F39: BAE Systems Hawk
D40: bizjet | F40: Bombardier Global 5000
D41: Mil trans | F41: Airbus A400M Atlas
D42: rotorcraft mil | F42: Boeing AH-64 Apache
D43: rotocraft civil | F43: Airbus H175
D44: large UAV | F44: RQ-4A Global Hawk

Sheet Federal Reserve PPI AC Parts
A1: FRED Graph Observations
A2: Federal Reserve Economic Data
A3: Link: https://fred.stlouisfed.org
A4: Help: https://fredhelp.stlouisfed.org
A5: Economic Research Division
A6: Federal Reserve Bank of St. Louis
B8: Producer Price Index by Industry: Other Aircraft Parts and Equipment Manufacturing, Index Jun 1985=100, Monthly, Not Seasonally Adjusted
B9: https://fred.stlouisfed.org/series/PCU336413336413
A10: Frequency: Monthly
A11: observation_date
A12: 2005-01-01 | B12: 198.2 | D12: PPI Change 2020.01 - 2024.06 | E12: =(B245-B192)/B192 -> 0.1184029614
A13: 2005-02-01 | B13: 198.9 | D13: PPI Change 2020.01 - 2024.06 | E13: =(B245-B12)/B12 -> 0.06705348133
A14: 2005-03-01 | B14: 199.7
A15: 2005-04-01 | B15: 200.1
A16: 2005-05-01 | B16: 201.4
A17: 2005-06-01 | B17: 201.6
A18: 2005-07-01 | B18: 202.4
A19: 2005-08-01 | B19: 203.4
A20: 2005-09-01 | B20: 204.1
A21: 2005-10-01 | B21: 204.7
A22: 2005-11-01 | B22: 205
A23: 2005-12-01 | B23: 205.4
A24: 2006-01-01 | B24: 207
A25: 2006-02-01 | B25: 208.3
A26: 2006-03-01 | B26: 210.1
A27: 2006-04-01 | B27: 211.2
A28: 2006-05-01 | B28: 211.7
A29: 2006-06-01 | B29: 212
A30: 2006-07-01 | B30: 212.6
A31: 2006-08-01 | B31: 213.2
A32: 2006-09-01 | B32: 213.7
A33: 2006-10-01 | B33: 214.7
A34: 2006-11-01 | B34: 215.6
A35: 2006-12-01 | B35: 216.2
A36: 2007-01-01 | B36: 217.4
A37: 2007-02-01 | B37: 217.6
A38: 2007-03-01 | B38: 217.1
A39: 2007-04-01 | B39: 216.8
A40: 2007-05-01 | B40: 217
A41: 2007-06-01 | B41: 218
A42: 2007-07-01 | B42: 219
A43: 2007-08-01 | B43: 220
A44: 2007-09-01 | B44: 220.9
A45: 2007-10-01 | B45: 222.3
A46: 2007-11-01 | B46: 222.9
A47: 2007-12-01 | B47: 223.3
A48: 2008-01-01 | B48: 224
A49: 2008-02-01 | B49: 224.4
A50: 2008-03-01 | B50: 224.5
A51: 2008-04-01 | B51: 225.6
A52: 2008-05-01 | B52: 226.5
A53: 2008-06-01 | B53: 228.1
A54: 2008-07-01 | B54: 229.4
A55: 2008-08-01 | B55: 231.5
A56: 2008-09-01 | B56: 233.1
A57: 2008-10-01 | B57: 235.3
A58: 2008-11-01 | B58: 237.4
A59: 2008-12-01 | B59: 239.6
A60: 2009-01-01 | B60: 240.5
A61: 2009-02-01 | B61: 240.6
A62: 2009-03-01 | B62: 238.6
A63: 2009-04-01 | B63: 236.1
A64: 2009-05-01 | B64: 233.3
A65: 2009-06-01 | B65: 232.2
A66: 2009-07-01 | B66: 232.5
A67: 2009-08-01 | B67: 233.2
A68: 2009-09-01 | B68: 233
A69: 2009-10-01 | B69: 233.6
A70: 2009-11-01 | B70: 234.2
A71: 2009-12-01 | B71: 234.6
A72: 2010-01-01 | B72: 235.4
A73: 2010-02-01 | B73: 235.5
A74: 2010-03-01 | B74: 235.6
A75: 2010-04-01 | B75: 235.8
A76: 2010-05-01 | B76: 236.2
A77: 2010-06-01 | B77: 237.3
A78: 2010-07-01 | B78: 238.2
A79: 2010-08-01 | B79: 239.3
A80: 2010-09-01 | B80: 239.7
A81: 2010-10-01 | B81: 240
A82: 2010-11-01 | B82: 240.2
A83: 2010-12-01 | B83: 240.4
A84: 2011-01-01 | B84: 240.7
A85: 2011-02-01 | B85: 241.2
A86: 2011-03-01 | B86: 241.4
A87: 2011-04-01 | B87: 241.5
A88: 2011-05-01 | B88: 242
A89: 2011-06-01 | B89: 243
A90: 2011-07-01 | B90: 244
A91: 2011-08-01 | B91: 245.2
A92: 2011-09-01 | B92: 246.3
A93: 2011-10-01 | B93: 247.3
A94: 2011-11-01 | B94: 248
A95: 2011-12-01 | B95: 248.7
A96: 2012-01-01 | B96: 249.3
A97: 2012-02-01 | B97: 250.1
A98: 2012-03-01 | B98: 250.4
A99: 2012-04-01 | B99: 250.7
A100: 2012-05-01 | B100: 250.8
A101: 2012-06-01 | B101: 251.5
A102: 2012-07-01 | B102: 252.1
A103: 2012-08-01 | B103: 253.2
A104: 2012-09-01 | B104: 253.6
A105: 2012-10-01 | B105: 253.6
A106: 2012-11-01 | B106: 253.2
A107: 2012-12-01 | B107: 253
A108: 2013-01-01 | B108: 253.6
A109: 2013-02-01 | B109: 254.5
A110: 2013-03-01 | B110: 255.2
A111: 2013-04-01 | B111: 255.3
A112: 2013-05-01 | B112: 255.1
A113: 2013-06-01 | B113: 255.5
A114: 2013-07-01 | B114: 256.1
A115: 2013-08-01 | B115: 256.9
A116: 2013-09-01 | B116: 258
A117: 2013-10-01 | B117: 258.1
A118: 2013-11-01 | B118: 258.2
A119: 2013-12-01 | B119: 258.5
A120: 2014-01-01 | B120: 259.5
A121: 2014-02-01 | B121: 260.2
A122: 2014-03-01 | B122: 260.5
A123: 2014-04-01 | B123: 260.7
A124: 2014-05-01 | B124: 260.9
A125: 2014-06-01 | B125: 261.5
A126: 2014-07-01 | B126: 262.3
A127: 2014-08-01 | B127: 263.1
A128: 2014-09-01 | B128: 263.4
A129: 2014-10-01 | B129: 263.4
A130: 2014-11-01 | B130: 263.5
A131: 2014-12-01 | B131: 264.1
A132: 2015-01-01 | B132: 265
A133: 2015-02-01 | B133: 265.7
A134: 2015-03-01 | B134: 264.9
A135: 2015-04-01 | B135: 265
A136: 2015-05-01 | B136: 264.9
A137: 2015-06-01 | B137: 265.1
A138: 2015-07-01 | B138: 265.2
A139: 2015-08-01 | B139: 265.4
A140: 2015-09-01 | B140: 265.4
A141: 2015-10-01 | B141: 265.2
A142: 2015-11-01 | B142: 265
A143: 2015-12-01 | B143: 265.1
A144: 2016-01-01 | B144: 265.4
A145: 2016-02-01 | B145: 265.7
A146: 2016-03-01 | B146: 265.9
A147: 2016-04-01 | B147: 266.2
A148: 2016-05-01 | B148: 266.6
A149: 2016-06-01 | B149: 266.9
A150: 2016-07-01 | B150: 267.1
A151: 2016-08-01 | B151: 267.2
A152: 2016-09-01 | B152: 267.2
A153: 2016-10-01 | B153: 267.3
A154: 2016-11-01 | B154: 267.5
A155: 2016-12-01 | B155: 267.9
A156: 2017-01-01 | B156: 268.6
A157: 2017-02-01 | B157: 269.1
A158: 2017-03-01 | B158: 269.6
A159: 2017-04-01 | B159: 270.2
A160: 2017-05-01 | B160: 270.9
A161: 2017-06-01 | B161: 271.7
A162: 2017-07-01 | B162: 272.4
A163: 2017-08-01 | B163: 273.1
A164: 2017-09-01 | B164: 273.4
A165: 2017-10-01 | B165: 273.7
A166: 2017-11-01 | B166: 274
A167: 2017-12-01 | B167: 274.2
A168: 2018-01-01 | B168: 275.4
A169: 2018-02-01 | B169: 276.4
A170: 2018-03-01 | B170: 276.9
A171: 2018-04-01 | B171: 277.3
A172: 2018-05-01 | B172: 277.7
A173: 2018-06-01 | B173: 278.4
A174: 2018-07-01 | B174: 279.3
A175: 2018-08-01 | B175: 280.1
A176: 2018-09-01 | B176: 280.6
A177: 2018-10-01 | B177: 281
A178: 2018-11-01 | B178: 281.4
A179: 2018-12-01 | B179: 282.3
A180: 2019-01-01 | B180: 284.5
A181: 2019-02-01 | B181: 285.3
A182: 2019-03-01 | B182: 285.8
A183: 2019-04-01 | B183: 286.5
A184: 2019-05-01 | B184: 287.2
A185: 2019-06-01 | B185: 287.6
A186: 2019-07-01 | B186: 287.6
A187: 2019-08-01 | B187: 287.7
A188: 2019-09-01 | B188: 288.1
A189: 2019-10-01 | B189: 288.3
A190: 2019-11-01 | B190: 288.3
A191: 2019-12-01 | B191: 288.5
A192: 2020-01-01 | B192: 189.1
A193: 2020-02-01 | B193: 189.2
A194: 2020-03-01 | B194: 189.2
A195: 2020-04-01 | B195: 189.7
A196: 2020-05-01 | B196: 190.7
A197: 2020-06-01 | B197: 190.7
A198: 2020-07-01 | B198: 190.7
A199: 2020-08-01 | B199: 190.8
A200: 2020-09-01 | B200: 190.8
A201: 2020-10-01 | B201: 190.9
... 44 more rows

Sheet Aircraft Pricing
A1: Aircraft model | B1: Engine | C1: Range | D1: Typical Configuration | E1: New Price
A2: BOEING 737 MAX 7 | D2: 172 | E2: $99.7M
A3: Airbus A318 | B3: GE, Pratt & Whitney | C3: 3,100 NM | D3: 107 | E3: $75.1M
A4: Airbus A319 | B4: GE, International Aero Engines | C4: 3,700 nm | D4: 124 | E4: $89.6M
A5: Airbus A320 | B5: GE, International Aero Engines | C5: 3,300 NM | D5: 150 | E5: $98M
A6: Airbus A321 | B6: GE, International Aero Engines | C6: 3,200 NM | D6: 185 | E6: $114.9M
A7: Airbus A330-200 | B7: ROLLS-ROYCE, GE, Pratt & Whitney | C7: 7,250 NM | D7: 247 | E7: $231.5M
A8: Airbus A330-200F | B8: Pratt & Whitney, ROLLS-ROYCE | C8: 4,000 NM | D8: N/A | E8: $234.7M
A9: Airbus A330-300 | B9: ROLLS-ROYCE, GE, Pratt & Whitney | C9: 6,350 NM | D9: 277 | E9: $256.4M
A10: Airbus A340-300 | B10: CFM International | C10: 7,300 NM | D10: 277 | E10: $219M
A11: Airbus A350-900 | B11: ROLLS-ROYCE | C11: 8,100 NM | D11: 325 | E11: $308.1M
A12: Airbus A350-1000 | B12: ROLLS-ROYCE | C12: 7,950 NM | D12: 366 | E12: $355.7M
A13: Airbus A380 | B13: ROLLS-ROYCE, Engine Alliance | C13: 8,200 NM | D13: 544 | E13: $350M
A14: Boeing 737-700 | B14: Pratt & Whitney, GE | C14: 3,440 NM | D14: 126 | E14: $89.1M
A15: Boeing 737-800 | B15: Pratt & Whitney, GE, ROLLS-ROYCE | C15: 3,115 NM | D15: 162 | E15: $106.1M
A16: Boeing 737-900ER | B16: Pratt & Whitney, GE | C16: 3,265 NM | D16: 178 | E16: $112.6M
A17: Boeing 747-400 | B17: Pratt & Whitney, GE, ROLLS-ROYCE | C17: 7,260 NM | D17: 410
A18: Boeing 747-400F | B18: Pratt & Whitney, GE, ROLLS-ROYCE | C18: 4,445 NM | D18: N/A
A19: Boeing 747-8i | B19: GE | C19: 7,730 NM | D19: 410 | E19: $418.4M
A20: Boeing 757-200 | B20: ROLLS-ROYCE, Pratt & Whitney | C20: 4,100 NM | D20: 200 | E20: TBC
A21: Boeing 757-300 | B21: ROLLS-ROYCE, Pratt & Whitney | C21: 3,595 NM | D21: 243 | E21: TBC
A22: Boeing 767-300ER | B22: Pratt & Whitney, GE, ROLLS-ROYCE | C22: 6,310 NM | D22: 269 | E22: $217.9M
A23: Boeing 767-400ER | B23: Pratt & Whitney, GE | C23: 5,625 NM | D23: 304 | E23: TBC
A24: Boeing 777-200ER | B24: Pratt & Whitney, GE, ROLLS-ROYCE | C24: 7,065 NM | D24: 313 | E24: $306.6M
A25: Boeing 777-200LR | B25: GE | C25: 8,555 NM | D25: 317 | E25: $346.9M
A26: Boeing 777-300ER | B26: GE | C26: 7,370 NM | D26: 396 | E26: $375.5M
A27: Boeing 777F | B27: GE | C27: 4,970 NM | D27: N/A | E27: $352.3M
A28: Boeing 787-8 | B28: GE, ROLLS-ROYCE | C28: 7,355 NM | D28: 242 | E28: $248.3M
A29: Boeing 787-9 | B29: GE, ROLLS-ROYCE | C29: 7,635 NM | D29: 290 | E29: $292.5M
A30: Boeing 787-10 | B30: GE , ROLLS-ROYCE | C30: 6,430 NM | D30: 330 | E30: 338.4
A31: Bombardier CRJ100ER/LR | B31: GE | C31: 1,620 NM / 2,003 NM | D31: 50 | E31: TBC
A32: Bombardier CRJ200ER/LR | B32: GE | C32: 1,644 NM / 2,004 NM | D32: 50 | E32: TBC
A33: Bombardier CRJ700ER | B33: GE | C33: 1,378 NM | D33: 66 | E33: TBC
A34: Bombardier CRJ900ER/LR | B34: GE | C34: 1,317 NM / 1,553 NM | D34: 79 | E34: TBC
A35: Bombardier CRJ1000ER | B35: GE | C35: 1,622 NM | D35: 50 | E35: TBC
A36: Embraer 170LR | B36: GE | C36: 2,100 NM | D36: 70 | E36: $26.5M
A37: Embraer 175 | B37: GE | C37: 2,150 NM | D37: 78 | E37: $28M
A38: Embraer 190 | B38: GE | C38: 2,400 NM | D38: 94 | E38: $32M
A39: Embraer 195 | B39: GE | C39: 2,000 NM | D39: 106 | E39: $40M
A41: http://www.axonaviation.com/commercial-aircraft/aircraft-data/aircraft-pricing

Sheet Narrow Body
A1: Aircraft: | B1: =INDEX('[1]Pt1-AvionicsComponentCosts'!$A$11:$E$384,MATCH(VALUE(LEFT(A5,SEARCH("#",A5)-1)),'[1]Pt1-AvionicsComponentCosts'!$A$11:$A$384,0),5) -> A320-200
B2: Avionics Cost 2020 | G2: Avionics Cost 2024 | I2: % Change 2020 - 2024
B3: =SUMPRODUCT(B5:B80,J5:J80) -> 1941935 | G3: =SUMPRODUCT(G5:G80,J5:J80) -> 2436900 | I3: =($G$3-$B$3)/$B$3 -> 0.2548823725
B4: Model 2020 | C4: PW 2020 | D4: 2024 PPI Model | E4: 2024 PPI PW | F4: Notes | G4: 2024 AE Estimate | H4: Pct Change | I4: Source | J4: #/AC | K4: Factor | L4: Item | M4: Alt Item (PW) | N4: previous
A5: 633#709 | B5: =IFERROR(INDEX('[1]Pt1-DATA'!$C:$D,MATCH(A5,'[1]Pt1-DATA'!$C:$C,0),2),"") -> 46970 | C5: =IFERROR(INDEX('[2]narrow body'!$B$6:$K$73,MATCH(L5,'[2]narrow body'!$B$6:$B$73,0),4)*1000,INDEX('[2]narrow body'!$B$6:$K$73,MATCH(M5,'[2]narrow body'!$B$6:$B$73,0),4)*1000) -> 30000 | D5: =B5*(1+'Federal Reserve PPI AC Parts'!$E$12) -> 52531.3871 | E5: =C5*(1+'Federal Reserve PPI AC Parts'!$E$12) -> 33552.08884 | F5: Low for Airbus FMS | G5: 55000 | H5: =(B5-C5)/C5 -> 0.5656666667 | I5: =IFERROR(INDEX('[2]narrow body'!$B$6:$K$73,MATCH(L5,'[2]narrow body'!$B$6:$B$73,0),7),INDEX('[2]narrow body'!$B$6:$K$73,MATCH(M5,'[2]narrow body'!$B$6:$B$73,0),7)) -> BFE option. Thales or Honeywell | J5: 2 | K5: =INDEX('[1]Pt1-DATA'!$A$5:$M$13349,MATCH(A5,'[1]Pt1-DATA'!$C$5:$C$13349,0),6) -> G | L5: FMGC | N5: 46970
A6: 633#710 | B6: =IFERROR(INDEX('[1]Pt1-DATA'!$C:$D,MATCH(A6,'[1]Pt1-DATA'!$C:$C,0),2),"") -> 26094 | C6: =IFERROR(INDEX('[2]narrow body'!$B$6:$K$73,MATCH(L6,'[2]narrow body'!$B$6:$B$73,0),4)*1000,INDEX('[2]narrow body'!$B$6:$K$73,MATCH(M6,'[2]narrow body'!$B$6:$B$73,0),4)*1000) -> 25000 | D6: =B6*(1+'Federal Reserve PPI AC Parts'!$E$12) -> 29183.60687 | E6: =C6*(1+'Federal Reserve PPI AC Parts'!$E$12) -> 27960.07403 | F6: PW Low | G6: 30000 | H6: =(B6-C6)/C6 -> 0.04376 | I6: =IFERROR(INDEX('[2]narrow body'!$B$6:$K$73,MATCH(L6,'[2]narrow body'!$B$6:$B$73,0),7),INDEX('[2]narrow body'!$B$6:$K$73,MATCH(M6,'[2]narrow body'!$B$6:$B$73,0),7)) -> BFE option. Thales or Honeywell | J6: 2 | K6: =INDEX('[1]Pt1-DATA'!$A$5:$M$13349,MATCH(A6,'[1]Pt1-DATA'!$C$5:$C$13349,0),6) -> G | L6: MCDU | N6: 26094
A7: 633#711 | B7: =IFERROR(INDEX('[1]Pt1-DATA'!$C:$D,MATCH(A7,'[1]Pt1-DATA'!$C:$C,0),2),"") -> 20876 | C7: =IFERROR(INDEX('[2]narrow body'!$B$6:$K$73,MATCH(L7,'[2]narrow body'!$B$6:$B$73,0),4)*1000,INDEX('[2]narrow body'!$B$6:$K$73,MATCH(M7,'[2]narrow body'!$B$6:$B$73,0),4)*1000) -> 20000 | D7: =B7*(1+'Federal Reserve PPI AC Parts'!$E$12) -> 23347.78022 | E7: =C7*(1+'Federal Reserve PPI AC Parts'!$E$12) -> 22368.05923 | F7: Validated PW 2020 | G7: 25000 | H7: 0.0438 | I7: =IFERROR(INDEX('[2]narrow body'!$B$6:$K$73,MATCH(L7,'[2]narrow body'!$B$6:$B$73,0),7),INDEX('[2]narrow body'!$B$6:$K$73,MATCH(M7,'[2]narrow body'!$B$6:$B$73,0),7)) -> BFE option. Thales or Honeywell | J7: 1 | K7: =INDEX('[1]Pt1-DATA'!$A$5:$M$13349,MATCH(A7,'[1]Pt1-DATA'!$C$5:$C$13349,0),6) -> C | L7: FCU | M7: FCU (part of FMGC above) | N7: 20876
A8: 633#712 | B8: =IFERROR(INDEX('[1]Pt1-DATA'!$C:$D,MATCH(A8,'[1]Pt1-DATA'!$C:$C,0),2),"") -> 26094 | C8: =IFERROR(INDEX('[2]narrow body'!$B$6:$K$73,MATCH(L8,'[2]narrow body'!$B$6:$B$73,0),4)*1000,INDEX('[2]narrow body'!$B$6:$K$73,MATCH(M8,'[2]narrow body'!$B$6:$B$73,0),4)*1000) -> 25000 | D8: =B8*(1+'Federal Reserve PPI AC Parts'!$E$12) -> 29183.60687 | E8: =C8*(1+'Federal Reserve PPI AC Parts'!$E$12) -> 27960.07403 | F8: PW Low | G8: 30000 | H8: 0.04376 | I8: =IFERROR(INDEX('[2]narrow body'!$B$6:$K$73,MATCH(L8,'[2]narrow body'!$B$6:$B$73,0),7),INDEX('[2]narrow body'!$B$6:$K$73,MATCH(M8,'[2]narrow body'!$B$6:$B$73,0),7)) -> BFE option. Thales or Honeywell | J8: 2 | K8: =INDEX('[1]Pt1-DATA'!$A$5:$M$13349,MATCH(A8,'[1]Pt1-DATA'!$C$5:$C$13349,0),6) -> C | L8: Flight Augmentation Computers | M8: Flight Augmentation Computers (FAC) part of FMGC system above | N8: 26094
A9: 633#713 | B9: =IFERROR(INDEX('[1]Pt1-DATA'!$C:$D,MATCH(A9,'[1]Pt1-DATA'!$C:$C,0),2),"") -> 14941 | C9: =IFERROR(INDEX('[2]narrow body'!$B$6:$K$73,MATCH(L9,'[2]narrow body'!$B$6:$B$73,0),4)*1000,INDEX('[2]narrow body'!$B$6:$K$73,MATCH(M9,'[2]narrow body'!$B$6:$B$73,0),4)*1000) -> 20000 | D9: =B9*(1+'Federal Reserve PPI AC Parts'!$E$12) -> 16710.05865 | E9: =C9*(1+'Federal Reserve PPI AC Parts'!$E$12) -> 22368.05923 | F9: Validated PW 2020 | G9: 23500 | H9: -0.25295 | I9: =IFERROR(INDEX('[2]narrow body'!$B$6:$K$73,MATCH(L9,'[2]narrow body'!$B$6:$B$73,0),7),INDEX('[2]narrow body'!$B$6:$K$73,MATCH(M9,'[2]narrow body'!$B$6:$B$73,0),7)) -> Who supplies???? | J9: 2 | K9: =INDEX('[1]Pt1-DATA'!$A$5:$M$13349,MATCH(A9,'[1]Pt1-DATA'!$C$5:$C$13349,0),6) -> E | L9: A/T Engine Control Unit | N9: 14941
A10: 633#714 | B10: =IFERROR(INDEX('[1]Pt1-DATA'!$C:$D,MATCH(A10,'[1]Pt1-DATA'!$C:$C,0),2),"") -> 11506 | C10: =IFERROR(INDEX('[2]narrow body'!$B$6:$K$73,MATCH(L10,'[2]narrow body'!$B$6:$B$73,0),4)*1000,INDEX('[2]narrow body'!$B$6:$K$73,MATCH(M10,'[2]narrow body'!$B$6:$B$73,0),4)*1000) -> 10000 | D10: =B10*(1+'Federal Reserve PPI AC Parts'!$E$12) -> 12868.34447 | E10: =C10*(1+'Federal Reserve PPI AC Parts'!$E$12) -> 11184.02961 | F10: Validated PW 2020 | G10: 13000 | H10: 0.1506 | I10: =IFERROR(INDEX('[2]narrow body'!$B$6:$K$73,MATCH(L10,'[2]narrow body'!$B$6:$B$73,0),7),INDEX('[2]narrow body'!$B$6:$K$73,MATCH(M10,'[2]narrow body'!$B$6:$B$73,0),7)) -> BFE option. Thales or Honeywell | J10: 2 | K10: =INDEX('[1]Pt1-DATA'!$A$5:$M$13349,MATCH(A10,'[1]Pt1-DATA'!$C$5:$C$13349,0),6) -> C | L10: Data Base loader | N10: 11506
A11: 633#715 | B11: =IFERROR(INDEX('[1]Pt1-DATA'!$C:$D,MATCH(A11,'[1]Pt1-DATA'!$C:$C,0),2),"") -> 12525 | C11: =IFERROR(INDEX('[2]narrow body'!$B$6:$K$73,MATCH(L11,'[2]narrow body'!$B$6:$B$73,0),4)*1000,INDEX('[2]narrow body'!$B$6:$K$73,MATCH(M11,'[2]narrow body'!$B$6:$B$73,0),4)*1000) -> 12000 | D11: =B11*(1+'Federal Reserve PPI AC Parts'!$E$12) -> 14007.99709 | E11: =C11*(1+'Federal Reserve PPI AC Parts'!$E$12) -> 13420.83554 | F11: Validated PW 2020 | G11: 14000 | H11: 0.04375 | I11: =IFERROR(INDEX('[2]narrow body'!$B$6:$K$73,MATCH(L11,'[2]narrow body'!$B$6:$B$73,0),7),INDEX('[2]narrow body'!$B$6:$K$73,MATCH(M11,'[2]narrow body'!$B$6:$B$73,0),7)) -> Glareshield | J11: 3 | K11: =INDEX('[1]Pt1-DATA'!$A$5:$M$13349,MATCH(A11,'[1]Pt1-DATA'!$C$5:$C$13349,0),6) -> C | L11: Flight Control Unit (FCU) panel | M11: Flight Control Unit (FCU) panel (3 panels) | N11: 12525
A12: 633#716 | B12: =IFERROR(INDEX('[1]Pt1-DATA'!$C:$D,MATCH(A12,'[1]Pt1-DATA'!$C:$C,0),2),"") -> 10437 | C12: =IFERROR(INDEX('[2]narrow body'!$B$6:$K$73,MATCH(L12,'[2]narrow body'!$B$6:$B$73,0),4)*1000,INDEX('[2]narrow body'!$B$6:$K$73,MATCH(M12,'[2]narrow body'!$B$6:$B$73,0),4)*1000) -> 10000 | D12: =B12*(1+'Federal Reserve PPI AC Parts'!$E$12) -> 11672.77171 | E12: =C12*(1+'Federal Reserve PPI AC Parts'!$E$12) -> 11184.02961 | F12: Validated PW 2020 | G12: 12000 | H12: 0.0437 | I12: =IFERROR(INDEX('[2]narrow body'!$B$6:$K$73,MATCH(L12,'[2]narrow body'!$B$6:$B$73,0),7),INDEX('[2]narrow body'!$B$6:$K$73,MATCH(M12,'[2]narrow body'!$B$6:$B$73,0),7)) -> ?????? | J12: 2 | K12: =INDEX('[1]Pt1-DATA'!$A$5:$M$13349,MATCH(A12,'[1]Pt1-DATA'!$C$5:$C$13349,0),6) -> C | L12: Flight Warning Computer (FWC) | N12: 10437
A13: 633#717 | B13: =IFERROR(INDEX('[1]Pt1-DATA'!$C:$D,MATCH(A13,'[1]Pt1-DATA'!$C:$C,0),2),"") -> 31029 | C13: =IFERROR(INDEX('[2]narrow body'!$B$6:$K$73,MATCH(L13,'[2]narrow body'!$B$6:$B$73,0),4)*1000,INDEX('[2]narrow body'!$B$6:$K$73,MATCH(M13,'[2]narrow body'!$B$6:$B$73,0),4)*1000) -> 35000 | D13: =B13*(1+'Federal Reserve PPI AC Parts'!$E$12) -> 34702.92549 | E13: =C13*(1+'Federal Reserve PPI AC Parts'!$E$12) -> 39144.10365 | F13: Validated PW 2020 | G13: 39000 | H13: -0.1134571429 | I13: =IFERROR(INDEX('[2]narrow body'!$B$6:$K$73,MATCH(L13,'[2]narrow body'!$B$6:$B$73,0),7),INDEX('[2]narrow body'!$B$6:$K$73,MATCH(M13,'[2]narrow body'!$B$6:$B$73,0),7)) -> Honeywell | J13: 3 | K13: =INDEX('[1]Pt1-DATA'!$A$5:$M$13349,MATCH(A13,'[1]Pt1-DATA'!$C$5:$C$13349,0),6) -> C | L13: ADIRU | N13: 31029
A14: 633#719 | B14: =IFERROR(INDEX('[1]Pt1-DATA'!$C:$D,MATCH(A14,'[1]Pt1-DATA'!$C:$C,0),2),"") -> 15182 | C14: =IFERROR(INDEX('[2]narrow body'!$B$6:$K$73,MATCH(L14,'[2]narrow body'!$B$6:$B$73,0),4)*1000,INDEX('[2]narrow body'!$B$6:$K$73,MATCH(M14,'[2]narrow body'!$B$6:$B$73,0),4)*1000) -> 15000 | D14: =B14*(1+'Federal Reserve PPI AC Parts'!$E$12) -> 16979.59376 | E14: =C14*(1+'Federal Reserve PPI AC Parts'!$E$12) -> 16776.04442 | F14: Validated PW 2020 | G14: 17000 | H14: 0.01213333333 | I14: =IFERROR(INDEX('[2]narrow body'!$B$6:$K$73,MATCH(L14,'[2]narrow body'!$B$6:$B$73,0),7),INDEX('[2]narrow body'!$B$6:$K$73,MATCH(M14,'[2]narrow body'!$B$6:$B$73,0),7)) -> Honeywell | J14: 1 | K14: =INDEX('[1]Pt1-DATA'!$A$5:$M$13349,MATCH(A14,'[1]Pt1-DATA'!$C$5:$C$13349,0),6) -> C | L14: ADIRS CDU | N14: 15182
A15: 633#721 | B15: =IFERROR(INDEX('[3]Pt1-DATA'!$C:$D,MATCH(A15,'[3]Pt1-DATA'!$C:$C,0),2),"") -> 10638 | C15: =IFERROR(INDEX('[2]narrow body'!$B$6:$K$73,MATCH(L15,'[2]narrow body'!$B$6:$B$73,0),4)*1000,INDEX('[2]narrow body'!$B$6:$K$73,MATCH(M15,'[2]narrow body'!$B$6:$B$73,0),4)*1000) -> 12000 | D15: =B15*(1+'Federal Reserve PPI AC Parts'!$E$12) -> 11897.5707 | E15: =C15*(1+'Federal Reserve PPI AC Parts'!$E$12) -> 13420.83554 | F15: Validated PW 2020 | G15: 13500 | H15: -0.1135 | I15: =IFERROR(INDEX('[2]narrow body'!$B$6:$K$73,MATCH(L15,'[2]narrow body'!$B$6:$B$73,0),7),INDEX('[2]narrow body'!$B$6:$K$73,MATCH(M15,'[2]narrow body'!$B$6:$B$73,0),7)) -> Collins | J15: 8 | K15: =INDEX('[1]Pt1-DATA'!$A$5:$M$13349,MATCH(A15,'[1]Pt1-DATA'!$C$5:$C$13349,0),6) -> E | L15: Air Data Modules (ADM) | N15: 10638
A16: 633#722 | B16: =IFERROR(INDEX('[3]Pt1-DATA'!$C:$D,MATCH(A16,'[3]Pt1-DATA'!$C:$C,0),2),"") -> 8800 | C16: =IFERROR(INDEX('[2]narrow body'!$B$6:$K$73,MATCH(L16,'[2]narrow body'!$B$6:$B$73,0),4)*1000,INDEX('[2]narrow body'!$B$6:$K$73,MATCH(M16,'[2]narrow body'!$B$6:$B$73,0),4)*1000) -> 8000 | D16: =B16*(1+'Federal Reserve PPI AC Parts'!$E$12) -> 9841.94606 | E16: =C16*(1+'Federal Reserve PPI AC Parts'!$E$12) -> 8947.223691 | F16: Validated PW 2020 | G16: 10000 | H16: 0.1 | I16: =IFERROR(INDEX('[2]narrow body'!$B$6:$K$73,MATCH(L16,'[2]narrow body'!$B$6:$B$73,0),7),INDEX('[2]narrow body'!$B$6:$K$73,MATCH(M16,'[2]narrow body'!$B$6:$B$73,0),7)) -> Collins | J16: 12 | K16: =INDEX('[1]Pt1-DATA'!$A$5:$M$13349,MATCH(A16,'[1]Pt1-DATA'!$C$5:$C$13349,0),6) -> E | L16: Air data probes (pitot/static) | N16: 8800
A17: 633#723 | B17: =IFERROR(INDEX('[3]Pt1-DATA'!$C:$D,MATCH(A17,'[3]Pt1-DATA'!$C:$C,0),2),"") -> 44327 | C17: =IFERROR(INDEX('[2]narrow body'!$B$6:$K$73,MATCH(L17,'[2]narrow body'!$B$6:$B$73,0),4)*1000,INDEX('[2]narrow body'!$B$6:$K$73,MATCH(M17,'[2]narrow body'!$B$6:$B$73,0),4)*1000) -> 50000 | D17: =B17*(1+'Federal Reserve PPI AC Parts'!$E$12) -> 49575.44807 | E17: =C17*(1+'Federal Reserve PPI AC Parts'!$E$12) -> 55920.14807 | F17: Validated PW 2020 | G17: 56000 | H17: -0.11346 | I17: =IFERROR(INDEX('[2]narrow body'!$B$6:$K$73,MATCH(L17,'[2]narrow body'!$B$6:$B$73,0),7),INDEX('[2]narrow body'!$B$6:$K$73,MATCH(M17,'[2]narrow body'!$B$6:$B$73,0),7)) -> Option (HWL/Collins/Thales) | J17: 1 | K17: =INDEX('[1]Pt1-DATA'!$A$5:$M$13349,MATCH(A17,'[1]Pt1-DATA'!$C$5:$C$13349,0),6) -> D2 | L17: Multi Mode Receiver (MMR) | N17: 44327
A18: 633#724 | B18: =IFERROR(INDEX('[3]Pt1-DATA'!$C:$D,MATCH(A18,'[3]Pt1-DATA'!$C:$C,0),2),"") -> 13699 | C18: =IFERROR(INDEX('[2]narrow body'!$B$6:$K$73,MATCH(L18,'[2]narrow body'!$B$6:$B$73,0),4)*1000,INDEX('[2]narrow body'!$B$6:$K$73,MATCH(M18,'[2]narrow body'!$B$6:$B$73,0),4)*1000) -> 10000 | D18: =B18*(1+'Federal Reserve PPI AC Parts'!$E$12) -> 15321.00217 | E18: =C18*(1+'Federal Reserve PPI AC Parts'!$E$12) -> 11184.02961 | F18: Validated PW 2020 | G18: 12500 | H18: 0.3699 | I18: =IFERROR(INDEX('[2]narrow body'!$B$6:$K$73,MATCH(L18,'[2]narrow body'!$B$6:$B$73,0),7),INDEX('[2]narrow body'!$B$6:$K$73,MATCH(M18,'[2]narrow body'!$B$6:$B$73,0),7)) -> Cobham/L3/Collins | J18: 2 | K18: =INDEX('[1]Pt1-DATA'!$A$5:$M$13349,MATCH(A18,'[1]Pt1-DATA'!$C$5:$C$13349,0),6) -> E | L18: ADF system | N18: 13699
A19: 633#725 | B19: =IFERROR(INDEX('[3]Pt1-DATA'!$C:$D,MATCH(A19,'[3]Pt1-DATA'!$C:$C,0),2),"") -> 12412 | C19: =IFERROR(INDEX('[2]narrow body'!$B$6:$K$73,MATCH(L19,'[2]narrow body'!$B$6:$B$73,0),4)*1000,INDEX('[2]narrow body'!$B$6:$K$73,MATCH(M19,'[2]narrow body'!$B$6:$B$73,0),4)*1000) -> 6000 | D19: =B19*(1+'Federal Reserve PPI AC Parts'!$E$12) -> 13881.61756 | E19: =C19*(1+'Federal Reserve PPI AC Parts'!$E$12) -> 6710.417768 | F19: PW Low | G19: 15000 | H19: 1.068666667 | I19: =IFERROR(INDEX('[2]narrow body'!$B$6:$K$73,MATCH(L19,'[2]narrow body'!$B$6:$B$73,0),7),INDEX('[2]narrow body'!$B$6:$K$73,MATCH(M19,'[2]narrow body'!$B$6:$B$73,0),7)) -> Collins | J19: 2 | K19: =INDEX('[1]Pt1-DATA'!$A$5:$M$13349,MATCH(A19,'[1]Pt1-DATA'!$C$5:$C$13349,0),6) -> D | L19: DME receivers | N19: 12412
A20: 633#726 | B20: =IFERROR(INDEX('[3]Pt1-DATA'!$C:$D,MATCH(A20,'[3]Pt1-DATA'!$C:$C,0),2),"") -> 45546 | C20: =IFERROR(INDEX('[2]narrow body'!$B$6:$K$73,MATCH(L20,'[2]narrow body'!$B$6:$B$73,0),4)*1000,INDEX('[2]narrow body'!$B$6:$K$73,MATCH(M20,'[2]narrow body'!$B$6:$B$73,0),4)*1000) -> 45000 | D20: =B20*(1+'Federal Reserve PPI AC Parts'!$E$12) -> 50938.78128 | E20: =C20*(1+'Federal Reserve PPI AC Parts'!$E$12) -> 50328.13326 | F20: Validated PW 2020 | G20: 50100 | H20: 0.01213333333 | I20: =IFERROR(INDEX('[2]narrow body'!$B$6:$K$73,MATCH(L20,'[2]narrow body'!$B$6:$B$73,0),7),INDEX('[2]narrow body'!$B$6:$K$73,MATCH(M20,'[2]narrow body'!$B$6:$B$73,0),7)) -> Thales/Diehl | J20: 2 | K20: =INDEX('[1]Pt1-DATA'!$A$5:$M$13349,MATCH(A20,'[1]Pt1-DATA'!$C$5:$C$13349,0),6) -> C | L20: Primary Flight Display (EFIS) | N20: 45546
A21: 633#727 | B21: =IFERROR(INDEX('[3]Pt1-DATA'!$C:$D,MATCH(A21,'[3]Pt1-DATA'!$C:$C,0),2),"") -> 45546 | C21: =IFERROR(INDEX('[2]narrow body'!$B$6:$K$73,MATCH(L21,'[2]narrow body'!$B$6:$B$73,0),4)*1000,INDEX('[2]narrow body'!$B$6:$K$73,MATCH(M21,'[2]narrow body'!$B$6:$B$73,0),4)*1000) -> 45000 | D21: =B21*(1+'Federal Reserve PPI AC Parts'!$E$12) -> 50938.78128 | E21: =C21*(1+'Federal Reserve PPI AC Parts'!$E$12) -> 50328.13326 | F21: Validated PW 2020 | G21: 50100 | H21: 0.01213333333 | I21: =IFERROR(INDEX('[2]narrow body'!$B$6:$K$73,MATCH(L21,'[2]narrow body'!$B$6:$B$73,0),7),INDEX('[2]narrow body'!$B$6:$K$73,MATCH(M21,'[2]narrow body'!$B$6:$B$73,0),7)) -> Thales/Diehl | J21: 2 | K21: =INDEX('[1]Pt1-DATA'!$A$5:$M$13349,MATCH(A21,'[1]Pt1-DATA'!$C$5:$C$13349,0),6) -> I | L21: Navigation display (EFIS) | N21: 45546
A22: 633#728 | B22: =IFERROR(INDEX('[3]Pt1-DATA'!$C:$D,MATCH(A22,'[3]Pt1-DATA'!$C:$C,0),2),"") -> 8097 | C22: =IFERROR(INDEX('[2]narrow body'!$B$6:$K$73,MATCH(L22,'[2]narrow body'!$B$6:$B$73,0),4)*1000,INDEX('[2]narrow body'!$B$6:$K$73,MATCH(M22,'[2]narrow body'!$B$6:$B$73,0),4)*1000) -> 8000 | D22: =B22*(1+'Federal Reserve PPI AC Parts'!$E$12) -> 9055.708778 | E22: =C22*(1+'Federal Reserve PPI AC Parts'!$E$12) -> 8947.223691 | F22: Validated PW 2020 | G22: 9500 | H22: 0.012125 | I22: =IFERROR(INDEX('[2]narrow body'!$B$6:$K$73,MATCH(L22,'[2]narrow body'!$B$6:$B$73,0),7),INDEX('[2]narrow body'!$B$6:$K$73,MATCH(M22,'[2]narrow body'!$B$6:$B$73,0),7)) -> 0 | J22: 2 | K22: =INDEX('[1]Pt1-DATA'!$A$5:$M$13349,MATCH(A22,'[1]Pt1-DATA'!$C$5:$C$13349,0),6) -> C | L22: EFIS Control panel | N22: 8097
A23: 633#729 | B23: =IFERROR(INDEX('[3]Pt1-DATA'!$C:$D,MATCH(A23,'[3]Pt1-DATA'!$C:$C,0),2),"") -> 30364 | C23: =IFERROR(INDEX('[2]narrow body'!$B$6:$K$73,MATCH(L23,'[2]narrow body'!$B$6:$B$73,0),4)*1000,INDEX('[2]narrow body'!$B$6:$K$73,MATCH(M23,'[2]narrow body'!$B$6:$B$73,0),4)*1000) -> 30000 | D23: =B23*(1+'Federal Reserve PPI AC Parts'!$E$12) -> 33959.18752 | E23: =C23*(1+'Federal Reserve PPI AC Parts'!$E$12) -> 33552.08884 | F23: Low | G23: 60000 | H23: 0.01213333333 | I23: =IFERROR(INDEX('[2]narrow body'!$B$6:$K$73,MATCH(L23,'[2]narrow body'!$B$6:$B$73,0),7),INDEX('[2]narrow body'!$B$6:$K$73,MATCH(M23,'[2]narrow body'!$B$6:$B$73,0),7)) -> Thales/Diehl | J23: 2 | K23: =INDEX('[1]Pt1-DATA'!$A$5:$M$13349,MATCH(A23,'[1]Pt1-DATA'!$C$5:$C$13349,0),6) -> C | L23: ECAM display | N23: 30364
A24: 633#730 | B24: =IFERROR(INDEX('[3]Pt1-DATA'!$C:$D,MATCH(A24,'[3]Pt1-DATA'!$C:$C,0),2),"") -> 75910 | C24: =IFERROR(INDEX('[2]narrow body'!$B$6:$K$73,MATCH(L24,'[2]narrow body'!$B$6:$B$73,0),4)*1000,INDEX('[2]narrow body'!$B$6:$K$73,MATCH(M24,'[2]narrow body'!$B$6:$B$73,0),4)*1000) -> 75000 | D24: =B24*(1+'Federal Reserve PPI AC Parts'!$E$12) -> 84897.9688 | E24: =C24*(1+'Federal Reserve PPI AC Parts'!$E$12) -> 83880.2221 | F24: Validated PW 2020 | G24: 85000 | H24: 0.01213333333 | I24: =IFERROR(INDEX('[2]narrow body'!$B$6:$K$73,MATCH(L24,'[2]narrow body'!$B$6:$B$73,0),7),INDEX('[2]narrow body'!$B$6:$K$73,MATCH(M24,'[2]narrow body'!$B$6:$B$73,0),7)) -> Optional | J24: 1 | K24: =INDEX('[1]Pt1-DATA'!$A$5:$M$13349,MATCH(A24,'[1]Pt1-DATA'!$C$5:$C$13349,0),6) -> E | L24: HUD display system | N24: 75910
A25: 633#731 | B25: =IFERROR(INDEX('[3]Pt1-DATA'!$C:$D,MATCH(A25,'[3]Pt1-DATA'!$C:$C,0),2),"") -> 7085 | C25: =IFERROR(INDEX('[2]narrow body'!$B$6:$K$73,MATCH(L25,'[2]narrow body'!$B$6:$B$73,0),4)*1000,INDEX('[2]narrow body'!$B$6:$K$73,MATCH(M25,'[2]narrow body'!$B$6:$B$73,0),4)*1000) -> 7000 | D25: =B25*(1+'Federal Reserve PPI AC Parts'!$E$12) -> 7923.884981 | E25: =C25*(1+'Federal Reserve PPI AC Parts'!$E$12) -> 7828.82073 | F25: Validated PW 2020 | G25: 8000 | H25: 0.01214285714 | I25: =IFERROR(INDEX('[2]narrow body'!$B$6:$K$73,MATCH(L25,'[2]narrow body'!$B$6:$B$73,0),7),INDEX('[2]narrow body'!$B$6:$K$73,MATCH(M25,'[2]narrow body'!$B$6:$B$73,0),7)) -> 0 | J25: 2 | K25: =INDEX('[1]Pt1-DATA'!$A$5:$M$13349,MATCH(A25,'[1]Pt1-DATA'!$C$5:$C$13349,0),6) -> C | L25: ECAM Control panel | N25: 7085
A26: 633#732 | B26: =IFERROR(INDEX('[3]Pt1-DATA'!$C:$D,MATCH(A26,'[3]Pt1-DATA'!$C:$C,0),2),"") -> 15182 | C26: =IFERROR(INDEX('[2]narrow body'!$B$6:$K$73,MATCH(L26,'[2]narrow body'!$B$6:$B$73,0),4)*1000,INDEX('[2]narrow body'!$B$6:$K$73,MATCH(M26,'[2]narrow body'!$B$6:$B$73,0),4)*1000) -> 15000 | D26: =B26*(1+'Federal Reserve PPI AC Parts'!$E$12) -> 16979.59376 | E26: =C26*(1+'Federal Reserve PPI AC Parts'!$E$12) -> 16776.04442 | F26: Validated PW 2020 | G26: 17000 | H26: 0.01213333333 | I26: =IFERROR(INDEX('[2]narrow body'!$B$6:$K$73,MATCH(L26,'[2]narrow body'!$B$6:$B$73,0),7),INDEX('[2]narrow body'!$B$6:$K$73,MATCH(M26,'[2]narrow body'!$B$6:$B$73,0),7)) -> Thales/Diehl | J26: 2 | K26: =INDEX('[1]Pt1-DATA'!$A$5:$M$13349,MATCH(A26,'[1]Pt1-DATA'!$C$5:$C$13349,0),6) -> C | L26: System Data Acquisition Concentrator (SDAC) | N26: 15182
A27: 633#733 | B27: =IFERROR(INDEX('[3]Pt1-DATA'!$C:$D,MATCH(A27,'[3]Pt1-DATA'!$C:$C,0),2),"") -> 30364 | C27: =IFERROR(INDEX('[2]narrow body'!$B$6:$K$73,MATCH(L27,'[2]narrow body'!$B$6:$B$73,0),4)*1000,INDEX('[2]narrow body'!$B$6:$K$73,MATCH(M27,'[2]narrow body'!$B$6:$B$73,0),4)*1000) -> 30000 | D27: =B27*(1+'Federal Reserve PPI AC Parts'!$E$12) -> 33959.18752 | E27: =C27*(1+'Federal Reserve PPI AC Parts'!$E$12) -> 33552.08884 | F27: Validated PW 2020 | G27: 34000 | H27: 0.01213333333 | I27: =IFERROR(INDEX('[2]narrow body'!$B$6:$K$73,MATCH(L27,'[2]narrow body'!$B$6:$B$73,0),7),INDEX('[2]narrow body'!$B$6:$K$73,MATCH(M27,'[2]narrow body'!$B$6:$B$73,0),7)) -> Thales/Diehl | J27: 3 | K27: =INDEX('[1]Pt1-DATA'!$A$5:$M$13349,MATCH(A27,'[1]Pt1-DATA'!$C$5:$C$13349,0),6) -> F | L27: Display Management Computer (DMC/EFIS) | M27: Display Management Computer (EFIS) | N27: 30364
A28: 633#734 | B28: =IFERROR(INDEX('[3]Pt1-DATA'!$C:$D,MATCH(A28,'[3]Pt1-DATA'!$C:$C,0),2),"") -> 8097 | C28: =IFERROR(INDEX('[2]narrow body'!$B$6:$K$73,MATCH(L28,'[2]narrow body'!$B$6:$B$73,0),4)*1000,INDEX('[2]narrow body'!$B$6:$K$73,MATCH(M28,'[2]narrow body'!$B$6:$B$73,0),4)*1000) -> 8000 | D28: =B28*(1+'Federal Reserve PPI AC Parts'!$E$12) -> 9055.708778 | E28: =C28*(1+'Federal Reserve PPI AC Parts'!$E$12) -> 8947.223691 | F28: Validated PW 2020 | G28: 9500 | H28: 0.012125 | I28: =IFERROR(INDEX('[2]narrow body'!$B$6:$K$73,MATCH(L28,'[2]narrow body'!$B$6:$B$73,0),7),INDEX('[2]narrow body'!$B$6:$K$73,MATCH(M28,'[2]narrow body'!$B$6:$B$73,0),7)) -> Thales/Diehl | J28: 1 | K28: =INDEX('[1]Pt1-DATA'!$A$5:$M$13349,MATCH(A28,'[1]Pt1-DATA'!$C$5:$C$13349,0),6) -> C | L28: Compass | N28: 8097
A29: 633#735 | B29: =IFERROR(INDEX('[3]Pt1-DATA'!$C:$D,MATCH(A29,'[3]Pt1-DATA'!$C:$C,0),2),"") -> 28340 | C29: =IFERROR(INDEX('[2]narrow body'!$B$6:$K$73,MATCH(L29,'[2]narrow body'!$B$6:$B$73,0),4)*1000,INDEX('[2]narrow body'!$B$6:$K$73,MATCH(M29,'[2]narrow body'!$B$6:$B$73,0),4)*1000) -> 28000 | D29: =B29*(1+'Federal Reserve PPI AC Parts'!$E$12) -> 31695.53993 | E29: =C29*(1+'Federal Reserve PPI AC Parts'!$E$12) -> 31315.28292 | F29: Validated PW 2020 | G29: 32500 | H29: 0.01214285714 | I29: =IFERROR(INDEX('[2]narrow body'!$B$6:$K$73,MATCH(L29,'[2]narrow body'!$B$6:$B$73,0),7),INDEX('[2]narrow body'!$B$6:$K$73,MATCH(M29,'[2]narrow body'!$B$6:$B$73,0),7)) -> Thales | J29: 1 | K29: =INDEX('[1]Pt1-DATA'!$A$5:$M$13349,MATCH(A29,'[1]Pt1-DATA'!$C$5:$C$13349,0),6) -> D | L29: Integrated Standby Instrument System | N29: 28340
A30: 633#736 | B30: =IFERROR(INDEX('[3]Pt1-DATA'!$C:$D,MATCH(A30,'[3]Pt1-DATA'!$C:$C,0),2),"") -> 12145 | C30: =IFERROR(INDEX('[2]narrow body'!$B$6:$K$73,MATCH(L30,'[2]narrow body'!$B$6:$B$73,0),4)*1000,INDEX('[2]narrow body'!$B$6:$K$73,MATCH(M30,'[2]narrow body'!$B$6:$B$73,0),4)*1000) -> 12000 | D30: =B30*(1+'Federal Reserve PPI AC Parts'!$E$12) -> 13583.00397 | E30: =C30*(1+'Federal Reserve PPI AC Parts'!$E$12) -> 13420.83554 | F30: Validated PW 2020 | G30: 14000 | H30: 0.01208333333 | I30: =IFERROR(INDEX('[2]narrow body'!$B$6:$K$73,MATCH(L30,'[2]narrow body'!$B$6:$B$73,0),7),INDEX('[2]narrow body'!$B$6:$K$73,MATCH(M30,'[2]narrow body'!$B$6:$B$73,0),7)) -> 0 | J30: 1 | K30: =INDEX('[1]Pt1-DATA'!$A$5:$M$13349,MATCH(A30,'[1]Pt1-DATA'!$C$5:$C$13349,0),6) -> C | L30: DDRMI display | N30: 12145
A31: 633#737 | B31: =IFERROR(INDEX('[3]Pt1-DATA'!$C:$D,MATCH(A31,'[3]Pt1-DATA'!$C:$C,0),2),"") -> 8097 | C31: =IFERROR(INDEX('[2]narrow body'!$B$6:$K$73,MATCH(L31,'[2]narrow body'!$B$6:$B$73,0),4)*1000,INDEX('[2]narrow body'!$B$6:$K$73,MATCH(M31,'[2]narrow body'!$B$6:$B$73,0),4)*1000) -> 8000 | D31: =B31*(1+'Federal Reserve PPI AC Parts'!$E$12) -> 9055.708778 | E31: =C31*(1+'Federal Reserve PPI AC Parts'!$E$12) -> 8947.223691 | F31: 2 units | G31: 9000 | H31: 0.012125 | I31: =IFERROR(INDEX('[2]narrow body'!$B$6:$K$73,MATCH(L31,'[2]narrow body'!$B$6:$B$73,0),7),INDEX('[2]narrow body'!$B$6:$K$73,MATCH(M31,'[2]narrow body'!$B$6:$B$73,0),7)) -> 0 | J31: 2 | K31: =INDEX('[1]Pt1-DATA'!$A$5:$M$13349,MATCH(A31,'[1]Pt1-DATA'!$C$5:$C$13349,0),6) -> C | L31: Clock | N31: 8097
A32: 633#738 | B32: =IFERROR(INDEX('[3]Pt1-DATA'!$C:$D,MATCH(A32,'[3]Pt1-DATA'!$C:$C,0),2),"") -> 11741 | C32: =IFERROR(INDEX('[2]narrow body'!$B$6:$K$73,MATCH(L32,'[2]narrow body'!$B$6:$B$73,0),4)*1000,INDEX('[2]narrow body'!$B$6:$K$73,MATCH(M32,'[2]narrow body'!$B$6:$B$73,0),4)*1000) -> 6000 | D32: =B32*(1+'Federal Reserve PPI AC Parts'!$E$12) -> 13131.16917 | E32: =C32*(1+'Federal Reserve PPI AC Parts'!$E$12) -> 6710.417768 | F32: Low | G32: 12000 | H32: 0.9568333333 | I32: =IFERROR(INDEX('[2]narrow body'!$B$6:$K$73,MATCH(L32,'[2]narrow body'!$B$6:$B$73,0),7),INDEX('[2]narrow body'!$B$6:$K$73,MATCH(M32,'[2]narrow body'!$B$6:$B$73,0),7)) -> Cobham/L3/Collins | J32: 2 | K32: =INDEX('[1]Pt1-DATA'!$A$5:$M$13349,MATCH(A32,'[1]Pt1-DATA'!$C$5:$C$13349,0),6) -> D | L32: Comms Receivers VH (transceiver/antenna) | N32: 11741
A33: 633#739 | B33: =IFERROR(INDEX('[3]Pt1-DATA'!$C:$D,MATCH(A33,'[3]Pt1-DATA'!$C:$C,0),2),"") -> 11741 | C33: =IFERROR(INDEX('[2]narrow body'!$B$6:$K$73,MATCH(L33,'[2]narrow body'!$B$6:$B$73,0),4)*1000,INDEX('[2]narrow body'!$B$6:$K$73,MATCH(M33,'[2]narrow body'!$B$6:$B$73,0),4)*1000) -> 6000 | D33: =B33*(1+'Federal Reserve PPI AC Parts'!$E$12) -> 13131.16917 | E33: =C33*(1+'Federal Reserve PPI AC Parts'!$E$12) -> 6710.417768 | F33: Low | G33: 12000 | H33: 0.9568333333 | I33: =IFERROR(INDEX('[2]narrow body'!$B$6:$K$73,MATCH(L33,'[2]narrow body'!$B$6:$B$73,0),7),INDEX('[2]narrow body'!$B$6:$K$73,MATCH(M33,'[2]narrow body'!$B$6:$B$73,0),7)) -> Cobham/L3/Collins | J33: 2 | K33: =INDEX('[1]Pt1-DATA'!$A$5:$M$13349,MATCH(A33,'[1]Pt1-DATA'!$C$5:$C$13349,0),6) -> D | L33: Comms Receivers UF (transceiver/antenna) | N33: 11741
A34: 633#740 | B34: =IFERROR(INDEX('[3]Pt1-DATA'!$C:$D,MATCH(A34,'[3]Pt1-DATA'!$C:$C,0),2),"") -> 9784 | C34: =IFERROR(INDEX('[2]narrow body'!$B$6:$K$73,MATCH(L34,'[2]narrow body'!$B$6:$B$73,0),4)*1000,INDEX('[2]narrow body'!$B$6:$K$73,MATCH(M34,'[2]narrow body'!$B$6:$B$73,0),4)*1000) -> 6000 | D34: =B34*(1+'Federal Reserve PPI AC Parts'!$E$12) -> 10942.45457 | E34: =C34*(1+'Federal Reserve PPI AC Parts'!$E$12) -> 6710.417768 | F34: Low | G34: 10000 | H34: 0.6306666667 | I34: =IFERROR(INDEX('[2]narrow body'!$B$6:$K$73,MATCH(L34,'[2]narrow body'!$B$6:$B$73,0),7),INDEX('[2]narrow body'!$B$6:$K$73,MATCH(M34,'[2]narrow body'!$B$6:$B$73,0),7)) -> Cobham/L3/Collins | J34: 1 | K34: =INDEX('[1]Pt1-DATA'!$A$5:$M$13349,MATCH(A34,'[1]Pt1-DATA'!$C$5:$C$13349,0),6) -> D | L34: Audio Management Unit | N34: 9784
A35: 633#741 | B35: =IFERROR(INDEX('[3]Pt1-DATA'!$C:$D,MATCH(A35,'[3]Pt1-DATA'!$C:$C,0),2),"") -> 5871 | C35: =IFERROR(INDEX('[2]narrow body'!$B$6:$K$73,MATCH(L35,'[2]narrow body'!$B$6:$B$73,0),4)*1000,INDEX('[2]narrow body'!$B$6:$K$73,MATCH(M35,'[2]narrow body'!$B$6:$B$73,0),4)*1000) ->  | D35: =B35*(1+'Federal Reserve PPI AC Parts'!$E$12) -> 6566.143786 | F35: 3 units | G35: 10000 | I35: =IFERROR(INDEX('[2]narrow body'!$B$6:$K$73,MATCH(L35,'[2]narrow body'!$B$6:$B$73,0),7),INDEX('[2]narrow body'!$B$6:$K$73,MATCH(M35,'[2]narrow body'!$B$6:$B$73,0),7)) ->  | J35: 3 | K35: =INDEX('[1]Pt1-DATA'!$A$5:$M$13349,MATCH(A35,'[1]Pt1-DATA'!$C$5:$C$13349,0),6) -> D | L35: Radio management system | N35: 5871
A36: 633#742 | B36: =IFERROR(INDEX('[3]Pt1-DATA'!$C:$D,MATCH(A36,'[3]Pt1-DATA'!$C:$C,0),2),"") -> 5871 | C36: =IFERROR(INDEX('[2]narrow body'!$B$6:$K$73,MATCH(L36,'[2]narrow body'!$B$6:$B$73,0),4)*1000,INDEX('[2]narrow body'!$B$6:$K$73,MATCH(M36,'[2]narrow body'!$B$6:$B$73,0),4)*1000) -> 5000 | D36: =B36*(1+'Federal Reserve PPI AC Parts'!$E$12) -> 6566.143786 | E36: =C36*(1+'Federal Reserve PPI AC Parts'!$E$12) -> 5592.014807 | F36: Low | G36: 10000 | H36: 0.1742 | I36: =IFERROR(INDEX('[2]narrow body'!$B$6:$K$73,MATCH(L36,'[2]narrow body'!$B$6:$B$73,0),7),INDEX('[2]narrow body'!$B$6:$K$73,MATCH(M36,'[2]narrow body'!$B$6:$B$73,0),7)) -> 0 | J36: 1 | K36: =INDEX('[1]Pt1-DATA'!$A$5:$M$13349,MATCH(A36,'[1]Pt1-DATA'!$C$5:$C$13349,0),6) -> C | L36: Audio Control Panel | N36: 5871
A37: 633#743 | B37: =IFERROR(INDEX('[3]Pt1-DATA'!$C:$D,MATCH(A37,'[3]Pt1-DATA'!$C:$C,0),2),"") -> 5871 | C37: =IFERROR(INDEX('[2]narrow body'!$B$6:$K$73,MATCH(L37,'[2]narrow body'!$B$6:$B$73,0),4)*1000,INDEX('[2]narrow body'!$B$6:$K$73,MATCH(M37,'[2]narrow body'!$B$6:$B$73,0),4)*1000) -> 5000 | D37: =B37*(1+'Federal Reserve PPI AC Parts'!$E$12) -> 6566.143786 | E37: =C37*(1+'Federal Reserve PPI AC Parts'!$E$12) -> 5592.014807 | F37: Validated PW 2020 | G37: 7500 | H37: 0.1742 | I37: =IFERROR(INDEX('[2]narrow body'!$B$6:$K$73,MATCH(L37,'[2]narrow body'!$B$6:$B$73,0),7),INDEX('[2]narrow body'!$B$6:$K$73,MATCH(M37,'[2]narrow body'!$B$6:$B$73,0),7)) -> 0 | J37: 1 | K37: =INDEX('[1]Pt1-DATA'!$A$5:$M$13349,MATCH(A37,'[1]Pt1-DATA'!$C$5:$C$13349,0),6) -> D | L37: Radio Management Panel | N37: 5871
A38: 633#744 | B38: =IFERROR(INDEX('[3]Pt1-DATA'!$C:$D,MATCH(A38,'[3]Pt1-DATA'!$C:$C,0),2),"") -> 30388 | C38: =IFERROR(INDEX('[2]narrow body'!$B$6:$K$73,MATCH(L38,'[2]narrow body'!$B$6:$B$73,0),4)*1000,INDEX('[2]narrow body'!$B$6:$K$73,MATCH(M38,'[2]narrow body'!$B$6:$B$73,0),4)*1000) -> 7000 | D38: =B38*(1+'Federal Reserve PPI AC Parts'!$E$12) -> 33986.02919 | E38: =C38*(1+'Federal Reserve PPI AC Parts'!$E$12) -> 7828.82073 | F38: Low | G38: 35000 | H38: 3.341142857 | I38: =IFERROR(INDEX('[2]narrow body'!$B$6:$K$73,MATCH(L38,'[2]narrow body'!$B$6:$B$73,0),7),INDEX('[2]narrow body'!$B$6:$K$73,MATCH(M38,'[2]narrow body'!$B$6:$B$73,0),7)) -> ACSS Thales with L3 | J38: 2 | K38: =INDEX('[1]Pt1-DATA'!$A$5:$M$13349,MATCH(A38,'[1]Pt1-DATA'!$C$5:$C$13349,0),6) -> C | L38: ATC Mode S Transponders (TCAS) | N38: 30388
A39: 633#745 | B39: =IFERROR(INDEX('[3]Pt1-DATA'!$C:$D,MATCH(A39,'[3]Pt1-DATA'!$C:$C,0),2),"") -> 6078 | C39: =IFERROR(INDEX('[2]narrow body'!$B$6:$K$73,MATCH(L39,'[2]narrow body'!$B$6:$B$73,0),4)*1000,INDEX('[2]narrow body'!$B$6:$K$73,MATCH(M39,'[2]narrow body'!$B$6:$B$73,0),4)*1000) -> 5000 | D39: =B39*(1+'Federal Reserve PPI AC Parts'!$E$12) -> 6797.653199 | E39: =C39*(1+'Federal Reserve PPI AC Parts'!$E$12) -> 5592.014807 | F39: Validated PW 2020 | G39: 7500 | H39: 0.2156 | I39: =IFERROR(INDEX('[2]narrow body'!$B$6:$K$73,MATCH(L39,'[2]narrow body'!$B$6:$B$73,0),7),INDEX('[2]narrow body'!$B$6:$K$73,MATCH(M39,'[2]narrow body'!$B$6:$B$73,0),7)) -> ACSS Thales with L3 | J39: 1 | K39: =INDEX('[1]Pt1-DATA'!$A$5:$M$13349,MATCH(A39,'[1]Pt1-DATA'!$C$5:$C$13349,0),6) -> C | L39: ATC control box | N39: 6078
A40: 633#746 | B40: =IFERROR(INDEX('[3]Pt1-DATA'!$C:$D,MATCH(A40,'[3]Pt1-DATA'!$C:$C,0),2),"") -> 43999 | C40: =IFERROR(INDEX('[2]narrow body'!$B$6:$K$73,MATCH(L40,'[2]narrow body'!$B$6:$B$73,0),4)*1000,INDEX('[2]narrow body'!$B$6:$K$73,MATCH(M40,'[2]narrow body'!$B$6:$B$73,0),4)*1000) -> 18000 | D40: =B40*(1+'Federal Reserve PPI AC Parts'!$E$12) -> 49208.6119 | E40: =C40*(1+'Federal Reserve PPI AC Parts'!$E$12) -> 20131.25331 | F40: Low | G40: 50000 | H40: 1.444388889 | I40: =IFERROR(INDEX('[2]narrow body'!$B$6:$K$73,MATCH(L40,'[2]narrow body'!$B$6:$B$73,0),7),INDEX('[2]narrow body'!$B$6:$K$73,MATCH(M40,'[2]narrow body'!$B$6:$B$73,0),7)) -> Collins/Honeywell | J40: 1 | K40: =INDEX('[1]Pt1-DATA'!$A$5:$M$13349,MATCH(A40,'[1]Pt1-DATA'!$C$5:$C$13349,0),6) -> H | L40: Weather WX radar system | N40: 43999
A41: 633#748 | B41: =IFERROR(INDEX('[3]Pt1-DATA'!$C:$D,MATCH(A41,'[3]Pt1-DATA'!$C:$C,0),2),"") -> 24310 | C41: =IFERROR(INDEX('[2]narrow body'!$B$6:$K$73,MATCH(L41,'[2]narrow body'!$B$6:$B$73,0),4)*1000,INDEX('[2]narrow body'!$B$6:$K$73,MATCH(M41,'[2]narrow body'!$B$6:$B$73,0),4)*1000) -> 20000 | D41: =B41*(1+'Federal Reserve PPI AC Parts'!$E$12) -> 27188.37599 | E41: =C41*(1+'Federal Reserve PPI AC Parts'!$E$12) -> 22368.05923 | F41: Low | G41: 28000 | H41: 0.2155 | I41: =IFERROR(INDEX('[2]narrow body'!$B$6:$K$73,MATCH(L41,'[2]narrow body'!$B$6:$B$73,0),7),INDEX('[2]narrow body'!$B$6:$K$73,MATCH(M41,'[2]narrow body'!$B$6:$B$73,0),7)) -> 0 | J41: 1 | K41: =INDEX('[1]Pt1-DATA'!$A$5:$M$13349,MATCH(A41,'[1]Pt1-DATA'!$C$5:$C$13349,0),6) -> I | L41: Ground Proximity Warning System (GPWS/EGPWS) | M41: Ground Proximity Warning System (GPWS) | N41: 24310
A42: 633#752 | B42: =IFERROR(INDEX('[3]Pt1-DATA'!$C:$D,MATCH(A42,'[3]Pt1-DATA'!$C:$C,0),2),"") -> 19569 | C42: =IFERROR(INDEX('[2]narrow body'!$B$6:$K$73,MATCH(L42,'[2]narrow body'!$B$6:$B$73,0),4)*1000,INDEX('[2]narrow body'!$B$6:$K$73,MATCH(M42,'[2]narrow body'!$B$6:$B$73,0),4)*1000) -> 12000 | D42: =B42*(1+'Federal Reserve PPI AC Parts'!$E$12) -> 21886.02755 | E42: =C42*(1+'Federal Reserve PPI AC Parts'!$E$12) -> 13420.83554 | F42: Low | G42: 25000 | H42: 0.63075 | I42: =IFERROR(INDEX('[2]narrow body'!$B$6:$K$73,MATCH(L42,'[2]narrow body'!$B$6:$B$73,0),7),INDEX('[2]narrow body'!$B$6:$K$73,MATCH(M42,'[2]narrow body'!$B$6:$B$73,0),7)) -> L3 | J42: 1 | K42: =INDEX('[1]Pt1-DATA'!$A$5:$M$13349,MATCH(A42,'[1]Pt1-DATA'!$C$5:$C$13349,0),6) -> J | L42: Cockpit Voice Recorder | N42: 19569
A43: 633#753 | B43: =IFERROR(INDEX('[3]Pt1-DATA'!$C:$D,MATCH(A43,'[3]Pt1-DATA'!$C:$C,0),2),"") -> 5871 | C43: =IFERROR(INDEX('[2]narrow body'!$B$6:$K$73,MATCH(L43,'[2]narrow body'!$B$6:$B$73,0),4)*1000,INDEX('[2]narrow body'!$B$6:$K$73,MATCH(M43,'[2]narrow body'!$B$6:$B$73,0),4)*1000) -> 4000 | D43: =B43*(1+'Federal Reserve PPI AC Parts'!$E$12) -> 6566.143786 | E43: =C43*(1+'Federal Reserve PPI AC Parts'!$E$12) -> 4473.611846 | F43: Low | G43: 7500 | H43: 0.46775 | I43: =IFERROR(INDEX('[2]narrow body'!$B$6:$K$73,MATCH(L43,'[2]narrow body'!$B$6:$B$73,0),7),INDEX('[2]narrow body'!$B$6:$K$73,MATCH(M43,'[2]narrow body'!$B$6:$B$73,0),7)) -> 0 | J43: 1 | K43: =INDEX('[1]Pt1-DATA'!$A$5:$M$13349,MATCH(A43,'[1]Pt1-DATA'!$C$5:$C$13349,0),6) -> E | L43: CVR control panel | N43: 5871
A44: 633#754 | B44: =IFERROR(INDEX('[3]Pt1-DATA'!$C:$D,MATCH(A44,'[3]Pt1-DATA'!$C:$C,0),2),"") -> 17261 | C44: =IFERROR(INDEX('[2]narrow body'!$B$6:$K$73,MATCH(L44,'[2]narrow body'!$B$6:$B$73,0),4)*1000,INDEX('[2]narrow body'!$B$6:$K$73,MATCH(M44,'[2]narrow body'!$B$6:$B$73,0),4)*1000) -> 15000 | D44: =B44*(1+'Federal Reserve PPI AC Parts'!$E$12) -> 19304.75352 | E44: =C44*(1+'Federal Reserve PPI AC Parts'!$E$12) -> 16776.04442 | F44: Low | G44: 20000 | H44: 0.1507333333 | I44: =IFERROR(INDEX('[2]narrow body'!$B$6:$K$73,MATCH(L44,'[2]narrow body'!$B$6:$B$73,0),7),INDEX('[2]narrow body'!$B$6:$K$73,MATCH(M44,'[2]narrow body'!$B$6:$B$73,0),7)) -> L3 | J44: 1 | K44: =INDEX('[1]Pt1-DATA'!$A$5:$M$13349,MATCH(A44,'[1]Pt1-DATA'!$C$5:$C$13349,0),6) -> G | L44: Flight Data Recorder | N44: 17261
A45: 633#755 | B45: =IFERROR(INDEX('[3]Pt1-DATA'!$C:$D,MATCH(A45,'[3]Pt1-DATA'!$C:$C,0),2),"") -> 9205 | C45: =IFERROR(INDEX('[2]narrow body'!$B$6:$K$73,MATCH(L45,'[2]narrow body'!$B$6:$B$73,0),4)*1000,INDEX('[2]narrow body'!$B$6:$K$73,MATCH(M45,'[2]narrow body'!$B$6:$B$73,0),4)*1000) -> 8000 | D45: =B45*(1+'Federal Reserve PPI AC Parts'!$E$12) -> 10294.89926 | E45: =C45*(1+'Federal Reserve PPI AC Parts'!$E$12) -> 8947.223691 | F45: Validated PW 2020 | G45: 10000 | H45: 0.150625 | I45: =IFERROR(INDEX('[2]narrow body'!$B$6:$K$73,MATCH(L45,'[2]narrow body'!$B$6:$B$73,0),7),INDEX('[2]narrow body'!$B$6:$K$73,MATCH(M45,'[2]narrow body'!$B$6:$B$73,0),7)) -> 0 | J45: 1 | K45: =INDEX('[1]Pt1-DATA'!$A$5:$M$13349,MATCH(A45,'[1]Pt1-DATA'!$C$5:$C$13349,0),6) -> C | L45: FD Interface Unit | N45: 9205
A46: 633#756 | B46: =IFERROR(INDEX('[3]Pt1-DATA'!$C:$D,MATCH(A46,'[3]Pt1-DATA'!$C:$C,0),2),"") -> 28767 | C46: =IFERROR(INDEX('[2]narrow body'!$B$6:$K$73,MATCH(L46,'[2]narrow body'!$B$6:$B$73,0),4)*1000,INDEX('[2]narrow body'!$B$6:$K$73,MATCH(M46,'[2]narrow body'!$B$6:$B$73,0),4)*1000) -> 10000 | D46: =B46*(1+'Federal Reserve PPI AC Parts'!$E$12) -> 32173.09799 | E46: =C46*(1+'Federal Reserve PPI AC Parts'!$E$12) -> 11184.02961 | F46: Low | G46: 35000 | H46: 1.8767 | I46: =IFERROR(INDEX('[2]narrow body'!$B$6:$K$73,MATCH(L46,'[2]narrow body'!$B$6:$B$73,0),7),INDEX('[2]narrow body'!$B$6:$K$73,MATCH(M46,'[2]narrow body'!$B$6:$B$73,0),7)) -> Optional fit | J46: 1 | K46: =INDEX('[1]Pt1-DATA'!$A$5:$M$13349,MATCH(A46,'[1]Pt1-DATA'!$C$5:$C$13349,0),6) -> F | L46: Quick Access Recorder (QAR) | N46: 28767
A47: 633#757 | B47: =IFERROR(INDEX('[3]Pt1-DATA'!$C:$D,MATCH(A47,'[3]Pt1-DATA'!$C:$C,0),2),"") -> 17261 | C47: =IFERROR(INDEX('[2]narrow body'!$B$6:$K$73,MATCH(L47,'[2]narrow body'!$B$6:$B$73,0),4)*1000,INDEX('[2]narrow body'!$B$6:$K$73,MATCH(M47,'[2]narrow body'!$B$6:$B$73,0),4)*1000) -> 15000 | D47: =B47*(1+'Federal Reserve PPI AC Parts'!$E$12) -> 19304.75352 | E47: =C47*(1+'Federal Reserve PPI AC Parts'!$E$12) -> 16776.04442 | F47: ACMS? QAR Integral? | G47: 20000 | H47: 0.1507333333 | I47: =IFERROR(INDEX('[2]narrow body'!$B$6:$K$73,MATCH(L47,'[2]narrow body'!$B$6:$B$73,0),7),INDEX('[2]narrow body'!$B$6:$K$73,MATCH(M47,'[2]narrow body'!$B$6:$B$73,0),7)) -> 0 | J47: 1 | K47: =INDEX('[1]Pt1-DATA'!$A$5:$M$13349,MATCH(A47,'[1]Pt1-DATA'!$C$5:$C$13349,0),6) -> C | L47: Aircraft Intergated Data System (AIDS) | N47: 17261
A48: 633#758 | B48: =IFERROR(INDEX('[3]Pt1-DATA'!$C:$D,MATCH(A48,'[3]Pt1-DATA'!$C:$C,0),2),"") -> 20712 | C48: =IFERROR(INDEX('[2]narrow body'!$B$6:$K$73,MATCH(L48,'[2]narrow body'!$B$6:$B$73,0),4)*1000,INDEX('[2]narrow body'!$B$6:$K$73,MATCH(M48,'[2]narrow body'!$B$6:$B$73,0),4)*1000) -> 12000 | D48: =B48*(1+'Federal Reserve PPI AC Parts'!$E$12) -> 23164.36214 | E48: =C48*(1+'Federal Reserve PPI AC Parts'!$E$12) -> 13420.83554 | F48: Low | G48: 24000 | H48: 0.726 | I48: =IFERROR(INDEX('[2]narrow body'!$B$6:$K$73,MATCH(L48,'[2]narrow body'!$B$6:$B$73,0),7),INDEX('[2]narrow body'!$B$6:$K$73,MATCH(M48,'[2]narrow body'!$B$6:$B$73,0),7)) -> Teledyne controls | J48: 1 | K48: =INDEX('[1]Pt1-DATA'!$A$5:$M$13349,MATCH(A48,'[1]Pt1-DATA'!$C$5:$C$13349,0),6) -> D | L48: Air Traffic Services Unit (ATSU) | N48: 20712
A49: 633#759 | B49: =IFERROR(INDEX('[3]Pt1-DATA'!$C:$D,MATCH(A49,'[3]Pt1-DATA'!$C:$C,0),2),"") -> 23014 | C49: =IFERROR(INDEX('[2]narrow body'!$B$6:$K$73,MATCH(L49,'[2]narrow body'!$B$6:$B$73,0),4)*1000,INDEX('[2]narrow body'!$B$6:$K$73,MATCH(M49,'[2]narrow body'!$B$6:$B$73,0),4)*1000) -> 20000 | D49: =B49*(1+'Federal Reserve PPI AC Parts'!$E$12) -> 25738.92575 | E49: =C49*(1+'Federal Reserve PPI AC Parts'!$E$12) -> 22368.05923 | F49: Validated PW 2020 | G49: 25000 | H49: 0.1507 | I49: =IFERROR(INDEX('[2]narrow body'!$B$6:$K$73,MATCH(L49,'[2]narrow body'!$B$6:$B$73,0),7),INDEX('[2]narrow body'!$B$6:$K$73,MATCH(M49,'[2]narrow body'!$B$6:$B$73,0),7)) -> Teledyne controls | J49: 2 | K49: =INDEX('[1]Pt1-DATA'!$A$5:$M$13349,MATCH(A49,'[1]Pt1-DATA'!$C$5:$C$13349,0),6) -> C | L49: Electronic Flight Bags (EFBs) | N49: 23014
A50: 633#825 | B50: =IFERROR(INDEX('[3]Pt1-DATA'!$C:$D,MATCH(A50,'[3]Pt1-DATA'!$C:$C,0),2),"") -> 56029 | C50: =IFERROR(INDEX('[2]narrow body'!$B$6:$K$73,MATCH(L50,'[2]narrow body'!$B$6:$B$73,0),4)*1000,INDEX('[2]narrow body'!$B$6:$K$73,MATCH(M50,'[2]narrow body'!$B$6:$B$73,0),4)*1000) -> 40000 | D50: =B50*(1+'Federal Reserve PPI AC Parts'!$E$12) -> 62662.99952 | E50: =C50*(1+'Federal Reserve PPI AC Parts'!$E$12) -> 44736.11846 | F50: Low | G50: 75000 | H50: 0.400725 | I50: =IFERROR(INDEX('[2]narrow body'!$B$6:$K$73,MATCH(L50,'[2]narrow body'!$B$6:$B$73,0),7),INDEX('[2]narrow body'!$B$6:$K$73,MATCH(M50,'[2]narrow body'!$B$6:$B$73,0),7)) -> Part of FMGC/FCU above? | J50: 1 | K50: =INDEX('[1]Pt1-DATA'!$A$5:$M$13349,MATCH(A50,'[1]Pt1-DATA'!$C$5:$C$13349,0),6) -> I | L50: Auto pilot system | M50: Autopilot /Auto thrust system | N50: 56029
A51: 633#879 | B51: =IFERROR(INDEX('[3]Pt1-DATA'!$C:$D,MATCH(A51,'[3]Pt1-DATA'!$C:$C,0),2),"") -> 137227 | C51: =IFERROR(INDEX('[2]narrow body'!$B$6:$K$73,MATCH(L51,'[2]narrow body'!$B$6:$B$73,0),4)*1000,INDEX('[2]narrow body'!$B$6:$K$73,MATCH(M51,'[2]narrow body'!$B$6:$B$73,0),4)*1000) ->  | D51: =B51*(1+'Federal Reserve PPI AC Parts'!$E$12) -> 153475.0832 | F51: Validated Model 2020 | G51: 155000 | I51: =IFERROR(INDEX('[2]narrow body'!$B$6:$K$73,MATCH(L51,'[2]narrow body'!$B$6:$B$73,0),7),INDEX('[2]narrow body'!$B$6:$K$73,MATCH(M51,'[2]narrow body'!$B$6:$B$73,0),7)) ->  | J51: 1 | K51: =INDEX('[1]Pt1-DATA'!$A$5:$M$13349,MATCH(A51,'[1]Pt1-DATA'!$C$5:$C$13349,0),6) -> U | L51: Software | N51: 137227
A52: 633#883 | B52: =IFERROR(INDEX('[3]Pt1-DATA'!$C:$D,MATCH(A52,'[3]Pt1-DATA'!$C:$C,0),2),"") -> 47519 | C52: =IFERROR(INDEX('[2]narrow body'!$B$6:$K$73,MATCH(L52,'[2]narrow body'!$B$6:$B$73,0),4)*1000,INDEX('[2]narrow body'!$B$6:$K$73,MATCH(M52,'[2]narrow body'!$B$6:$B$73,0),4)*1000) ->  | D52: =B52*(1+'Federal Reserve PPI AC Parts'!$E$12) -> 53145.39032 | F52: Validated Model 2020 | G52: 55000 | I52: =IFERROR(INDEX('[2]narrow body'!$B$6:$K$73,MATCH(L52,'[2]narrow body'!$B$6:$B$73,0),7),INDEX('[2]narrow body'!$B$6:$K$73,MATCH(M52,'[2]narrow body'!$B$6:$B$73,0),7)) ->  | J52: 1 | K52: =INDEX('[1]Pt1-DATA'!$A$5:$M$13349,MATCH(A52,'[1]Pt1-DATA'!$C$5:$C$13349,0),6) -> A | L52: Surveillance Sensors | N52: 47519
A53: 633#1056 | B53: =IFERROR(INDEX('[3]Pt1-DATA'!$C:$D,MATCH(A53,'[3]Pt1-DATA'!$C:$C,0),2),"") -> 2903 | C53: =IFERROR(INDEX('[2]narrow body'!$B$6:$K$73,MATCH(L53,'[2]narrow body'!$B$6:$B$73,0),4)*1000,INDEX('[2]narrow body'!$B$6:$K$73,MATCH(M53,'[2]narrow body'!$B$6:$B$73,0),4)*1000) ->  | D53: =B53*(1+'Federal Reserve PPI AC Parts'!$E$12) -> 3246.723797 | F53: Validated Model 2020 | G53: 3500 | I53: =IFERROR(INDEX('[2]narrow body'!$B$6:$K$73,MATCH(L53,'[2]narrow body'!$B$6:$B$73,0),7),INDEX('[2]narrow body'!$B$6:$K$73,MATCH(M53,'[2]narrow body'!$B$6:$B$73,0),7)) ->  | J53: 1 | K53: =INDEX('[1]Pt1-DATA'!$A$5:$M$13349,MATCH(A53,'[1]Pt1-DATA'!$C$5:$C$13349,0),6) -> BW | L53: Avionics Harnesses | N53: 2903
A54: 633#1057 | B54: =IFERROR(INDEX('[3]Pt1-DATA'!$C:$D,MATCH(A54,'[3]Pt1-DATA'!$C:$C,0),2),"") -> 20674 | C54: =IFERROR(INDEX('[2]narrow body'!$B$6:$K$73,MATCH(L54,'[2]narrow body'!$B$6:$B$73,0),4)*1000,INDEX('[2]narrow body'!$B$6:$K$73,MATCH(M54,'[2]narrow body'!$B$6:$B$73,0),4)*1000) ->  | D54: =B54*(1+'Federal Reserve PPI AC Parts'!$E$12) -> 23121.86282 | F54: Validated Model 2020 | G54: 25000 | I54: =IFERROR(INDEX('[2]narrow body'!$B$6:$K$73,MATCH(L54,'[2]narrow body'!$B$6:$B$73,0),7),INDEX('[2]narrow body'!$B$6:$K$73,MATCH(M54,'[2]narrow body'!$B$6:$B$73,0),7)) ->  | J54: 1 | K54: =INDEX('[1]Pt1-DATA'!$A$5:$M$13349,MATCH(A54,'[1]Pt1-DATA'!$C$5:$C$13349,0),6) -> BW | L54: Avionics Harnesses | N54: 20674
A55: 633#1058 | B55: =IFERROR(INDEX('[3]Pt1-DATA'!$C:$D,MATCH(A55,'[3]Pt1-DATA'!$C:$C,0),2),"") -> 25000 | C55: =IFERROR(INDEX('[2]narrow body'!$B$6:$K$73,MATCH(L55,'[2]narrow body'!$B$6:$B$73,0),4)*1000,INDEX('[2]narrow body'!$B$6:$K$73,MATCH(M55,'[2]narrow body'!$B$6:$B$73,0),4)*1000) ->  | D55: =B55*(1+'Federal Reserve PPI AC Parts'!$E$12) -> 27960.07403 | F55: Validated Model 2020 | G55: 29000 | I55: =IFERROR(INDEX('[2]narrow body'!$B$6:$K$73,MATCH(L55,'[2]narrow body'!$B$6:$B$73,0),7),INDEX('[2]narrow body'!$B$6:$K$73,MATCH(M55,'[2]narrow body'!$B$6:$B$73,0),7)) ->  | J55: 1 | K55: =INDEX('[1]Pt1-DATA'!$A$5:$M$13349,MATCH(A55,'[1]Pt1-DATA'!$C$5:$C$13349,0),6) -> BW | L55: Avionics Harnesses | N55: 25000
A56: 633#1059 | B56: =IFERROR(INDEX('[3]Pt1-DATA'!$C:$D,MATCH(A56,'[3]Pt1-DATA'!$C:$C,0),2),"") -> 5168 | C56: =IFERROR(INDEX('[2]narrow body'!$B$6:$K$73,MATCH(L56,'[2]narrow body'!$B$6:$B$73,0),4)*1000,INDEX('[2]narrow body'!$B$6:$K$73,MATCH(M56,'[2]narrow body'!$B$6:$B$73,0),4)*1000) ->  | D56: =B56*(1+'Federal Reserve PPI AC Parts'!$E$12) -> 5779.906504 | F56: Validated Model 2020 | G56: 6500 | I56: =IFERROR(INDEX('[2]narrow body'!$B$6:$K$73,MATCH(L56,'[2]narrow body'!$B$6:$B$73,0),7),INDEX('[2]narrow body'!$B$6:$K$73,MATCH(M56,'[2]narrow body'!$B$6:$B$73,0),7)) ->  | J56: 1 | K56: =INDEX('[1]Pt1-DATA'!$A$5:$M$13349,MATCH(A56,'[1]Pt1-DATA'!$C$5:$C$13349,0),6) -> BW | L56: Avionics Harnesses | N56: 5168
B57: =IFERROR(INDEX('[3]Pt1-DATA'!$C:$D,MATCH(A57,'[3]Pt1-DATA'!$C:$C,0),2),"") ->  | C57: =IFERROR(INDEX('[2]narrow body'!$B$6:$K$73,MATCH(L57,'[2]narrow body'!$B$6:$B$73,0),4)*1000,INDEX('[2]narrow body'!$B$6:$K$73,MATCH(M57,'[2]narrow body'!$B$6:$B$73,0),4)*1000) -> 6000 | E57: =C57*(1+'Federal Reserve PPI AC Parts'!$E$12) -> 6710.417768 | F57: Validated PW 2020 | G57: 7500 | H57: =(B57-C57)/C57 ->  | I57: =IFERROR(INDEX('[2]narrow body'!$B$6:$K$73,MATCH(L57,'[2]narrow body'!$B$6:$B$73,0),7),INDEX('[2]narrow body'!$B$6:$K$73,MATCH(M57,'[2]narrow body'!$B$6:$B$73,0),7)) -> 0 | J57: 2 | K57: =INDEX('[1]Pt1-DATA'!$A$5:$M$13349,MATCH(A57,'[1]Pt1-DATA'!$C$5:$C$13349,0),6) ->  | M57: ADIRS control panel
B58: =IFERROR(INDEX('[3]Pt1-DATA'!$C:$D,MATCH(A58,'[3]Pt1-DATA'!$C:$C,0),2),"") ->  | C58: =IFERROR(INDEX('[2]narrow body'!$B$6:$K$73,MATCH(L58,'[2]narrow body'!$B$6:$B$73,0),4)*1000,INDEX('[2]narrow body'!$B$6:$K$73,MATCH(M58,'[2]narrow body'!$B$6:$B$73,0),4)*1000) -> 8000 | E58: =C58*(1+'Federal Reserve PPI AC Parts'!$E$12) -> 8947.223691 | F58: Validated PW 2020 | G58: 9000 | I58: =IFERROR(INDEX('[2]narrow body'!$B$6:$K$73,MATCH(L58,'[2]narrow body'!$B$6:$B$73,0),7),INDEX('[2]narrow body'!$B$6:$K$73,MATCH(M58,'[2]narrow body'!$B$6:$B$73,0),7)) -> 0 | J58: 2 | K58: =INDEX('[1]Pt1-DATA'!$A$5:$M$13349,MATCH(A58,'[1]Pt1-DATA'!$C$5:$C$13349,0),6) ->  | M58: Pedestal ADS select
B59: =IFERROR(INDEX('[3]Pt1-DATA'!$C:$D,MATCH(A59,'[3]Pt1-DATA'!$C:$C,0),2),"") ->  | C59: =IFERROR(INDEX('[2]narrow body'!$B$6:$K$73,MATCH(L59,'[2]narrow body'!$B$6:$B$73,0),4)*1000,INDEX('[2]narrow body'!$B$6:$K$73,MATCH(M59,'[2]narrow body'!$B$6:$B$73,0),4)*1000) -> 4000 | E59: =C59*(1+'Federal Reserve PPI AC Parts'!$E$12) -> 4473.611846 | F59: Validated PW 2020 | G59: 4500 | I59: =IFERROR(INDEX('[2]narrow body'!$B$6:$K$73,MATCH(L59,'[2]narrow body'!$B$6:$B$73,0),7),INDEX('[2]narrow body'!$B$6:$K$73,MATCH(M59,'[2]narrow body'!$B$6:$B$73,0),7)) -> 0 | J59: 2 | K59: =INDEX('[1]Pt1-DATA'!$A$5:$M$13349,MATCH(A59,'[1]Pt1-DATA'!$C$5:$C$13349,0),6) ->  | M59: WX control panel
B60: =IFERROR(INDEX('[3]Pt1-DATA'!$C:$D,MATCH(A60,'[3]Pt1-DATA'!$C:$C,0),2),"") ->  | C60: =IFERROR(INDEX('[2]narrow body'!$B$6:$K$73,MATCH(L60,'[2]narrow body'!$B$6:$B$73,0),4)*1000,INDEX('[2]narrow body'!$B$6:$K$73,MATCH(M60,'[2]narrow body'!$B$6:$B$73,0),4)*1000) -> 18000 | E60: =C60*(1+'Federal Reserve PPI AC Parts'!$E$12) -> 20131.25331 | F60: Validated PW 2020 | G60: 21000 | I60: =IFERROR(INDEX('[2]narrow body'!$B$6:$K$73,MATCH(L60,'[2]narrow body'!$B$6:$B$73,0),7),INDEX('[2]narrow body'!$B$6:$K$73,MATCH(M60,'[2]narrow body'!$B$6:$B$73,0),7)) -> ACSS Thales with L3 | J60: 2 | K60: =INDEX('[1]Pt1-DATA'!$A$5:$M$13349,MATCH(A60,'[1]Pt1-DATA'!$C$5:$C$13349,0),6) ->  | M60: TCAS computer
B61: =IFERROR(INDEX('[3]Pt1-DATA'!$C:$D,MATCH(A61,'[3]Pt1-DATA'!$C:$C,0),2),"") ->  | C61: =IFERROR(INDEX('[2]narrow body'!$B$6:$K$73,MATCH(L61,'[2]narrow body'!$B$6:$B$73,0),4)*1000,INDEX('[2]narrow body'!$B$6:$K$73,MATCH(M61,'[2]narrow body'!$B$6:$B$73,0),4)*1000) -> 6000 | E61: =C61*(1+'Federal Reserve PPI AC Parts'!$E$12) -> 6710.417768 | F61: Validated PW 2020 | G61: 7000 | I61: =IFERROR(INDEX('[2]narrow body'!$B$6:$K$73,MATCH(L61,'[2]narrow body'!$B$6:$B$73,0),7),INDEX('[2]narrow body'!$B$6:$K$73,MATCH(M61,'[2]narrow body'!$B$6:$B$73,0),7)) -> ACSS Thales with L3 | J61: 2 | K61: =INDEX('[1]Pt1-DATA'!$A$5:$M$13349,MATCH(A61,'[1]Pt1-DATA'!$C$5:$C$13349,0),6) ->  | M61: TCAS antennas
B62: =IFERROR(INDEX('[3]Pt1-DATA'!$C:$D,MATCH(A62,'[3]Pt1-DATA'!$C:$C,0),2),"") ->  | C62: =IFERROR(INDEX('[2]narrow body'!$B$6:$K$73,MATCH(L62,'[2]narrow body'!$B$6:$B$73,0),4)*1000,INDEX('[2]narrow body'!$B$6:$K$73,MATCH(M62,'[2]narrow body'!$B$6:$B$73,0),4)*1000) -> 4000 | E62: =C62*(1+'Federal Reserve PPI AC Parts'!$E$12) -> 4473.611846 | F62: Validated PW 2020 | G62: 5000 | I62: =IFERROR(INDEX('[2]narrow body'!$B$6:$K$73,MATCH(L62,'[2]narrow body'!$B$6:$B$73,0),7),INDEX('[2]narrow body'!$B$6:$K$73,MATCH(M62,'[2]narrow body'!$B$6:$B$73,0),7)) -> 0 | J62: 2 | K62: =INDEX('[1]Pt1-DATA'!$A$5:$M$13349,MATCH(A62,'[1]Pt1-DATA'!$C$5:$C$13349,0),6) ->  | M62: TCAS control panel
B63: =IFERROR(INDEX('[3]Pt1-DATA'!$C:$D,MATCH(A63,'[3]Pt1-DATA'!$C:$C,0),2),"") ->  | C63: =IFERROR(INDEX('[2]narrow body'!$B$6:$K$73,MATCH(L63,'[2]narrow body'!$B$6:$B$73,0),4)*1000,INDEX('[2]narrow body'!$B$6:$K$73,MATCH(M63,'[2]narrow body'!$B$6:$B$73,0),4)*1000) -> 0 | E63: =C63*(1+'Federal Reserve PPI AC Parts'!$E$12) -> 0 | F63: AE Estimate | G63: 10000 | I63: =IFERROR(INDEX('[2]narrow body'!$B$6:$K$73,MATCH(L63,'[2]narrow body'!$B$6:$B$73,0),7),INDEX('[2]narrow body'!$B$6:$K$73,MATCH(M63,'[2]narrow body'!$B$6:$B$73,0),7)) -> 0 | J63: 1 | K63: =INDEX('[1]Pt1-DATA'!$A$5:$M$13349,MATCH(A63,'[1]Pt1-DATA'!$C$5:$C$13349,0),6) ->  | M63: Avionic racking, databuses excluded

Sheet mil fighter
A1: Aircraft: | B1: =INDEX('[1]Pt1-AvionicsComponentCosts'!$A$11:$E$384,MATCH(VALUE(LEFT(A5,SEARCH("#",A5)-1)),'[1]Pt1-AvionicsComponentCosts'!$A$11:$A$384,0),5) -> Lockheed Martin F-35 Lightning II
B2: Avionics Cost 2020 | G2: Avionics Cost 2024 | I2: % Change 2020 - 2024
B3: =SUMPRODUCT(B5:B80,J5:J80) -> 4883711 | G3: =SUMPRODUCT(G5:G80,J5:J80) -> 5489916.919 | I3: =($G$3-$B$3)/$B$3 -> 0.1241281311
B4: Model 2020 | C4: PW 2020 | D4: 2024 PPI Model | E4: 2024 PPI PW | F4: Notes | G4: 2024 AE Estimate | H4: Pct Change | I4: Source | J4: #/AC | K4: Factor | L4: Item | M4: Alt Item (PW) | N4: previous
A5: 146#784 | B5: =IFERROR(INDEX('[1]Pt1-DATA'!$C:$D,MATCH(A5,'[1]Pt1-DATA'!$C:$C,0),2),"") -> 29163 | C5: =IFERROR(INDEX('[2]mil fighter'!$B$6:$K$73,MATCH(L5,'[2]mil fighter'!$B$6:$B$73,0),4)*1000,INDEX('[2]mil fighter'!$B$6:$K$73,MATCH(M5,'[2]mil fighter'!$B$6:$B$73,0),4)*1000) -> 20000 | D5: =B5*(1+'Federal Reserve PPI AC Parts'!$E$12) -> 32615.98556 | E5: =C5*(1+'Federal Reserve PPI AC Parts'!$E$12) -> 22368.05923 | F5: Used Model 2024 | G5: =D5 -> 32615.98556 | H5: =(B5-C5)/C5 -> 0.45815 | I5: =IFERROR(INDEX('[2]mil fighter'!$B$6:$K$73,MATCH(#REF!,'[2]mil fighter'!$B$6:$B$73,0),8),INDEX('[2]mil fighter'!$B$6:$K$73,MATCH(L5,'[2]mil fighter'!$B$6:$B$73,0),8)) -> GE Aviation | J5: 10 | K5: =INDEX('[1]Pt1-DATA'!$A$5:$M$13349,MATCH(A5,'[1]Pt1-DATA'!$C$5:$C$13349,0),6) -> D | L5: Remote Data concentrators | N5: 29163
A6: 146#785 | B6: =IFERROR(INDEX('[1]Pt1-DATA'!$C:$D,MATCH(A6,'[1]Pt1-DATA'!$C:$C,0),2),"") -> 520758 | C6: =IFERROR(INDEX('[2]mil fighter'!$B$6:$K$73,MATCH(L6,'[2]mil fighter'!$B$6:$B$73,0),4)*1000,INDEX('[2]mil fighter'!$B$6:$K$73,MATCH(M6,'[2]mil fighter'!$B$6:$B$73,0),4)*1000) -> 400000 | D6: =B6*(1+'Federal Reserve PPI AC Parts'!$E$12) -> 582417.2894 | E6: =C6*(1+'Federal Reserve PPI AC Parts'!$E$12) -> 447361.1846 | F6: Used Model 2024 | G6: =D6 -> 582417.2894 | H6: =(B6-C6)/C6 -> 0.301895 | I6: =IFERROR(INDEX('[2]mil fighter'!$B$6:$K$73,MATCH(#REF!,'[2]mil fighter'!$B$6:$B$73,0),8),INDEX('[2]mil fighter'!$B$6:$K$73,MATCH(L6,'[2]mil fighter'!$B$6:$B$73,0),8)) -> Harris L3 | J6: 1 | K6: =INDEX('[1]Pt1-DATA'!$A$5:$M$13349,MATCH(A6,'[1]Pt1-DATA'!$C$5:$C$13349,0),6) -> C | L6: Integrated Core Processor (ICP) | N6: 520758
A7: 146#786 | B7: =IFERROR(INDEX('[1]Pt1-DATA'!$C:$D,MATCH(A7,'[1]Pt1-DATA'!$C:$C,0),2),"") -> 132982 | C7: =IFERROR(INDEX('[2]mil fighter'!$B$6:$K$73,MATCH(L7,'[2]mil fighter'!$B$6:$B$73,0),4)*1000,INDEX('[2]mil fighter'!$B$6:$K$73,MATCH(M7,'[2]mil fighter'!$B$6:$B$73,0),4)*1000) -> 125000 | D7: =B7*(1+'Federal Reserve PPI AC Parts'!$E$12) -> 148727.4626 | E7: =C7*(1+'Federal Reserve PPI AC Parts'!$E$12) -> 139800.3702 | F7: Used Model 2024 | G7: 148727.4626 | H7: 0.063856 | I7: =IFERROR(INDEX('[2]mil fighter'!$B$6:$K$73,MATCH(#REF!,'[2]mil fighter'!$B$6:$B$73,0),8),INDEX('[2]mil fighter'!$B$6:$K$73,MATCH(L7,'[2]mil fighter'!$B$6:$B$73,0),8)) -> Northrop Grumman | J7: 1 | K7: =INDEX('[1]Pt1-DATA'!$A$5:$M$13349,MATCH(A7,'[1]Pt1-DATA'!$C$5:$C$13349,0),6) -> C | L7: Communication, Navigation, Identification Unit AN/ASQ-242 | N7: 132982
A8: 146#787 | B8: =IFERROR(INDEX('[1]Pt1-DATA'!$C:$D,MATCH(A8,'[1]Pt1-DATA'!$C:$C,0),2),"") -> 122305 | C8: =IFERROR(INDEX('[2]mil fighter'!$B$6:$K$73,MATCH(L8,'[2]mil fighter'!$B$6:$B$73,0),4)*1000,INDEX('[2]mil fighter'!$B$6:$K$73,MATCH(M8,'[2]mil fighter'!$B$6:$B$73,0),4)*1000) -> 125000 | D8: =B8*(1+'Federal Reserve PPI AC Parts'!$E$12) -> 136786.2742 | E8: =C8*(1+'Federal Reserve PPI AC Parts'!$E$12) -> 139800.3702 | F8: Used Model 2024 | G8: 136786.2742 | H8: -0.02156 | I8: =IFERROR(INDEX('[2]mil fighter'!$B$6:$K$73,MATCH(#REF!,'[2]mil fighter'!$B$6:$B$73,0),8),INDEX('[2]mil fighter'!$B$6:$K$73,MATCH(L8,'[2]mil fighter'!$B$6:$B$73,0),8)) -> Northrop Grumman | J8: 1 | K8: =INDEX('[1]Pt1-DATA'!$A$5:$M$13349,MATCH(A8,'[1]Pt1-DATA'!$C$5:$C$13349,0),6) -> C | L8: Communication, Navigation, Identification Unit AN/ASQ-242 | N8: 122305
A9: 146#788 | B9: =IFERROR(INDEX('[1]Pt1-DATA'!$C:$D,MATCH(A9,'[1]Pt1-DATA'!$C:$C,0),2),"") -> 229660 | C9: =IFERROR(INDEX('[2]mil fighter'!$B$6:$K$73,MATCH(L9,'[2]mil fighter'!$B$6:$B$73,0),4)*1000,INDEX('[2]mil fighter'!$B$6:$K$73,MATCH(M9,'[2]mil fighter'!$B$6:$B$73,0),4)*1000) -> 250000 | D9: =B9*(1+'Federal Reserve PPI AC Parts'!$E$12) -> 256852.4241 | E9: =C9*(1+'Federal Reserve PPI AC Parts'!$E$12) -> 279600.7403 | F9: Used Model 2024 | G9: 256852.4241 | H9: -0.08136 | I9: =IFERROR(INDEX('[2]mil fighter'!$B$6:$K$73,MATCH(#REF!,'[2]mil fighter'!$B$6:$B$73,0),8),INDEX('[2]mil fighter'!$B$6:$K$73,MATCH(L9,'[2]mil fighter'!$B$6:$B$73,0),8)) -> BAE Systems | J9: 1 | K9: =INDEX('[1]Pt1-DATA'!$A$5:$M$13349,MATCH(A9,'[1]Pt1-DATA'!$C$5:$C$13349,0),6) -> C | L9: Electronic Warfare suite AN/ASQ-239 (evasion, engagement, jamming, c/measures) | N9: 229660
A10: 146#789 | B10: =IFERROR(INDEX('[1]Pt1-DATA'!$C:$D,MATCH(A10,'[1]Pt1-DATA'!$C:$C,0),2),"") -> 151818 | C10: =IFERROR(INDEX('[2]mil fighter'!$B$6:$K$73,MATCH(L10,'[2]mil fighter'!$B$6:$B$73,0),4)*1000,INDEX('[2]mil fighter'!$B$6:$K$73,MATCH(M10,'[2]mil fighter'!$B$6:$B$73,0),4)*1000) -> 150000 | D10: =B10*(1+'Federal Reserve PPI AC Parts'!$E$12) -> 169793.7008 | E10: =C10*(1+'Federal Reserve PPI AC Parts'!$E$12) -> 167760.4442 | F10: Used Model 2024 | G10: 169793.7008 | H10: 0.01212 | I10: =IFERROR(INDEX('[2]mil fighter'!$B$6:$K$73,MATCH(#REF!,'[2]mil fighter'!$B$6:$B$73,0),8),INDEX('[2]mil fighter'!$B$6:$K$73,MATCH(L10,'[2]mil fighter'!$B$6:$B$73,0),8)) -> Harris L3 | J10: 2 | K10: =INDEX('[1]Pt1-DATA'!$A$5:$M$13349,MATCH(A10,'[1]Pt1-DATA'!$C$5:$C$13349,0),6) -> B | L10: Panoramic Display Cockpit Electronic Unit | N10: 151818
A11: 146#790 | B11: =IFERROR(INDEX('[1]Pt1-DATA'!$C:$D,MATCH(A11,'[1]Pt1-DATA'!$C:$C,0),2),"") -> 202424 | C11: =IFERROR(INDEX('[2]mil fighter'!$B$6:$K$73,MATCH(L11,'[2]mil fighter'!$B$6:$B$73,0),4)*1000,INDEX('[2]mil fighter'!$B$6:$K$73,MATCH(M11,'[2]mil fighter'!$B$6:$B$73,0),4)*1000) -> 200000 | D11: =B11*(1+'Federal Reserve PPI AC Parts'!$E$12) -> 226391.6011 | E11: =C11*(1+'Federal Reserve PPI AC Parts'!$E$12) -> 223680.5923 | F11: Used Model 2024 | G11: 226391.6011 | H11: 0.01212 | I11: =IFERROR(INDEX('[2]mil fighter'!$B$6:$K$73,MATCH(#REF!,'[2]mil fighter'!$B$6:$B$73,0),8),INDEX('[2]mil fighter'!$B$6:$K$73,MATCH(L11,'[2]mil fighter'!$B$6:$B$73,0),8)) -> Elbit (switched from Harris L3 in 2017) | J11: 1 | K11: =INDEX('[1]Pt1-DATA'!$A$5:$M$13349,MATCH(A11,'[1]Pt1-DATA'!$C$5:$C$13349,0),6) -> C | L11: Panormic Cockpit Display | N11: 202424
A12: 146#791 | B12: =IFERROR(INDEX('[1]Pt1-DATA'!$C:$D,MATCH(A12,'[1]Pt1-DATA'!$C:$C,0),2),"") -> 35424 | C12: =IFERROR(INDEX('[2]mil fighter'!$B$6:$K$73,MATCH(L12,'[2]mil fighter'!$B$6:$B$73,0),4)*1000,INDEX('[2]mil fighter'!$B$6:$K$73,MATCH(M12,'[2]mil fighter'!$B$6:$B$73,0),4)*1000) -> 35000 | D12: =B12*(1+'Federal Reserve PPI AC Parts'!$E$12) -> 39618.3065 | E12: =C12*(1+'Federal Reserve PPI AC Parts'!$E$12) -> 39144.10365 | F12: Used Model 2024 | G12: 39618.3065 | H12: 0.01211428571 | I12: =IFERROR(INDEX('[2]mil fighter'!$B$6:$K$73,MATCH(#REF!,'[2]mil fighter'!$B$6:$B$73,0),8),INDEX('[2]mil fighter'!$B$6:$K$73,MATCH(L12,'[2]mil fighter'!$B$6:$B$73,0),8)) -> GE Aviation | J12: 1 | K12: =INDEX('[1]Pt1-DATA'!$A$5:$M$13349,MATCH(A12,'[1]Pt1-DATA'!$C$5:$C$13349,0),6) -> H | L12: Standby display | N12: 35424
A13: 146#792 | B13: =IFERROR(INDEX('[1]Pt1-DATA'!$C:$D,MATCH(A13,'[1]Pt1-DATA'!$C:$C,0),2),"") -> 38499 | C13: =IFERROR(INDEX('[2]mil fighter'!$B$6:$K$73,MATCH(L13,'[2]mil fighter'!$B$6:$B$73,0),4)*1000,INDEX('[2]mil fighter'!$B$6:$K$73,MATCH(M13,'[2]mil fighter'!$B$6:$B$73,0),4)*1000) -> 25000 | D13: =B13*(1+'Federal Reserve PPI AC Parts'!$E$12) -> 43057.39561 | E13: =C13*(1+'Federal Reserve PPI AC Parts'!$E$12) -> 27960.07403 | F13: Used Model 2024 | G13: 43057.39561 | H13: 0.53996 | I13: =IFERROR(INDEX('[2]mil fighter'!$B$6:$K$73,MATCH(#REF!,'[2]mil fighter'!$B$6:$B$73,0),8),INDEX('[2]mil fighter'!$B$6:$K$73,MATCH(L13,'[2]mil fighter'!$B$6:$B$73,0),8)) -> ????? | J13: 8 | K13: =INDEX('[1]Pt1-DATA'!$A$5:$M$13349,MATCH(A13,'[1]Pt1-DATA'!$C$5:$C$13349,0),6) -> C | L13: Electro Optical Targeting System (FLIR & IRST) | N13: 38499
A14: 146#793 | B14: =IFERROR(INDEX('[1]Pt1-DATA'!$C:$D,MATCH(A14,'[1]Pt1-DATA'!$C:$C,0),2),"") -> 253030 | C14: =IFERROR(INDEX('[2]mil fighter'!$B$6:$K$73,MATCH(L14,'[2]mil fighter'!$B$6:$B$73,0),4)*1000,INDEX('[2]mil fighter'!$B$6:$K$73,MATCH(M14,'[2]mil fighter'!$B$6:$B$73,0),4)*1000) -> 175000 | D14: =B14*(1+'Federal Reserve PPI AC Parts'!$E$12) -> 282989.5013 | E14: =C14*(1+'Federal Reserve PPI AC Parts'!$E$12) -> 195720.5182 | F14: Used Model 2024 | G14: 282989.5013 | H14: 0.4458857143 | I14: =IFERROR(INDEX('[2]mil fighter'!$B$6:$K$73,MATCH(#REF!,'[2]mil fighter'!$B$6:$B$73,0),8),INDEX('[2]mil fighter'!$B$6:$K$73,MATCH(L14,'[2]mil fighter'!$B$6:$B$73,0),8)) -> Rockwell Collins/Elbit | J14: 1 | K14: =INDEX('[1]Pt1-DATA'!$A$5:$M$13349,MATCH(A14,'[1]Pt1-DATA'!$C$5:$C$13349,0),6) -> D | L14: Pilot Helmet Mounted Display System | N14: 253030
A15: 146#794 | B15: =IFERROR(INDEX('[1]Pt1-DATA'!$C:$D,MATCH(A15,'[1]Pt1-DATA'!$C:$C,0),2),"") -> 28767 | C15: =IFERROR(INDEX('[2]mil fighter'!$B$6:$K$73,MATCH(L15,'[2]mil fighter'!$B$6:$B$73,0),4)*1000,INDEX('[2]mil fighter'!$B$6:$K$73,MATCH(M15,'[2]mil fighter'!$B$6:$B$73,0),4)*1000) -> 25000 | D15: =B15*(1+'Federal Reserve PPI AC Parts'!$E$12) -> 32173.09799 | E15: =C15*(1+'Federal Reserve PPI AC Parts'!$E$12) -> 27960.07403 | F15: Used Model 2024 | G15: 32173.09799 | H15: 0.15068 | I15: =IFERROR(INDEX('[2]mil fighter'!$B$6:$K$73,MATCH(#REF!,'[2]mil fighter'!$B$6:$B$73,0),8),INDEX('[2]mil fighter'!$B$6:$K$73,MATCH(L15,'[2]mil fighter'!$B$6:$B$73,0),8)) -> Harris L3 | J15: 1 | K15: =INDEX('[1]Pt1-DATA'!$A$5:$M$13349,MATCH(A15,'[1]Pt1-DATA'!$C$5:$C$13349,0),6) -> C | L15: Multi function Advanced Data link AAA Array | N15: 28767
A16: 146#795 | B16: =IFERROR(INDEX('[1]Pt1-DATA'!$C:$D,MATCH(A16,'[1]Pt1-DATA'!$C:$C,0),2),"") -> 279016 | C16: =IFERROR(INDEX('[2]mil fighter'!$B$6:$K$73,MATCH(L16,'[2]mil fighter'!$B$6:$B$73,0),4)*1000,INDEX('[2]mil fighter'!$B$6:$K$73,MATCH(M16,'[2]mil fighter'!$B$6:$B$73,0),4)*1000) -> 200000 | D16: =B16*(1+'Federal Reserve PPI AC Parts'!$E$12) -> 312052.3207 | E16: =C16*(1+'Federal Reserve PPI AC Parts'!$E$12) -> 223680.5923 | F16: Used Model 2024 | G16: 312052.3207 | H16: 0.39508 | I16: =IFERROR(INDEX('[2]mil fighter'!$B$6:$K$73,MATCH(#REF!,'[2]mil fighter'!$B$6:$B$73,0),8),INDEX('[2]mil fighter'!$B$6:$K$73,MATCH(L16,'[2]mil fighter'!$B$6:$B$73,0),8)) -> Harris L3 ?? | J16: 2 | K16: =INDEX('[1]Pt1-DATA'!$A$5:$M$13349,MATCH(A16,'[1]Pt1-DATA'!$C$5:$C$13349,0),6) -> F | L16: Mission computers | N16: 279016
A17: 146#796 | B17: =IFERROR(INDEX('[1]Pt1-DATA'!$C:$D,MATCH(A17,'[1]Pt1-DATA'!$C:$C,0),2),"") -> 247492 | C17: =IFERROR(INDEX('[2]mil fighter'!$B$6:$K$73,MATCH(L17,'[2]mil fighter'!$B$6:$B$73,0),4)*1000,INDEX('[2]mil fighter'!$B$6:$K$73,MATCH(M17,'[2]mil fighter'!$B$6:$B$73,0),4)*1000) -> 300000 | D17: =B17*(1+'Federal Reserve PPI AC Parts'!$E$12) -> 276795.7857 | E17: =C17*(1+'Federal Reserve PPI AC Parts'!$E$12) -> 335520.8884 | F17: Used Model 2024 | G17: 276795.7857 | H17: -0.1750266667 | I17: =IFERROR(INDEX('[2]mil fighter'!$B$6:$K$73,MATCH(#REF!,'[2]mil fighter'!$B$6:$B$73,0),8),INDEX('[2]mil fighter'!$B$6:$K$73,MATCH(L17,'[2]mil fighter'!$B$6:$B$73,0),8)) -> Northrop Grumman | J17: 1 | K17: =INDEX('[1]Pt1-DATA'!$A$5:$M$13349,MATCH(A17,'[1]Pt1-DATA'!$C$5:$C$13349,0),6) -> C | L17: AESA Radar | N17: 247492
A18: 146#797 | B18: =IFERROR(INDEX('[1]Pt1-DATA'!$C:$D,MATCH(A18,'[1]Pt1-DATA'!$C:$C,0),2),"") -> 86301 | C18: =IFERROR(INDEX('[2]mil fighter'!$B$6:$K$73,MATCH(L18,'[2]mil fighter'!$B$6:$B$73,0),4)*1000,INDEX('[2]mil fighter'!$B$6:$K$73,MATCH(M18,'[2]mil fighter'!$B$6:$B$73,0),4)*1000) -> 50000 | D18: =B18*(1+'Federal Reserve PPI AC Parts'!$E$12) -> 96519.29397 | E18: =C18*(1+'Federal Reserve PPI AC Parts'!$E$12) -> 55920.14807 | F18: Used Model 2024 | G18: 96519.29397 | H18: 0.72602 | I18: =IFERROR(INDEX('[2]mil fighter'!$B$6:$K$73,MATCH(#REF!,'[2]mil fighter'!$B$6:$B$73,0),8),INDEX('[2]mil fighter'!$B$6:$K$73,MATCH(L18,'[2]mil fighter'!$B$6:$B$73,0),8)) -> Harris | J18: 1 | K18: =INDEX('[1]Pt1-DATA'!$A$5:$M$13349,MATCH(A18,'[1]Pt1-DATA'!$C$5:$C$13349,0),6) -> C | L18: Aircraft memory system | N18: 86301
A19: 146#798 | B19: =IFERROR(INDEX('[1]Pt1-DATA'!$C:$D,MATCH(A19,'[1]Pt1-DATA'!$C:$C,0),2),"") -> 65998 | C19: =IFERROR(INDEX('[2]mil fighter'!$B$6:$K$73,MATCH(L19,'[2]mil fighter'!$B$6:$B$73,0),4)*1000,INDEX('[2]mil fighter'!$B$6:$K$73,MATCH(M19,'[2]mil fighter'!$B$6:$B$73,0),4)*1000) -> 75000 | D19: =B19*(1+'Federal Reserve PPI AC Parts'!$E$12) -> 73812.35865 | E19: =C19*(1+'Federal Reserve PPI AC Parts'!$E$12) -> 83880.2221 | F19: Used Model 2024 | G19: 73812.35865 | H19: -0.1200266667 | I19: =IFERROR(INDEX('[2]mil fighter'!$B$6:$K$73,MATCH(#REF!,'[2]mil fighter'!$B$6:$B$73,0),8),INDEX('[2]mil fighter'!$B$6:$K$73,MATCH(L19,'[2]mil fighter'!$B$6:$B$73,0),8)) -> Northrop Grumman/Raytheon? | J19: 6 | K19: =INDEX('[1]Pt1-DATA'!$A$5:$M$13349,MATCH(A19,'[1]Pt1-DATA'!$C$5:$C$13349,0),6) -> C | L19: Distributed Aperture System (electro-optical) | N19: 65998
A20: 146#799 | B20: =IFERROR(INDEX('[1]Pt1-DATA'!$C:$D,MATCH(A20,'[1]Pt1-DATA'!$C:$C,0),2),"") -> 14677 | C20: =IFERROR(INDEX('[2]mil fighter'!$B$6:$K$73,MATCH(L20,'[2]mil fighter'!$B$6:$B$73,0),4)*1000,INDEX('[2]mil fighter'!$B$6:$K$73,MATCH(M20,'[2]mil fighter'!$B$6:$B$73,0),4)*1000) -> 15000 | D20: =B20*(1+'Federal Reserve PPI AC Parts'!$E$12) -> 16414.80026 | E20: =C20*(1+'Federal Reserve PPI AC Parts'!$E$12) -> 16776.04442 | F20: Used Model 2024 | G20: 16414.80026 | H20: -0.02153333333 | I20: =IFERROR(INDEX('[2]mil fighter'!$B$6:$K$73,MATCH(#REF!,'[2]mil fighter'!$B$6:$B$73,0),8),INDEX('[2]mil fighter'!$B$6:$K$73,MATCH(L20,'[2]mil fighter'!$B$6:$B$73,0),8)) -> Harris L3 | J20: 6 | K20: =INDEX('[1]Pt1-DATA'!$A$5:$M$13349,MATCH(A20,'[1]Pt1-DATA'!$C$5:$C$13349,0),6) -> C | L20: Antenna suite | N20: 14677
A21: 146#800 | B21: =IFERROR(INDEX('[1]Pt1-DATA'!$C:$D,MATCH(A21,'[1]Pt1-DATA'!$C:$C,0),2),"") -> 57534 | C21: =IFERROR(INDEX('[2]mil fighter'!$B$6:$K$73,MATCH(L21,'[2]mil fighter'!$B$6:$B$73,0),4)*1000,INDEX('[2]mil fighter'!$B$6:$K$73,MATCH(M21,'[2]mil fighter'!$B$6:$B$73,0),4)*1000) -> 50000 | D21: =B21*(1+'Federal Reserve PPI AC Parts'!$E$12) -> 64346.19598 | E21: =C21*(1+'Federal Reserve PPI AC Parts'!$E$12) -> 55920.14807 | F21: Used Model 2024 | G21: 64346.19598 | H21: 0.15068 | I21: =IFERROR(INDEX('[2]mil fighter'!$B$6:$K$73,MATCH(#REF!,'[2]mil fighter'!$B$6:$B$73,0),8),INDEX('[2]mil fighter'!$B$6:$K$73,MATCH(L21,'[2]mil fighter'!$B$6:$B$73,0),8)) -> ??? | J21: 2 | K21: =INDEX('[1]Pt1-DATA'!$A$5:$M$13349,MATCH(A21,'[1]Pt1-DATA'!$C$5:$C$13349,0),6) -> C | L21: High speed and fibre optics data/signalling network databuses | N21: 57534
A22: 146#801 | B22: =IFERROR(INDEX('[1]Pt1-DATA'!$C:$D,MATCH(A22,'[1]Pt1-DATA'!$C:$C,0),2),"") -> 23014 | C22: =IFERROR(INDEX('[2]mil fighter'!$B$6:$K$73,MATCH(L22,'[2]mil fighter'!$B$6:$B$73,0),4)*1000,INDEX('[2]mil fighter'!$B$6:$K$73,MATCH(M22,'[2]mil fighter'!$B$6:$B$73,0),4)*1000) -> 20000 | D22: =B22*(1+'Federal Reserve PPI AC Parts'!$E$12) -> 25738.92575 | E22: =C22*(1+'Federal Reserve PPI AC Parts'!$E$12) -> 22368.05923 | F22: Used Model 2024 | G22: 25738.92575 | H22: 0.1507 | I22: =IFERROR(INDEX('[2]mil fighter'!$B$6:$K$73,MATCH(#REF!,'[2]mil fighter'!$B$6:$B$73,0),8),INDEX('[2]mil fighter'!$B$6:$K$73,MATCH(L22,'[2]mil fighter'!$B$6:$B$73,0),8)) -> Honeywell | J22: 1 | K22: =INDEX('[1]Pt1-DATA'!$A$5:$M$13349,MATCH(A22,'[1]Pt1-DATA'!$C$5:$C$13349,0),6) -> C | L22: Radar altimeter | N22: 23014
A23: 146#879 | B23: =IFERROR(INDEX('[1]Pt1-DATA'!$C:$D,MATCH(A23,'[1]Pt1-DATA'!$C:$C,0),2),"") -> 326072 | C23: =IFERROR(INDEX('[2]mil fighter'!$B$6:$K$73,MATCH(L23,'[2]mil fighter'!$B$6:$B$73,0),4)*1000,INDEX('[2]mil fighter'!$B$6:$K$73,MATCH(M23,'[2]mil fighter'!$B$6:$B$73,0),4)*1000) ->  | D23: =B23*(1+'Federal Reserve PPI AC Parts'!$E$12) -> 364679.8904 | E23: =C23*(1+'Federal Reserve PPI AC Parts'!$E$12) ->  | F23: Used Model 2024 | G23: 364679.8904 | I23: =IFERROR(INDEX('[2]mil fighter'!$B$6:$K$73,MATCH(#REF!,'[2]mil fighter'!$B$6:$B$73,0),8),INDEX('[2]mil fighter'!$B$6:$K$73,MATCH(L23,'[2]mil fighter'!$B$6:$B$73,0),8)) ->  | J23: 1 | K23: =INDEX('[1]Pt1-DATA'!$A$5:$M$13349,MATCH(A23,'[1]Pt1-DATA'!$C$5:$C$13349,0),6) -> AE | L23: Software | N23: 326072
A24: 146#880 | B24: =IFERROR(INDEX('[1]Pt1-DATA'!$C:$D,MATCH(A24,'[1]Pt1-DATA'!$C:$C,0),2),"") -> 27499 | C24: =IFERROR(INDEX('[2]mil fighter'!$B$6:$K$73,MATCH(L24,'[2]mil fighter'!$B$6:$B$73,0),4)*1000,INDEX('[2]mil fighter'!$B$6:$K$73,MATCH(M24,'[2]mil fighter'!$B$6:$B$73,0),4)*1000) ->  | D24: =B24*(1+'Federal Reserve PPI AC Parts'!$E$12) -> 30754.96304 | E24: =C24*(1+'Federal Reserve PPI AC Parts'!$E$12) ->  | F24: Used Model 2024 | G24: 30754.96304 | I24: =IFERROR(INDEX('[2]mil fighter'!$B$6:$K$73,MATCH(#REF!,'[2]mil fighter'!$B$6:$B$73,0),8),INDEX('[2]mil fighter'!$B$6:$K$73,MATCH(L24,'[2]mil fighter'!$B$6:$B$73,0),8)) ->  | J24: 4 | K24: =INDEX('[1]Pt1-DATA'!$A$5:$M$13349,MATCH(A24,'[1]Pt1-DATA'!$C$5:$C$13349,0),6) -> I | L24: Air data sensors | N24: 27499
A25: 146#881 | B25: =IFERROR(INDEX('[1]Pt1-DATA'!$C:$D,MATCH(A25,'[1]Pt1-DATA'!$C:$C,0),2),"") -> 279016 | C25: =IFERROR(INDEX('[2]mil fighter'!$B$6:$K$73,MATCH(L25,'[2]mil fighter'!$B$6:$B$73,0),4)*1000,INDEX('[2]mil fighter'!$B$6:$K$73,MATCH(M25,'[2]mil fighter'!$B$6:$B$73,0),4)*1000) ->  | D25: =B25*(1+'Federal Reserve PPI AC Parts'!$E$12) -> 312052.3207 | E25: =C25*(1+'Federal Reserve PPI AC Parts'!$E$12) ->  | F25: Used Model 2024 | G25: 312052.3207 | I25: =IFERROR(INDEX('[2]mil fighter'!$B$6:$K$73,MATCH(#REF!,'[2]mil fighter'!$B$6:$B$73,0),8),INDEX('[2]mil fighter'!$B$6:$K$73,MATCH(L25,'[2]mil fighter'!$B$6:$B$73,0),8)) ->  | J25: 1 | K25: =INDEX('[1]Pt1-DATA'!$A$5:$M$13349,MATCH(A25,'[1]Pt1-DATA'!$C$5:$C$13349,0),6) -> B | L25: Stores management computer | N25: 279016
A26: 146#885 | B26: =IFERROR(INDEX('[1]Pt1-DATA'!$C:$D,MATCH(A26,'[1]Pt1-DATA'!$C:$C,0),2),"") -> 177261 | C26: =IFERROR(INDEX('[2]mil fighter'!$B$6:$K$73,MATCH(L26,'[2]mil fighter'!$B$6:$B$73,0),4)*1000,INDEX('[2]mil fighter'!$B$6:$K$73,MATCH(M26,'[2]mil fighter'!$B$6:$B$73,0),4)*1000) ->  | D26: =B26*(1+'Federal Reserve PPI AC Parts'!$E$12) -> 198249.2273 | E26: =C26*(1+'Federal Reserve PPI AC Parts'!$E$12) ->  | F26: Used Model 2024 | G26: 198249.2273 | I26: =IFERROR(INDEX('[2]mil fighter'!$B$6:$K$73,MATCH(#REF!,'[2]mil fighter'!$B$6:$B$73,0),8),INDEX('[2]mil fighter'!$B$6:$K$73,MATCH(L26,'[2]mil fighter'!$B$6:$B$73,0),8)) ->  | J26: 1 | K26: =INDEX('[1]Pt1-DATA'!$A$5:$M$13349,MATCH(A26,'[1]Pt1-DATA'!$C$5:$C$13349,0),6) -> B | L26: Enhanced Vision system | N26: 177261
A27: 146#1056 | B27: =IFERROR(INDEX('[1]Pt1-DATA'!$C:$D,MATCH(A27,'[1]Pt1-DATA'!$C:$C,0),2),"") -> 2636 | C27: =IFERROR(INDEX('[2]mil fighter'!$B$6:$K$73,MATCH(L27,'[2]mil fighter'!$B$6:$B$73,0),4)*1000,INDEX('[2]mil fighter'!$B$6:$K$73,MATCH(M27,'[2]mil fighter'!$B$6:$B$73,0),4)*1000) ->  | D27: =B27*(1+'Federal Reserve PPI AC Parts'!$E$12) -> 2948.110206 | E27: =C27*(1+'Federal Reserve PPI AC Parts'!$E$12) ->  | F27: Used Model 2024 | G27: 2948.110206 | I27: =IFERROR(INDEX('[2]mil fighter'!$B$6:$K$73,MATCH(#REF!,'[2]mil fighter'!$B$6:$B$73,0),8),INDEX('[2]mil fighter'!$B$6:$K$73,MATCH(L27,'[2]mil fighter'!$B$6:$B$73,0),8)) ->  | J27: 1 | K27: =INDEX('[1]Pt1-DATA'!$A$5:$M$13349,MATCH(A27,'[1]Pt1-DATA'!$C$5:$C$13349,0),6) -> BR | L27: Avionics Harnesses | N27: 2636
A28: 146#1057 | B28: =IFERROR(INDEX('[1]Pt1-DATA'!$C:$D,MATCH(A28,'[1]Pt1-DATA'!$C:$C,0),2),"") -> 18772 | C28: =IFERROR(INDEX('[2]mil fighter'!$B$6:$K$73,MATCH(L28,'[2]mil fighter'!$B$6:$B$73,0),4)*1000,INDEX('[2]mil fighter'!$B$6:$K$73,MATCH(M28,'[2]mil fighter'!$B$6:$B$73,0),4)*1000) ->  | D28: =B28*(1+'Federal Reserve PPI AC Parts'!$E$12) -> 20994.66039 | E28: =C28*(1+'Federal Reserve PPI AC Parts'!$E$12) ->  | F28: Used Model 2024 | G28: 20994.66039 | I28: =IFERROR(INDEX('[2]mil fighter'!$B$6:$K$73,MATCH(#REF!,'[2]mil fighter'!$B$6:$B$73,0),8),INDEX('[2]mil fighter'!$B$6:$K$73,MATCH(L28,'[2]mil fighter'!$B$6:$B$73,0),8)) ->  | J28: 1 | K28: =INDEX('[1]Pt1-DATA'!$A$5:$M$13349,MATCH(A28,'[1]Pt1-DATA'!$C$5:$C$13349,0),6) -> BR | L28: Avionics Harnesses | N28: 18772
A29: 146#1058 | B29: =IFERROR(INDEX('[1]Pt1-DATA'!$C:$D,MATCH(A29,'[1]Pt1-DATA'!$C:$C,0),2),"") -> 22700 | C29: =IFERROR(INDEX('[2]mil fighter'!$B$6:$K$73,MATCH(L29,'[2]mil fighter'!$B$6:$B$73,0),4)*1000,INDEX('[2]mil fighter'!$B$6:$K$73,MATCH(M29,'[2]mil fighter'!$B$6:$B$73,0),4)*1000) ->  | D29: =B29*(1+'Federal Reserve PPI AC Parts'!$E$12) -> 25387.74722 | E29: =C29*(1+'Federal Reserve PPI AC Parts'!$E$12) ->  | F29: Used Model 2024 | G29: 25387.74722 | I29: =IFERROR(INDEX('[2]mil fighter'!$B$6:$K$73,MATCH(#REF!,'[2]mil fighter'!$B$6:$B$73,0),8),INDEX('[2]mil fighter'!$B$6:$K$73,MATCH(L29,'[2]mil fighter'!$B$6:$B$73,0),8)) ->  | J29: 1 | K29: =INDEX('[1]Pt1-DATA'!$A$5:$M$13349,MATCH(A29,'[1]Pt1-DATA'!$C$5:$C$13349,0),6) -> BR | L29: Avionics Harnesses | N29: 22700
A30: 146#1059 | B30: =IFERROR(INDEX('[1]Pt1-DATA'!$C:$D,MATCH(A30,'[1]Pt1-DATA'!$C:$C,0),2),"") -> 4693 | C30: =IFERROR(INDEX('[2]mil fighter'!$B$6:$K$73,MATCH(L30,'[2]mil fighter'!$B$6:$B$73,0),4)*1000,INDEX('[2]mil fighter'!$B$6:$K$73,MATCH(M30,'[2]mil fighter'!$B$6:$B$73,0),4)*1000) ->  | D30: =B30*(1+'Federal Reserve PPI AC Parts'!$E$12) -> 5248.665098 | E30: =C30*(1+'Federal Reserve PPI AC Parts'!$E$12) ->  | F30: Used Model 2024 | G30: 5248.665098 | I30: =IFERROR(INDEX('[2]mil fighter'!$B$6:$K$73,MATCH(#REF!,'[2]mil fighter'!$B$6:$B$73,0),8),INDEX('[2]mil fighter'!$B$6:$K$73,MATCH(L30,'[2]mil fighter'!$B$6:$B$73,0),8)) ->  | J30: 1 | K30: =INDEX('[1]Pt1-DATA'!$A$5:$M$13349,MATCH(A30,'[1]Pt1-DATA'!$C$5:$C$13349,0),6) -> BR | L30: Avionics Harnesses | N30: 4693
B31: =IFERROR(INDEX('[1]Pt1-DATA'!$C:$D,MATCH(A31,'[1]Pt1-DATA'!$C:$C,0),2),"") ->  | C31: =IFERROR(INDEX('[2]mil fighter'!$B$6:$K$73,MATCH(L31,'[2]mil fighter'!$B$6:$B$73,0),4)*1000,INDEX('[2]mil fighter'!$B$6:$K$73,MATCH(M31,'[2]mil fighter'!$B$6:$B$73,0),4)*1000) -> 25000 | D31: =B31*(1+'Federal Reserve PPI AC Parts'!$E$12) ->  | E31: =C31*(1+'Federal Reserve PPI AC Parts'!$E$12) -> 27960.07403 | F31: Used PW 2024 | G31: =E31 -> 27960.07403 | H31: =(B31-C31)/C31 ->  | I31: =IFERROR(INDEX('[2]mil fighter'!$B$6:$K$73,MATCH(#REF!,'[2]mil fighter'!$B$6:$B$73,0),8),INDEX('[2]mil fighter'!$B$6:$K$73,MATCH(L31,'[2]mil fighter'!$B$6:$B$73,0),8)) ->  | J31: 1 | K31: =INDEX('[1]Pt1-DATA'!$A$5:$M$13349,MATCH(A31,'[1]Pt1-DATA'!$C$5:$C$13349,0),6) ->  | M31: Multi function Advanced Data link AIA Antenna

Sheet wide body (non IMA)
A1: Aircraft: | B1: =INDEX('[1]Pt1-AvionicsComponentCosts'!$A$11:$E$384,MATCH(VALUE(LEFT(A5,SEARCH("#",A5)-1)),'[1]Pt1-AvionicsComponentCosts'!$A$11:$A$384,0),5) -> Airbus A330-300
B2: Avionics Cost 2020 | G2: Avionics Cost 2024 | I2: % Change 2020 - 2024
B3: =SUMPRODUCT(B5:B80,J5:J80) -> 3274381 | G3: =SUMPRODUCT(G5:G80,J5:J80) -> 3897524.326 | I3: =($G$3-$B$3)/$B$3 -> 0.190308741
B4: Model 2020 | C4: PW 2020 | D4: 2024 PPI Model | E4: 2024 PPI PW | F4: Notes | G4: 2024 AE Estimate | H4: Pct Change | I4: Source | J4: #/AC | K4: Factor | L4: Item | M4: Alt Item (PW) | N4: previous
A5: 518#709 | B5: =IFERROR(INDEX('[1]Pt1-DATA'!$C:$D,MATCH(A5,'[1]Pt1-DATA'!$C:$C,0),2),"") -> 97461 | C5: =IFERROR(INDEX('[2]wide body (non IMA)'!$B$6:$K$73,MATCH(L5,'[2]wide body (non IMA)'!$B$6:$B$73,0),4)*1000,INDEX('[2]wide body (non IMA)'!$B$6:$K$73,MATCH(M5,'[2]wide body (non IMA)'!$B$6:$B$73,0),4)*1000) -> 60000 | D5: =B5*(1+'Federal Reserve PPI AC Parts'!$E$12) -> 109000.671 | E5: =C5*(1+'Federal Reserve PPI AC Parts'!$E$12) -> 67104.17768 | F5: PW 2020 Low | G5: 110000 | H5: =(B5-C5)/C5 -> 0.62435 | I5: =IFERROR(INDEX('[2]wide body (non IMA)'!$B$6:$K$73,MATCH(L5,'[2]wide body (non IMA)'!$B$6:$B$73,0),7),INDEX('[2]wide body (non IMA)'!$B$6:$K$73,MATCH(M5,'[2]wide body (non IMA)'!$B$6:$B$73,0),7)) -> Honeywell or Thales | J5: 2 | K5: =INDEX('[1]Pt1-DATA'!$A$5:$M$13349,MATCH(A5,'[1]Pt1-DATA'!$C$5:$C$13349,0),6) -> L | L5: FMGC | N5: 97461
A6: 518#710 | B6: =IFERROR(INDEX('[1]Pt1-DATA'!$C:$D,MATCH(A6,'[1]Pt1-DATA'!$C:$C,0),2),"") -> 41750 | C6: =IFERROR(INDEX('[2]wide body (non IMA)'!$B$6:$K$73,MATCH(L6,'[2]wide body (non IMA)'!$B$6:$B$73,0),4)*1000,INDEX('[2]wide body (non IMA)'!$B$6:$K$73,MATCH(M6,'[2]wide body (non IMA)'!$B$6:$B$73,0),4)*1000) -> 30000 | D6: =B6*(1+'Federal Reserve PPI AC Parts'!$E$12) -> 46693.32364 | E6: =C6*(1+'Federal Reserve PPI AC Parts'!$E$12) -> 33552.08884 | F6: PW 2020 Low | G6: 50000 | H6: =(B6-C6)/C6 -> 0.3916666667 | I6: =IFERROR(INDEX('[2]wide body (non IMA)'!$B$6:$K$73,MATCH(L6,'[2]wide body (non IMA)'!$B$6:$B$73,0),7),INDEX('[2]wide body (non IMA)'!$B$6:$K$73,MATCH(M6,'[2]wide body (non IMA)'!$B$6:$B$73,0),7)) -> Honeywell or Thales | J6: 3 | K6: =INDEX('[1]Pt1-DATA'!$A$5:$M$13349,MATCH(A6,'[1]Pt1-DATA'!$C$5:$C$13349,0),6) -> J1 | L6: MCDU | N6: 41750
A7: 518#713 | B7: =IFERROR(INDEX('[1]Pt1-DATA'!$C:$D,MATCH(A7,'[1]Pt1-DATA'!$C:$C,0),2),"") -> 11206 | C7: =IFERROR(INDEX('[2]wide body (non IMA)'!$B$6:$K$73,MATCH(L7,'[2]wide body (non IMA)'!$B$6:$B$73,0),4)*1000,INDEX('[2]wide body (non IMA)'!$B$6:$K$73,MATCH(M7,'[2]wide body (non IMA)'!$B$6:$B$73,0),4)*1000) -> 30000 | D7: =B7*(1+'Federal Reserve PPI AC Parts'!$E$12) -> 12532.82359 | E7: =C7*(1+'Federal Reserve PPI AC Parts'!$E$12) -> 33552.08884 | F7: PW 2020 High | G7: 13500 | H7: -0.6264666667 | I7: =IFERROR(INDEX('[2]wide body (non IMA)'!$B$6:$K$73,MATCH(L7,'[2]wide body (non IMA)'!$B$6:$B$73,0),7),INDEX('[2]wide body (non IMA)'!$B$6:$K$73,MATCH(M7,'[2]wide body (non IMA)'!$B$6:$B$73,0),7)) -> 0 | J7: 2 | K7: =INDEX('[1]Pt1-DATA'!$A$5:$M$13349,MATCH(A7,'[1]Pt1-DATA'!$C$5:$C$13349,0),6) -> C | L7: A/T Engine Control Unit | N7: 11206
A8: 518#714 | B8: =IFERROR(INDEX('[1]Pt1-DATA'!$C:$D,MATCH(A8,'[1]Pt1-DATA'!$C:$C,0),2),"") -> 34520 | C8: =IFERROR(INDEX('[2]wide body (non IMA)'!$B$6:$K$73,MATCH(L8,'[2]wide body (non IMA)'!$B$6:$B$73,0),4)*1000,INDEX('[2]wide body (non IMA)'!$B$6:$K$73,MATCH(M8,'[2]wide body (non IMA)'!$B$6:$B$73,0),4)*1000) -> 15000 | D8: =B8*(1+'Federal Reserve PPI AC Parts'!$E$12) -> 38607.27023 | E8: =C8*(1+'Federal Reserve PPI AC Parts'!$E$12) -> 16776.04442 | F8: PW 2020 Low | G8: 40000 | H8: 1.301333333 | I8: =IFERROR(INDEX('[2]wide body (non IMA)'!$B$6:$K$73,MATCH(L8,'[2]wide body (non IMA)'!$B$6:$B$73,0),7),INDEX('[2]wide body (non IMA)'!$B$6:$K$73,MATCH(M8,'[2]wide body (non IMA)'!$B$6:$B$73,0),7)) -> 0 | J8: 2 | K8: =INDEX('[1]Pt1-DATA'!$A$5:$M$13349,MATCH(A8,'[1]Pt1-DATA'!$C$5:$C$13349,0),6) -> E | L8: Data Base loader | N8: 34520
A9: 518#716 | B9: =IFERROR(INDEX('[1]Pt1-DATA'!$C:$D,MATCH(A9,'[1]Pt1-DATA'!$C:$C,0),2),"") -> 52188 | C9: =IFERROR(INDEX('[2]wide body (non IMA)'!$B$6:$K$73,MATCH(L9,'[2]wide body (non IMA)'!$B$6:$B$73,0),4)*1000,INDEX('[2]wide body (non IMA)'!$B$6:$K$73,MATCH(M9,'[2]wide body (non IMA)'!$B$6:$B$73,0),4)*1000) -> 30000 | D9: =B9*(1+'Federal Reserve PPI AC Parts'!$E$12) -> 58367.21375 | E9: =C9*(1+'Federal Reserve PPI AC Parts'!$E$12) -> 33552.08884 | F9: PW 2020 Low | G9: 60000 | H9: 0.7396 | I9: =IFERROR(INDEX('[2]wide body (non IMA)'!$B$6:$K$73,MATCH(L9,'[2]wide body (non IMA)'!$B$6:$B$73,0),7),INDEX('[2]wide body (non IMA)'!$B$6:$K$73,MATCH(M9,'[2]wide body (non IMA)'!$B$6:$B$73,0),7)) -> Airbus | J9: 2 | K9: =INDEX('[1]Pt1-DATA'!$A$5:$M$13349,MATCH(A9,'[1]Pt1-DATA'!$C$5:$C$13349,0),6) -> E | L9: Flight Warning Computer (FWC) | M9: Flight Warning Computers (FWC) | N9: 52188
A10: 518#717 | B10: =IFERROR(INDEX('[1]Pt1-DATA'!$C:$D,MATCH(A10,'[1]Pt1-DATA'!$C:$C,0),2),"") -> 44327 | C10: =IFERROR(INDEX('[2]wide body (non IMA)'!$B$6:$K$73,MATCH(L10,'[2]wide body (non IMA)'!$B$6:$B$73,0),4)*1000,INDEX('[2]wide body (non IMA)'!$B$6:$K$73,MATCH(M10,'[2]wide body (non IMA)'!$B$6:$B$73,0),4)*1000) -> 60000 | D10: =B10*(1+'Federal Reserve PPI AC Parts'!$E$12) -> 49575.44807 | E10: =C10*(1+'Federal Reserve PPI AC Parts'!$E$12) -> 67104.17768 | F10: Validated PW 2020 | G10: 70000 | H10: -0.2612166667 | I10: =IFERROR(INDEX('[2]wide body (non IMA)'!$B$6:$K$73,MATCH(L10,'[2]wide body (non IMA)'!$B$6:$B$73,0),7),INDEX('[2]wide body (non IMA)'!$B$6:$K$73,MATCH(M10,'[2]wide body (non IMA)'!$B$6:$B$73,0),7)) -> NG/Litton Ind | J10: 3 | K10: =INDEX('[1]Pt1-DATA'!$A$5:$M$13349,MATCH(A10,'[1]Pt1-DATA'!$C$5:$C$13349,0),6) -> F | L10: ADIRU | N10: 44327
A11: 518#721 | B11: =IFERROR(INDEX('[1]Pt1-DATA'!$C:$D,MATCH(A11,'[1]Pt1-DATA'!$C:$C,0),2),"") -> 10638 | C11: =IFERROR(INDEX('[2]wide body (non IMA)'!$B$6:$K$73,MATCH(L11,'[2]wide body (non IMA)'!$B$6:$B$73,0),4)*1000,INDEX('[2]wide body (non IMA)'!$B$6:$K$73,MATCH(M11,'[2]wide body (non IMA)'!$B$6:$B$73,0),4)*1000) -> 15000 | D11: =B11*(1+'Federal Reserve PPI AC Parts'!$E$12) -> 11897.5707 | E11: =C11*(1+'Federal Reserve PPI AC Parts'!$E$12) -> 16776.04442 | F11: Validated PW 2020 | G11: 17000 | H11: -0.2908 | I11: =IFERROR(INDEX('[2]wide body (non IMA)'!$B$6:$K$73,MATCH(L11,'[2]wide body (non IMA)'!$B$6:$B$73,0),7),INDEX('[2]wide body (non IMA)'!$B$6:$K$73,MATCH(M11,'[2]wide body (non IMA)'!$B$6:$B$73,0),7)) -> NG/Litton Ind | J11: 8 | K11: =INDEX('[1]Pt1-DATA'!$A$5:$M$13349,MATCH(A11,'[1]Pt1-DATA'!$C$5:$C$13349,0),6) -> E1 | L11: Air Data Modules (ADM) | M11: Air Data Module | N11: 10638
A12: 518#722 | B12: =IFERROR(INDEX('[1]Pt1-DATA'!$C:$D,MATCH(A12,'[1]Pt1-DATA'!$C:$C,0),2),"") -> 10999 | C12: =IFERROR(INDEX('[2]wide body (non IMA)'!$B$6:$K$73,MATCH(L12,'[2]wide body (non IMA)'!$B$6:$B$73,0),4)*1000,INDEX('[2]wide body (non IMA)'!$B$6:$K$73,MATCH(M12,'[2]wide body (non IMA)'!$B$6:$B$73,0),4)*1000) -> 8000 | D12: =B12*(1+'Federal Reserve PPI AC Parts'!$E$12) -> 12301.31417 | E12: =C12*(1+'Federal Reserve PPI AC Parts'!$E$12) -> 8947.223691 | F12: Validated PW 2020 | G12: 9000 | H12: 0.374875 | I12: =IFERROR(INDEX('[2]wide body (non IMA)'!$B$6:$K$73,MATCH(L12,'[2]wide body (non IMA)'!$B$6:$B$73,0),7),INDEX('[2]wide body (non IMA)'!$B$6:$K$73,MATCH(M12,'[2]wide body (non IMA)'!$B$6:$B$73,0),7)) -> Collins replaced Thales in 2012 | J12: 8 | K12: =INDEX('[1]Pt1-DATA'!$A$5:$M$13349,MATCH(A12,'[1]Pt1-DATA'!$C$5:$C$13349,0),6) -> G | L12: Air data probes (pitot/static) | M12: AOA/Pitot static sensors | N12: 10999
A13: 518#723 | B13: =IFERROR(INDEX('[1]Pt1-DATA'!$C:$D,MATCH(A13,'[1]Pt1-DATA'!$C:$C,0),2),"") -> 44327 | C13: =IFERROR(INDEX('[2]wide body (non IMA)'!$B$6:$K$73,MATCH(L13,'[2]wide body (non IMA)'!$B$6:$B$73,0),4)*1000,INDEX('[2]wide body (non IMA)'!$B$6:$K$73,MATCH(M13,'[2]wide body (non IMA)'!$B$6:$B$73,0),4)*1000) -> 40000 | D13: =B13*(1+'Federal Reserve PPI AC Parts'!$E$12) -> 49575.44807 | E13: =C13*(1+'Federal Reserve PPI AC Parts'!$E$12) -> 44736.11846 | F13: Validated PW 2020 | G13: 45000 | H13: 0.108175 | I13: =IFERROR(INDEX('[2]wide body (non IMA)'!$B$6:$K$73,MATCH(L13,'[2]wide body (non IMA)'!$B$6:$B$73,0),7),INDEX('[2]wide body (non IMA)'!$B$6:$K$73,MATCH(M13,'[2]wide body (non IMA)'!$B$6:$B$73,0),7)) -> Collins, HWL or Thales | J13: 2 | K13: =INDEX('[1]Pt1-DATA'!$A$5:$M$13349,MATCH(A13,'[1]Pt1-DATA'!$C$5:$C$13349,0),6) -> D | L13: Multi Mode Receiver (MMR) | N13: 44327
A14: 518#728 | B14: =IFERROR(INDEX('[1]Pt1-DATA'!$C:$D,MATCH(A14,'[1]Pt1-DATA'!$C:$C,0),2),"") -> 15182 | C14: =IFERROR(INDEX('[2]wide body (non IMA)'!$B$6:$K$73,MATCH(L14,'[2]wide body (non IMA)'!$B$6:$B$73,0),4)*1000,INDEX('[2]wide body (non IMA)'!$B$6:$K$73,MATCH(M14,'[2]wide body (non IMA)'!$B$6:$B$73,0),4)*1000) -> 15000 | D14: =B14*(1+'Federal Reserve PPI AC Parts'!$E$12) -> 16979.59376 | E14: =C14*(1+'Federal Reserve PPI AC Parts'!$E$12) -> 16776.04442 | F14: Validated PW 2020 | G14: 17500 | H14: 0.01213333333 | I14: =IFERROR(INDEX('[2]wide body (non IMA)'!$B$6:$K$73,MATCH(L14,'[2]wide body (non IMA)'!$B$6:$B$73,0),7),INDEX('[2]wide body (non IMA)'!$B$6:$K$73,MATCH(M14,'[2]wide body (non IMA)'!$B$6:$B$73,0),7)) -> 0 | J14: 1 | K14: =INDEX('[1]Pt1-DATA'!$A$5:$M$13349,MATCH(A14,'[1]Pt1-DATA'!$C$5:$C$13349,0),6) -> E | L14: EFIS Control panel | N14: 15182
A15: 518#732 | B15: =IFERROR(INDEX('[1]Pt1-DATA'!$C:$D,MATCH(A15,'[1]Pt1-DATA'!$C:$C,0),2),"") -> 30364 | C15: =IFERROR(INDEX('[2]wide body (non IMA)'!$B$6:$K$73,MATCH(L15,'[2]wide body (non IMA)'!$B$6:$B$73,0),4)*1000,INDEX('[2]wide body (non IMA)'!$B$6:$K$73,MATCH(M15,'[2]wide body (non IMA)'!$B$6:$B$73,0),4)*1000) -> 35000 | D15: =B15*(1+'Federal Reserve PPI AC Parts'!$E$12) -> 33959.18752 | E15: =C15*(1+'Federal Reserve PPI AC Parts'!$E$12) -> 39144.10365 | F15: Validated PW 2020 | G15: 40000 | H15: -0.1324571429 | I15: =IFERROR(INDEX('[2]wide body (non IMA)'!$B$6:$K$73,MATCH(L15,'[2]wide body (non IMA)'!$B$6:$B$73,0),7),INDEX('[2]wide body (non IMA)'!$B$6:$K$73,MATCH(M15,'[2]wide body (non IMA)'!$B$6:$B$73,0),7)) -> 0 | J15: 2 | K15: =INDEX('[1]Pt1-DATA'!$A$5:$M$13349,MATCH(A15,'[1]Pt1-DATA'!$C$5:$C$13349,0),6) -> E | L15: System Data Acquisition Concentrator (SDAC) | N15: 30364
A16: 518#733 | B16: =IFERROR(INDEX('[1]Pt1-DATA'!$C:$D,MATCH(A16,'[1]Pt1-DATA'!$C:$C,0),2),"") -> 70849 | C16: =IFERROR(INDEX('[2]wide body (non IMA)'!$B$6:$K$73,MATCH(L16,'[2]wide body (non IMA)'!$B$6:$B$73,0),4)*1000,INDEX('[2]wide body (non IMA)'!$B$6:$K$73,MATCH(M16,'[2]wide body (non IMA)'!$B$6:$B$73,0),4)*1000) -> 50000 | D16: =B16*(1+'Federal Reserve PPI AC Parts'!$E$12) -> 79237.73141 | E16: =C16*(1+'Federal Reserve PPI AC Parts'!$E$12) -> 55920.14807 | F16: PW 2020 Low | G16: 80000 | H16: 0.41698 | I16: =IFERROR(INDEX('[2]wide body (non IMA)'!$B$6:$K$73,MATCH(L16,'[2]wide body (non IMA)'!$B$6:$B$73,0),7),INDEX('[2]wide body (non IMA)'!$B$6:$K$73,MATCH(M16,'[2]wide body (non IMA)'!$B$6:$B$73,0),7)) -> Thales | J16: 3 | K16: =INDEX('[1]Pt1-DATA'!$A$5:$M$13349,MATCH(A16,'[1]Pt1-DATA'!$C$5:$C$13349,0),6) -> J | L16: Display Management Computer (DMC/EFIS) | M16: Display Management Computers (DMC) | N16: 70849
A17: 518#734 | B17: =IFERROR(INDEX('[1]Pt1-DATA'!$C:$D,MATCH(A17,'[1]Pt1-DATA'!$C:$C,0),2),"") -> 10121 | C17: =IFERROR(INDEX('[2]wide body (non IMA)'!$B$6:$K$73,MATCH(L17,'[2]wide body (non IMA)'!$B$6:$B$73,0),4)*1000,INDEX('[2]wide body (non IMA)'!$B$6:$K$73,MATCH(M17,'[2]wide body (non IMA)'!$B$6:$B$73,0),4)*1000) -> 8000 | D17: =B17*(1+'Federal Reserve PPI AC Parts'!$E$12) -> 11319.35637 | E17: =C17*(1+'Federal Reserve PPI AC Parts'!$E$12) -> 8947.223691 | F17: PW 2020 Low | G17: 12000 | H17: 0.265125 | I17: =IFERROR(INDEX('[2]wide body (non IMA)'!$B$6:$K$73,MATCH(L17,'[2]wide body (non IMA)'!$B$6:$B$73,0),7),INDEX('[2]wide body (non IMA)'!$B$6:$K$73,MATCH(M17,'[2]wide body (non IMA)'!$B$6:$B$73,0),7)) -> 0 | J17: 1 | K17: =INDEX('[1]Pt1-DATA'!$A$5:$M$13349,MATCH(A17,'[1]Pt1-DATA'!$C$5:$C$13349,0),6) -> E | L17: Compass | N17: 10121
A18: 518#735 | B18: =IFERROR(INDEX('[1]Pt1-DATA'!$C:$D,MATCH(A18,'[1]Pt1-DATA'!$C:$C,0),2),"") -> 30364 | C18: =IFERROR(INDEX('[2]wide body (non IMA)'!$B$6:$K$73,MATCH(L18,'[2]wide body (non IMA)'!$B$6:$B$73,0),4)*1000,INDEX('[2]wide body (non IMA)'!$B$6:$K$73,MATCH(M18,'[2]wide body (non IMA)'!$B$6:$B$73,0),4)*1000) -> 30000 | D18: =B18*(1+'Federal Reserve PPI AC Parts'!$E$12) -> 33959.18752 | E18: =C18*(1+'Federal Reserve PPI AC Parts'!$E$12) -> 33552.08884 | F18: Validated PW 2020 | G18: 34000 | H18: 0.01213333333 | I18: =IFERROR(INDEX('[2]wide body (non IMA)'!$B$6:$K$73,MATCH(L18,'[2]wide body (non IMA)'!$B$6:$B$73,0),7),INDEX('[2]wide body (non IMA)'!$B$6:$K$73,MATCH(M18,'[2]wide body (non IMA)'!$B$6:$B$73,0),7)) -> Thales | J18: 1 | K18: =INDEX('[1]Pt1-DATA'!$A$5:$M$13349,MATCH(A18,'[1]Pt1-DATA'!$C$5:$C$13349,0),6) -> F | L18: Integrated Standby Instrument System | N18: 30364
A19: 518#737 | B19: =IFERROR(INDEX('[1]Pt1-DATA'!$C:$D,MATCH(A19,'[1]Pt1-DATA'!$C:$C,0),2),"") -> 10121 | C19: =IFERROR(INDEX('[2]wide body (non IMA)'!$B$6:$K$73,MATCH(L19,'[2]wide body (non IMA)'!$B$6:$B$73,0),4)*1000,INDEX('[2]wide body (non IMA)'!$B$6:$K$73,MATCH(M19,'[2]wide body (non IMA)'!$B$6:$B$73,0),4)*1000) -> 10000 | D19: =B19*(1+'Federal Reserve PPI AC Parts'!$E$12) -> 11319.35637 | E19: =C19*(1+'Federal Reserve PPI AC Parts'!$E$12) -> 11184.02961 | F19: Validated PW 2020 | G19: 11500 | H19: 0.0121 | I19: =IFERROR(INDEX('[2]wide body (non IMA)'!$B$6:$K$73,MATCH(L19,'[2]wide body (non IMA)'!$B$6:$B$73,0),7),INDEX('[2]wide body (non IMA)'!$B$6:$K$73,MATCH(M19,'[2]wide body (non IMA)'!$B$6:$B$73,0),7)) -> 0 | J19: 1 | K19: =INDEX('[1]Pt1-DATA'!$A$5:$M$13349,MATCH(A19,'[1]Pt1-DATA'!$C$5:$C$13349,0),6) -> E | L19: Clock | N19: 10121
A20: 518#738 | B20: =IFERROR(INDEX('[1]Pt1-DATA'!$C:$D,MATCH(A20,'[1]Pt1-DATA'!$C:$C,0),2),"") -> 17612 | C20: =IFERROR(INDEX('[2]wide body (non IMA)'!$B$6:$K$73,MATCH(L20,'[2]wide body (non IMA)'!$B$6:$B$73,0),4)*1000,INDEX('[2]wide body (non IMA)'!$B$6:$K$73,MATCH(M20,'[2]wide body (non IMA)'!$B$6:$B$73,0),4)*1000) -> 12000 | D20: =B20*(1+'Federal Reserve PPI AC Parts'!$E$12) -> 19697.31296 | E20: =C20*(1+'Federal Reserve PPI AC Parts'!$E$12) -> 13420.83554 | F20: PW 2020 Low | G20: 20000 | H20: 0.4676666667 | I20: =IFERROR(INDEX('[2]wide body (non IMA)'!$B$6:$K$73,MATCH(L20,'[2]wide body (non IMA)'!$B$6:$B$73,0),7),INDEX('[2]wide body (non IMA)'!$B$6:$K$73,MATCH(M20,'[2]wide body (non IMA)'!$B$6:$B$73,0),7)) -> Collins | J20: 3 | K20: =INDEX('[1]Pt1-DATA'!$A$5:$M$13349,MATCH(A20,'[1]Pt1-DATA'!$C$5:$C$13349,0),6) -> F | L20: Comms Receivers VH (transceiver/antenna) | N20: 17612
A21: 518#739 | B21: =IFERROR(INDEX('[1]Pt1-DATA'!$C:$D,MATCH(A21,'[1]Pt1-DATA'!$C:$C,0),2),"") -> 17612 | C21: =IFERROR(INDEX('[2]wide body (non IMA)'!$B$6:$K$73,MATCH(L21,'[2]wide body (non IMA)'!$B$6:$B$73,0),4)*1000,INDEX('[2]wide body (non IMA)'!$B$6:$K$73,MATCH(M21,'[2]wide body (non IMA)'!$B$6:$B$73,0),4)*1000) -> 12000 | D21: =B21*(1+'Federal Reserve PPI AC Parts'!$E$12) -> 19697.31296 | E21: =C21*(1+'Federal Reserve PPI AC Parts'!$E$12) -> 13420.83554 | F21: PW 2020 Low | G21: 20000 | H21: 0.4676666667 | I21: =IFERROR(INDEX('[2]wide body (non IMA)'!$B$6:$K$73,MATCH(L21,'[2]wide body (non IMA)'!$B$6:$B$73,0),7),INDEX('[2]wide body (non IMA)'!$B$6:$K$73,MATCH(M21,'[2]wide body (non IMA)'!$B$6:$B$73,0),7)) -> Collins | J21: 2 | K21: =INDEX('[1]Pt1-DATA'!$A$5:$M$13349,MATCH(A21,'[1]Pt1-DATA'!$C$5:$C$13349,0),6) -> F | L21: Comms Receivers UF (transceiver/antenna) | N21: 17612
A22: 518#741 | B22: =IFERROR(INDEX('[1]Pt1-DATA'!$C:$D,MATCH(A22,'[1]Pt1-DATA'!$C:$C,0),2),"") -> 34245 | C22: =IFERROR(INDEX('[2]wide body (non IMA)'!$B$6:$K$73,MATCH(L22,'[2]wide body (non IMA)'!$B$6:$B$73,0),4)*1000,INDEX('[2]wide body (non IMA)'!$B$6:$K$73,MATCH(M22,'[2]wide body (non IMA)'!$B$6:$B$73,0),4)*1000) -> 20000 | D22: =B22*(1+'Federal Reserve PPI AC Parts'!$E$12) -> 38299.70941 | E22: =C22*(1+'Federal Reserve PPI AC Parts'!$E$12) -> 22368.05923 | F22: PW 2020 Low | G22: 40000 | H22: 0.71225 | I22: =IFERROR(INDEX('[2]wide body (non IMA)'!$B$6:$K$73,MATCH(L22,'[2]wide body (non IMA)'!$B$6:$B$73,0),7),INDEX('[2]wide body (non IMA)'!$B$6:$K$73,MATCH(M22,'[2]wide body (non IMA)'!$B$6:$B$73,0),7)) -> Thales | J22: 3 | K22: =INDEX('[1]Pt1-DATA'!$A$5:$M$13349,MATCH(A22,'[1]Pt1-DATA'!$C$5:$C$13349,0),6) -> G | L22: Radio management system | N22: 34245
A23: 518#743 | B23: =IFERROR(INDEX('[1]Pt1-DATA'!$C:$D,MATCH(A23,'[1]Pt1-DATA'!$C:$C,0),2),"") -> 7828 | C23: =IFERROR(INDEX('[2]wide body (non IMA)'!$B$6:$K$73,MATCH(L23,'[2]wide body (non IMA)'!$B$6:$B$73,0),4)*1000,INDEX('[2]wide body (non IMA)'!$B$6:$K$73,MATCH(M23,'[2]wide body (non IMA)'!$B$6:$B$73,0),4)*1000) -> 8000 | D23: =B23*(1+'Federal Reserve PPI AC Parts'!$E$12) -> 8754.858382 | E23: =C23*(1+'Federal Reserve PPI AC Parts'!$E$12) -> 8947.223691 | F23: Validated PW 2020 | G23: 9000 | H23: -0.0215 | I23: =IFERROR(INDEX('[2]wide body (non IMA)'!$B$6:$K$73,MATCH(L23,'[2]wide body (non IMA)'!$B$6:$B$73,0),7),INDEX('[2]wide body (non IMA)'!$B$6:$K$73,MATCH(M23,'[2]wide body (non IMA)'!$B$6:$B$73,0),7)) -> Thales | J23: 3 | K23: =INDEX('[1]Pt1-DATA'!$A$5:$M$13349,MATCH(A23,'[1]Pt1-DATA'!$C$5:$C$13349,0),6) -> F | L23: Radio Management Panel | N23: 7828
A24: 518#744 | B24: =IFERROR(INDEX('[1]Pt1-DATA'!$C:$D,MATCH(A24,'[1]Pt1-DATA'!$C:$C,0),2),"") -> 35452 | C24: =IFERROR(INDEX('[2]wide body (non IMA)'!$B$6:$K$73,MATCH(L24,'[2]wide body (non IMA)'!$B$6:$B$73,0),4)*1000,INDEX('[2]wide body (non IMA)'!$B$6:$K$73,MATCH(M24,'[2]wide body (non IMA)'!$B$6:$B$73,0),4)*1000) -> 18000 | D24: =B24*(1+'Federal Reserve PPI AC Parts'!$E$12) -> 39649.62179 | E24: =C24*(1+'Federal Reserve PPI AC Parts'!$E$12) -> 20131.25331 | F24: PW 2020 Low | G24: 40000 | H24: 0.9695555556 | I24: =IFERROR(INDEX('[2]wide body (non IMA)'!$B$6:$K$73,MATCH(L24,'[2]wide body (non IMA)'!$B$6:$B$73,0),7),INDEX('[2]wide body (non IMA)'!$B$6:$K$73,MATCH(M24,'[2]wide body (non IMA)'!$B$6:$B$73,0),7)) -> L3 | J24: 2 | K24: =INDEX('[1]Pt1-DATA'!$A$5:$M$13349,MATCH(A24,'[1]Pt1-DATA'!$C$5:$C$13349,0),6) -> E | L24: ATC Mode S Transponders (TCAS) | N24: 35452
A25: 518#746 | B25: =IFERROR(INDEX('[1]Pt1-DATA'!$C:$D,MATCH(A25,'[1]Pt1-DATA'!$C:$C,0),2),"") -> 49498 | C25: =IFERROR(INDEX('[2]wide body (non IMA)'!$B$6:$K$73,MATCH(L25,'[2]wide body (non IMA)'!$B$6:$B$73,0),4)*1000,INDEX('[2]wide body (non IMA)'!$B$6:$K$73,MATCH(M25,'[2]wide body (non IMA)'!$B$6:$B$73,0),4)*1000) -> 6000 | D25: =B25*(1+'Federal Reserve PPI AC Parts'!$E$12) -> 55358.70978 | E25: =C25*(1+'Federal Reserve PPI AC Parts'!$E$12) -> 6710.417768 | F25: PW 2020 Low | G25: 56000 | H25: 7.249666667 | I25: =IFERROR(INDEX('[2]wide body (non IMA)'!$B$6:$K$73,MATCH(L25,'[2]wide body (non IMA)'!$B$6:$B$73,0),7),INDEX('[2]wide body (non IMA)'!$B$6:$K$73,MATCH(M25,'[2]wide body (non IMA)'!$B$6:$B$73,0),7)) -> 0 | J25: 1 | K25: =INDEX('[1]Pt1-DATA'!$A$5:$M$13349,MATCH(A25,'[1]Pt1-DATA'!$C$5:$C$13349,0),6) -> J | L25: Weather WX radar system | M25: WX control panel | N25: 49498
A26: 518#748 | B26: =IFERROR(INDEX('[1]Pt1-DATA'!$C:$D,MATCH(A26,'[1]Pt1-DATA'!$C:$C,0),2),"") -> 45581 | C26: =IFERROR(INDEX('[2]wide body (non IMA)'!$B$6:$K$73,MATCH(L26,'[2]wide body (non IMA)'!$B$6:$B$73,0),4)*1000,INDEX('[2]wide body (non IMA)'!$B$6:$K$73,MATCH(M26,'[2]wide body (non IMA)'!$B$6:$B$73,0),4)*1000) -> 25000 | D26: =B26*(1+'Federal Reserve PPI AC Parts'!$E$12) -> 50977.92538 | E26: =C26*(1+'Federal Reserve PPI AC Parts'!$E$12) -> 27960.07403 | F26: PW 2020 Low | G26: 28000 | H26: 0.82324 | I26: =IFERROR(INDEX('[2]wide body (non IMA)'!$B$6:$K$73,MATCH(L26,'[2]wide body (non IMA)'!$B$6:$B$73,0),7),INDEX('[2]wide body (non IMA)'!$B$6:$K$73,MATCH(M26,'[2]wide body (non IMA)'!$B$6:$B$73,0),7)) -> 0 | J26: 1 | K26: =INDEX('[1]Pt1-DATA'!$A$5:$M$13349,MATCH(A26,'[1]Pt1-DATA'!$C$5:$C$13349,0),6) -> M | L26: Ground Proximity Warning System (GPWS/EGPWS) | M26: Ground Proximity Warning System (GPWS) | N26: 45581
A27: 518#752 | B27: =IFERROR(INDEX('[1]Pt1-DATA'!$C:$D,MATCH(A27,'[1]Pt1-DATA'!$C:$C,0),2),"") -> 17612 | C27: =IFERROR(INDEX('[2]wide body (non IMA)'!$B$6:$K$73,MATCH(L27,'[2]wide body (non IMA)'!$B$6:$B$73,0),4)*1000,INDEX('[2]wide body (non IMA)'!$B$6:$K$73,MATCH(M27,'[2]wide body (non IMA)'!$B$6:$B$73,0),4)*1000) -> 15000 | D27: =B27*(1+'Federal Reserve PPI AC Parts'!$E$12) -> 19697.31296 | E27: =C27*(1+'Federal Reserve PPI AC Parts'!$E$12) -> 16776.04442 | F27: PW 2020 Low | G27: 20000 | H27: 0.1741333333 | I27: =IFERROR(INDEX('[2]wide body (non IMA)'!$B$6:$K$73,MATCH(L27,'[2]wide body (non IMA)'!$B$6:$B$73,0),7),INDEX('[2]wide body (non IMA)'!$B$6:$K$73,MATCH(M27,'[2]wide body (non IMA)'!$B$6:$B$73,0),7)) -> L3 | J27: 1 | K27: =INDEX('[1]Pt1-DATA'!$A$5:$M$13349,MATCH(A27,'[1]Pt1-DATA'!$C$5:$C$13349,0),6) -> H | L27: Cockpit Voice Recorder | N27: 17612
A28: 518#753 | B28: =IFERROR(INDEX('[1]Pt1-DATA'!$C:$D,MATCH(A28,'[1]Pt1-DATA'!$C:$C,0),2),"") -> 4893 | C28: =IFERROR(INDEX('[2]wide body (non IMA)'!$B$6:$K$73,MATCH(L28,'[2]wide body (non IMA)'!$B$6:$B$73,0),4)*1000,INDEX('[2]wide body (non IMA)'!$B$6:$K$73,MATCH(M28,'[2]wide body (non IMA)'!$B$6:$B$73,0),4)*1000) -> 5000 | D28: =B28*(1+'Federal Reserve PPI AC Parts'!$E$12) -> 5472.34569 | E28: =C28*(1+'Federal Reserve PPI AC Parts'!$E$12) -> 5592.014807 | F28: Validated PW 2020 | G28: 6000 | H28: -0.0214 | I28: =IFERROR(INDEX('[2]wide body (non IMA)'!$B$6:$K$73,MATCH(L28,'[2]wide body (non IMA)'!$B$6:$B$73,0),7),INDEX('[2]wide body (non IMA)'!$B$6:$K$73,MATCH(M28,'[2]wide body (non IMA)'!$B$6:$B$73,0),7)) -> 0 | J28: 1 | K28: =INDEX('[1]Pt1-DATA'!$A$5:$M$13349,MATCH(A28,'[1]Pt1-DATA'!$C$5:$C$13349,0),6) -> C | L28: CVR control panel | N28: 4893
A29: 518#754 | B29: =IFERROR(INDEX('[1]Pt1-DATA'!$C:$D,MATCH(A29,'[1]Pt1-DATA'!$C:$C,0),2),"") -> 23014 | C29: =IFERROR(INDEX('[2]wide body (non IMA)'!$B$6:$K$73,MATCH(L29,'[2]wide body (non IMA)'!$B$6:$B$73,0),4)*1000,INDEX('[2]wide body (non IMA)'!$B$6:$K$73,MATCH(M29,'[2]wide body (non IMA)'!$B$6:$B$73,0),4)*1000) -> 20000 | D29: =B29*(1+'Federal Reserve PPI AC Parts'!$E$12) -> 25738.92575 | E29: =C29*(1+'Federal Reserve PPI AC Parts'!$E$12) -> 22368.05923 | F29: PW 2020 Low | G29: 26000 | H29: 0.1507 | I29: =IFERROR(INDEX('[2]wide body (non IMA)'!$B$6:$K$73,MATCH(L29,'[2]wide body (non IMA)'!$B$6:$B$73,0),7),INDEX('[2]wide body (non IMA)'!$B$6:$K$73,MATCH(M29,'[2]wide body (non IMA)'!$B$6:$B$73,0),7)) -> L3 | J29: 1 | K29: =INDEX('[1]Pt1-DATA'!$A$5:$M$13349,MATCH(A29,'[1]Pt1-DATA'!$C$5:$C$13349,0),6) -> I | L29: Flight Data Recorder | N29: 23014
A30: 518#756 | B30: =IFERROR(INDEX('[1]Pt1-DATA'!$C:$D,MATCH(A30,'[1]Pt1-DATA'!$C:$C,0),2),"") -> 20712 | C30: =IFERROR(INDEX('[2]wide body (non IMA)'!$B$6:$K$73,MATCH(L30,'[2]wide body (non IMA)'!$B$6:$B$73,0),4)*1000,INDEX('[2]wide body (non IMA)'!$B$6:$K$73,MATCH(M30,'[2]wide body (non IMA)'!$B$6:$B$73,0),4)*1000) -> 15000 | D30: =B30*(1+'Federal Reserve PPI AC Parts'!$E$12) -> 23164.36214 | E30: =C30*(1+'Federal Reserve PPI AC Parts'!$E$12) -> 16776.04442 | F30: PW 2020 Low | G30: 24000 | H30: 0.3808 | I30: =IFERROR(INDEX('[2]wide body (non IMA)'!$B$6:$K$73,MATCH(L30,'[2]wide body (non IMA)'!$B$6:$B$73,0),7),INDEX('[2]wide body (non IMA)'!$B$6:$K$73,MATCH(M30,'[2]wide body (non IMA)'!$B$6:$B$73,0),7)) -> 0 | J30: 1 | K30: =INDEX('[1]Pt1-DATA'!$A$5:$M$13349,MATCH(A30,'[1]Pt1-DATA'!$C$5:$C$13349,0),6) -> B | L30: Quick Access Recorder (QAR) | N30: 20712
A31: 518#759 | B31: =IFERROR(INDEX('[1]Pt1-DATA'!$C:$D,MATCH(A31,'[1]Pt1-DATA'!$C:$C,0),2),"") -> 34520 | C31: =IFERROR(INDEX('[2]wide body (non IMA)'!$B$6:$K$73,MATCH(L31,'[2]wide body (non IMA)'!$B$6:$B$73,0),4)*1000,INDEX('[2]wide body (non IMA)'!$B$6:$K$73,MATCH(M31,'[2]wide body (non IMA)'!$B$6:$B$73,0),4)*1000) -> 30000 | D31: =B31*(1+'Federal Reserve PPI AC Parts'!$E$12) -> 38607.27023 | E31: =C31*(1+'Federal Reserve PPI AC Parts'!$E$12) -> 33552.08884 | F31: PW 2020 Low | G31: 40000 | H31: 0.1506666667 | I31: =IFERROR(INDEX('[2]wide body (non IMA)'!$B$6:$K$73,MATCH(L31,'[2]wide body (non IMA)'!$B$6:$B$73,0),7),INDEX('[2]wide body (non IMA)'!$B$6:$K$73,MATCH(M31,'[2]wide body (non IMA)'!$B$6:$B$73,0),7)) -> 0 | J31: 2 | K31: =INDEX('[1]Pt1-DATA'!$A$5:$M$13349,MATCH(A31,'[1]Pt1-DATA'!$C$5:$C$13349,0),6) -> E | L31: Electronic Flight Bags (EFBs) | N31: 34520
A32: 518#760 | B32: =IFERROR(INDEX('[1]Pt1-DATA'!$C:$D,MATCH(A32,'[1]Pt1-DATA'!$C:$C,0),2),"") -> 31313 | C32: =IFERROR(INDEX('[2]wide body (non IMA)'!$B$6:$K$73,MATCH(L32,'[2]wide body (non IMA)'!$B$6:$B$73,0),4)*1000,INDEX('[2]wide body (non IMA)'!$B$6:$K$73,MATCH(M32,'[2]wide body (non IMA)'!$B$6:$B$73,0),4)*1000) -> 20000 | D32: =B32*(1+'Federal Reserve PPI AC Parts'!$E$12) -> 35020.55193 | E32: =C32*(1+'Federal Reserve PPI AC Parts'!$E$12) -> 22368.05923 | F32: PW 2020 Low | G32: 35000 | H32: 0.56565 | I32: =IFERROR(INDEX('[2]wide body (non IMA)'!$B$6:$K$73,MATCH(L32,'[2]wide body (non IMA)'!$B$6:$B$73,0),7),INDEX('[2]wide body (non IMA)'!$B$6:$K$73,MATCH(M32,'[2]wide body (non IMA)'!$B$6:$B$73,0),7)) -> 0 | J32: 1 | K32: =INDEX('[1]Pt1-DATA'!$A$5:$M$13349,MATCH(A32,'[1]Pt1-DATA'!$C$5:$C$13349,0),6) -> B | L32: Mode control Panel (Auto/Pilot control) | N32: 31313
A33: 518#761 | B33: =IFERROR(INDEX('[1]Pt1-DATA'!$C:$D,MATCH(A33,'[1]Pt1-DATA'!$C:$C,0),2),"") -> 8800 | C33: =IFERROR(INDEX('[2]wide body (non IMA)'!$B$6:$K$73,MATCH(L33,'[2]wide body (non IMA)'!$B$6:$B$73,0),4)*1000,INDEX('[2]wide body (non IMA)'!$B$6:$K$73,MATCH(M33,'[2]wide body (non IMA)'!$B$6:$B$73,0),4)*1000) -> 8000 | D33: =B33*(1+'Federal Reserve PPI AC Parts'!$E$12) -> 9841.94606 | E33: =C33*(1+'Federal Reserve PPI AC Parts'!$E$12) -> 8947.223691 | F33: PW 2020 Low | G33: 10000 | H33: 0.1 | I33: =IFERROR(INDEX('[2]wide body (non IMA)'!$B$6:$K$73,MATCH(L33,'[2]wide body (non IMA)'!$B$6:$B$73,0),7),INDEX('[2]wide body (non IMA)'!$B$6:$K$73,MATCH(M33,'[2]wide body (non IMA)'!$B$6:$B$73,0),7)) -> Collins replaced Thales in 2013 | J33: 6 | K33: =INDEX('[1]Pt1-DATA'!$A$5:$M$13349,MATCH(A33,'[1]Pt1-DATA'!$C$5:$C$13349,0),6) -> A | L33: Static/standby sensors | N33: 8800
A34: 518#762 | B34: =IFERROR(INDEX('[1]Pt1-DATA'!$C:$D,MATCH(A34,'[1]Pt1-DATA'!$C:$C,0),2),"") -> 13298 | C34: =IFERROR(INDEX('[2]wide body (non IMA)'!$B$6:$K$73,MATCH(L34,'[2]wide body (non IMA)'!$B$6:$B$73,0),4)*1000,INDEX('[2]wide body (non IMA)'!$B$6:$K$73,MATCH(M34,'[2]wide body (non IMA)'!$B$6:$B$73,0),4)*1000) -> 8000 | D34: =B34*(1+'Federal Reserve PPI AC Parts'!$E$12) -> 14872.52258 | E34: =C34*(1+'Federal Reserve PPI AC Parts'!$E$12) -> 8947.223691 | F34: PW 2020 Low | G34: 15000 | H34: 0.66225 | I34: =IFERROR(INDEX('[2]wide body (non IMA)'!$B$6:$K$73,MATCH(L34,'[2]wide body (non IMA)'!$B$6:$B$73,0),7),INDEX('[2]wide body (non IMA)'!$B$6:$K$73,MATCH(M34,'[2]wide body (non IMA)'!$B$6:$B$73,0),7)) -> Collins | J34: 2 | K34: =INDEX('[1]Pt1-DATA'!$A$5:$M$13349,MATCH(A34,'[1]Pt1-DATA'!$C$5:$C$13349,0),6) -> A | L34: VOR receivers | N34: 13298
A35: 518#763 | B35: =IFERROR(INDEX('[1]Pt1-DATA'!$C:$D,MATCH(A35,'[1]Pt1-DATA'!$C:$C,0),2),"") -> 17612 | C35: =IFERROR(INDEX('[2]wide body (non IMA)'!$B$6:$K$73,MATCH(L35,'[2]wide body (non IMA)'!$B$6:$B$73,0),4)*1000,INDEX('[2]wide body (non IMA)'!$B$6:$K$73,MATCH(M35,'[2]wide body (non IMA)'!$B$6:$B$73,0),4)*1000) -> 12000 | D35: =B35*(1+'Federal Reserve PPI AC Parts'!$E$12) -> 19697.31296 | E35: =C35*(1+'Federal Reserve PPI AC Parts'!$E$12) -> 13420.83554 | F35: PW 2020 Low | G35: 20000 | H35: 0.4676666667 | I35: =IFERROR(INDEX('[2]wide body (non IMA)'!$B$6:$K$73,MATCH(L35,'[2]wide body (non IMA)'!$B$6:$B$73,0),7),INDEX('[2]wide body (non IMA)'!$B$6:$K$73,MATCH(M35,'[2]wide body (non IMA)'!$B$6:$B$73,0),7)) -> 0 | J35: 2 | K35: =INDEX('[1]Pt1-DATA'!$A$5:$M$13349,MATCH(A35,'[1]Pt1-DATA'!$C$5:$C$13349,0),6) -> B | L35: ADF radios | N35: 17612
A36: 518#764 | B36: =IFERROR(INDEX('[1]Pt1-DATA'!$C:$D,MATCH(A36,'[1]Pt1-DATA'!$C:$C,0),2),"") -> 15958 | C36: =IFERROR(INDEX('[2]wide body (non IMA)'!$B$6:$K$73,MATCH(L36,'[2]wide body (non IMA)'!$B$6:$B$73,0),4)*1000,INDEX('[2]wide body (non IMA)'!$B$6:$K$73,MATCH(M36,'[2]wide body (non IMA)'!$B$6:$B$73,0),4)*1000) -> 15000 | D36: =B36*(1+'Federal Reserve PPI AC Parts'!$E$12) -> 17847.47446 | E36: =C36*(1+'Federal Reserve PPI AC Parts'!$E$12) -> 16776.04442 | F36: Validated PW 2020 | G36: 17000 | H36: 0.06386666667 | I36: =IFERROR(INDEX('[2]wide body (non IMA)'!$B$6:$K$73,MATCH(L36,'[2]wide body (non IMA)'!$B$6:$B$73,0),7),INDEX('[2]wide body (non IMA)'!$B$6:$K$73,MATCH(M36,'[2]wide body (non IMA)'!$B$6:$B$73,0),7)) -> Thales | J36: 2 | K36: =INDEX('[1]Pt1-DATA'!$A$5:$M$13349,MATCH(A36,'[1]Pt1-DATA'!$C$5:$C$13349,0),6) -> F | L36: Radar altimeters | N36: 15958
A37: 518#765 | B37: =IFERROR(INDEX('[1]Pt1-DATA'!$C:$D,MATCH(A37,'[1]Pt1-DATA'!$C:$C,0),2),"") -> 70849 | C37: =IFERROR(INDEX('[2]wide body (non IMA)'!$B$6:$K$73,MATCH(L37,'[2]wide body (non IMA)'!$B$6:$B$73,0),4)*1000,INDEX('[2]wide body (non IMA)'!$B$6:$K$73,MATCH(M37,'[2]wide body (non IMA)'!$B$6:$B$73,0),4)*1000) -> 50000 | D37: =B37*(1+'Federal Reserve PPI AC Parts'!$E$12) -> 79237.73141 | E37: =C37*(1+'Federal Reserve PPI AC Parts'!$E$12) -> 55920.14807 | F37: PW 2020 Low | G37: 80000 | H37: 0.41698 | I37: =IFERROR(INDEX('[2]wide body (non IMA)'!$B$6:$K$73,MATCH(L37,'[2]wide body (non IMA)'!$B$6:$B$73,0),7),INDEX('[2]wide body (non IMA)'!$B$6:$K$73,MATCH(M37,'[2]wide body (non IMA)'!$B$6:$B$73,0),7)) -> Thales | J37: 6 | K37: =INDEX('[1]Pt1-DATA'!$A$5:$M$13349,MATCH(A37,'[1]Pt1-DATA'!$C$5:$C$13349,0),6) -> N | L37: Multi Function Display | N37: 70849
A38: 518#766 | B38: =IFERROR(INDEX('[1]Pt1-DATA'!$C:$D,MATCH(A38,'[1]Pt1-DATA'!$C:$C,0),2),"") -> 25303 | C38: =IFERROR(INDEX('[2]wide body (non IMA)'!$B$6:$K$73,MATCH(L38,'[2]wide body (non IMA)'!$B$6:$B$73,0),4)*1000,INDEX('[2]wide body (non IMA)'!$B$6:$K$73,MATCH(M38,'[2]wide body (non IMA)'!$B$6:$B$73,0),4)*1000) -> 25000 | D38: =B38*(1+'Federal Reserve PPI AC Parts'!$E$12) -> 28298.95013 | E38: =C38*(1+'Federal Reserve PPI AC Parts'!$E$12) -> 27960.07403 | F38: Validated PW 2020 | G38: 28000 | H38: 0.01212 | I38: =IFERROR(INDEX('[2]wide body (non IMA)'!$B$6:$K$73,MATCH(L38,'[2]wide body (non IMA)'!$B$6:$B$73,0),7),INDEX('[2]wide body (non IMA)'!$B$6:$K$73,MATCH(M38,'[2]wide body (non IMA)'!$B$6:$B$73,0),7)) -> Thales | J38: 1 | K38: =INDEX('[1]Pt1-DATA'!$A$5:$M$13349,MATCH(A38,'[1]Pt1-DATA'!$C$5:$C$13349,0),6) -> A | L38: EICAS Crew alerting System | N38: 25303
A39: 518#767 | B39: =IFERROR(INDEX('[1]Pt1-DATA'!$C:$D,MATCH(A39,'[1]Pt1-DATA'!$C:$C,0),2),"") -> 25303 | C39: =IFERROR(INDEX('[2]wide body (non IMA)'!$B$6:$K$73,MATCH(L39,'[2]wide body (non IMA)'!$B$6:$B$73,0),4)*1000,INDEX('[2]wide body (non IMA)'!$B$6:$K$73,MATCH(M39,'[2]wide body (non IMA)'!$B$6:$B$73,0),4)*1000) -> 20000 | D39: =B39*(1+'Federal Reserve PPI AC Parts'!$E$12) -> 28298.95013 | E39: =C39*(1+'Federal Reserve PPI AC Parts'!$E$12) -> 22368.05923 | F39: PW 2020 Low | G39: 28000 | H39: 0.26515 | I39: =IFERROR(INDEX('[2]wide body (non IMA)'!$B$6:$K$73,MATCH(L39,'[2]wide body (non IMA)'!$B$6:$B$73,0),7),INDEX('[2]wide body (non IMA)'!$B$6:$K$73,MATCH(M39,'[2]wide body (non IMA)'!$B$6:$B$73,0),7)) -> GE Aviation | J39: 2 | K39: =INDEX('[1]Pt1-DATA'!$A$5:$M$13349,MATCH(A39,'[1]Pt1-DATA'!$C$5:$C$13349,0),6) -> A | L39: Datalink cockpit Display Unit | N39: 25303
A40: 518#768 | B40: =IFERROR(INDEX('[1]Pt1-DATA'!$C:$D,MATCH(A40,'[1]Pt1-DATA'!$C:$C,0),2),"") -> 24461 | C40: =IFERROR(INDEX('[2]wide body (non IMA)'!$B$6:$K$73,MATCH(L40,'[2]wide body (non IMA)'!$B$6:$B$73,0),4)*1000,INDEX('[2]wide body (non IMA)'!$B$6:$K$73,MATCH(M40,'[2]wide body (non IMA)'!$B$6:$B$73,0),4)*1000) -> 12000 | D40: =B40*(1+'Federal Reserve PPI AC Parts'!$E$12) -> 27357.25484 | E40: =C40*(1+'Federal Reserve PPI AC Parts'!$E$12) -> 13420.83554 | F40: PW 2020 Low | G40: 28000 | H40: 1.038416667 | I40: =IFERROR(INDEX('[2]wide body (non IMA)'!$B$6:$K$73,MATCH(L40,'[2]wide body (non IMA)'!$B$6:$B$73,0),7),INDEX('[2]wide body (non IMA)'!$B$6:$K$73,MATCH(M40,'[2]wide body (non IMA)'!$B$6:$B$73,0),7)) -> Collins | J40: 1 | K40: =INDEX('[1]Pt1-DATA'!$A$5:$M$13349,MATCH(A40,'[1]Pt1-DATA'!$C$5:$C$13349,0),6) -> B | L40: HF Radio | N40: 24461
A41: 518#769 | B41: =IFERROR(INDEX('[1]Pt1-DATA'!$C:$D,MATCH(A41,'[1]Pt1-DATA'!$C:$C,0),2),"") -> 48922 | C41: =IFERROR(INDEX('[2]wide body (non IMA)'!$B$6:$K$73,MATCH(L41,'[2]wide body (non IMA)'!$B$6:$B$73,0),4)*1000,INDEX('[2]wide body (non IMA)'!$B$6:$K$73,MATCH(M41,'[2]wide body (non IMA)'!$B$6:$B$73,0),4)*1000) -> 50000 | D41: =B41*(1+'Federal Reserve PPI AC Parts'!$E$12) -> 54714.50968 | E41: =C41*(1+'Federal Reserve PPI AC Parts'!$E$12) -> 55920.14807 | F41: Validated PW 2020 | G41: 55000 | H41: -0.02156 | I41: =IFERROR(INDEX('[2]wide body (non IMA)'!$B$6:$K$73,MATCH(L41,'[2]wide body (non IMA)'!$B$6:$B$73,0),7),INDEX('[2]wide body (non IMA)'!$B$6:$K$73,MATCH(M41,'[2]wide body (non IMA)'!$B$6:$B$73,0),7)) -> HWL | J41: 1 | K41: =INDEX('[1]Pt1-DATA'!$A$5:$M$13349,MATCH(A41,'[1]Pt1-DATA'!$C$5:$C$13349,0),6) -> C | L41: SATCOM | M41: SATCOM MSC 7200 | N41: 48922
A42: 518#770 | B42: =IFERROR(INDEX('[1]Pt1-DATA'!$C:$D,MATCH(A42,'[1]Pt1-DATA'!$C:$C,0),2),"") -> 24461 | C42: =IFERROR(INDEX('[2]wide body (non IMA)'!$B$6:$K$73,MATCH(L42,'[2]wide body (non IMA)'!$B$6:$B$73,0),4)*1000,INDEX('[2]wide body (non IMA)'!$B$6:$K$73,MATCH(M42,'[2]wide body (non IMA)'!$B$6:$B$73,0),4)*1000) -> 25000 | D42: =B42*(1+'Federal Reserve PPI AC Parts'!$E$12) -> 27357.25484 | E42: =C42*(1+'Federal Reserve PPI AC Parts'!$E$12) -> 27960.07403 | F42: Validated PW 2020 | G42: 28000 | H42: -0.02156 | I42: =IFERROR(INDEX('[2]wide body (non IMA)'!$B$6:$K$73,MATCH(L42,'[2]wide body (non IMA)'!$B$6:$B$73,0),7),INDEX('[2]wide body (non IMA)'!$B$6:$K$73,MATCH(M42,'[2]wide body (non IMA)'!$B$6:$B$73,0),7)) -> 0 | J42: 1 | K42: =INDEX('[1]Pt1-DATA'!$A$5:$M$13349,MATCH(A42,'[1]Pt1-DATA'!$C$5:$C$13349,0),6) -> A | L42: Air Traffic Services Unit | N42: 24461
A43: 518#771 | B43: =IFERROR(INDEX('[1]Pt1-DATA'!$C:$D,MATCH(A43,'[1]Pt1-DATA'!$C:$C,0),2),"") -> 46027 | C43: =IFERROR(INDEX('[2]wide body (non IMA)'!$B$6:$K$73,MATCH(L43,'[2]wide body (non IMA)'!$B$6:$B$73,0),4)*1000,INDEX('[2]wide body (non IMA)'!$B$6:$K$73,MATCH(M43,'[2]wide body (non IMA)'!$B$6:$B$73,0),4)*1000) -> 25000 | D43: =B43*(1+'Federal Reserve PPI AC Parts'!$E$12) -> 51476.7331 | E43: =C43*(1+'Federal Reserve PPI AC Parts'!$E$12) -> 27960.07403 | F43: PW 2020 Low | G43: 52000 | H43: 0.84108 | I43: =IFERROR(INDEX('[2]wide body (non IMA)'!$B$6:$K$73,MATCH(L43,'[2]wide body (non IMA)'!$B$6:$B$73,0),7),INDEX('[2]wide body (non IMA)'!$B$6:$K$73,MATCH(M43,'[2]wide body (non IMA)'!$B$6:$B$73,0),7)) -> 0 | J43: 1 | K43: =INDEX('[1]Pt1-DATA'!$A$5:$M$13349,MATCH(A43,'[1]Pt1-DATA'!$C$5:$C$13349,0),6) -> G | L43: Data Management Unit | N43: 46027
A44: 518#772 | B44: =IFERROR(INDEX('[1]Pt1-DATA'!$C:$D,MATCH(A44,'[1]Pt1-DATA'!$C:$C,0),2),"") -> 28767 | C44: =IFERROR(INDEX('[2]wide body (non IMA)'!$B$6:$K$73,MATCH(L44,'[2]wide body (non IMA)'!$B$6:$B$73,0),4)*1000,INDEX('[2]wide body (non IMA)'!$B$6:$K$73,MATCH(M44,'[2]wide body (non IMA)'!$B$6:$B$73,0),4)*1000) -> 25000 | D44: =B44*(1+'Federal Reserve PPI AC Parts'!$E$12) -> 32173.09799 | E44: =C44*(1+'Federal Reserve PPI AC Parts'!$E$12) -> 27960.07403 | F44: PW 2020 Low | G44: 33000 | H44: 0.15068 | I44: =IFERROR(INDEX('[2]wide body (non IMA)'!$B$6:$K$73,MATCH(L44,'[2]wide body (non IMA)'!$B$6:$B$73,0),7),INDEX('[2]wide body (non IMA)'!$B$6:$K$73,MATCH(M44,'[2]wide body (non IMA)'!$B$6:$B$73,0),7)) -> 0 | J44: 1 | K44: =INDEX('[1]Pt1-DATA'!$A$5:$M$13349,MATCH(A44,'[1]Pt1-DATA'!$C$5:$C$13349,0),6) -> A | L44: Wireless LAN data loader | N44: 28767
A45: 518#825 | B45: =IFERROR(INDEX('[1]Pt1-DATA'!$C:$D,MATCH(A45,'[1]Pt1-DATA'!$C:$C,0),2),"") -> 59764 | C45: =IFERROR(INDEX('[2]wide body (non IMA)'!$B$6:$K$73,MATCH(L45,'[2]wide body (non IMA)'!$B$6:$B$73,0),4)*1000,INDEX('[2]wide body (non IMA)'!$B$6:$K$73,MATCH(M45,'[2]wide body (non IMA)'!$B$6:$B$73,0),4)*1000) -> 40000 | D45: =B45*(1+'Federal Reserve PPI AC Parts'!$E$12) -> 66840.23458 | E45: =C45*(1+'Federal Reserve PPI AC Parts'!$E$12) -> 44736.11846 | F45: PW 2020 Low | G45: 68000 | H45: 0.4941 | I45: =IFERROR(INDEX('[2]wide body (non IMA)'!$B$6:$K$73,MATCH(L45,'[2]wide body (non IMA)'!$B$6:$B$73,0),7),INDEX('[2]wide body (non IMA)'!$B$6:$K$73,MATCH(M45,'[2]wide body (non IMA)'!$B$6:$B$73,0),7)) -> part of FMC above | J45: 1 | K45: =INDEX('[1]Pt1-DATA'!$A$5:$M$13349,MATCH(A45,'[1]Pt1-DATA'!$C$5:$C$13349,0),6) -> K | L45: Auto pilot system | M45: Autopilot /Auto thrust system | N45: 59764
A46: 518#878 | B46: =IFERROR(INDEX('[1]Pt1-DATA'!$C:$D,MATCH(A46,'[1]Pt1-DATA'!$C:$C,0),2),"") -> 44879 | C46: =IFERROR(INDEX('[2]wide body (non IMA)'!$B$6:$K$73,MATCH(L46,'[2]wide body (non IMA)'!$B$6:$B$73,0),4)*1000,INDEX('[2]wide body (non IMA)'!$B$6:$K$73,MATCH(M46,'[2]wide body (non IMA)'!$B$6:$B$73,0),4)*1000) ->  | D46: =B46*(1+'Federal Reserve PPI AC Parts'!$E$12) -> 50192.8065 | E46: =C46*(1+'Federal Reserve PPI AC Parts'!$E$12) ->  | F46: Validated Model 2020 | G46: 51000 | I46: =IFERROR(INDEX('[2]wide body (non IMA)'!$B$6:$K$73,MATCH(L46,'[2]wide body (non IMA)'!$B$6:$B$73,0),7),INDEX('[2]wide body (non IMA)'!$B$6:$K$73,MATCH(M46,'[2]wide body (non IMA)'!$B$6:$B$73,0),7)) ->  | J46: 1 | K46: =INDEX('[1]Pt1-DATA'!$A$5:$M$13349,MATCH(A46,'[1]Pt1-DATA'!$C$5:$C$13349,0),6) -> C | L46: Sensors IFF, other | N46: 44879
A47: 518#879 | B47: =IFERROR(INDEX('[1]Pt1-DATA'!$C:$D,MATCH(A47,'[1]Pt1-DATA'!$C:$C,0),2),"") -> 190104 | C47: =IFERROR(INDEX('[2]wide body (non IMA)'!$B$6:$K$73,MATCH(L47,'[2]wide body (non IMA)'!$B$6:$B$73,0),4)*1000,INDEX('[2]wide body (non IMA)'!$B$6:$K$73,MATCH(M47,'[2]wide body (non IMA)'!$B$6:$B$73,0),4)*1000) ->  | D47: =B47*(1+'Federal Reserve PPI AC Parts'!$E$12) -> 212612.8766 | E47: =C47*(1+'Federal Reserve PPI AC Parts'!$E$12) ->  | F47: Validated Model 2020 | G47: 215000 | I47: =IFERROR(INDEX('[2]wide body (non IMA)'!$B$6:$K$73,MATCH(L47,'[2]wide body (non IMA)'!$B$6:$B$73,0),7),INDEX('[2]wide body (non IMA)'!$B$6:$K$73,MATCH(M47,'[2]wide body (non IMA)'!$B$6:$B$73,0),7)) ->  | J47: 1 | K47: =INDEX('[1]Pt1-DATA'!$A$5:$M$13349,MATCH(A47,'[1]Pt1-DATA'!$C$5:$C$13349,0),6) -> X | L47: Software | N47: 190104
A48: 518#882 | B48: =IFERROR(INDEX('[1]Pt1-DATA'!$C:$D,MATCH(A48,'[1]Pt1-DATA'!$C:$C,0),2),"") -> 104151 | C48: =IFERROR(INDEX('[2]wide body (non IMA)'!$B$6:$K$73,MATCH(L48,'[2]wide body (non IMA)'!$B$6:$B$73,0),4)*1000,INDEX('[2]wide body (non IMA)'!$B$6:$K$73,MATCH(M48,'[2]wide body (non IMA)'!$B$6:$B$73,0),4)*1000) ->  | D48: =B48*(1+'Federal Reserve PPI AC Parts'!$E$12) -> 116482.7868 | E48: =C48*(1+'Federal Reserve PPI AC Parts'!$E$12) ->  | F48: Validated Model 2020 | G48: 120000 | I48: =IFERROR(INDEX('[2]wide body (non IMA)'!$B$6:$K$73,MATCH(L48,'[2]wide body (non IMA)'!$B$6:$B$73,0),7),INDEX('[2]wide body (non IMA)'!$B$6:$K$73,MATCH(M48,'[2]wide body (non IMA)'!$B$6:$B$73,0),7)) ->  | J48: 2 | K48: =INDEX('[1]Pt1-DATA'!$A$5:$M$13349,MATCH(A48,'[1]Pt1-DATA'!$C$5:$C$13349,0),6) -> B | L48: Aircraft avionics management unit | N48: 104151
A49: 518#883 | B49: =IFERROR(INDEX('[1]Pt1-DATA'!$C:$D,MATCH(A49,'[1]Pt1-DATA'!$C:$C,0),2),"") -> 82497 | C49: =IFERROR(INDEX('[2]wide body (non IMA)'!$B$6:$K$73,MATCH(L49,'[2]wide body (non IMA)'!$B$6:$B$73,0),4)*1000,INDEX('[2]wide body (non IMA)'!$B$6:$K$73,MATCH(M49,'[2]wide body (non IMA)'!$B$6:$B$73,0),4)*1000) ->  | D49: =B49*(1+'Federal Reserve PPI AC Parts'!$E$12) -> 92264.88911 | E49: =C49*(1+'Federal Reserve PPI AC Parts'!$E$12) ->  | F49: Validated Model 2020 | G49: 93000 | I49: =IFERROR(INDEX('[2]wide body (non IMA)'!$B$6:$K$73,MATCH(L49,'[2]wide body (non IMA)'!$B$6:$B$73,0),7),INDEX('[2]wide body (non IMA)'!$B$6:$K$73,MATCH(M49,'[2]wide body (non IMA)'!$B$6:$B$73,0),7)) ->  | J49: 1 | K49: =INDEX('[1]Pt1-DATA'!$A$5:$M$13349,MATCH(A49,'[1]Pt1-DATA'!$C$5:$C$13349,0),6) -> C | L49: Surveillance Sensors | N49: 82497
A50: 518#1056 | B50: =IFERROR(INDEX('[1]Pt1-DATA'!$C:$D,MATCH(A50,'[1]Pt1-DATA'!$C:$C,0),2),"") -> 3890 | C50: =IFERROR(INDEX('[2]wide body (non IMA)'!$B$6:$K$73,MATCH(L50,'[2]wide body (non IMA)'!$B$6:$B$73,0),4)*1000,INDEX('[2]wide body (non IMA)'!$B$6:$K$73,MATCH(M50,'[2]wide body (non IMA)'!$B$6:$B$73,0),4)*1000) ->  | D50: =B50*(1+'Federal Reserve PPI AC Parts'!$E$12) -> 4350.58752 | E50: =C50*(1+'Federal Reserve PPI AC Parts'!$E$12) ->  | F50: Validated Model 2020 | G50: 4500 | I50: =IFERROR(INDEX('[2]wide body (non IMA)'!$B$6:$K$73,MATCH(L50,'[2]wide body (non IMA)'!$B$6:$B$73,0),7),INDEX('[2]wide body (non IMA)'!$B$6:$K$73,MATCH(M50,'[2]wide body (non IMA)'!$B$6:$B$73,0),7)) ->  | J50: 1 | K50: =INDEX('[1]Pt1-DATA'!$A$5:$M$13349,MATCH(A50,'[1]Pt1-DATA'!$C$5:$C$13349,0),6) -> CF | L50: Avionics Harnesses | N50: 3890
A51: 518#1057 | B51: =IFERROR(INDEX('[1]Pt1-DATA'!$C:$D,MATCH(A51,'[1]Pt1-DATA'!$C:$C,0),2),"") -> 27702 | C51: =IFERROR(INDEX('[2]wide body (non IMA)'!$B$6:$K$73,MATCH(L51,'[2]wide body (non IMA)'!$B$6:$B$73,0),4)*1000,INDEX('[2]wide body (non IMA)'!$B$6:$K$73,MATCH(M51,'[2]wide body (non IMA)'!$B$6:$B$73,0),4)*1000) ->  | D51: =B51*(1+'Federal Reserve PPI AC Parts'!$E$12) -> 30981.99884 | E51: =C51*(1+'Federal Reserve PPI AC Parts'!$E$12) ->  | F51: Validated Model 2020 | G51: 31000 | I51: =IFERROR(INDEX('[2]wide body (non IMA)'!$B$6:$K$73,MATCH(L51,'[2]wide body (non IMA)'!$B$6:$B$73,0),7),INDEX('[2]wide body (non IMA)'!$B$6:$K$73,MATCH(M51,'[2]wide body (non IMA)'!$B$6:$B$73,0),7)) ->  | J51: 1 | K51: =INDEX('[1]Pt1-DATA'!$A$5:$M$13349,MATCH(A51,'[1]Pt1-DATA'!$C$5:$C$13349,0),6) -> CG | L51: Avionics Harnesses | N51: 27702
A52: 518#1058 | B52: =IFERROR(INDEX('[1]Pt1-DATA'!$C:$D,MATCH(A52,'[1]Pt1-DATA'!$C:$C,0),2),"") -> 33500 | C52: =IFERROR(INDEX('[2]wide body (non IMA)'!$B$6:$K$73,MATCH(L52,'[2]wide body (non IMA)'!$B$6:$B$73,0),4)*1000,INDEX('[2]wide body (non IMA)'!$B$6:$K$73,MATCH(M52,'[2]wide body (non IMA)'!$B$6:$B$73,0),4)*1000) ->  | D52: =B52*(1+'Federal Reserve PPI AC Parts'!$E$12) -> 37466.49921 | E52: =C52*(1+'Federal Reserve PPI AC Parts'!$E$12) ->  | F52: Validated Model 2020 | G52: 38000 | I52: =IFERROR(INDEX('[2]wide body (non IMA)'!$B$6:$K$73,MATCH(L52,'[2]wide body (non IMA)'!$B$6:$B$73,0),7),INDEX('[2]wide body (non IMA)'!$B$6:$K$73,MATCH(M52,'[2]wide body (non IMA)'!$B$6:$B$73,0),7)) ->  | J52: 1 | K52: =INDEX('[1]Pt1-DATA'!$A$5:$M$13349,MATCH(A52,'[1]Pt1-DATA'!$C$5:$C$13349,0),6) -> CF | L52: Avionics Harnesses | N52: 33500
A53: 518#1059 | B53: =IFERROR(INDEX('[1]Pt1-DATA'!$C:$D,MATCH(A53,'[1]Pt1-DATA'!$C:$C,0),2),"") -> 6926 | C53: =IFERROR(INDEX('[2]wide body (non IMA)'!$B$6:$K$73,MATCH(L53,'[2]wide body (non IMA)'!$B$6:$B$73,0),4)*1000,INDEX('[2]wide body (non IMA)'!$B$6:$K$73,MATCH(M53,'[2]wide body (non IMA)'!$B$6:$B$73,0),4)*1000) ->  | D53: =B53*(1+'Federal Reserve PPI AC Parts'!$E$12) -> 7746.058911 | E53: =C53*(1+'Federal Reserve PPI AC Parts'!$E$12) ->  | F53: Validated Model 2020 | G53: 8000 | I53: =IFERROR(INDEX('[2]wide body (non IMA)'!$B$6:$K$73,MATCH(L53,'[2]wide body (non IMA)'!$B$6:$B$73,0),7),INDEX('[2]wide body (non IMA)'!$B$6:$K$73,MATCH(M53,'[2]wide body (non IMA)'!$B$6:$B$73,0),7)) ->  | J53: 1 | K53: =INDEX('[1]Pt1-DATA'!$A$5:$M$13349,MATCH(A53,'[1]Pt1-DATA'!$C$5:$C$13349,0),6) -> CG | L53: Avionics Harnesses | N53: 6926
B54: =IFERROR(INDEX('[1]Pt1-DATA'!$C:$D,MATCH(A54,'[1]Pt1-DATA'!$C:$C,0),2),"") ->  | C54: =IFERROR(INDEX('[2]wide body (non IMA)'!$B$6:$K$73,MATCH(L54,'[2]wide body (non IMA)'!$B$6:$B$73,0),4)*1000,INDEX('[2]wide body (non IMA)'!$B$6:$K$73,MATCH(M54,'[2]wide body (non IMA)'!$B$6:$B$73,0),4)*1000) -> 0 | D54: =B54*(1+'Federal Reserve PPI AC Parts'!$E$12) ->  | E54: =C54*(1+'Federal Reserve PPI AC Parts'!$E$12) -> 0 | F54: Validated PW 2020 | G54: =E54 -> 0 | H54: =(B54-C54)/C54 ->  | I54: =IFERROR(INDEX('[2]wide body (non IMA)'!$B$6:$K$73,MATCH(L54,'[2]wide body (non IMA)'!$B$6:$B$73,0),7),INDEX('[2]wide body (non IMA)'!$B$6:$K$73,MATCH(M54,'[2]wide body (non IMA)'!$B$6:$B$73,0),7)) -> out of scope | J54: 0 | K54: =INDEX('[1]Pt1-DATA'!$A$5:$M$13349,MATCH(A54,'[1]Pt1-DATA'!$C$5:$C$13349,0),6) ->  | M54: Thrust levers
B55: =IFERROR(INDEX('[1]Pt1-DATA'!$C:$D,MATCH(A55,'[1]Pt1-DATA'!$C:$C,0),2),"") ->  | C55: =IFERROR(INDEX('[2]wide body (non IMA)'!$B$6:$K$73,MATCH(L55,'[2]wide body (non IMA)'!$B$6:$B$73,0),4)*1000,INDEX('[2]wide body (non IMA)'!$B$6:$K$73,MATCH(M55,'[2]wide body (non IMA)'!$B$6:$B$73,0),4)*1000) -> 6000 | D55: =B55*(1+'Federal Reserve PPI AC Parts'!$E$12) ->  | E55: =C55*(1+'Federal Reserve PPI AC Parts'!$E$12) -> 6710.417768 | F55: Validated PW 2020 | G55: =E55 -> 6710.417768 | I55: =IFERROR(INDEX('[2]wide body (non IMA)'!$B$6:$K$73,MATCH(L55,'[2]wide body (non IMA)'!$B$6:$B$73,0),7),INDEX('[2]wide body (non IMA)'!$B$6:$K$73,MATCH(M55,'[2]wide body (non IMA)'!$B$6:$B$73,0),7)) -> within MMR | J55: 0 | K55: =INDEX('[1]Pt1-DATA'!$A$5:$M$13349,MATCH(A55,'[1]Pt1-DATA'!$C$5:$C$13349,0),6) ->  | M55: GPS receivers
B56: =IFERROR(INDEX('[1]Pt1-DATA'!$C:$D,MATCH(A56,'[1]Pt1-DATA'!$C:$C,0),2),"") ->  | C56: =IFERROR(INDEX('[2]wide body (non IMA)'!$B$6:$K$73,MATCH(L56,'[2]wide body (non IMA)'!$B$6:$B$73,0),4)*1000,INDEX('[2]wide body (non IMA)'!$B$6:$K$73,MATCH(M56,'[2]wide body (non IMA)'!$B$6:$B$73,0),4)*1000) -> 6000 | D56: =B56*(1+'Federal Reserve PPI AC Parts'!$E$12) ->  | E56: =C56*(1+'Federal Reserve PPI AC Parts'!$E$12) -> 6710.417768 | F56: Validated PW 2020 | G56: 6710.417768 | I56: =IFERROR(INDEX('[2]wide body (non IMA)'!$B$6:$K$73,MATCH(L56,'[2]wide body (non IMA)'!$B$6:$B$73,0),7),INDEX('[2]wide body (non IMA)'!$B$6:$K$73,MATCH(M56,'[2]wide body (non IMA)'!$B$6:$B$73,0),7)) -> within MMR | J56: 0 | K56: =INDEX('[1]Pt1-DATA'!$A$5:$M$13349,MATCH(A56,'[1]Pt1-DATA'!$C$5:$C$13349,0),6) ->  | M56: ILS receivers
B57: =IFERROR(INDEX('[1]Pt1-DATA'!$C:$D,MATCH(A57,'[1]Pt1-DATA'!$C:$C,0),2),"") ->  | C57: =IFERROR(INDEX('[2]wide body (non IMA)'!$B$6:$K$73,MATCH(L57,'[2]wide body (non IMA)'!$B$6:$B$73,0),4)*1000,INDEX('[2]wide body (non IMA)'!$B$6:$K$73,MATCH(M57,'[2]wide body (non IMA)'!$B$6:$B$73,0),4)*1000) -> 0 | D57: =B57*(1+'Federal Reserve PPI AC Parts'!$E$12) ->  | E57: =C57*(1+'Federal Reserve PPI AC Parts'!$E$12) -> 0 | F57: Validated PW 2020 | G57: 0 | I57: =IFERROR(INDEX('[2]wide body (non IMA)'!$B$6:$K$73,MATCH(L57,'[2]wide body (non IMA)'!$B$6:$B$73,0),7),INDEX('[2]wide body (non IMA)'!$B$6:$K$73,MATCH(M57,'[2]wide body (non IMA)'!$B$6:$B$73,0),7)) -> within MMR | J57: 0 | K57: =INDEX('[1]Pt1-DATA'!$A$5:$M$13349,MATCH(A57,'[1]Pt1-DATA'!$C$5:$C$13349,0),6) ->  | M57: DME receivers
B58: =IFERROR(INDEX('[1]Pt1-DATA'!$C:$D,MATCH(A58,'[1]Pt1-DATA'!$C:$C,0),2),"") ->  | C58: =IFERROR(INDEX('[2]wide body (non IMA)'!$B$6:$K$73,MATCH(L58,'[2]wide body (non IMA)'!$B$6:$B$73,0),4)*1000,INDEX('[2]wide body (non IMA)'!$B$6:$K$73,MATCH(M58,'[2]wide body (non IMA)'!$B$6:$B$73,0),4)*1000) -> 25000 | D58: =B58*(1+'Federal Reserve PPI AC Parts'!$E$12) ->  | E58: =C58*(1+'Federal Reserve PPI AC Parts'!$E$12) -> 27960.07403 | F58: Validated PW 2020 | G58: 27960.07403 | I58: =IFERROR(INDEX('[2]wide body (non IMA)'!$B$6:$K$73,MATCH(L58,'[2]wide body (non IMA)'!$B$6:$B$73,0),7),INDEX('[2]wide body (non IMA)'!$B$6:$K$73,MATCH(M58,'[2]wide body (non IMA)'!$B$6:$B$73,0),7)) -> Collins | J58: 2 | K58: =INDEX('[1]Pt1-DATA'!$A$5:$M$13349,MATCH(A58,'[1]Pt1-DATA'!$C$5:$C$13349,0),6) ->  | M58: Weather WX radar system (transceivers)
B59: =IFERROR(INDEX('[1]Pt1-DATA'!$C:$D,MATCH(A59,'[1]Pt1-DATA'!$C:$C,0),2),"") ->  | C59: =IFERROR(INDEX('[2]wide body (non IMA)'!$B$6:$K$73,MATCH(L59,'[2]wide body (non IMA)'!$B$6:$B$73,0),4)*1000,INDEX('[2]wide body (non IMA)'!$B$6:$K$73,MATCH(M59,'[2]wide body (non IMA)'!$B$6:$B$73,0),4)*1000) -> 25000 | D59: =B59*(1+'Federal Reserve PPI AC Parts'!$E$12) ->  | E59: =C59*(1+'Federal Reserve PPI AC Parts'!$E$12) -> 27960.07403 | F59: Validated PW 2020 | G59: 27960.07403 | I59: =IFERROR(INDEX('[2]wide body (non IMA)'!$B$6:$K$73,MATCH(L59,'[2]wide body (non IMA)'!$B$6:$B$73,0),7),INDEX('[2]wide body (non IMA)'!$B$6:$K$73,MATCH(M59,'[2]wide body (non IMA)'!$B$6:$B$73,0),7)) -> ACSS | J59: 2 | K59: =INDEX('[1]Pt1-DATA'!$A$5:$M$13349,MATCH(A59,'[1]Pt1-DATA'!$C$5:$C$13349,0),6) ->  | M59: TCAS computer
B60: =IFERROR(INDEX('[1]Pt1-DATA'!$C:$D,MATCH(A60,'[1]Pt1-DATA'!$C:$C,0),2),"") ->  | C60: =IFERROR(INDEX('[2]wide body (non IMA)'!$B$6:$K$73,MATCH(L60,'[2]wide body (non IMA)'!$B$6:$B$73,0),4)*1000,INDEX('[2]wide body (non IMA)'!$B$6:$K$73,MATCH(M60,'[2]wide body (non IMA)'!$B$6:$B$73,0),4)*1000) -> 5000 | D60: =B60*(1+'Federal Reserve PPI AC Parts'!$E$12) ->  | E60: =C60*(1+'Federal Reserve PPI AC Parts'!$E$12) -> 5592.014807 | F60: Validated PW 2020 | G60: 5592.014807 | I60: =IFERROR(INDEX('[2]wide body (non IMA)'!$B$6:$K$73,MATCH(L60,'[2]wide body (non IMA)'!$B$6:$B$73,0),7),INDEX('[2]wide body (non IMA)'!$B$6:$K$73,MATCH(M60,'[2]wide body (non IMA)'!$B$6:$B$73,0),7)) -> ACSS | J60: 2 | K60: =INDEX('[1]Pt1-DATA'!$A$5:$M$13349,MATCH(A60,'[1]Pt1-DATA'!$C$5:$C$13349,0),6) ->  | M60: TCAS control panel
B61: =IFERROR(INDEX('[1]Pt1-DATA'!$C:$D,MATCH(A61,'[1]Pt1-DATA'!$C:$C,0),2),"") ->  | C61: =IFERROR(INDEX('[2]wide body (non IMA)'!$B$6:$K$73,MATCH(L61,'[2]wide body (non IMA)'!$B$6:$B$73,0),4)*1000,INDEX('[2]wide body (non IMA)'!$B$6:$K$73,MATCH(M61,'[2]wide body (non IMA)'!$B$6:$B$73,0),4)*1000) -> 0 | D61: =B61*(1+'Federal Reserve PPI AC Parts'!$E$12) ->  | E61: =C61*(1+'Federal Reserve PPI AC Parts'!$E$12) -> 0 | F61: Validated PW 2020 | G61: 0 | I61: =IFERROR(INDEX('[2]wide body (non IMA)'!$B$6:$K$73,MATCH(L61,'[2]wide body (non IMA)'!$B$6:$B$73,0),7),INDEX('[2]wide body (non IMA)'!$B$6:$K$73,MATCH(M61,'[2]wide body (non IMA)'!$B$6:$B$73,0),7)) -> 0 | J61: 1 | M61: Avionic racking, databuses excluded
B62: =IFERROR(INDEX('[1]Pt1-DATA'!$C:$D,MATCH(A62,'[1]Pt1-DATA'!$C:$C,0),2),"") -> 
B63: =IFERROR(INDEX('[1]Pt1-DATA'!$C:$D,MATCH(A63,'[1]Pt1-DATA'!$C:$C,0),2),"") -> 

Sheet wide body (IMA)
A1: Aircraft: | B1: =INDEX('[1]Pt1-AvionicsComponentCosts'!$A$11:$E$384,MATCH(VALUE(LEFT(A5,SEARCH("#",A5)-1)),'[1]Pt1-AvionicsComponentCosts'!$A$11:$A$384,0),5) -> Boeing 787 Dreamliner: 787-9
B2: Avionics Cost 2020 | G2: Avionics Cost 2024 | I2: % Change 2020 - 2024
B3: =SUMPRODUCT(B5:B80,J5:J80) -> 4149545 | G3: =SUMPRODUCT(G5:G80,J5:J80) -> 5017419.461 | I3: =($G$3-$B$3)/$B$3 -> 0.2091493069
B4: Model 2020 | C4: PW 2020 | D4: 2024 PPI Model | E4: 2024 PPI PW | F4: Notes | G4: 2024 AE Estimate | H4: Pct Change | I4: Source | J4: #/AC | K4: Factor | L4: Item | M4: Alt Item (PW) | N4: previous
A5: 199#709 | B5: =IFERROR(INDEX('[1]Pt1-DATA'!$C:$D,MATCH(A5,'[1]Pt1-DATA'!$C:$C,0),2),"") -> 117423 | C5: =IFERROR(INDEX('[2]wide body (IMA)'!$B$6:$K$73,MATCH(L5,'[2]wide body (IMA)'!$B$6:$B$73,0),4)*1000,INDEX('[2]wide body (IMA)'!$B$6:$K$73,MATCH(M5,'[2]wide body (IMA)'!$B$6:$B$73,0),4)*1000) -> 60000 | D5: =B5*(1+'Federal Reserve PPI AC Parts'!$E$12) -> 131326.2309 | E5: =C5*(1+'Federal Reserve PPI AC Parts'!$E$12) -> 67104.17768 | F5: PW Low | G5: 132000 | H5: =(B5-C5)/C5 -> 0.95705 | I5: =IFERROR(INDEX('[2]wide body (IMA)'!$B$6:$K$73,MATCH(L5,'[2]wide body (IMA)'!$B$6:$B$73,0),7),INDEX('[2]wide body (IMA)'!$B$6:$K$73,MATCH(M5,'[2]wide body (IMA)'!$B$6:$B$73,0),7)) -> Honeywell | J5: 2 | K5: =INDEX('[1]Pt1-DATA'!$A$5:$M$13349,MATCH(A5,'[1]Pt1-DATA'!$C$5:$C$13349,0),6) -> M | L5: FMGC | N5: 117423
A6: 199#710 | B6: =IFERROR(INDEX('[1]Pt1-DATA'!$C:$D,MATCH(A6,'[1]Pt1-DATA'!$C:$C,0),2),"") -> 41750 | C6: =IFERROR(INDEX('[2]wide body (IMA)'!$B$6:$K$73,MATCH(L6,'[2]wide body (IMA)'!$B$6:$B$73,0),4)*1000,INDEX('[2]wide body (IMA)'!$B$6:$K$73,MATCH(M6,'[2]wide body (IMA)'!$B$6:$B$73,0),4)*1000) -> 30000 | D6: =B6*(1+'Federal Reserve PPI AC Parts'!$E$12) -> 46693.32364 | E6: =C6*(1+'Federal Reserve PPI AC Parts'!$E$12) -> 33552.08884 | F6: PW Low | G6: 47000 | H6: =(B6-C6)/C6 -> 0.3916666667 | I6: =IFERROR(INDEX('[2]wide body (IMA)'!$B$6:$K$73,MATCH(L6,'[2]wide body (IMA)'!$B$6:$B$73,0),7),INDEX('[2]wide body (IMA)'!$B$6:$K$73,MATCH(M6,'[2]wide body (IMA)'!$B$6:$B$73,0),7)) -> Honeywell | J6: 2 | K6: =INDEX('[1]Pt1-DATA'!$A$5:$M$13349,MATCH(A6,'[1]Pt1-DATA'!$C$5:$C$13349,0),6) -> J | L6: MCDU | N6: 41750
A7: 199#713 | B7: =IFERROR(INDEX('[1]Pt1-DATA'!$C:$D,MATCH(A7,'[1]Pt1-DATA'!$C:$C,0),2),"") -> 11206 | C7: =IFERROR(INDEX('[2]wide body (IMA)'!$B$6:$K$73,MATCH(L7,'[2]wide body (IMA)'!$B$6:$B$73,0),4)*1000,INDEX('[2]wide body (IMA)'!$B$6:$K$73,MATCH(M7,'[2]wide body (IMA)'!$B$6:$B$73,0),4)*1000) -> 30000 | D7: =B7*(1+'Federal Reserve PPI AC Parts'!$E$12) -> 12532.82359 | E7: =C7*(1+'Federal Reserve PPI AC Parts'!$E$12) -> 33552.08884 | F7: Validated PW 2020 | G7: 34000 | H7: -0.6264666667 | I7: =IFERROR(INDEX('[2]wide body (IMA)'!$B$6:$K$73,MATCH(L7,'[2]wide body (IMA)'!$B$6:$B$73,0),7),INDEX('[2]wide body (IMA)'!$B$6:$K$73,MATCH(M7,'[2]wide body (IMA)'!$B$6:$B$73,0),7)) -> 0 | J7: 2 | K7: =INDEX('[1]Pt1-DATA'!$A$5:$M$13349,MATCH(A7,'[1]Pt1-DATA'!$C$5:$C$13349,0),6) -> C1 | L7: A/T Engine Control Unit | N7: 11206
A8: 199#714 | B8: =IFERROR(INDEX('[1]Pt1-DATA'!$C:$D,MATCH(A8,'[1]Pt1-DATA'!$C:$C,0),2),"") -> 34520 | C8: =IFERROR(INDEX('[2]wide body (IMA)'!$B$6:$K$73,MATCH(L8,'[2]wide body (IMA)'!$B$6:$B$73,0),4)*1000,INDEX('[2]wide body (IMA)'!$B$6:$K$73,MATCH(M8,'[2]wide body (IMA)'!$B$6:$B$73,0),4)*1000) -> 15000 | D8: =B8*(1+'Federal Reserve PPI AC Parts'!$E$12) -> 38607.27023 | E8: =C8*(1+'Federal Reserve PPI AC Parts'!$E$12) -> 16776.04442 | F8: PW Low | G8: 40000 | H8: 1.301333333 | I8: =IFERROR(INDEX('[2]wide body (IMA)'!$B$6:$K$73,MATCH(L8,'[2]wide body (IMA)'!$B$6:$B$73,0),7),INDEX('[2]wide body (IMA)'!$B$6:$K$73,MATCH(M8,'[2]wide body (IMA)'!$B$6:$B$73,0),7)) -> 0 | J8: 2 | K8: =INDEX('[1]Pt1-DATA'!$A$5:$M$13349,MATCH(A8,'[1]Pt1-DATA'!$C$5:$C$13349,0),6) -> E | L8: Data Base loader | N8: 34520
A9: 199#719 | B9: =IFERROR(INDEX('[1]Pt1-DATA'!$C:$D,MATCH(A9,'[1]Pt1-DATA'!$C:$C,0),2),"") -> 20243 | C9: =IFERROR(INDEX('[2]wide body (IMA)'!$B$6:$K$73,MATCH(L9,'[2]wide body (IMA)'!$B$6:$B$73,0),4)*1000,INDEX('[2]wide body (IMA)'!$B$6:$K$73,MATCH(M9,'[2]wide body (IMA)'!$B$6:$B$73,0),4)*1000) -> 15000 | D9: =B9*(1+'Federal Reserve PPI AC Parts'!$E$12) -> 22639.83115 | E9: =C9*(1+'Federal Reserve PPI AC Parts'!$E$12) -> 16776.04442 | F9: PW Low | G9: 23000 | H9: 0.3495333333 | I9: =IFERROR(INDEX('[2]wide body (IMA)'!$B$6:$K$73,MATCH(L9,'[2]wide body (IMA)'!$B$6:$B$73,0),7),INDEX('[2]wide body (IMA)'!$B$6:$K$73,MATCH(M9,'[2]wide body (IMA)'!$B$6:$B$73,0),7)) -> ?? | J9: 1 | K9: =INDEX('[1]Pt1-DATA'!$A$5:$M$13349,MATCH(A9,'[1]Pt1-DATA'!$C$5:$C$13349,0),6) -> E | L9: ADIRS CDU | N9: 20243
A10: 199#721 | B10: =IFERROR(INDEX('[1]Pt1-DATA'!$C:$D,MATCH(A10,'[1]Pt1-DATA'!$C:$C,0),2),"") -> 10638 | C10: =IFERROR(INDEX('[2]wide body (IMA)'!$B$6:$K$73,MATCH(L10,'[2]wide body (IMA)'!$B$6:$B$73,0),4)*1000,INDEX('[2]wide body (IMA)'!$B$6:$K$73,MATCH(M10,'[2]wide body (IMA)'!$B$6:$B$73,0),4)*1000) -> 20000 | D10: =B10*(1+'Federal Reserve PPI AC Parts'!$E$12) -> 11897.5707 | E10: =C10*(1+'Federal Reserve PPI AC Parts'!$E$12) -> 22368.05923 | F10: Validated PW 2020 | G10: 23000 | H10: -0.4681 | I10: =IFERROR(INDEX('[2]wide body (IMA)'!$B$6:$K$73,MATCH(L10,'[2]wide body (IMA)'!$B$6:$B$73,0),7),INDEX('[2]wide body (IMA)'!$B$6:$K$73,MATCH(M10,'[2]wide body (IMA)'!$B$6:$B$73,0),7)) -> Honeywell | J10: 8 | K10: =INDEX('[1]Pt1-DATA'!$A$5:$M$13349,MATCH(A10,'[1]Pt1-DATA'!$C$5:$C$13349,0),6) -> E2 | L10: Air Data Modules (ADM) | N10: 10638
A11: 199#722 | B11: =IFERROR(INDEX('[1]Pt1-DATA'!$C:$D,MATCH(A11,'[1]Pt1-DATA'!$C:$C,0),2),"") -> 13200 | C11: =IFERROR(INDEX('[2]wide body (IMA)'!$B$6:$K$73,MATCH(L11,'[2]wide body (IMA)'!$B$6:$B$73,0),4)*1000,INDEX('[2]wide body (IMA)'!$B$6:$K$73,MATCH(M11,'[2]wide body (IMA)'!$B$6:$B$73,0),4)*1000) -> 12000 | D11: =B11*(1+'Federal Reserve PPI AC Parts'!$E$12) -> 14762.91909 | E11: =C11*(1+'Federal Reserve PPI AC Parts'!$E$12) -> 13420.83554 | F11: Validated PW 2020 | G11: 14000 | H11: 0.1 | I11: =IFERROR(INDEX('[2]wide body (IMA)'!$B$6:$K$73,MATCH(L11,'[2]wide body (IMA)'!$B$6:$B$73,0),7),INDEX('[2]wide body (IMA)'!$B$6:$K$73,MATCH(M11,'[2]wide body (IMA)'!$B$6:$B$73,0),7)) -> ?? | J11: 14 | K11: =INDEX('[1]Pt1-DATA'!$A$5:$M$13349,MATCH(A11,'[1]Pt1-DATA'!$C$5:$C$13349,0),6) -> I | L11: Air data probes (pitot/static) | N11: 13200
A12: 199#723 | B12: =IFERROR(INDEX('[1]Pt1-DATA'!$C:$D,MATCH(A12,'[1]Pt1-DATA'!$C:$C,0),2),"") -> 44327 | C12: =IFERROR(INDEX('[2]wide body (IMA)'!$B$6:$K$73,MATCH(L12,'[2]wide body (IMA)'!$B$6:$B$73,0),4)*1000,INDEX('[2]wide body (IMA)'!$B$6:$K$73,MATCH(M12,'[2]wide body (IMA)'!$B$6:$B$73,0),4)*1000) -> 40000 | D12: =B12*(1+'Federal Reserve PPI AC Parts'!$E$12) -> 49575.44807 | E12: =C12*(1+'Federal Reserve PPI AC Parts'!$E$12) -> 44736.11846 | F12: Validated PW 2020 | G12: 45000 | H12: 0.108175 | I12: =IFERROR(INDEX('[2]wide body (IMA)'!$B$6:$K$73,MATCH(L12,'[2]wide body (IMA)'!$B$6:$B$73,0),7),INDEX('[2]wide body (IMA)'!$B$6:$K$73,MATCH(M12,'[2]wide body (IMA)'!$B$6:$B$73,0),7)) -> Honeywell | J12: 2 | K12: =INDEX('[1]Pt1-DATA'!$A$5:$M$13349,MATCH(A12,'[1]Pt1-DATA'!$C$5:$C$13349,0),6) -> D | L12: Multi Mode Receiver (MMR) | N12: 44327
A13: 199#725 | B13: =IFERROR(INDEX('[1]Pt1-DATA'!$C:$D,MATCH(A13,'[1]Pt1-DATA'!$C:$C,0),2),"") -> 10638 | C13: =IFERROR(INDEX('[2]wide body (IMA)'!$B$6:$K$73,MATCH(L13,'[2]wide body (IMA)'!$B$6:$B$73,0),4)*1000,INDEX('[2]wide body (IMA)'!$B$6:$K$73,MATCH(M13,'[2]wide body (IMA)'!$B$6:$B$73,0),4)*1000) -> 10000 | D13: =B13*(1+'Federal Reserve PPI AC Parts'!$E$12) -> 11897.5707 | E13: =C13*(1+'Federal Reserve PPI AC Parts'!$E$12) -> 11184.02961 | F13: Validated PW 2020 | G13: 12000 | H13: 0.0638 | I13: =IFERROR(INDEX('[2]wide body (IMA)'!$B$6:$K$73,MATCH(L13,'[2]wide body (IMA)'!$B$6:$B$73,0),7),INDEX('[2]wide body (IMA)'!$B$6:$K$73,MATCH(M13,'[2]wide body (IMA)'!$B$6:$B$73,0),7)) -> Honeywell | J13: 2 | K13: =INDEX('[1]Pt1-DATA'!$A$5:$M$13349,MATCH(A13,'[1]Pt1-DATA'!$C$5:$C$13349,0),6) -> C | L13: DME receivers | N13: 10638
A14: 199#728 | B14: =IFERROR(INDEX('[1]Pt1-DATA'!$C:$D,MATCH(A14,'[1]Pt1-DATA'!$C:$C,0),2),"") -> 20243 | C14: =IFERROR(INDEX('[2]wide body (IMA)'!$B$6:$K$73,MATCH(L14,'[2]wide body (IMA)'!$B$6:$B$73,0),4)*1000,INDEX('[2]wide body (IMA)'!$B$6:$K$73,MATCH(M14,'[2]wide body (IMA)'!$B$6:$B$73,0),4)*1000) -> 15000 | D14: =B14*(1+'Federal Reserve PPI AC Parts'!$E$12) -> 22639.83115 | E14: =C14*(1+'Federal Reserve PPI AC Parts'!$E$12) -> 16776.04442 | F14: PW Low | G14: 23000 | H14: 0.3495333333 | I14: =IFERROR(INDEX('[2]wide body (IMA)'!$B$6:$K$73,MATCH(L14,'[2]wide body (IMA)'!$B$6:$B$73,0),7),INDEX('[2]wide body (IMA)'!$B$6:$K$73,MATCH(M14,'[2]wide body (IMA)'!$B$6:$B$73,0),7)) -> 0 | J14: 1 | K14: =INDEX('[1]Pt1-DATA'!$A$5:$M$13349,MATCH(A14,'[1]Pt1-DATA'!$C$5:$C$13349,0),6) -> G | L14: EFIS Control panel | N14: 20243
A15: 199#730 | B15: =IFERROR(INDEX('[1]Pt1-DATA'!$C:$D,MATCH(A15,'[1]Pt1-DATA'!$C:$C,0),2),"") -> 111333 | C15: =IFERROR(INDEX('[2]wide body (IMA)'!$B$6:$K$73,MATCH(L15,'[2]wide body (IMA)'!$B$6:$B$73,0),4)*1000,INDEX('[2]wide body (IMA)'!$B$6:$K$73,MATCH(M15,'[2]wide body (IMA)'!$B$6:$B$73,0),4)*1000) -> 90000 | D15: =B15*(1+'Federal Reserve PPI AC Parts'!$E$12) -> 124515.1569 | E15: =C15*(1+'Federal Reserve PPI AC Parts'!$E$12) -> 100656.2665 | F15: PW Low | G15: 125000 | H15: 0.2370333333 | I15: =IFERROR(INDEX('[2]wide body (IMA)'!$B$6:$K$73,MATCH(L15,'[2]wide body (IMA)'!$B$6:$B$73,0),7),INDEX('[2]wide body (IMA)'!$B$6:$K$73,MATCH(M15,'[2]wide body (IMA)'!$B$6:$B$73,0),7)) -> Collins | J15: 2 | K15: =INDEX('[1]Pt1-DATA'!$A$5:$M$13349,MATCH(A15,'[1]Pt1-DATA'!$C$5:$C$13349,0),6) -> G | L15: HUD display system | N15: 111333
A16: 199#733 | B16: =IFERROR(INDEX('[1]Pt1-DATA'!$C:$D,MATCH(A16,'[1]Pt1-DATA'!$C:$C,0),2),"") -> 50606 | C16: =IFERROR(INDEX('[2]wide body (IMA)'!$B$6:$K$73,MATCH(L16,'[2]wide body (IMA)'!$B$6:$B$73,0),4)*1000,INDEX('[2]wide body (IMA)'!$B$6:$K$73,MATCH(M16,'[2]wide body (IMA)'!$B$6:$B$73,0),4)*1000) -> 25000 | D16: =B16*(1+'Federal Reserve PPI AC Parts'!$E$12) -> 56597.90026 | E16: =C16*(1+'Federal Reserve PPI AC Parts'!$E$12) -> 27960.07403 | F16: PW Low | G16: 58000 | H16: 1.02424 | I16: =IFERROR(INDEX('[2]wide body (IMA)'!$B$6:$K$73,MATCH(L16,'[2]wide body (IMA)'!$B$6:$B$73,0),7),INDEX('[2]wide body (IMA)'!$B$6:$K$73,MATCH(M16,'[2]wide body (IMA)'!$B$6:$B$73,0),7)) -> IMA software function | J16: 2 | K16: =INDEX('[1]Pt1-DATA'!$A$5:$M$13349,MATCH(A16,'[1]Pt1-DATA'!$C$5:$C$13349,0),6) -> I | L16: Display Management Computer (DMC/EFIS) | M16: Display Management Computer (EFIS) | N16: 50606
A17: 199#734 | B17: =IFERROR(INDEX('[1]Pt1-DATA'!$C:$D,MATCH(A17,'[1]Pt1-DATA'!$C:$C,0),2),"") -> 10121 | C17: =IFERROR(INDEX('[2]wide body (IMA)'!$B$6:$K$73,MATCH(L17,'[2]wide body (IMA)'!$B$6:$B$73,0),4)*1000,INDEX('[2]wide body (IMA)'!$B$6:$K$73,MATCH(M17,'[2]wide body (IMA)'!$B$6:$B$73,0),4)*1000) -> 8000 | D17: =B17*(1+'Federal Reserve PPI AC Parts'!$E$12) -> 11319.35637 | E17: =C17*(1+'Federal Reserve PPI AC Parts'!$E$12) -> 8947.223691 | F17: PW Low | G17: 12000 | H17: 0.265125 | I17: =IFERROR(INDEX('[2]wide body (IMA)'!$B$6:$K$73,MATCH(L17,'[2]wide body (IMA)'!$B$6:$B$73,0),7),INDEX('[2]wide body (IMA)'!$B$6:$K$73,MATCH(M17,'[2]wide body (IMA)'!$B$6:$B$73,0),7)) -> 0 | J17: 1 | K17: =INDEX('[1]Pt1-DATA'!$A$5:$M$13349,MATCH(A17,'[1]Pt1-DATA'!$C$5:$C$13349,0),6) -> E | L17: Compass | N17: 10121
A18: 199#735 | B18: =IFERROR(INDEX('[1]Pt1-DATA'!$C:$D,MATCH(A18,'[1]Pt1-DATA'!$C:$C,0),2),"") -> 35424 | C18: =IFERROR(INDEX('[2]wide body (IMA)'!$B$6:$K$73,MATCH(L18,'[2]wide body (IMA)'!$B$6:$B$73,0),4)*1000,INDEX('[2]wide body (IMA)'!$B$6:$K$73,MATCH(M18,'[2]wide body (IMA)'!$B$6:$B$73,0),4)*1000) -> 30000 | D18: =B18*(1+'Federal Reserve PPI AC Parts'!$E$12) -> 39618.3065 | E18: =C18*(1+'Federal Reserve PPI AC Parts'!$E$12) -> 33552.08884 | F18: PW Low | G18: 40000 | H18: 0.1808 | I18: =IFERROR(INDEX('[2]wide body (IMA)'!$B$6:$K$73,MATCH(L18,'[2]wide body (IMA)'!$B$6:$B$73,0),7),INDEX('[2]wide body (IMA)'!$B$6:$K$73,MATCH(M18,'[2]wide body (IMA)'!$B$6:$B$73,0),7)) -> Thales | J18: 1 | K18: =INDEX('[1]Pt1-DATA'!$A$5:$M$13349,MATCH(A18,'[1]Pt1-DATA'!$C$5:$C$13349,0),6) -> G | L18: Integrated Standby Instrument System | N18: 35424
A19: 199#738 | B19: =IFERROR(INDEX('[1]Pt1-DATA'!$C:$D,MATCH(A19,'[1]Pt1-DATA'!$C:$C,0),2),"") -> 17612 | C19: =IFERROR(INDEX('[2]wide body (IMA)'!$B$6:$K$73,MATCH(L19,'[2]wide body (IMA)'!$B$6:$B$73,0),4)*1000,INDEX('[2]wide body (IMA)'!$B$6:$K$73,MATCH(M19,'[2]wide body (IMA)'!$B$6:$B$73,0),4)*1000) -> 12000 | D19: =B19*(1+'Federal Reserve PPI AC Parts'!$E$12) -> 19697.31296 | E19: =C19*(1+'Federal Reserve PPI AC Parts'!$E$12) -> 13420.83554 | F19: PW Low | G19: 20000 | H19: 0.4676666667 | I19: =IFERROR(INDEX('[2]wide body (IMA)'!$B$6:$K$73,MATCH(L19,'[2]wide body (IMA)'!$B$6:$B$73,0),7),INDEX('[2]wide body (IMA)'!$B$6:$K$73,MATCH(M19,'[2]wide body (IMA)'!$B$6:$B$73,0),7)) -> Collins | J19: 2 | K19: =INDEX('[1]Pt1-DATA'!$A$5:$M$13349,MATCH(A19,'[1]Pt1-DATA'!$C$5:$C$13349,0),6) -> F | L19: Comms Receivers VH (transceiver/antenna) | N19: 17612
A20: 199#739 | B20: =IFERROR(INDEX('[1]Pt1-DATA'!$C:$D,MATCH(A20,'[1]Pt1-DATA'!$C:$C,0),2),"") -> 17612 | C20: =IFERROR(INDEX('[2]wide body (IMA)'!$B$6:$K$73,MATCH(L20,'[2]wide body (IMA)'!$B$6:$B$73,0),4)*1000,INDEX('[2]wide body (IMA)'!$B$6:$K$73,MATCH(M20,'[2]wide body (IMA)'!$B$6:$B$73,0),4)*1000) -> 12000 | D20: =B20*(1+'Federal Reserve PPI AC Parts'!$E$12) -> 19697.31296 | E20: =C20*(1+'Federal Reserve PPI AC Parts'!$E$12) -> 13420.83554 | F20: PW Low | G20: 20000 | H20: 0.4676666667 | I20: =IFERROR(INDEX('[2]wide body (IMA)'!$B$6:$K$73,MATCH(L20,'[2]wide body (IMA)'!$B$6:$B$73,0),7),INDEX('[2]wide body (IMA)'!$B$6:$K$73,MATCH(M20,'[2]wide body (IMA)'!$B$6:$B$73,0),7)) -> Collins | J20: 2 | K20: =INDEX('[1]Pt1-DATA'!$A$5:$M$13349,MATCH(A20,'[1]Pt1-DATA'!$C$5:$C$13349,0),6) -> F | L20: Comms Receivers UF (transceiver/antenna) | N20: 17612
A21: 199#743 | B21: =IFERROR(INDEX('[1]Pt1-DATA'!$C:$D,MATCH(A21,'[1]Pt1-DATA'!$C:$C,0),2),"") -> 7828 | C21: =IFERROR(INDEX('[2]wide body (IMA)'!$B$6:$K$73,MATCH(L21,'[2]wide body (IMA)'!$B$6:$B$73,0),4)*1000,INDEX('[2]wide body (IMA)'!$B$6:$K$73,MATCH(M21,'[2]wide body (IMA)'!$B$6:$B$73,0),4)*1000) -> 8000 | D21: =B21*(1+'Federal Reserve PPI AC Parts'!$E$12) -> 8754.858382 | E21: =C21*(1+'Federal Reserve PPI AC Parts'!$E$12) -> 8947.223691 | F21: Validated PW 2020 | G21: 9000 | H21: -0.0215 | I21: =IFERROR(INDEX('[2]wide body (IMA)'!$B$6:$K$73,MATCH(L21,'[2]wide body (IMA)'!$B$6:$B$73,0),7),INDEX('[2]wide body (IMA)'!$B$6:$K$73,MATCH(M21,'[2]wide body (IMA)'!$B$6:$B$73,0),7)) -> ?/ | J21: 1 | K21: =INDEX('[1]Pt1-DATA'!$A$5:$M$13349,MATCH(A21,'[1]Pt1-DATA'!$C$5:$C$13349,0),6) -> F | L21: Radio Management Panel | N21: 7828
A22: 199#744 | B22: =IFERROR(INDEX('[1]Pt1-DATA'!$C:$D,MATCH(A22,'[1]Pt1-DATA'!$C:$C,0),2),"") -> 42542 | C22: =IFERROR(INDEX('[2]wide body (IMA)'!$B$6:$K$73,MATCH(L22,'[2]wide body (IMA)'!$B$6:$B$73,0),4)*1000,INDEX('[2]wide body (IMA)'!$B$6:$K$73,MATCH(M22,'[2]wide body (IMA)'!$B$6:$B$73,0),4)*1000) -> 18000 | D22: =B22*(1+'Federal Reserve PPI AC Parts'!$E$12) -> 47579.09878 | E22: =C22*(1+'Federal Reserve PPI AC Parts'!$E$12) -> 20131.25331 | F22: PW Low | G22: 48000 | H22: 1.363444444 | I22: =IFERROR(INDEX('[2]wide body (IMA)'!$B$6:$K$73,MATCH(L22,'[2]wide body (IMA)'!$B$6:$B$73,0),7),INDEX('[2]wide body (IMA)'!$B$6:$K$73,MATCH(M22,'[2]wide body (IMA)'!$B$6:$B$73,0),7)) -> Collins | J22: 2 | K22: =INDEX('[1]Pt1-DATA'!$A$5:$M$13349,MATCH(A22,'[1]Pt1-DATA'!$C$5:$C$13349,0),6) -> F | L22: ATC Mode S Transponders (TCAS) | N22: 42542
A23: 199#746 | B23: =IFERROR(INDEX('[1]Pt1-DATA'!$C:$D,MATCH(A23,'[1]Pt1-DATA'!$C:$C,0),2),"") -> 49498 | C23: =IFERROR(INDEX('[2]wide body (IMA)'!$B$6:$K$73,MATCH(L23,'[2]wide body (IMA)'!$B$6:$B$73,0),4)*1000,INDEX('[2]wide body (IMA)'!$B$6:$K$73,MATCH(M23,'[2]wide body (IMA)'!$B$6:$B$73,0),4)*1000) -> 25000 | D23: =B23*(1+'Federal Reserve PPI AC Parts'!$E$12) -> 55358.70978 | E23: =C23*(1+'Federal Reserve PPI AC Parts'!$E$12) -> 27960.07403 | F23: PW Low | G23: 56000 | H23: 0.97992 | I23: =IFERROR(INDEX('[2]wide body (IMA)'!$B$6:$K$73,MATCH(L23,'[2]wide body (IMA)'!$B$6:$B$73,0),7),INDEX('[2]wide body (IMA)'!$B$6:$K$73,MATCH(M23,'[2]wide body (IMA)'!$B$6:$B$73,0),7)) -> Collins | J23: 1 | K23: =INDEX('[1]Pt1-DATA'!$A$5:$M$13349,MATCH(A23,'[1]Pt1-DATA'!$C$5:$C$13349,0),6) -> J | L23: Weather WX radar system | M23: Weather WX radar system (transceivers) | N23: 49498
A24: 199#748 | B24: =IFERROR(INDEX('[1]Pt1-DATA'!$C:$D,MATCH(A24,'[1]Pt1-DATA'!$C:$C,0),2),"") -> 48620 | C24: =IFERROR(INDEX('[2]wide body (IMA)'!$B$6:$K$73,MATCH(L24,'[2]wide body (IMA)'!$B$6:$B$73,0),4)*1000,INDEX('[2]wide body (IMA)'!$B$6:$K$73,MATCH(M24,'[2]wide body (IMA)'!$B$6:$B$73,0),4)*1000) -> 25000 | D24: =B24*(1+'Federal Reserve PPI AC Parts'!$E$12) -> 54376.75198 | E24: =C24*(1+'Federal Reserve PPI AC Parts'!$E$12) -> 27960.07403 | F24: PW Low | G24: 55000 | H24: 0.9448 | I24: =IFERROR(INDEX('[2]wide body (IMA)'!$B$6:$K$73,MATCH(L24,'[2]wide body (IMA)'!$B$6:$B$73,0),7),INDEX('[2]wide body (IMA)'!$B$6:$K$73,MATCH(M24,'[2]wide body (IMA)'!$B$6:$B$73,0),7)) -> Collins | J24: 1 | K24: =INDEX('[1]Pt1-DATA'!$A$5:$M$13349,MATCH(A24,'[1]Pt1-DATA'!$C$5:$C$13349,0),6) -> N | L24: Ground Proximity Warning System (GPWS/EGPWS) | M24: Ground Proximity Warning System (GPWS) | N24: 48620
A25: 199#752 | B25: =IFERROR(INDEX('[1]Pt1-DATA'!$C:$D,MATCH(A25,'[1]Pt1-DATA'!$C:$C,0),2),"") -> 19569 | C25: =IFERROR(INDEX('[2]wide body (IMA)'!$B$6:$K$73,MATCH(L25,'[2]wide body (IMA)'!$B$6:$B$73,0),4)*1000,INDEX('[2]wide body (IMA)'!$B$6:$K$73,MATCH(M25,'[2]wide body (IMA)'!$B$6:$B$73,0),4)*1000) -> 15000 | D25: =B25*(1+'Federal Reserve PPI AC Parts'!$E$12) -> 21886.02755 | E25: =C25*(1+'Federal Reserve PPI AC Parts'!$E$12) -> 16776.04442 | F25: PW Low | G25: 22000 | H25: 0.3046 | I25: =IFERROR(INDEX('[2]wide body (IMA)'!$B$6:$K$73,MATCH(L25,'[2]wide body (IMA)'!$B$6:$B$73,0),7),INDEX('[2]wide body (IMA)'!$B$6:$K$73,MATCH(M25,'[2]wide body (IMA)'!$B$6:$B$73,0),7)) -> Collins | J25: 1 | K25: =INDEX('[1]Pt1-DATA'!$A$5:$M$13349,MATCH(A25,'[1]Pt1-DATA'!$C$5:$C$13349,0),6) -> J1 | L25: Cockpit Voice Recorder | N25: 19569
A26: 199#753 | B26: =IFERROR(INDEX('[1]Pt1-DATA'!$C:$D,MATCH(A26,'[1]Pt1-DATA'!$C:$C,0),2),"") -> 4893 | C26: =IFERROR(INDEX('[2]wide body (IMA)'!$B$6:$K$73,MATCH(L26,'[2]wide body (IMA)'!$B$6:$B$73,0),4)*1000,INDEX('[2]wide body (IMA)'!$B$6:$K$73,MATCH(M26,'[2]wide body (IMA)'!$B$6:$B$73,0),4)*1000) -> 5000 | D26: =B26*(1+'Federal Reserve PPI AC Parts'!$E$12) -> 5472.34569 | E26: =C26*(1+'Federal Reserve PPI AC Parts'!$E$12) -> 5592.014807 | F26: Validated PW 2020 | G26: 6000 | H26: -0.0214 | I26: =IFERROR(INDEX('[2]wide body (IMA)'!$B$6:$K$73,MATCH(L26,'[2]wide body (IMA)'!$B$6:$B$73,0),7),INDEX('[2]wide body (IMA)'!$B$6:$K$73,MATCH(M26,'[2]wide body (IMA)'!$B$6:$B$73,0),7)) -> Collins | J26: 1 | K26: =INDEX('[1]Pt1-DATA'!$A$5:$M$13349,MATCH(A26,'[1]Pt1-DATA'!$C$5:$C$13349,0),6) -> C | L26: CVR control panel | N26: 4893
A27: 199#754 | B27: =IFERROR(INDEX('[1]Pt1-DATA'!$C:$D,MATCH(A27,'[1]Pt1-DATA'!$C:$C,0),2),"") -> 23014 | C27: =IFERROR(INDEX('[2]wide body (IMA)'!$B$6:$K$73,MATCH(L27,'[2]wide body (IMA)'!$B$6:$B$73,0),4)*1000,INDEX('[2]wide body (IMA)'!$B$6:$K$73,MATCH(M27,'[2]wide body (IMA)'!$B$6:$B$73,0),4)*1000) -> 20000 | D27: =B27*(1+'Federal Reserve PPI AC Parts'!$E$12) -> 25738.92575 | E27: =C27*(1+'Federal Reserve PPI AC Parts'!$E$12) -> 22368.05923 | F27: PW Low | G27: 26000 | H27: 0.1507 | I27: =IFERROR(INDEX('[2]wide body (IMA)'!$B$6:$K$73,MATCH(L27,'[2]wide body (IMA)'!$B$6:$B$73,0),7),INDEX('[2]wide body (IMA)'!$B$6:$K$73,MATCH(M27,'[2]wide body (IMA)'!$B$6:$B$73,0),7)) -> Collins | J27: 1 | K27: =INDEX('[1]Pt1-DATA'!$A$5:$M$13349,MATCH(A27,'[1]Pt1-DATA'!$C$5:$C$13349,0),6) -> I | L27: Flight Data Recorder | N27: 23014
A28: 199#755 | B28: =IFERROR(INDEX('[1]Pt1-DATA'!$C:$D,MATCH(A28,'[1]Pt1-DATA'!$C:$C,0),2),"") -> 9205 | C28: =IFERROR(INDEX('[2]wide body (IMA)'!$B$6:$K$73,MATCH(L28,'[2]wide body (IMA)'!$B$6:$B$73,0),4)*1000,INDEX('[2]wide body (IMA)'!$B$6:$K$73,MATCH(M28,'[2]wide body (IMA)'!$B$6:$B$73,0),4)*1000) -> 8000 | D28: =B28*(1+'Federal Reserve PPI AC Parts'!$E$12) -> 10294.89926 | E28: =C28*(1+'Federal Reserve PPI AC Parts'!$E$12) -> 8947.223691 | F28: PW Low | G28: 11000 | H28: 0.150625 | I28: =IFERROR(INDEX('[2]wide body (IMA)'!$B$6:$K$73,MATCH(L28,'[2]wide body (IMA)'!$B$6:$B$73,0),7),INDEX('[2]wide body (IMA)'!$B$6:$K$73,MATCH(M28,'[2]wide body (IMA)'!$B$6:$B$73,0),7)) -> Collins | J28: 1 | K28: =INDEX('[1]Pt1-DATA'!$A$5:$M$13349,MATCH(A28,'[1]Pt1-DATA'!$C$5:$C$13349,0),6) -> C1 | L28: FD Interface Unit | N28: 9205
A29: 199#756 | B29: =IFERROR(INDEX('[1]Pt1-DATA'!$C:$D,MATCH(A29,'[1]Pt1-DATA'!$C:$C,0),2),"") -> 27616 | C29: =IFERROR(INDEX('[2]wide body (IMA)'!$B$6:$K$73,MATCH(L29,'[2]wide body (IMA)'!$B$6:$B$73,0),4)*1000,INDEX('[2]wide body (IMA)'!$B$6:$K$73,MATCH(M29,'[2]wide body (IMA)'!$B$6:$B$73,0),4)*1000) -> 15000 | D29: =B29*(1+'Federal Reserve PPI AC Parts'!$E$12) -> 30885.81618 | E29: =C29*(1+'Federal Reserve PPI AC Parts'!$E$12) -> 16776.04442 | F29: PW Low | G29: 31000 | H29: 0.8410666667 | I29: =IFERROR(INDEX('[2]wide body (IMA)'!$B$6:$K$73,MATCH(L29,'[2]wide body (IMA)'!$B$6:$B$73,0),7),INDEX('[2]wide body (IMA)'!$B$6:$K$73,MATCH(M29,'[2]wide body (IMA)'!$B$6:$B$73,0),7)) -> 0 | J29: 1 | K29: =INDEX('[1]Pt1-DATA'!$A$5:$M$13349,MATCH(A29,'[1]Pt1-DATA'!$C$5:$C$13349,0),6) -> E | L29: Quick Access Recorder (QAR) | N29: 27616
A30: 199#759 | B30: =IFERROR(INDEX('[1]Pt1-DATA'!$C:$D,MATCH(A30,'[1]Pt1-DATA'!$C:$C,0),2),"") -> 34520 | C30: =IFERROR(INDEX('[2]wide body (IMA)'!$B$6:$K$73,MATCH(L30,'[2]wide body (IMA)'!$B$6:$B$73,0),4)*1000,INDEX('[2]wide body (IMA)'!$B$6:$K$73,MATCH(M30,'[2]wide body (IMA)'!$B$6:$B$73,0),4)*1000) -> 30000 | D30: =B30*(1+'Federal Reserve PPI AC Parts'!$E$12) -> 38607.27023 | E30: =C30*(1+'Federal Reserve PPI AC Parts'!$E$12) -> 33552.08884 | F30: PW Low | G30: 40000 | H30: 0.1506666667 | I30: =IFERROR(INDEX('[2]wide body (IMA)'!$B$6:$K$73,MATCH(L30,'[2]wide body (IMA)'!$B$6:$B$73,0),7),INDEX('[2]wide body (IMA)'!$B$6:$K$73,MATCH(M30,'[2]wide body (IMA)'!$B$6:$B$73,0),7)) -> Astronautics | J30: 2 | K30: =INDEX('[1]Pt1-DATA'!$A$5:$M$13349,MATCH(A30,'[1]Pt1-DATA'!$C$5:$C$13349,0),6) -> E | L30: Electronic Flight Bags (EFBs) | N30: 34520
A31: 199#760 | B31: =IFERROR(INDEX('[1]Pt1-DATA'!$C:$D,MATCH(A31,'[1]Pt1-DATA'!$C:$C,0),2),"") -> 15657 | C31: =IFERROR(INDEX('[2]wide body (IMA)'!$B$6:$K$73,MATCH(L31,'[2]wide body (IMA)'!$B$6:$B$73,0),4)*1000,INDEX('[2]wide body (IMA)'!$B$6:$K$73,MATCH(M31,'[2]wide body (IMA)'!$B$6:$B$73,0),4)*1000) -> 15000 | D31: =B31*(1+'Federal Reserve PPI AC Parts'!$E$12) -> 17510.83517 | E31: =C31*(1+'Federal Reserve PPI AC Parts'!$E$12) -> 16776.04442 | F31: Validated PW 2020 | G31: 17000 | H31: 0.0438 | I31: =IFERROR(INDEX('[2]wide body (IMA)'!$B$6:$K$73,MATCH(L31,'[2]wide body (IMA)'!$B$6:$B$73,0),7),INDEX('[2]wide body (IMA)'!$B$6:$K$73,MATCH(M31,'[2]wide body (IMA)'!$B$6:$B$73,0),7)) -> 0 | J31: 1 | K31: =INDEX('[1]Pt1-DATA'!$A$5:$M$13349,MATCH(A31,'[1]Pt1-DATA'!$C$5:$C$13349,0),6) -> A | L31: Mode control Panel (Auto/Pilot control) | N31: 15657
A32: 199#763 | B32: =IFERROR(INDEX('[1]Pt1-DATA'!$C:$D,MATCH(A32,'[1]Pt1-DATA'!$C:$C,0),2),"") -> 11741 | C32: =IFERROR(INDEX('[2]wide body (IMA)'!$B$6:$K$73,MATCH(L32,'[2]wide body (IMA)'!$B$6:$B$73,0),4)*1000,INDEX('[2]wide body (IMA)'!$B$6:$K$73,MATCH(M32,'[2]wide body (IMA)'!$B$6:$B$73,0),4)*1000) -> 12000 | D32: =B32*(1+'Federal Reserve PPI AC Parts'!$E$12) -> 13131.16917 | E32: =C32*(1+'Federal Reserve PPI AC Parts'!$E$12) -> 13420.83554 | F32: Validated PW 2020 | G32: 14000 | H32: -0.02158333333 | I32: =IFERROR(INDEX('[2]wide body (IMA)'!$B$6:$K$73,MATCH(L32,'[2]wide body (IMA)'!$B$6:$B$73,0),7),INDEX('[2]wide body (IMA)'!$B$6:$K$73,MATCH(M32,'[2]wide body (IMA)'!$B$6:$B$73,0),7)) -> Honeywell | J32: 2 | K32: =INDEX('[1]Pt1-DATA'!$A$5:$M$13349,MATCH(A32,'[1]Pt1-DATA'!$C$5:$C$13349,0),6) -> A | L32: ADF radios | N32: 11741
A33: 199#764 | B33: =IFERROR(INDEX('[1]Pt1-DATA'!$C:$D,MATCH(A33,'[1]Pt1-DATA'!$C:$C,0),2),"") -> 13298 | C33: =IFERROR(INDEX('[2]wide body (IMA)'!$B$6:$K$73,MATCH(L33,'[2]wide body (IMA)'!$B$6:$B$73,0),4)*1000,INDEX('[2]wide body (IMA)'!$B$6:$K$73,MATCH(M33,'[2]wide body (IMA)'!$B$6:$B$73,0),4)*1000) -> 15000 | D33: =B33*(1+'Federal Reserve PPI AC Parts'!$E$12) -> 14872.52258 | E33: =C33*(1+'Federal Reserve PPI AC Parts'!$E$12) -> 16776.04442 | F33: Validated PW 2020 | G33: 17000 | H33: -0.1134666667 | I33: =IFERROR(INDEX('[2]wide body (IMA)'!$B$6:$K$73,MATCH(L33,'[2]wide body (IMA)'!$B$6:$B$73,0),7),INDEX('[2]wide body (IMA)'!$B$6:$K$73,MATCH(M33,'[2]wide body (IMA)'!$B$6:$B$73,0),7)) -> Honeywell | J33: 2 | K33: =INDEX('[1]Pt1-DATA'!$A$5:$M$13349,MATCH(A33,'[1]Pt1-DATA'!$C$5:$C$13349,0),6) -> C | L33: Radar altimeters | N33: 13298
A34: 199#765 | B34: =IFERROR(INDEX('[1]Pt1-DATA'!$C:$D,MATCH(A34,'[1]Pt1-DATA'!$C:$C,0),2),"") -> 85018 | C34: =IFERROR(INDEX('[2]wide body (IMA)'!$B$6:$K$73,MATCH(L34,'[2]wide body (IMA)'!$B$6:$B$73,0),4)*1000,INDEX('[2]wide body (IMA)'!$B$6:$K$73,MATCH(M34,'[2]wide body (IMA)'!$B$6:$B$73,0),4)*1000) -> 60000 | D34: =B34*(1+'Federal Reserve PPI AC Parts'!$E$12) -> 95084.38297 | E34: =C34*(1+'Federal Reserve PPI AC Parts'!$E$12) -> 67104.17768 | F34: PW Low | G34: 96000 | H34: 0.4169666667 | I34: =IFERROR(INDEX('[2]wide body (IMA)'!$B$6:$K$73,MATCH(L34,'[2]wide body (IMA)'!$B$6:$B$73,0),7),INDEX('[2]wide body (IMA)'!$B$6:$K$73,MATCH(M34,'[2]wide body (IMA)'!$B$6:$B$73,0),7)) -> Collins | J34: 5 | K34: =INDEX('[1]Pt1-DATA'!$A$5:$M$13349,MATCH(A34,'[1]Pt1-DATA'!$C$5:$C$13349,0),6) -> O | L34: Multi Function Display | N34: 85018
A35: 199#766 | B35: =IFERROR(INDEX('[1]Pt1-DATA'!$C:$D,MATCH(A35,'[1]Pt1-DATA'!$C:$C,0),2),"") -> 30364 | C35: =IFERROR(INDEX('[2]wide body (IMA)'!$B$6:$K$73,MATCH(L35,'[2]wide body (IMA)'!$B$6:$B$73,0),4)*1000,INDEX('[2]wide body (IMA)'!$B$6:$K$73,MATCH(M35,'[2]wide body (IMA)'!$B$6:$B$73,0),4)*1000) -> 25000 | D35: =B35*(1+'Federal Reserve PPI AC Parts'!$E$12) -> 33959.18752 | E35: =C35*(1+'Federal Reserve PPI AC Parts'!$E$12) -> 27960.07403 | F35: PW Low | G35: 34000 | H35: 0.21456 | I35: =IFERROR(INDEX('[2]wide body (IMA)'!$B$6:$K$73,MATCH(L35,'[2]wide body (IMA)'!$B$6:$B$73,0),7),INDEX('[2]wide body (IMA)'!$B$6:$K$73,MATCH(M35,'[2]wide body (IMA)'!$B$6:$B$73,0),7)) -> Collins | J35: 1 | K35: =INDEX('[1]Pt1-DATA'!$A$5:$M$13349,MATCH(A35,'[1]Pt1-DATA'!$C$5:$C$13349,0),6) -> B | L35: EICAS Crew alerting System | N35: 30364
A36: 199#768 | B36: =IFERROR(INDEX('[1]Pt1-DATA'!$C:$D,MATCH(A36,'[1]Pt1-DATA'!$C:$C,0),2),"") -> 19569 | C36: =IFERROR(INDEX('[2]wide body (IMA)'!$B$6:$K$73,MATCH(L36,'[2]wide body (IMA)'!$B$6:$B$73,0),4)*1000,INDEX('[2]wide body (IMA)'!$B$6:$K$73,MATCH(M36,'[2]wide body (IMA)'!$B$6:$B$73,0),4)*1000) -> 12000 | D36: =B36*(1+'Federal Reserve PPI AC Parts'!$E$12) -> 21886.02755 | E36: =C36*(1+'Federal Reserve PPI AC Parts'!$E$12) -> 13420.83554 | F36: PW Low | G36: 22000 | H36: 0.63075 | I36: =IFERROR(INDEX('[2]wide body (IMA)'!$B$6:$K$73,MATCH(L36,'[2]wide body (IMA)'!$B$6:$B$73,0),7),INDEX('[2]wide body (IMA)'!$B$6:$K$73,MATCH(M36,'[2]wide body (IMA)'!$B$6:$B$73,0),7)) -> Collins | J36: 1 | K36: =INDEX('[1]Pt1-DATA'!$A$5:$M$13349,MATCH(A36,'[1]Pt1-DATA'!$C$5:$C$13349,0),6) -> A | L36: HF Radio | N36: 19569
A37: 199#769 | B37: =IFERROR(INDEX('[1]Pt1-DATA'!$C:$D,MATCH(A37,'[1]Pt1-DATA'!$C:$C,0),2),"") -> 48922 | C37: =IFERROR(INDEX('[2]wide body (IMA)'!$B$6:$K$73,MATCH(L37,'[2]wide body (IMA)'!$B$6:$B$73,0),4)*1000,INDEX('[2]wide body (IMA)'!$B$6:$K$73,MATCH(M37,'[2]wide body (IMA)'!$B$6:$B$73,0),4)*1000) -> 50000 | D37: =B37*(1+'Federal Reserve PPI AC Parts'!$E$12) -> 54714.50968 | E37: =C37*(1+'Federal Reserve PPI AC Parts'!$E$12) -> 55920.14807 | F37: Validated PW 2020 | G37: 56000 | H37: -0.02156 | I37: =IFERROR(INDEX('[2]wide body (IMA)'!$B$6:$K$73,MATCH(L37,'[2]wide body (IMA)'!$B$6:$B$73,0),7),INDEX('[2]wide body (IMA)'!$B$6:$K$73,MATCH(M37,'[2]wide body (IMA)'!$B$6:$B$73,0),7)) -> Collins | J37: 1 | K37: =INDEX('[1]Pt1-DATA'!$A$5:$M$13349,MATCH(A37,'[1]Pt1-DATA'!$C$5:$C$13349,0),6) -> C | L37: SATCOM | M37: SATCOM 2100 | N37: 48922
A38: 199#772 | B38: =IFERROR(INDEX('[1]Pt1-DATA'!$C:$D,MATCH(A38,'[1]Pt1-DATA'!$C:$C,0),2),"") -> 28767 | C38: =IFERROR(INDEX('[2]wide body (IMA)'!$B$6:$K$73,MATCH(L38,'[2]wide body (IMA)'!$B$6:$B$73,0),4)*1000,INDEX('[2]wide body (IMA)'!$B$6:$K$73,MATCH(M38,'[2]wide body (IMA)'!$B$6:$B$73,0),4)*1000) -> 25000 | D38: =B38*(1+'Federal Reserve PPI AC Parts'!$E$12) -> 32173.09799 | E38: =C38*(1+'Federal Reserve PPI AC Parts'!$E$12) -> 27960.07403 | F38: PW Low | G38: 33000 | H38: 0.15068 | I38: =IFERROR(INDEX('[2]wide body (IMA)'!$B$6:$K$73,MATCH(L38,'[2]wide body (IMA)'!$B$6:$B$73,0),7),INDEX('[2]wide body (IMA)'!$B$6:$K$73,MATCH(M38,'[2]wide body (IMA)'!$B$6:$B$73,0),7)) -> Honeywell | J38: 1 | K38: =INDEX('[1]Pt1-DATA'!$A$5:$M$13349,MATCH(A38,'[1]Pt1-DATA'!$C$5:$C$13349,0),6) -> A | L38: Wireless LAN data loader | N38: 28767
A39: 199#773 | B39: =IFERROR(INDEX('[1]Pt1-DATA'!$C:$D,MATCH(A39,'[1]Pt1-DATA'!$C:$C,0),2),"") -> 182270 | C39: =IFERROR(INDEX('[2]wide body (IMA)'!$B$6:$K$73,MATCH(L39,'[2]wide body (IMA)'!$B$6:$B$73,0),4)*1000,INDEX('[2]wide body (IMA)'!$B$6:$K$73,MATCH(M39,'[2]wide body (IMA)'!$B$6:$B$73,0),4)*1000) -> 150000 | D39: =B39*(1+'Federal Reserve PPI AC Parts'!$E$12) -> 203851.3078 | E39: =C39*(1+'Federal Reserve PPI AC Parts'!$E$12) -> 167760.4442 | F39: PW Low | G39: 205000 | H39: 0.2151333333 | I39: =IFERROR(INDEX('[2]wide body (IMA)'!$B$6:$K$73,MATCH(L39,'[2]wide body (IMA)'!$B$6:$B$73,0),7),INDEX('[2]wide body (IMA)'!$B$6:$K$73,MATCH(M39,'[2]wide body (IMA)'!$B$6:$B$73,0),7)) -> GE Aviation | J39: 2 | K39: =INDEX('[1]Pt1-DATA'!$A$5:$M$13349,MATCH(A39,'[1]Pt1-DATA'!$C$5:$C$13349,0),6) -> G | L39: Common Core processing | N39: 182270
A40: 199#775 | B40: =IFERROR(INDEX('[1]Pt1-DATA'!$C:$D,MATCH(A40,'[1]Pt1-DATA'!$C:$C,0),2),"") -> 156228 | C40: =IFERROR(INDEX('[2]wide body (IMA)'!$B$6:$K$73,MATCH(L40,'[2]wide body (IMA)'!$B$6:$B$73,0),4)*1000,INDEX('[2]wide body (IMA)'!$B$6:$K$73,MATCH(M40,'[2]wide body (IMA)'!$B$6:$B$73,0),4)*1000) -> 150000 | D40: =B40*(1+'Federal Reserve PPI AC Parts'!$E$12) -> 174725.8579 | E40: =C40*(1+'Federal Reserve PPI AC Parts'!$E$12) -> 167760.4442 | F40: Validated PW 2020 | G40: 170000 | H40: 0.04152 | I40: =IFERROR(INDEX('[2]wide body (IMA)'!$B$6:$K$73,MATCH(L40,'[2]wide body (IMA)'!$B$6:$B$73,0),7),INDEX('[2]wide body (IMA)'!$B$6:$K$73,MATCH(M40,'[2]wide body (IMA)'!$B$6:$B$73,0),7)) -> Collins | J40: 1 | K40: =INDEX('[1]Pt1-DATA'!$A$5:$M$13349,MATCH(A40,'[1]Pt1-DATA'!$C$5:$C$13349,0),6) -> F | L40: Common Data Network | N40: 156228
A41: 199#776 | B41: =IFERROR(INDEX('[1]Pt1-DATA'!$C:$D,MATCH(A41,'[1]Pt1-DATA'!$C:$C,0),2),"") -> 39894 | C41: =IFERROR(INDEX('[2]wide body (IMA)'!$B$6:$K$73,MATCH(L41,'[2]wide body (IMA)'!$B$6:$B$73,0),4)*1000,INDEX('[2]wide body (IMA)'!$B$6:$K$73,MATCH(M41,'[2]wide body (IMA)'!$B$6:$B$73,0),4)*1000) -> 60000 | D41: =B41*(1+'Federal Reserve PPI AC Parts'!$E$12) -> 44617.56774 | E41: =C41*(1+'Federal Reserve PPI AC Parts'!$E$12) -> 67104.17768 | F41: PW Low | G41: 45000 | H41: -0.3351 | I41: =IFERROR(INDEX('[2]wide body (IMA)'!$B$6:$K$73,MATCH(L41,'[2]wide body (IMA)'!$B$6:$B$73,0),7),INDEX('[2]wide body (IMA)'!$B$6:$K$73,MATCH(M41,'[2]wide body (IMA)'!$B$6:$B$73,0),7)) -> Honeywell | J41: 2 | K41: =INDEX('[1]Pt1-DATA'!$A$5:$M$13349,MATCH(A41,'[1]Pt1-DATA'!$C$5:$C$13349,0),6) -> A | L41: IRU package | N41: 39894
A42: 199#777 | B42: =IFERROR(INDEX('[1]Pt1-DATA'!$C:$D,MATCH(A42,'[1]Pt1-DATA'!$C:$C,0),2),"") -> 31029 | C42: =IFERROR(INDEX('[2]wide body (IMA)'!$B$6:$K$73,MATCH(L42,'[2]wide body (IMA)'!$B$6:$B$73,0),4)*1000,INDEX('[2]wide body (IMA)'!$B$6:$K$73,MATCH(M42,'[2]wide body (IMA)'!$B$6:$B$73,0),4)*1000) -> 35000 | D42: =B42*(1+'Federal Reserve PPI AC Parts'!$E$12) -> 34702.92549 | E42: =C42*(1+'Federal Reserve PPI AC Parts'!$E$12) -> 39144.10365 | F42: Validated PW 2020 | G42: 40000 | H42: -0.1134571429 | I42: =IFERROR(INDEX('[2]wide body (IMA)'!$B$6:$K$73,MATCH(L42,'[2]wide body (IMA)'!$B$6:$B$73,0),7),INDEX('[2]wide body (IMA)'!$B$6:$K$73,MATCH(M42,'[2]wide body (IMA)'!$B$6:$B$73,0),7)) -> Honeywell | J42: 2 | K42: =INDEX('[1]Pt1-DATA'!$A$5:$M$13349,MATCH(A42,'[1]Pt1-DATA'!$C$5:$C$13349,0),6) -> A | L42: AHRS package | N42: 31029
A43: 199#778 | B43: =IFERROR(INDEX('[1]Pt1-DATA'!$C:$D,MATCH(A43,'[1]Pt1-DATA'!$C:$C,0),2),"") -> 13298 | C43: =IFERROR(INDEX('[2]wide body (IMA)'!$B$6:$K$73,MATCH(L43,'[2]wide body (IMA)'!$B$6:$B$73,0),4)*1000,INDEX('[2]wide body (IMA)'!$B$6:$K$73,MATCH(M43,'[2]wide body (IMA)'!$B$6:$B$73,0),4)*1000) -> 60000 | D43: =B43*(1+'Federal Reserve PPI AC Parts'!$E$12) -> 14872.52258 | E43: =C43*(1+'Federal Reserve PPI AC Parts'!$E$12) -> 67104.17768 | F43: Validated PW 2020 | G43: 68000 | H43: -0.7783666667 | I43: =IFERROR(INDEX('[2]wide body (IMA)'!$B$6:$K$73,MATCH(L43,'[2]wide body (IMA)'!$B$6:$B$73,0),7),INDEX('[2]wide body (IMA)'!$B$6:$K$73,MATCH(M43,'[2]wide body (IMA)'!$B$6:$B$73,0),7)) -> Honeywell | J43: 2 | K43: =INDEX('[1]Pt1-DATA'!$A$5:$M$13349,MATCH(A43,'[1]Pt1-DATA'!$C$5:$C$13349,0),6) -> A | L43: Intergated Nav Receivers (INRs) | N43: 13298
A44: 199#779 | B44: =IFERROR(INDEX('[1]Pt1-DATA'!$C:$D,MATCH(A44,'[1]Pt1-DATA'!$C:$C,0),2),"") -> 50606 | C44: =IFERROR(INDEX('[2]wide body (IMA)'!$B$6:$K$73,MATCH(L44,'[2]wide body (IMA)'!$B$6:$B$73,0),4)*1000,INDEX('[2]wide body (IMA)'!$B$6:$K$73,MATCH(M44,'[2]wide body (IMA)'!$B$6:$B$73,0),4)*1000) -> 50000 | D44: =B44*(1+'Federal Reserve PPI AC Parts'!$E$12) -> 56597.90026 | E44: =C44*(1+'Federal Reserve PPI AC Parts'!$E$12) -> 55920.14807 | F44: Validated PW 2020 | G44: 56000 | H44: 0.01212 | I44: =IFERROR(INDEX('[2]wide body (IMA)'!$B$6:$K$73,MATCH(L44,'[2]wide body (IMA)'!$B$6:$B$73,0),7),INDEX('[2]wide body (IMA)'!$B$6:$K$73,MATCH(M44,'[2]wide body (IMA)'!$B$6:$B$73,0),7)) -> Honeywell software package | J44: 1 | K44: =INDEX('[1]Pt1-DATA'!$A$5:$M$13349,MATCH(A44,'[1]Pt1-DATA'!$C$5:$C$13349,0),6) -> A | L44: Crew Info System/Maint System | N44: 50606
A45: 199#780 | B45: =IFERROR(INDEX('[1]Pt1-DATA'!$C:$D,MATCH(A45,'[1]Pt1-DATA'!$C:$C,0),2),"") -> 24461 | C45: =IFERROR(INDEX('[2]wide body (IMA)'!$B$6:$K$73,MATCH(L45,'[2]wide body (IMA)'!$B$6:$B$73,0),4)*1000,INDEX('[2]wide body (IMA)'!$B$6:$K$73,MATCH(M45,'[2]wide body (IMA)'!$B$6:$B$73,0),4)*1000) -> 25000 | D45: =B45*(1+'Federal Reserve PPI AC Parts'!$E$12) -> 27357.25484 | E45: =C45*(1+'Federal Reserve PPI AC Parts'!$E$12) -> 27960.07403 | F45: Validated PW 2020 | G45: 28000 | H45: -0.02156 | I45: =IFERROR(INDEX('[2]wide body (IMA)'!$B$6:$K$73,MATCH(L45,'[2]wide body (IMA)'!$B$6:$B$73,0),7),INDEX('[2]wide body (IMA)'!$B$6:$K$73,MATCH(M45,'[2]wide body (IMA)'!$B$6:$B$73,0),7)) -> ?/ | J45: 2 | K45: =INDEX('[1]Pt1-DATA'!$A$5:$M$13349,MATCH(A45,'[1]Pt1-DATA'!$C$5:$C$13349,0),6) -> A | L45: Radio Tuning control Panels | N45: 24461
A46: 199#781 | B46: =IFERROR(INDEX('[1]Pt1-DATA'!$C:$D,MATCH(A46,'[1]Pt1-DATA'!$C:$C,0),2),"") -> 34245 | C46: =IFERROR(INDEX('[2]wide body (IMA)'!$B$6:$K$73,MATCH(L46,'[2]wide body (IMA)'!$B$6:$B$73,0),4)*1000,INDEX('[2]wide body (IMA)'!$B$6:$K$73,MATCH(M46,'[2]wide body (IMA)'!$B$6:$B$73,0),4)*1000) -> 35000 | D46: =B46*(1+'Federal Reserve PPI AC Parts'!$E$12) -> 38299.70941 | E46: =C46*(1+'Federal Reserve PPI AC Parts'!$E$12) -> 39144.10365 | F46: Validated PW 2020 | G46: 40000 | H46: -0.02157142857 | I46: =IFERROR(INDEX('[2]wide body (IMA)'!$B$6:$K$73,MATCH(L46,'[2]wide body (IMA)'!$B$6:$B$73,0),7),INDEX('[2]wide body (IMA)'!$B$6:$K$73,MATCH(M46,'[2]wide body (IMA)'!$B$6:$B$73,0),7)) -> Collins | J46: 1 | K46: =INDEX('[1]Pt1-DATA'!$A$5:$M$13349,MATCH(A46,'[1]Pt1-DATA'!$C$5:$C$13349,0),6) -> A | L46: HST 2100 | N46: 34245
A47: 199#782 | B47: =IFERROR(INDEX('[1]Pt1-DATA'!$C:$D,MATCH(A47,'[1]Pt1-DATA'!$C:$C,0),2),"") -> 24461 | C47: =IFERROR(INDEX('[2]wide body (IMA)'!$B$6:$K$73,MATCH(L47,'[2]wide body (IMA)'!$B$6:$B$73,0),4)*1000,INDEX('[2]wide body (IMA)'!$B$6:$K$73,MATCH(M47,'[2]wide body (IMA)'!$B$6:$B$73,0),4)*1000) -> 25000 | D47: =B47*(1+'Federal Reserve PPI AC Parts'!$E$12) -> 27357.25484 | E47: =C47*(1+'Federal Reserve PPI AC Parts'!$E$12) -> 27960.07403 | F47: Validated PW 2020 | G47: 28000 | H47: -0.02156 | I47: =IFERROR(INDEX('[2]wide body (IMA)'!$B$6:$K$73,MATCH(L47,'[2]wide body (IMA)'!$B$6:$B$73,0),7),INDEX('[2]wide body (IMA)'!$B$6:$K$73,MATCH(M47,'[2]wide body (IMA)'!$B$6:$B$73,0),7)) -> Honeywell | J47: 1 | K47: =INDEX('[1]Pt1-DATA'!$A$5:$M$13349,MATCH(A47,'[1]Pt1-DATA'!$C$5:$C$13349,0),6) -> A | L47: Comms Management Function (CMF) | M47: CommsManagement Function (CMF) | N47: 24461
A48: 199#783 | B48: =IFERROR(INDEX('[1]Pt1-DATA'!$C:$D,MATCH(A48,'[1]Pt1-DATA'!$C:$C,0),2),"") -> 43555 | C48: =IFERROR(INDEX('[2]wide body (IMA)'!$B$6:$K$73,MATCH(L48,'[2]wide body (IMA)'!$B$6:$B$73,0),4)*1000,INDEX('[2]wide body (IMA)'!$B$6:$K$73,MATCH(M48,'[2]wide body (IMA)'!$B$6:$B$73,0),4)*1000) -> 35000 | D48: =B48*(1+'Federal Reserve PPI AC Parts'!$E$12) -> 48712.04098 | E48: =C48*(1+'Federal Reserve PPI AC Parts'!$E$12) -> 39144.10365 | F48: PW Low | G48: 49000 | H48: 0.2444285714 | I48: =IFERROR(INDEX('[2]wide body (IMA)'!$B$6:$K$73,MATCH(L48,'[2]wide body (IMA)'!$B$6:$B$73,0),7),INDEX('[2]wide body (IMA)'!$B$6:$K$73,MATCH(M48,'[2]wide body (IMA)'!$B$6:$B$73,0),7)) -> Collins | J48: 1 | K48: =INDEX('[1]Pt1-DATA'!$A$5:$M$13349,MATCH(A48,'[1]Pt1-DATA'!$C$5:$C$13349,0),6) -> A | L48: Multi Scan Hazard Detection System | N48: 43555
A49: 199#784 | B49: =IFERROR(INDEX('[1]Pt1-DATA'!$C:$D,MATCH(A49,'[1]Pt1-DATA'!$C:$C,0),2),"") -> 26038 | C49: =IFERROR(INDEX('[2]wide body (IMA)'!$B$6:$K$73,MATCH(L49,'[2]wide body (IMA)'!$B$6:$B$73,0),4)*1000,INDEX('[2]wide body (IMA)'!$B$6:$K$73,MATCH(M49,'[2]wide body (IMA)'!$B$6:$B$73,0),4)*1000) -> 20000 | D49: =B49*(1+'Federal Reserve PPI AC Parts'!$E$12) -> 29120.97631 | E49: =C49*(1+'Federal Reserve PPI AC Parts'!$E$12) -> 22368.05923 | F49: PW Low | G49: 30000 | H49: 0.3019 | I49: =IFERROR(INDEX('[2]wide body (IMA)'!$B$6:$K$73,MATCH(L49,'[2]wide body (IMA)'!$B$6:$B$73,0),7),INDEX('[2]wide body (IMA)'!$B$6:$K$73,MATCH(M49,'[2]wide body (IMA)'!$B$6:$B$73,0),7)) -> GE Aviation | J49: 14 | K49: =INDEX('[1]Pt1-DATA'!$A$5:$M$13349,MATCH(A49,'[1]Pt1-DATA'!$C$5:$C$13349,0),6) -> C | L49: Remote Data concentrators | N49: 26038
A50: 199#804 | B50: =IFERROR(INDEX('[1]Pt1-DATA'!$C:$D,MATCH(A50,'[1]Pt1-DATA'!$C:$C,0),2),"") -> 48559 | C50: =IFERROR(INDEX('[2]wide body (IMA)'!$B$6:$K$73,MATCH(L50,'[2]wide body (IMA)'!$B$6:$B$73,0),4)*1000,INDEX('[2]wide body (IMA)'!$B$6:$K$73,MATCH(M50,'[2]wide body (IMA)'!$B$6:$B$73,0),4)*1000) -> 40000 | D50: =B50*(1+'Federal Reserve PPI AC Parts'!$E$12) -> 54308.5294 | E50: =C50*(1+'Federal Reserve PPI AC Parts'!$E$12) -> 44736.11846 | F50: PW Low | G50: 55000 | H50: 0.213975 | I50: =IFERROR(INDEX('[2]wide body (IMA)'!$B$6:$K$73,MATCH(L50,'[2]wide body (IMA)'!$B$6:$B$73,0),7),INDEX('[2]wide body (IMA)'!$B$6:$K$73,MATCH(M50,'[2]wide body (IMA)'!$B$6:$B$73,0),7)) -> part of FMC above | J50: 2 | K50: =INDEX('[1]Pt1-DATA'!$A$5:$M$13349,MATCH(A50,'[1]Pt1-DATA'!$C$5:$C$13349,0),6) -> G | L50: Flight Guidance System (A/Pilot) | M50: Autopilot /Auto thrust system | N50: 48559
A51: 199#825 | B51: =IFERROR(INDEX('[1]Pt1-DATA'!$C:$D,MATCH(A51,'[1]Pt1-DATA'!$C:$C,0),2),"") -> 59764 | C51: =IFERROR(INDEX('[2]wide body (IMA)'!$B$6:$K$73,MATCH(L51,'[2]wide body (IMA)'!$B$6:$B$73,0),4)*1000,INDEX('[2]wide body (IMA)'!$B$6:$K$73,MATCH(M51,'[2]wide body (IMA)'!$B$6:$B$73,0),4)*1000) -> 40000 | D51: =B51*(1+'Federal Reserve PPI AC Parts'!$E$12) -> 66840.23458 | E51: =C51*(1+'Federal Reserve PPI AC Parts'!$E$12) -> 44736.11846 | F51: PW Low | G51: 67000 | H51: 0.4941 | I51: =IFERROR(INDEX('[2]wide body (IMA)'!$B$6:$K$73,MATCH(L51,'[2]wide body (IMA)'!$B$6:$B$73,0),7),INDEX('[2]wide body (IMA)'!$B$6:$K$73,MATCH(M51,'[2]wide body (IMA)'!$B$6:$B$73,0),7)) -> part of FMC above | J51: 1 | K51: =INDEX('[1]Pt1-DATA'!$A$5:$M$13349,MATCH(A51,'[1]Pt1-DATA'!$C$5:$C$13349,0),6) -> K | L51: Auto pilot system | M51: Autopilot /Auto thrust system | N51: 59764
A52: 199#878 | B52: =IFERROR(INDEX('[1]Pt1-DATA'!$C:$D,MATCH(A52,'[1]Pt1-DATA'!$C:$C,0),2),"") -> 48179 | C52: =IFERROR(INDEX('[2]wide body (IMA)'!$B$6:$K$73,MATCH(L52,'[2]wide body (IMA)'!$B$6:$B$73,0),4)*1000,INDEX('[2]wide body (IMA)'!$B$6:$K$73,MATCH(M52,'[2]wide body (IMA)'!$B$6:$B$73,0),4)*1000) ->  | D52: =B52*(1+'Federal Reserve PPI AC Parts'!$E$12) -> 53883.53628 | E52: =C52*(1+'Federal Reserve PPI AC Parts'!$E$12) ->  | F52: Validated Model 2020 | G52: 54000 | I52: =IFERROR(INDEX('[2]wide body (IMA)'!$B$6:$K$73,MATCH(L52,'[2]wide body (IMA)'!$B$6:$B$73,0),7),INDEX('[2]wide body (IMA)'!$B$6:$K$73,MATCH(M52,'[2]wide body (IMA)'!$B$6:$B$73,0),7)) ->  | J52: 1 | K52: =INDEX('[1]Pt1-DATA'!$A$5:$M$13349,MATCH(A52,'[1]Pt1-DATA'!$C$5:$C$13349,0),6) -> D | L52: Sensors IFF, other | N52: 48179
A53: 199#879 | B53: =IFERROR(INDEX('[1]Pt1-DATA'!$C:$D,MATCH(A53,'[1]Pt1-DATA'!$C:$C,0),2),"") -> 261865 | C53: =IFERROR(INDEX('[2]wide body (IMA)'!$B$6:$K$73,MATCH(L53,'[2]wide body (IMA)'!$B$6:$B$73,0),4)*1000,INDEX('[2]wide body (IMA)'!$B$6:$K$73,MATCH(M53,'[2]wide body (IMA)'!$B$6:$B$73,0),4)*1000) ->  | D53: =B53*(1+'Federal Reserve PPI AC Parts'!$E$12) -> 292870.5915 | E53: =C53*(1+'Federal Reserve PPI AC Parts'!$E$12) ->  | F53: Validated Model 2020 | G53: 295000 | I53: =IFERROR(INDEX('[2]wide body (IMA)'!$B$6:$K$73,MATCH(L53,'[2]wide body (IMA)'!$B$6:$B$73,0),7),INDEX('[2]wide body (IMA)'!$B$6:$K$73,MATCH(M53,'[2]wide body (IMA)'!$B$6:$B$73,0),7)) ->  | J53: 1 | K53: =INDEX('[1]Pt1-DATA'!$A$5:$M$13349,MATCH(A53,'[1]Pt1-DATA'!$C$5:$C$13349,0),6) -> AB | L53: Software | N53: 261865
A54: 199#883 | B54: =IFERROR(INDEX('[1]Pt1-DATA'!$C:$D,MATCH(A54,'[1]Pt1-DATA'!$C:$C,0),2),"") -> 82497 | C54: =IFERROR(INDEX('[2]wide body (IMA)'!$B$6:$K$73,MATCH(L54,'[2]wide body (IMA)'!$B$6:$B$73,0),4)*1000,INDEX('[2]wide body (IMA)'!$B$6:$K$73,MATCH(M54,'[2]wide body (IMA)'!$B$6:$B$73,0),4)*1000) ->  | D54: =B54*(1+'Federal Reserve PPI AC Parts'!$E$12) -> 92264.88911 | E54: =C54*(1+'Federal Reserve PPI AC Parts'!$E$12) ->  | F54: Validated Model 2020 | G54: 93000 | I54: =IFERROR(INDEX('[2]wide body (IMA)'!$B$6:$K$73,MATCH(L54,'[2]wide body (IMA)'!$B$6:$B$73,0),7),INDEX('[2]wide body (IMA)'!$B$6:$K$73,MATCH(M54,'[2]wide body (IMA)'!$B$6:$B$73,0),7)) ->  | J54: 1 | K54: =INDEX('[1]Pt1-DATA'!$A$5:$M$13349,MATCH(A54,'[1]Pt1-DATA'!$C$5:$C$13349,0),6) -> C | L54: Surveillance Sensors | N54: 82497
A55: 199#1056 | B55: =IFERROR(INDEX('[1]Pt1-DATA'!$C:$D,MATCH(A55,'[1]Pt1-DATA'!$C:$C,0),2),"") -> 6038 | C55: =IFERROR(INDEX('[2]wide body (IMA)'!$B$6:$K$73,MATCH(L55,'[2]wide body (IMA)'!$B$6:$B$73,0),4)*1000,INDEX('[2]wide body (IMA)'!$B$6:$K$73,MATCH(M55,'[2]wide body (IMA)'!$B$6:$B$73,0),4)*1000) ->  | D55: =B55*(1+'Federal Reserve PPI AC Parts'!$E$12) -> 6752.917081 | E55: =C55*(1+'Federal Reserve PPI AC Parts'!$E$12) ->  | F55: Validated Model 2020 | G55: 7000 | I55: =IFERROR(INDEX('[2]wide body (IMA)'!$B$6:$K$73,MATCH(L55,'[2]wide body (IMA)'!$B$6:$B$73,0),7),INDEX('[2]wide body (IMA)'!$B$6:$K$73,MATCH(M55,'[2]wide body (IMA)'!$B$6:$B$73,0),7)) ->  | J55: 1 | K55: =INDEX('[1]Pt1-DATA'!$A$5:$M$13349,MATCH(A55,'[1]Pt1-DATA'!$C$5:$C$13349,0),6) -> CK | L55: Avionics Harnesses | N55: 6038
A56: 199#1057 | B56: =IFERROR(INDEX('[1]Pt1-DATA'!$C:$D,MATCH(A56,'[1]Pt1-DATA'!$C:$C,0),2),"") -> 43000 | C56: =IFERROR(INDEX('[2]wide body (IMA)'!$B$6:$K$73,MATCH(L56,'[2]wide body (IMA)'!$B$6:$B$73,0),4)*1000,INDEX('[2]wide body (IMA)'!$B$6:$K$73,MATCH(M56,'[2]wide body (IMA)'!$B$6:$B$73,0),4)*1000) ->  | D56: =B56*(1+'Federal Reserve PPI AC Parts'!$E$12) -> 48091.32734 | E56: =C56*(1+'Federal Reserve PPI AC Parts'!$E$12) ->  | F56: Validated Model 2020 | G56: 48000 | I56: =IFERROR(INDEX('[2]wide body (IMA)'!$B$6:$K$73,MATCH(L56,'[2]wide body (IMA)'!$B$6:$B$73,0),7),INDEX('[2]wide body (IMA)'!$B$6:$K$73,MATCH(M56,'[2]wide body (IMA)'!$B$6:$B$73,0),7)) ->  | J56: 1 | K56: =INDEX('[1]Pt1-DATA'!$A$5:$M$13349,MATCH(A56,'[1]Pt1-DATA'!$C$5:$C$13349,0),6) -> CL | L56: Avionics Harnesses | N56: 43000
A57: 199#1058 | B57: =IFERROR(INDEX('[1]Pt1-DATA'!$C:$D,MATCH(A57,'[1]Pt1-DATA'!$C:$C,0),2),"") -> 52000 | C57: =IFERROR(INDEX('[2]wide body (IMA)'!$B$6:$K$73,MATCH(L57,'[2]wide body (IMA)'!$B$6:$B$73,0),4)*1000,INDEX('[2]wide body (IMA)'!$B$6:$K$73,MATCH(M57,'[2]wide body (IMA)'!$B$6:$B$73,0),4)*1000) ->  | D57: =B57*(1+'Federal Reserve PPI AC Parts'!$E$12) -> 58156.95399 | E57: =C57*(1+'Federal Reserve PPI AC Parts'!$E$12) ->  | F57: Validated Model 2020 | G57: 58000 | I57: =IFERROR(INDEX('[2]wide body (IMA)'!$B$6:$K$73,MATCH(L57,'[2]wide body (IMA)'!$B$6:$B$73,0),7),INDEX('[2]wide body (IMA)'!$B$6:$K$73,MATCH(M57,'[2]wide body (IMA)'!$B$6:$B$73,0),7)) ->  | J57: 1 | K57: =INDEX('[1]Pt1-DATA'!$A$5:$M$13349,MATCH(A57,'[1]Pt1-DATA'!$C$5:$C$13349,0),6) -> CK | L57: Avionics Harnesses | N57: 52000
A58: 199#1059 | B58: =IFERROR(INDEX('[1]Pt1-DATA'!$C:$D,MATCH(A58,'[1]Pt1-DATA'!$C:$C,0),2),"") -> 10750 | C58: =IFERROR(INDEX('[2]wide body (IMA)'!$B$6:$K$73,MATCH(L58,'[2]wide body (IMA)'!$B$6:$B$73,0),4)*1000,INDEX('[2]wide body (IMA)'!$B$6:$K$73,MATCH(M58,'[2]wide body (IMA)'!$B$6:$B$73,0),4)*1000) ->  | D58: =B58*(1+'Federal Reserve PPI AC Parts'!$E$12) -> 12022.83184 | E58: =C58*(1+'Federal Reserve PPI AC Parts'!$E$12) ->  | F58: Validated Model 2020 | G58: 12000 | I58: =IFERROR(INDEX('[2]wide body (IMA)'!$B$6:$K$73,MATCH(L58,'[2]wide body (IMA)'!$B$6:$B$73,0),7),INDEX('[2]wide body (IMA)'!$B$6:$K$73,MATCH(M58,'[2]wide body (IMA)'!$B$6:$B$73,0),7)) ->  | J58: 1 | K58: =INDEX('[1]Pt1-DATA'!$A$5:$M$13349,MATCH(A58,'[1]Pt1-DATA'!$C$5:$C$13349,0),6) -> CL | L58: Avionics Harnesses | N58: 10750
B59: =IFERROR(INDEX('[1]Pt1-DATA'!$C:$D,MATCH(A59,'[1]Pt1-DATA'!$C:$C,0),2),"") ->  | C59: =IFERROR(INDEX('[2]wide body (IMA)'!$B$6:$K$73,MATCH(L59,'[2]wide body (IMA)'!$B$6:$B$73,0),4)*1000,INDEX('[2]wide body (IMA)'!$B$6:$K$73,MATCH(M59,'[2]wide body (IMA)'!$B$6:$B$73,0),4)*1000) -> 0 | D59: =B59*(1+'Federal Reserve PPI AC Parts'!$E$12) ->  | E59: =C59*(1+'Federal Reserve PPI AC Parts'!$E$12) -> 0 | F59: Validated PW 2020 | G59: =E59 -> 0 | H59: =(B59-C59)/C59 ->  | I59: =IFERROR(INDEX('[2]wide body (IMA)'!$B$6:$K$73,MATCH(L59,'[2]wide body (IMA)'!$B$6:$B$73,0),7),INDEX('[2]wide body (IMA)'!$B$6:$K$73,MATCH(M59,'[2]wide body (IMA)'!$B$6:$B$73,0),7)) -> out of scope | J59: 0 | K59: =INDEX('[1]Pt1-DATA'!$A$5:$M$13349,MATCH(A59,'[1]Pt1-DATA'!$C$5:$C$13349,0),6) ->  | M59: Thrust levers
B60: =IFERROR(INDEX('[1]Pt1-DATA'!$C:$D,MATCH(A60,'[1]Pt1-DATA'!$C:$C,0),2),"") ->  | C60: =IFERROR(INDEX('[2]wide body (IMA)'!$B$6:$K$73,MATCH(L60,'[2]wide body (IMA)'!$B$6:$B$73,0),4)*1000,INDEX('[2]wide body (IMA)'!$B$6:$K$73,MATCH(M60,'[2]wide body (IMA)'!$B$6:$B$73,0),4)*1000) -> 0 | D60: =B60*(1+'Federal Reserve PPI AC Parts'!$E$12) ->  | E60: =C60*(1+'Federal Reserve PPI AC Parts'!$E$12) -> 0 | F60: Validated PW 2020 | G60: =E60 -> 0 | I60: =IFERROR(INDEX('[2]wide body (IMA)'!$B$6:$K$73,MATCH(L60,'[2]wide body (IMA)'!$B$6:$B$73,0),7),INDEX('[2]wide body (IMA)'!$B$6:$K$73,MATCH(M60,'[2]wide body (IMA)'!$B$6:$B$73,0),7)) -> Honeywell | J60: 2 | K60: =INDEX('[1]Pt1-DATA'!$A$5:$M$13349,MATCH(A60,'[1]Pt1-DATA'!$C$5:$C$13349,0),6) ->  | M60: Earth Reference System
B61: =IFERROR(INDEX('[1]Pt1-DATA'!$C:$D,MATCH(A61,'[1]Pt1-DATA'!$C:$C,0),2),"") ->  | C61: =IFERROR(INDEX('[2]wide body (IMA)'!$B$6:$K$73,MATCH(L61,'[2]wide body (IMA)'!$B$6:$B$73,0),4)*1000,INDEX('[2]wide body (IMA)'!$B$6:$K$73,MATCH(M61,'[2]wide body (IMA)'!$B$6:$B$73,0),4)*1000) -> 8000 | D61: =B61*(1+'Federal Reserve PPI AC Parts'!$E$12) ->  | E61: =C61*(1+'Federal Reserve PPI AC Parts'!$E$12) -> 8947.223691 | F61: Validated PW 2020 | G61: 8947.223691 | I61: =IFERROR(INDEX('[2]wide body (IMA)'!$B$6:$K$73,MATCH(L61,'[2]wide body (IMA)'!$B$6:$B$73,0),7),INDEX('[2]wide body (IMA)'!$B$6:$K$73,MATCH(M61,'[2]wide body (IMA)'!$B$6:$B$73,0),7)) -> ?? | J61: 2 | K61: =INDEX('[1]Pt1-DATA'!$A$5:$M$13349,MATCH(A61,'[1]Pt1-DATA'!$C$5:$C$13349,0),6) ->  | M61: Pedestal ADS select
B62: =IFERROR(INDEX('[1]Pt1-DATA'!$C:$D,MATCH(A62,'[1]Pt1-DATA'!$C:$C,0),2),"") ->  | C62: =IFERROR(INDEX('[2]wide body (IMA)'!$B$6:$K$73,MATCH(L62,'[2]wide body (IMA)'!$B$6:$B$73,0),4)*1000,INDEX('[2]wide body (IMA)'!$B$6:$K$73,MATCH(M62,'[2]wide body (IMA)'!$B$6:$B$73,0),4)*1000) -> 6000 | D62: =B62*(1+'Federal Reserve PPI AC Parts'!$E$12) ->  | E62: =C62*(1+'Federal Reserve PPI AC Parts'!$E$12) -> 6710.417768 | F62: Validated PW 2020 | G62: 6710.417768 | I62: =IFERROR(INDEX('[2]wide body (IMA)'!$B$6:$K$73,MATCH(L62,'[2]wide body (IMA)'!$B$6:$B$73,0),7),INDEX('[2]wide body (IMA)'!$B$6:$K$73,MATCH(M62,'[2]wide body (IMA)'!$B$6:$B$73,0),7)) -> integrated with INR | J62: 0 | K62: =INDEX('[1]Pt1-DATA'!$A$5:$M$13349,MATCH(A62,'[1]Pt1-DATA'!$C$5:$C$13349,0),6) ->  | M62: GPS receivers
B63: =IFERROR(INDEX('[1]Pt1-DATA'!$C:$D,MATCH(A63,'[1]Pt1-DATA'!$C:$C,0),2),"") ->  | C63: =IFERROR(INDEX('[2]wide body (IMA)'!$B$6:$K$73,MATCH(L63,'[2]wide body (IMA)'!$B$6:$B$73,0),4)*1000,INDEX('[2]wide body (IMA)'!$B$6:$K$73,MATCH(M63,'[2]wide body (IMA)'!$B$6:$B$73,0),4)*1000) -> 6000 | D63: =B63*(1+'Federal Reserve PPI AC Parts'!$E$12) ->  | E63: =C63*(1+'Federal Reserve PPI AC Parts'!$E$12) -> 6710.417768 | F63: Validated PW 2020 | G63: 6710.417768 | I63: =IFERROR(INDEX('[2]wide body (IMA)'!$B$6:$K$73,MATCH(L63,'[2]wide body (IMA)'!$B$6:$B$73,0),7),INDEX('[2]wide body (IMA)'!$B$6:$K$73,MATCH(M63,'[2]wide body (IMA)'!$B$6:$B$73,0),7)) -> integrated with INR | J63: 0 | K63: =INDEX('[1]Pt1-DATA'!$A$5:$M$13349,MATCH(A63,'[1]Pt1-DATA'!$C$5:$C$13349,0),6) ->  | M63: VOR receivers
B64: =IFERROR(INDEX('[1]Pt1-DATA'!$C:$D,MATCH(A64,'[1]Pt1-DATA'!$C:$C,0),2),"") ->  | C64: =IFERROR(INDEX('[2]wide body (IMA)'!$B$6:$K$73,MATCH(L64,'[2]wide body (IMA)'!$B$6:$B$73,0),4)*1000,INDEX('[2]wide body (IMA)'!$B$6:$K$73,MATCH(M64,'[2]wide body (IMA)'!$B$6:$B$73,0),4)*1000) -> 6000 | D64: =B64*(1+'Federal Reserve PPI AC Parts'!$E$12) ->  | E64: =C64*(1+'Federal Reserve PPI AC Parts'!$E$12) -> 6710.417768 | F64: Validated PW 2020 | G64: 6710.417768 | I64: =IFERROR(INDEX('[2]wide body (IMA)'!$B$6:$K$73,MATCH(L64,'[2]wide body (IMA)'!$B$6:$B$73,0),7),INDEX('[2]wide body (IMA)'!$B$6:$K$73,MATCH(M64,'[2]wide body (IMA)'!$B$6:$B$73,0),7)) -> integrated with INR | J64: 0 | K64: =INDEX('[1]Pt1-DATA'!$A$5:$M$13349,MATCH(A64,'[1]Pt1-DATA'!$C$5:$C$13349,0),6) ->  | M64: ILS receivers
B65: =IFERROR(INDEX('[1]Pt1-DATA'!$C:$D,MATCH(A65,'[1]Pt1-DATA'!$C:$C,0),2),"") ->  | C65: =IFERROR(INDEX('[2]wide body (IMA)'!$B$6:$K$73,MATCH(L65,'[2]wide body (IMA)'!$B$6:$B$73,0),4)*1000,INDEX('[2]wide body (IMA)'!$B$6:$K$73,MATCH(M65,'[2]wide body (IMA)'!$B$6:$B$73,0),4)*1000) -> 0 | D65: =B65*(1+'Federal Reserve PPI AC Parts'!$E$12) ->  | E65: =C65*(1+'Federal Reserve PPI AC Parts'!$E$12) -> 0 | F65: Validated PW 2020 | G65: 0 | I65: =IFERROR(INDEX('[2]wide body (IMA)'!$B$6:$K$73,MATCH(L65,'[2]wide body (IMA)'!$B$6:$B$73,0),7),INDEX('[2]wide body (IMA)'!$B$6:$K$73,MATCH(M65,'[2]wide body (IMA)'!$B$6:$B$73,0),7)) -> Collins | J65: 2 | K65: =INDEX('[1]Pt1-DATA'!$A$5:$M$13349,MATCH(A65,'[1]Pt1-DATA'!$C$5:$C$13349,0),6) ->  | M65: Integrated Navigation Radios
B66: =IFERROR(INDEX('[1]Pt1-DATA'!$C:$D,MATCH(A66,'[1]Pt1-DATA'!$C:$C,0),2),"") ->  | C66: =IFERROR(INDEX('[2]wide body (IMA)'!$B$6:$K$73,MATCH(L66,'[2]wide body (IMA)'!$B$6:$B$73,0),4)*1000,INDEX('[2]wide body (IMA)'!$B$6:$K$73,MATCH(M66,'[2]wide body (IMA)'!$B$6:$B$73,0),4)*1000) -> 0 | D66: =B66*(1+'Federal Reserve PPI AC Parts'!$E$12) ->  | E66: =C66*(1+'Federal Reserve PPI AC Parts'!$E$12) -> 0 | F66: Validated PW 2020 | G66: 0 | I66: =IFERROR(INDEX('[2]wide body (IMA)'!$B$6:$K$73,MATCH(L66,'[2]wide body (IMA)'!$B$6:$B$73,0),7),INDEX('[2]wide body (IMA)'!$B$6:$K$73,MATCH(M66,'[2]wide body (IMA)'!$B$6:$B$73,0),7)) -> Collins | J66: 2 | K66: =INDEX('[1]Pt1-DATA'!$A$5:$M$13349,MATCH(A66,'[1]Pt1-DATA'!$C$5:$C$13349,0),6) ->  | M66: Integrated Surveillance System CISS 2100
B67: =IFERROR(INDEX('[1]Pt1-DATA'!$C:$D,MATCH(A67,'[1]Pt1-DATA'!$C:$C,0),2),"") ->  | C67: =IFERROR(INDEX('[2]wide body (IMA)'!$B$6:$K$73,MATCH(L67,'[2]wide body (IMA)'!$B$6:$B$73,0),4)*1000,INDEX('[2]wide body (IMA)'!$B$6:$K$73,MATCH(M67,'[2]wide body (IMA)'!$B$6:$B$73,0),4)*1000) -> 6000 | D67: =B67*(1+'Federal Reserve PPI AC Parts'!$E$12) ->  | E67: =C67*(1+'Federal Reserve PPI AC Parts'!$E$12) -> 6710.417768 | F67: Validated PW 2020 | G67: 6710.417768 | I67: =IFERROR(INDEX('[2]wide body (IMA)'!$B$6:$K$73,MATCH(L67,'[2]wide body (IMA)'!$B$6:$B$73,0),7),INDEX('[2]wide body (IMA)'!$B$6:$K$73,MATCH(M67,'[2]wide body (IMA)'!$B$6:$B$73,0),7)) -> Collins | J67: 2 | K67: =INDEX('[1]Pt1-DATA'!$A$5:$M$13349,MATCH(A67,'[1]Pt1-DATA'!$C$5:$C$13349,0),6) ->  | M67: WX control panel
B68: =IFERROR(INDEX('[1]Pt1-DATA'!$C:$D,MATCH(A68,'[1]Pt1-DATA'!$C:$C,0),2),"") ->  | C68: =IFERROR(INDEX('[2]wide body (IMA)'!$B$6:$K$73,MATCH(L68,'[2]wide body (IMA)'!$B$6:$B$73,0),4)*1000,INDEX('[2]wide body (IMA)'!$B$6:$K$73,MATCH(M68,'[2]wide body (IMA)'!$B$6:$B$73,0),4)*1000) -> 25000 | D68: =B68*(1+'Federal Reserve PPI AC Parts'!$E$12) ->  | E68: =C68*(1+'Federal Reserve PPI AC Parts'!$E$12) -> 27960.07403 | F68: Validated PW 2020 | G68: 27960.07403 | I68: =IFERROR(INDEX('[2]wide body (IMA)'!$B$6:$K$73,MATCH(L68,'[2]wide body (IMA)'!$B$6:$B$73,0),7),INDEX('[2]wide body (IMA)'!$B$6:$K$73,MATCH(M68,'[2]wide body (IMA)'!$B$6:$B$73,0),7)) -> Collins | J68: 2 | K68: =INDEX('[1]Pt1-DATA'!$A$5:$M$13349,MATCH(A68,'[1]Pt1-DATA'!$C$5:$C$13349,0),6) ->  | M68: TCAS computer
B69: =IFERROR(INDEX('[1]Pt1-DATA'!$C:$D,MATCH(A69,'[1]Pt1-DATA'!$C:$C,0),2),"") ->  | C69: =IFERROR(INDEX('[2]wide body (IMA)'!$B$6:$K$73,MATCH(L69,'[2]wide body (IMA)'!$B$6:$B$73,0),4)*1000,INDEX('[2]wide body (IMA)'!$B$6:$K$73,MATCH(M69,'[2]wide body (IMA)'!$B$6:$B$73,0),4)*1000) -> 5000 | D69: =B69*(1+'Federal Reserve PPI AC Parts'!$E$12) ->  | E69: =C69*(1+'Federal Reserve PPI AC Parts'!$E$12) -> 5592.014807 | F69: Validated PW 2020 | G69: 5592.014807 | I69: =IFERROR(INDEX('[2]wide body (IMA)'!$B$6:$K$73,MATCH(L69,'[2]wide body (IMA)'!$B$6:$B$73,0),7),INDEX('[2]wide body (IMA)'!$B$6:$K$73,MATCH(M69,'[2]wide body (IMA)'!$B$6:$B$73,0),7)) -> Collins | J69: 2 | K69: =INDEX('[1]Pt1-DATA'!$A$5:$M$13349,MATCH(A69,'[1]Pt1-DATA'!$C$5:$C$13349,0),6) ->  | M69: TCAS control panel
B70: =IFERROR(INDEX('[1]Pt1-DATA'!$C:$D,MATCH(A70,'[1]Pt1-DATA'!$C:$C,0),2),"") -> 

Sheet regional
A1: Aircraft: | B1: =INDEX('[3]Pt1-AvionicsComponentCosts'!$A$11:$E$384,MATCH(VALUE(LEFT(A5,SEARCH("#",A5)-1)),'[3]Pt1-AvionicsComponentCosts'!$A$11:$A$384,0),5) -> Embraer E190
B2: Avionics Cost 2020 | G2: Avionics Cost 2024 | I2: % Change 2020 - 2024
B3: =SUMPRODUCT(B5:B80,J5:J80) -> 2135752 | G3: =SUMPRODUCT(G5:G80,J5:J80) -> 2437350 | I3: =($G$3-$B$3)/$B$3 -> 0.1412139612
B4: Model 2020 | C4: PW 2020 | D4: 2024 PPI Model | E4: 2024 PPI PW | F4: Notes | G4: 2024 AE Estimate | H4: Pct Change | I4: Source | J4: #/AC | K4: Factor | L4: Item | M4: Alt Item (PW) | N4: previous
A5: 23#709 | B5: =IFERROR(INDEX('[1]Pt1-DATA'!$C:$D,MATCH(A5,'[1]Pt1-DATA'!$C:$C,0),2),"") -> 78282 | C5: =IFERROR(INDEX([2]regional!$B$6:$K$73,MATCH(L5,[2]regional!$B$6:$B$73,0),4)*1000,INDEX([2]regional!$B$6:$K$73,MATCH(M5,[2]regional!$B$6:$B$73,0),4)*1000) -> 35000 | D5: =B5*(1+'Federal Reserve PPI AC Parts'!$E$12) -> 87550.82062 | E5: =C5*(1+'Federal Reserve PPI AC Parts'!$E$12) -> 39144.10365 | F5: PW Low | G5: 90000 | H5: =(B5-C5)/C5 -> 1.236628571 | I5: =IFERROR(INDEX([2]regional!$B$6:$K$73,MATCH(L5,[2]regional!$B$6:$B$73,0),7),INDEX([2]regional!$B$6:$K$73,MATCH(M5,[2]regional!$B$6:$B$73,0),7)) -> HWL | J5: 2 | K5: =INDEX('[1]Pt1-DATA'!$A$5:$M$13349,MATCH(A5,'[1]Pt1-DATA'!$C$5:$C$13349,0),6) -> K | L5: FMGC | M5: FMZ - 2000 FMS | N5: 31312
A6: 23#710 | B6: =IFERROR(INDEX('[1]Pt1-DATA'!$C:$D,MATCH(A6,'[1]Pt1-DATA'!$C:$C,0),2),"") -> 31313 | C6: =IFERROR(INDEX([2]regional!$B$6:$K$73,MATCH(L6,[2]regional!$B$6:$B$73,0),4)*1000,INDEX([2]regional!$B$6:$K$73,MATCH(M6,[2]regional!$B$6:$B$73,0),4)*1000) -> 25000 | D6: =B6*(1+'Federal Reserve PPI AC Parts'!$E$12) -> 35020.55193 | E6: =C6*(1+'Federal Reserve PPI AC Parts'!$E$12) -> 27960.07403 | F6: PW Low | G6: 35000 | H6: =(B6-C6)/C6 -> 0.25252 | I6: =IFERROR(INDEX([2]regional!$B$6:$K$73,MATCH(L6,[2]regional!$B$6:$B$73,0),7),INDEX([2]regional!$B$6:$K$73,MATCH(M6,[2]regional!$B$6:$B$73,0),7)) -> HWL | J6: 2 | K6: =INDEX('[1]Pt1-DATA'!$A$5:$M$13349,MATCH(A6,'[1]Pt1-DATA'!$C$5:$C$13349,0),6) -> I | L6: MCDU | M6: Primus Epic MCDUs | N6: 31313
A7: 23#717 | B7: =IFERROR(INDEX('[1]Pt1-DATA'!$C:$D,MATCH(A7,'[1]Pt1-DATA'!$C:$C,0),2),"") -> 39894 | C7: =IFERROR(INDEX([2]regional!$B$6:$K$73,MATCH(L7,[2]regional!$B$6:$B$73,0),4)*1000,INDEX([2]regional!$B$6:$K$73,MATCH(M7,[2]regional!$B$6:$B$73,0),4)*1000) -> 20000 | D7: =B7*(1+'Federal Reserve PPI AC Parts'!$E$12) -> 44617.56774 | E7: =C7*(1+'Federal Reserve PPI AC Parts'!$E$12) -> 22368.05923 | F7: PW Low | G7: 45000 | H7: 0.9947 | I7: =IFERROR(INDEX([2]regional!$B$6:$K$73,MATCH(L7,[2]regional!$B$6:$B$73,0),7),INDEX([2]regional!$B$6:$K$73,MATCH(M7,[2]regional!$B$6:$B$73,0),7)) -> HWL | J7: 3 | K7: =INDEX('[1]Pt1-DATA'!$A$5:$M$13349,MATCH(A7,'[1]Pt1-DATA'!$C$5:$C$13349,0),6) -> E | L7: ADIRU | M7: Air Data System | N7: 39894
A8: 23#726 | B8: =IFERROR(INDEX('[1]Pt1-DATA'!$C:$D,MATCH(A8,'[1]Pt1-DATA'!$C:$C,0),2),"") -> 50606 | C8: =IFERROR(INDEX([2]regional!$B$6:$K$73,MATCH(L8,[2]regional!$B$6:$B$73,0),4)*1000,INDEX([2]regional!$B$6:$K$73,MATCH(M8,[2]regional!$B$6:$B$73,0),4)*1000) -> 45000 | D8: =B8*(1+'Federal Reserve PPI AC Parts'!$E$12) -> 56597.90026 | E8: =C8*(1+'Federal Reserve PPI AC Parts'!$E$12) -> 50328.13326 | F8: PW Low | G8: 57000 | H8: 0.1245777778 | I8: =IFERROR(INDEX([2]regional!$B$6:$K$73,MATCH(L8,[2]regional!$B$6:$B$73,0),7),INDEX([2]regional!$B$6:$K$73,MATCH(M8,[2]regional!$B$6:$B$73,0),7)) -> HWL | J8: 5 | K8: =INDEX('[1]Pt1-DATA'!$A$5:$M$13349,MATCH(A8,'[1]Pt1-DATA'!$C$5:$C$13349,0),6) -> E | L8: Primary Flight Display (EFIS) | M8: Primus Epic displays | N8: 50606
A9: 23#730 | B9: =IFERROR(INDEX('[1]Pt1-DATA'!$C:$D,MATCH(A9,'[1]Pt1-DATA'!$C:$C,0),2),"") -> 65788 | C9: =IFERROR(INDEX([2]regional!$B$6:$K$73,MATCH(L9,[2]regional!$B$6:$B$73,0),4)*1000,INDEX([2]regional!$B$6:$K$73,MATCH(M9,[2]regional!$B$6:$B$73,0),4)*1000) -> 65000 | D9: =B9*(1+'Federal Reserve PPI AC Parts'!$E$12) -> 73577.49402 | E9: =C9*(1+'Federal Reserve PPI AC Parts'!$E$12) -> 72696.19249 | F9: Validated PW 2020 | G9: 73000 | H9: 0.01212307692 | I9: =IFERROR(INDEX([2]regional!$B$6:$K$73,MATCH(L9,[2]regional!$B$6:$B$73,0),7),INDEX([2]regional!$B$6:$K$73,MATCH(M9,[2]regional!$B$6:$B$73,0),7)) -> Collins | J9: 2 | K9: =INDEX('[1]Pt1-DATA'!$A$5:$M$13349,MATCH(A9,'[1]Pt1-DATA'!$C$5:$C$13349,0),6) -> C | L9: HUD display system | M9: Head Up Guidance System | N9: 65788
A10: 23#741 | B10: =IFERROR(INDEX('[1]Pt1-DATA'!$C:$D,MATCH(A10,'[1]Pt1-DATA'!$C:$C,0),2),"") -> 29353 | C10: =IFERROR(INDEX([2]regional!$B$6:$K$73,MATCH(L10,[2]regional!$B$6:$B$73,0),4)*1000,INDEX([2]regional!$B$6:$K$73,MATCH(M10,[2]regional!$B$6:$B$73,0),4)*1000) -> 20000 | D10: =B10*(1+'Federal Reserve PPI AC Parts'!$E$12) -> 32828.48213 | E10: =C10*(1+'Federal Reserve PPI AC Parts'!$E$12) -> 22368.05923 | F10: PW Low | G10: 33000 | H10: 0.46765 | I10: =IFERROR(INDEX([2]regional!$B$6:$K$73,MATCH(L10,[2]regional!$B$6:$B$73,0),7),INDEX([2]regional!$B$6:$K$73,MATCH(M10,[2]regional!$B$6:$B$73,0),7)) -> HWL | J10: 2 | K10: =INDEX('[1]Pt1-DATA'!$A$5:$M$13349,MATCH(A10,'[1]Pt1-DATA'!$C$5:$C$13349,0),6) -> F | L10: Radio management system | M10: Intergated Radio System | N10: 29353
A11: 23#742 | B11: =IFERROR(INDEX('[1]Pt1-DATA'!$C:$D,MATCH(A11,'[1]Pt1-DATA'!$C:$C,0),2),"") -> 6849 | C11: =IFERROR(INDEX([2]regional!$B$6:$K$73,MATCH(L11,[2]regional!$B$6:$B$73,0),4)*1000,INDEX([2]regional!$B$6:$K$73,MATCH(M11,[2]regional!$B$6:$B$73,0),4)*1000) -> 7000 | D11: =B11*(1+'Federal Reserve PPI AC Parts'!$E$12) -> 7659.941883 | E11: =C11*(1+'Federal Reserve PPI AC Parts'!$E$12) -> 7828.82073 | F11: Validated PW 2020 | G11: 8000 | H11: -0.02157142857 | I11: =IFERROR(INDEX([2]regional!$B$6:$K$73,MATCH(L11,[2]regional!$B$6:$B$73,0),7),INDEX([2]regional!$B$6:$K$73,MATCH(M11,[2]regional!$B$6:$B$73,0),7)) -> 0 | J11: 3 | K11: =INDEX('[1]Pt1-DATA'!$A$5:$M$13349,MATCH(A11,'[1]Pt1-DATA'!$C$5:$C$13349,0),6) -> E | L11: Audio Control Panel | N11: 6849
A12: 23#746 | B12: =IFERROR(INDEX('[1]Pt1-DATA'!$C:$D,MATCH(A12,'[1]Pt1-DATA'!$C:$C,0),2),"") -> 32999 | C12: =IFERROR(INDEX([2]regional!$B$6:$K$73,MATCH(L12,[2]regional!$B$6:$B$73,0),4)*1000,INDEX([2]regional!$B$6:$K$73,MATCH(M12,[2]regional!$B$6:$B$73,0),4)*1000) -> 18000 | D12: =B12*(1+'Federal Reserve PPI AC Parts'!$E$12) -> 36906.17932 | E12: =C12*(1+'Federal Reserve PPI AC Parts'!$E$12) -> 20131.25331 | F12: PW Low | G12: 37000 | H12: 0.8332777778 | I12: =IFERROR(INDEX([2]regional!$B$6:$K$73,MATCH(L12,[2]regional!$B$6:$B$73,0),7),INDEX([2]regional!$B$6:$K$73,MATCH(M12,[2]regional!$B$6:$B$73,0),7)) -> HWL | J12: 1 | K12: =INDEX('[1]Pt1-DATA'!$A$5:$M$13349,MATCH(A12,'[1]Pt1-DATA'!$C$5:$C$13349,0),6) -> E | L12: Weather WX radar system | M12: Weather Radar System | N12: 32999
A13: 23#748 | B13: =IFERROR(INDEX('[1]Pt1-DATA'!$C:$D,MATCH(A13,'[1]Pt1-DATA'!$C:$C,0),2),"") -> 50646 | C13: =IFERROR(INDEX([2]regional!$B$6:$K$73,MATCH(L13,[2]regional!$B$6:$B$73,0),4)*1000,INDEX([2]regional!$B$6:$K$73,MATCH(M13,[2]regional!$B$6:$B$73,0),4)*1000) -> 18000 | D13: =B13*(1+'Federal Reserve PPI AC Parts'!$E$12) -> 56642.63638 | E13: =C13*(1+'Federal Reserve PPI AC Parts'!$E$12) -> 20131.25331 | F13: PW Low | G13: 57000 | H13: 1.813666667 | I13: =IFERROR(INDEX([2]regional!$B$6:$K$73,MATCH(L13,[2]regional!$B$6:$B$73,0),7),INDEX([2]regional!$B$6:$K$73,MATCH(M13,[2]regional!$B$6:$B$73,0),7)) -> HWL | J13: 1 | K13: =INDEX('[1]Pt1-DATA'!$A$5:$M$13349,MATCH(A13,'[1]Pt1-DATA'!$C$5:$C$13349,0),6) -> O | L13: Ground Proximity Warning System (GPWS/EGPWS) | M13: EGPWS | N13: 50646
A14: 23#749 | B14: =IFERROR(INDEX('[1]Pt1-DATA'!$C:$D,MATCH(A14,'[1]Pt1-DATA'!$C:$C,0),2),"") -> 0 | C14: =IFERROR(INDEX([2]regional!$B$6:$K$73,MATCH(L14,[2]regional!$B$6:$B$73,0),4)*1000,INDEX([2]regional!$B$6:$K$73,MATCH(M14,[2]regional!$B$6:$B$73,0),4)*1000) -> 18000 | D14: =B14*(1+'Federal Reserve PPI AC Parts'!$E$12) -> 0 | E14: =C14*(1+'Federal Reserve PPI AC Parts'!$E$12) -> 20131.25331 | F14: Validated PW 2020 | G14: 21000 | H14: -1 | I14: =IFERROR(INDEX([2]regional!$B$6:$K$73,MATCH(L14,[2]regional!$B$6:$B$73,0),7),INDEX([2]regional!$B$6:$K$73,MATCH(M14,[2]regional!$B$6:$B$73,0),7)) -> HWL | J14: 1 | K14: =INDEX('[1]Pt1-DATA'!$A$5:$M$13349,MATCH(A14,'[1]Pt1-DATA'!$C$5:$C$13349,0),6) -> A2 | L14: TCAS computer | M14: TCAS | N14: 0
A15: 23#759 | B15: =IFERROR(INDEX('[1]Pt1-DATA'!$C:$D,MATCH(A15,'[1]Pt1-DATA'!$C:$C,0),2),"") -> 13808 | C15: =IFERROR(INDEX([2]regional!$B$6:$K$73,MATCH(L15,[2]regional!$B$6:$B$73,0),4)*1000,INDEX([2]regional!$B$6:$K$73,MATCH(M15,[2]regional!$B$6:$B$73,0),4)*1000) -> 12000 | D15: =B15*(1+'Federal Reserve PPI AC Parts'!$E$12) -> 15442.90809 | E15: =C15*(1+'Federal Reserve PPI AC Parts'!$E$12) -> 13420.83554 | F15: Validated PW 2020 | G15: 14000 | H15: 0.1506666667 | I15: =IFERROR(INDEX([2]regional!$B$6:$K$73,MATCH(L15,[2]regional!$B$6:$B$73,0),7),INDEX([2]regional!$B$6:$K$73,MATCH(M15,[2]regional!$B$6:$B$73,0),7)) -> 0 | J15: 2 | K15: =INDEX('[1]Pt1-DATA'!$A$5:$M$13349,MATCH(A15,'[1]Pt1-DATA'!$C$5:$C$13349,0),6) -> A | L15: Electronic Flight Bags (EFBs) | M15: Electronic Flight Bag | N15: 13808
A16: 23#764 | B16: =IFERROR(INDEX('[1]Pt1-DATA'!$C:$D,MATCH(A16,'[1]Pt1-DATA'!$C:$C,0),2),"") -> 15958 | C16: =IFERROR(INDEX([2]regional!$B$6:$K$73,MATCH(L16,[2]regional!$B$6:$B$73,0),4)*1000,INDEX([2]regional!$B$6:$K$73,MATCH(M16,[2]regional!$B$6:$B$73,0),4)*1000) -> 18000 | D16: =B16*(1+'Federal Reserve PPI AC Parts'!$E$12) -> 17847.47446 | E16: =C16*(1+'Federal Reserve PPI AC Parts'!$E$12) -> 20131.25331 | F16: Validated PW 2020 | G16: 21000 | H16: -0.1134444444 | I16: =IFERROR(INDEX([2]regional!$B$6:$K$73,MATCH(L16,[2]regional!$B$6:$B$73,0),7),INDEX([2]regional!$B$6:$K$73,MATCH(M16,[2]regional!$B$6:$B$73,0),7)) -> HWL | J16: 1 | K16: =INDEX('[1]Pt1-DATA'!$A$5:$M$13349,MATCH(A16,'[1]Pt1-DATA'!$C$5:$C$13349,0),6) -> F2 | L16: Radar altimeters | M16: Radio Altimeter | N16: 15958
A17: 23#802 | B17: =IFERROR(INDEX('[1]Pt1-DATA'!$C:$D,MATCH(A17,'[1]Pt1-DATA'!$C:$C,0),2),"") -> 60728 | C17: =IFERROR(INDEX([2]regional!$B$6:$K$73,MATCH(L17,[2]regional!$B$6:$B$73,0),4)*1000,INDEX([2]regional!$B$6:$K$73,MATCH(M17,[2]regional!$B$6:$B$73,0),4)*1000) -> 30000 | D17: =B17*(1+'Federal Reserve PPI AC Parts'!$E$12) -> 67918.37504 | E17: =C17*(1+'Federal Reserve PPI AC Parts'!$E$12) -> 33552.08884 | F17: PW Low | G17: 70000 | H17: 1.024266667 | I17: =IFERROR(INDEX([2]regional!$B$6:$K$73,MATCH(L17,[2]regional!$B$6:$B$73,0),7),INDEX([2]regional!$B$6:$K$73,MATCH(M17,[2]regional!$B$6:$B$73,0),7)) -> HWL | J17: 3 | K17: =INDEX('[1]Pt1-DATA'!$A$5:$M$13349,MATCH(A17,'[1]Pt1-DATA'!$C$5:$C$13349,0),6) -> A | L17: Display Controllers | N17: 60728
A18: 23#803 | B18: =IFERROR(INDEX('[1]Pt1-DATA'!$C:$D,MATCH(A18,'[1]Pt1-DATA'!$C:$C,0),2),"") -> 28369 | C18: =IFERROR(INDEX([2]regional!$B$6:$K$73,MATCH(L18,[2]regional!$B$6:$B$73,0),4)*1000,INDEX([2]regional!$B$6:$K$73,MATCH(M18,[2]regional!$B$6:$B$73,0),4)*1000) -> 25000 | D18: =B18*(1+'Federal Reserve PPI AC Parts'!$E$12) -> 31727.97361 | E18: =C18*(1+'Federal Reserve PPI AC Parts'!$E$12) -> 27960.07403 | F18: PW Low | G18: 32000 | H18: 0.13476 | I18: =IFERROR(INDEX([2]regional!$B$6:$K$73,MATCH(L18,[2]regional!$B$6:$B$73,0),7),INDEX([2]regional!$B$6:$K$73,MATCH(M18,[2]regional!$B$6:$B$73,0),7)) -> HWL | J18: 4 | K18: =INDEX('[1]Pt1-DATA'!$A$5:$M$13349,MATCH(A18,'[1]Pt1-DATA'!$C$5:$C$13349,0),6) -> A | L18: IRS Gyroscope System | N18: 28369
A19: 23#804 | B19: =IFERROR(INDEX('[1]Pt1-DATA'!$C:$D,MATCH(A19,'[1]Pt1-DATA'!$C:$C,0),2),"") -> 56029 | C19: =IFERROR(INDEX([2]regional!$B$6:$K$73,MATCH(L19,[2]regional!$B$6:$B$73,0),4)*1000,INDEX([2]regional!$B$6:$K$73,MATCH(M19,[2]regional!$B$6:$B$73,0),4)*1000) -> 35000 | D19: =B19*(1+'Federal Reserve PPI AC Parts'!$E$12) -> 62662.99952 | E19: =C19*(1+'Federal Reserve PPI AC Parts'!$E$12) -> 39144.10365 | F19: PW Low | G19: 64000 | H19: 0.6008285714 | I19: =IFERROR(INDEX([2]regional!$B$6:$K$73,MATCH(L19,[2]regional!$B$6:$B$73,0),7),INDEX([2]regional!$B$6:$K$73,MATCH(M19,[2]regional!$B$6:$B$73,0),7)) -> HWL | J19: 1 | K19: =INDEX('[1]Pt1-DATA'!$A$5:$M$13349,MATCH(A19,'[1]Pt1-DATA'!$C$5:$C$13349,0),6) -> H | L19: Flight Guidance System (A/Pilot) | N19: 56029
A20: 23#805 | B20: =IFERROR(INDEX('[1]Pt1-DATA'!$C:$D,MATCH(A20,'[1]Pt1-DATA'!$C:$C,0),2),"") -> 156228 | C20: =IFERROR(INDEX([2]regional!$B$6:$K$73,MATCH(L20,[2]regional!$B$6:$B$73,0),4)*1000,INDEX([2]regional!$B$6:$K$73,MATCH(M20,[2]regional!$B$6:$B$73,0),4)*1000) -> 50000 | D20: =B20*(1+'Federal Reserve PPI AC Parts'!$E$12) -> 174725.8579 | E20: =C20*(1+'Federal Reserve PPI AC Parts'!$E$12) -> 55920.14807 | F20: PW Low | G20: 175000 | H20: 2.12456 | I20: =IFERROR(INDEX([2]regional!$B$6:$K$73,MATCH(L20,[2]regional!$B$6:$B$73,0),7),INDEX([2]regional!$B$6:$K$73,MATCH(M20,[2]regional!$B$6:$B$73,0),7)) -> HWl | J20: 3 | K20: =INDEX('[1]Pt1-DATA'!$A$5:$M$13349,MATCH(A20,'[1]Pt1-DATA'!$C$5:$C$13349,0),6) -> B | L20: Modular Avionic Unit, 1,2 and 3 | N20: 156228
A21: 23#806 | B21: =IFERROR(INDEX('[1]Pt1-DATA'!$C:$D,MATCH(A21,'[1]Pt1-DATA'!$C:$C,0),2),"") -> 11741 | C21: =IFERROR(INDEX([2]regional!$B$6:$K$73,MATCH(L21,[2]regional!$B$6:$B$73,0),4)*1000,INDEX([2]regional!$B$6:$K$73,MATCH(M21,[2]regional!$B$6:$B$73,0),4)*1000) -> 8000 | D21: =B21*(1+'Federal Reserve PPI AC Parts'!$E$12) -> 13131.16917 | E21: =C21*(1+'Federal Reserve PPI AC Parts'!$E$12) -> 8947.223691 | F21: PW Low | G21: 14000 | H21: 0.467625 | I21: =IFERROR(INDEX([2]regional!$B$6:$K$73,MATCH(L21,[2]regional!$B$6:$B$73,0),7),INDEX([2]regional!$B$6:$K$73,MATCH(M21,[2]regional!$B$6:$B$73,0),7)) -> ??? | J21: 4 | K21: =INDEX('[1]Pt1-DATA'!$A$5:$M$13349,MATCH(A21,'[1]Pt1-DATA'!$C$5:$C$13349,0),6) -> B | L21: Radio Antennas | N21: 11741
A22: 23#807 | B22: =IFERROR(INDEX('[1]Pt1-DATA'!$C:$D,MATCH(A22,'[1]Pt1-DATA'!$C:$C,0),2),"") -> 7700 | C22: =IFERROR(INDEX([2]regional!$B$6:$K$73,MATCH(L22,[2]regional!$B$6:$B$73,0),4)*1000,INDEX([2]regional!$B$6:$K$73,MATCH(M22,[2]regional!$B$6:$B$73,0),4)*1000) -> 7000 | D22: =B22*(1+'Federal Reserve PPI AC Parts'!$E$12) -> 8611.702803 | E22: =C22*(1+'Federal Reserve PPI AC Parts'!$E$12) -> 7828.82073 | F22: PW Low | G22: 9000 | H22: 0.1 | I22: =IFERROR(INDEX([2]regional!$B$6:$K$73,MATCH(L22,[2]regional!$B$6:$B$73,0),7),INDEX([2]regional!$B$6:$K$73,MATCH(M22,[2]regional!$B$6:$B$73,0),7)) -> ??? | J22: 8 | K22: =INDEX('[1]Pt1-DATA'!$A$5:$M$13349,MATCH(A22,'[1]Pt1-DATA'!$C$5:$C$13349,0),6) -> A | L22: Pitot Static sensors | N22: 7700
A23: 23#808 | B23: =IFERROR(INDEX('[1]Pt1-DATA'!$C:$D,MATCH(A23,'[1]Pt1-DATA'!$C:$C,0),2),"") -> 3037 | C23: =IFERROR(INDEX([2]regional!$B$6:$K$73,MATCH(L23,[2]regional!$B$6:$B$73,0),4)*1000,INDEX([2]regional!$B$6:$K$73,MATCH(M23,[2]regional!$B$6:$B$73,0),4)*1000) -> 3000 | D23: =B23*(1+'Federal Reserve PPI AC Parts'!$E$12) -> 3396.589794 | E23: =C23*(1+'Federal Reserve PPI AC Parts'!$E$12) -> 3355.208884 | F23: Validated PW 2020 | G23: 3500 | H23: 0.01233333333 | I23: =IFERROR(INDEX([2]regional!$B$6:$K$73,MATCH(L23,[2]regional!$B$6:$B$73,0),7),INDEX([2]regional!$B$6:$K$73,MATCH(M23,[2]regional!$B$6:$B$73,0),7)) -> HWL | J23: 2 | K23: =INDEX('[1]Pt1-DATA'!$A$5:$M$13349,MATCH(A23,'[1]Pt1-DATA'!$C$5:$C$13349,0),6) -> A | L23: Cursor Control Device | N23: 3037
A24: 23#809 | B24: =IFERROR(INDEX('[1]Pt1-DATA'!$C:$D,MATCH(A24,'[1]Pt1-DATA'!$C:$C,0),2),"") -> 34520 | C24: =IFERROR(INDEX([2]regional!$B$6:$K$73,MATCH(L24,[2]regional!$B$6:$B$73,0),4)*1000,INDEX([2]regional!$B$6:$K$73,MATCH(M24,[2]regional!$B$6:$B$73,0),4)*1000) -> 30000 | D24: =B24*(1+'Federal Reserve PPI AC Parts'!$E$12) -> 38607.27023 | E24: =C24*(1+'Federal Reserve PPI AC Parts'!$E$12) -> 33552.08884 | F24: PW Low | G24: 39000 | H24: 0.1506666667 | I24: =IFERROR(INDEX([2]regional!$B$6:$K$73,MATCH(L24,[2]regional!$B$6:$B$73,0),7),INDEX([2]regional!$B$6:$K$73,MATCH(M24,[2]regional!$B$6:$B$73,0),7)) -> 0 | J24: 1 | K24: =INDEX('[1]Pt1-DATA'!$A$5:$M$13349,MATCH(A24,'[1]Pt1-DATA'!$C$5:$C$13349,0),6) -> A | L24: Digital Voice & Data Recorder | N24: 34520
A25: 23#810 | B25: =IFERROR(INDEX('[1]Pt1-DATA'!$C:$D,MATCH(A25,'[1]Pt1-DATA'!$C:$C,0),2),"") -> 25303 | C25: =IFERROR(INDEX([2]regional!$B$6:$K$73,MATCH(L25,[2]regional!$B$6:$B$73,0),4)*1000,INDEX([2]regional!$B$6:$K$73,MATCH(M25,[2]regional!$B$6:$B$73,0),4)*1000) -> 25000 | D25: =B25*(1+'Federal Reserve PPI AC Parts'!$E$12) -> 28298.95013 | E25: =C25*(1+'Federal Reserve PPI AC Parts'!$E$12) -> 27960.07403 | F25: Validated PW 2020 | G25: 28000 | H25: 0.01212 | I25: =IFERROR(INDEX([2]regional!$B$6:$K$73,MATCH(L25,[2]regional!$B$6:$B$73,0),7),INDEX([2]regional!$B$6:$K$73,MATCH(M25,[2]regional!$B$6:$B$73,0),7)) -> 0 | J25: 1 | K25: =INDEX('[1]Pt1-DATA'!$A$5:$M$13349,MATCH(A25,'[1]Pt1-DATA'!$C$5:$C$13349,0),6) -> A | L25: Integrated Electronic Standby System | N25: 25303
A26: 23#879 | B26: =IFERROR(INDEX('[1]Pt1-DATA'!$C:$D,MATCH(A26,'[1]Pt1-DATA'!$C:$C,0),2),"") -> 101976 | C26: =IFERROR(INDEX([2]regional!$B$6:$K$73,MATCH(L26,[2]regional!$B$6:$B$73,0),4)*1000,INDEX([2]regional!$B$6:$K$73,MATCH(M26,[2]regional!$B$6:$B$73,0),4)*1000) ->  | D26: =B26*(1+'Federal Reserve PPI AC Parts'!$E$12) -> 114050.2604 | E26: =C26*(1+'Federal Reserve PPI AC Parts'!$E$12) ->  | F26: Validated Model 2020 | G26: 115000 | I26: =IFERROR(INDEX([2]regional!$B$6:$K$73,MATCH(L26,[2]regional!$B$6:$B$73,0),7),INDEX([2]regional!$B$6:$K$73,MATCH(M26,[2]regional!$B$6:$B$73,0),7)) ->  | J26: 1 | K26: =INDEX('[1]Pt1-DATA'!$A$5:$M$13349,MATCH(A26,'[1]Pt1-DATA'!$C$5:$C$13349,0),6) -> P | L26: Software | N26: 101976
A27: 23#880 | B27: =IFERROR(INDEX('[1]Pt1-DATA'!$C:$D,MATCH(A27,'[1]Pt1-DATA'!$C:$C,0),2),"") -> 32999 | C27: =IFERROR(INDEX([2]regional!$B$6:$K$73,MATCH(L27,[2]regional!$B$6:$B$73,0),4)*1000,INDEX([2]regional!$B$6:$K$73,MATCH(M27,[2]regional!$B$6:$B$73,0),4)*1000) ->  | D27: =B27*(1+'Federal Reserve PPI AC Parts'!$E$12) -> 36906.17932 | E27: =C27*(1+'Federal Reserve PPI AC Parts'!$E$12) ->  | F27: Validated Model 2020 | G27: 37000 | I27: =IFERROR(INDEX([2]regional!$B$6:$K$73,MATCH(L27,[2]regional!$B$6:$B$73,0),7),INDEX([2]regional!$B$6:$K$73,MATCH(M27,[2]regional!$B$6:$B$73,0),7)) ->  | J27: 2 | K27: =INDEX('[1]Pt1-DATA'!$A$5:$M$13349,MATCH(A27,'[1]Pt1-DATA'!$C$5:$C$13349,0),6) -> J | L27: Air data sensors | N27: 32999
A28: 23#1056 | B28: =IFERROR(INDEX('[1]Pt1-DATA'!$C:$D,MATCH(A28,'[1]Pt1-DATA'!$C:$C,0),2),"") -> 2322 | C28: =IFERROR(INDEX([2]regional!$B$6:$K$73,MATCH(L28,[2]regional!$B$6:$B$73,0),4)*1000,INDEX([2]regional!$B$6:$K$73,MATCH(M28,[2]regional!$B$6:$B$73,0),4)*1000) ->  | D28: =B28*(1+'Federal Reserve PPI AC Parts'!$E$12) -> 2596.931676 | E28: =C28*(1+'Federal Reserve PPI AC Parts'!$E$12) ->  | F28: Validated Model 2020 | G28: 2600 | I28: =IFERROR(INDEX([2]regional!$B$6:$K$73,MATCH(L28,[2]regional!$B$6:$B$73,0),7),INDEX([2]regional!$B$6:$K$73,MATCH(M28,[2]regional!$B$6:$B$73,0),7)) ->  | J28: 1 | K28: =INDEX('[1]Pt1-DATA'!$A$5:$M$13349,MATCH(A28,'[1]Pt1-DATA'!$C$5:$C$13349,0),6) -> BO | L28: Avionics Harnesses | N28: 2322
A29: 23#1057 | B29: =IFERROR(INDEX('[1]Pt1-DATA'!$C:$D,MATCH(A29,'[1]Pt1-DATA'!$C:$C,0),2),"") -> 16538 | C29: =IFERROR(INDEX([2]regional!$B$6:$K$73,MATCH(L29,[2]regional!$B$6:$B$73,0),4)*1000,INDEX([2]regional!$B$6:$K$73,MATCH(M29,[2]regional!$B$6:$B$73,0),4)*1000) ->  | D29: =B29*(1+'Federal Reserve PPI AC Parts'!$E$12) -> 18496.14818 | E29: =C29*(1+'Federal Reserve PPI AC Parts'!$E$12) ->  | F29: Validated Model 2020 | G29: 19000 | I29: =IFERROR(INDEX([2]regional!$B$6:$K$73,MATCH(L29,[2]regional!$B$6:$B$73,0),7),INDEX([2]regional!$B$6:$K$73,MATCH(M29,[2]regional!$B$6:$B$73,0),7)) ->  | J29: 1 | K29: =INDEX('[1]Pt1-DATA'!$A$5:$M$13349,MATCH(A29,'[1]Pt1-DATA'!$C$5:$C$13349,0),6) -> BO | L29: Avionics Harnesses | N29: 16538
A30: 23#1058 | B30: =IFERROR(INDEX('[1]Pt1-DATA'!$C:$D,MATCH(A30,'[1]Pt1-DATA'!$C:$C,0),2),"") -> 20000 | C30: =IFERROR(INDEX([2]regional!$B$6:$K$73,MATCH(L30,[2]regional!$B$6:$B$73,0),4)*1000,INDEX([2]regional!$B$6:$K$73,MATCH(M30,[2]regional!$B$6:$B$73,0),4)*1000) ->  | D30: =B30*(1+'Federal Reserve PPI AC Parts'!$E$12) -> 22368.05923 | E30: =C30*(1+'Federal Reserve PPI AC Parts'!$E$12) ->  | F30: Validated Model 2020 | G30: 23000 | I30: =IFERROR(INDEX([2]regional!$B$6:$K$73,MATCH(L30,[2]regional!$B$6:$B$73,0),7),INDEX([2]regional!$B$6:$K$73,MATCH(M30,[2]regional!$B$6:$B$73,0),7)) ->  | J30: 1 | K30: =INDEX('[1]Pt1-DATA'!$A$5:$M$13349,MATCH(A30,'[1]Pt1-DATA'!$C$5:$C$13349,0),6) -> BO | L30: Avionics Harnesses | N30: 20000
A31: 23#1059 | B31: =IFERROR(INDEX('[1]Pt1-DATA'!$C:$D,MATCH(A31,'[1]Pt1-DATA'!$C:$C,0),2),"") -> 4134 | C31: =IFERROR(INDEX([2]regional!$B$6:$K$73,MATCH(L31,[2]regional!$B$6:$B$73,0),4)*1000,INDEX([2]regional!$B$6:$K$73,MATCH(M31,[2]regional!$B$6:$B$73,0),4)*1000) ->  | D31: =B31*(1+'Federal Reserve PPI AC Parts'!$E$12) -> 4623.477842 | E31: =C31*(1+'Federal Reserve PPI AC Parts'!$E$12) ->  | F31: Validated Model 2020 | G31: 4750 | I31: =IFERROR(INDEX([2]regional!$B$6:$K$73,MATCH(L31,[2]regional!$B$6:$B$73,0),7),INDEX([2]regional!$B$6:$K$73,MATCH(M31,[2]regional!$B$6:$B$73,0),7)) ->  | J31: 1 | K31: =INDEX('[1]Pt1-DATA'!$A$5:$M$13349,MATCH(A31,'[1]Pt1-DATA'!$C$5:$C$13349,0),6) -> BO | L31: Avionics Harnesses | N31: 4134

Sheet mil trainer
A1: Aircraft: | B1: =INDEX('[3]Pt1-AvionicsComponentCosts'!$A$11:$E$384,MATCH(VALUE(LEFT(A5,SEARCH("#",A5)-1)),'[3]Pt1-AvionicsComponentCosts'!$A$11:$A$384,0),5) -> BAE Systems Hawk
B2: Avionics Cost 2020 | G2: Avionics Cost 2024 | I2: % Change 2020 - 2024
B3: =SUMPRODUCT(B5:B80,J5:J80) -> 1672408 | G3: =SUMPRODUCT(G5:G80,J5:J80) -> 1890557.313 | I3: =($G$3-$B$3)/$B$3 -> 0.1304402473
B4: Model 2020 | C4: PW 2020 | D4: 2024 PPI Model | E4: 2024 PPI PW | F4: Notes | G4: 2024 AE Estimate | H4: Pct Change | I4: Source | J4: #/AC | K4: Factor | L4: Item | M4: Alt Item (PW) | N4: previous
A5: 167#730 | B5: =IFERROR(INDEX('[1]Pt1-DATA'!$C:$D,MATCH(A5,'[1]Pt1-DATA'!$C:$C,0),2),"") -> 70849 | C5: =IFERROR(INDEX('[2]mil trainer'!$B$6:$K$73,MATCH(L5,'[2]mil trainer'!$B$6:$B$73,0),4)*1000,INDEX('[2]mil trainer'!$B$6:$K$73,MATCH(M5,'[2]mil trainer'!$B$6:$B$73,0),4)*1000) -> 70000 | D5: =B5*(1+'Federal Reserve PPI AC Parts'!$E$12) -> 79237.73141 | E5: =C5*(1+'Federal Reserve PPI AC Parts'!$E$12) -> 78288.2073 | F5: Used Model 2024 | G5: =D5 -> 79237.73141 | H5: =(B5-C5)/C5 -> 0.01212857143 | I5: =IFERROR(INDEX('[2]mil trainer'!$B$6:$K$73,MATCH(L5,'[2]mil trainer'!$B$6:$B$73,0),8),INDEX('[2]mil trainer'!$B$6:$K$73,MATCH(M5,'[2]mil trainer'!$B$6:$B$73,0),8)) -> BAE Systems | J5: 1 | K5: =INDEX('[1]Pt1-DATA'!$A$5:$M$13349,MATCH(A5,'[1]Pt1-DATA'!$C$5:$C$13349,0),6) -> D | L5: HUD display system | M5: HUD | N5: 70849
A6: 167#748 | B6: =IFERROR(INDEX('[1]Pt1-DATA'!$C:$D,MATCH(A6,'[1]Pt1-DATA'!$C:$C,0),2),"") -> 81034 | C6: =IFERROR(INDEX('[2]mil trainer'!$B$6:$K$73,MATCH(L6,'[2]mil trainer'!$B$6:$B$73,0),4)*1000,INDEX('[2]mil trainer'!$B$6:$K$73,MATCH(M6,'[2]mil trainer'!$B$6:$B$73,0),4)*1000) -> 20000 | D6: =B6*(1+'Federal Reserve PPI AC Parts'!$E$12) -> 90628.66557 | E6: =C6*(1+'Federal Reserve PPI AC Parts'!$E$12) -> 22368.05923 | F6: Used Model 2024 | G6: =D6 -> 90628.66557 | H6: =(B6-C6)/C6 -> 3.0517 | I6: =IFERROR(INDEX('[2]mil trainer'!$B$6:$K$73,MATCH(L6,'[2]mil trainer'!$B$6:$B$73,0),8),INDEX('[2]mil trainer'!$B$6:$K$73,MATCH(M6,'[2]mil trainer'!$B$6:$B$73,0),8)) -> BAE systems | J6: 1 | K6: =INDEX('[1]Pt1-DATA'!$A$5:$M$13349,MATCH(A6,'[1]Pt1-DATA'!$C$5:$C$13349,0),6) -> Q | L6: Ground Proximity Warning System (GPWS/EGPWS) | M6: GPWS/TERPROM | N6: 81034
A7: 167#749 | B7: =IFERROR(INDEX('[1]Pt1-DATA'!$C:$D,MATCH(A7,'[1]Pt1-DATA'!$C:$C,0),2),"") -> 0 | C7: =IFERROR(INDEX('[2]mil trainer'!$B$6:$K$73,MATCH(L7,'[2]mil trainer'!$B$6:$B$73,0),4)*1000,INDEX('[2]mil trainer'!$B$6:$K$73,MATCH(M7,'[2]mil trainer'!$B$6:$B$73,0),4)*1000) -> 18000 | D7: =B7*(1+'Federal Reserve PPI AC Parts'!$E$12) -> 0 | E7: =C7*(1+'Federal Reserve PPI AC Parts'!$E$12) -> 20131.25331 | F7: Used PW 2024 | G7: =E7 -> 20131.25331 | H7: -1 | I7: =IFERROR(INDEX('[2]mil trainer'!$B$6:$K$73,MATCH(L7,'[2]mil trainer'!$B$6:$B$73,0),8),INDEX('[2]mil trainer'!$B$6:$K$73,MATCH(M7,'[2]mil trainer'!$B$6:$B$73,0),8)) -> ??? | J7: 1 | K7: =INDEX('[1]Pt1-DATA'!$A$5:$M$13349,MATCH(A7,'[1]Pt1-DATA'!$C$5:$C$13349,0),6) -> A1 | L7: TCAS computer | M7: TCAS | N7: 0
A8: 167#764 | B8: =IFERROR(INDEX('[1]Pt1-DATA'!$C:$D,MATCH(A8,'[1]Pt1-DATA'!$C:$C,0),2),"") -> 17731 | C8: =IFERROR(INDEX('[2]mil trainer'!$B$6:$K$73,MATCH(L8,'[2]mil trainer'!$B$6:$B$73,0),4)*1000,INDEX('[2]mil trainer'!$B$6:$K$73,MATCH(M8,'[2]mil trainer'!$B$6:$B$73,0),4)*1000) -> 20000 | D8: =B8*(1+'Federal Reserve PPI AC Parts'!$E$12) -> 19830.40291 | E8: =C8*(1+'Federal Reserve PPI AC Parts'!$E$12) -> 22368.05923 | F8: Used Model 2024 | G8: 19830.40291 | H8: -0.11345 | I8: =IFERROR(INDEX('[2]mil trainer'!$B$6:$K$73,MATCH(L8,'[2]mil trainer'!$B$6:$B$73,0),8),INDEX('[2]mil trainer'!$B$6:$K$73,MATCH(M8,'[2]mil trainer'!$B$6:$B$73,0),8)) -> Meggitt | J8: 1 | K8: =INDEX('[1]Pt1-DATA'!$A$5:$M$13349,MATCH(A8,'[1]Pt1-DATA'!$C$5:$C$13349,0),6) -> H | L8: Radar altimeters | N8: 17731
A9: 167#795 | B9: =IFERROR(INDEX('[1]Pt1-DATA'!$C:$D,MATCH(A9,'[1]Pt1-DATA'!$C:$C,0),2),"") -> 111607 | C9: =IFERROR(INDEX('[2]mil trainer'!$B$6:$K$73,MATCH(L9,'[2]mil trainer'!$B$6:$B$73,0),4)*1000,INDEX('[2]mil trainer'!$B$6:$K$73,MATCH(M9,'[2]mil trainer'!$B$6:$B$73,0),4)*1000) -> 50000 | D9: =B9*(1+'Federal Reserve PPI AC Parts'!$E$12) -> 124821.5993 | E9: =C9*(1+'Federal Reserve PPI AC Parts'!$E$12) -> 55920.14807 | F9: Used Model 2024 | G9: 124821.5993 | H9: 1.23214 | I9: =IFERROR(INDEX('[2]mil trainer'!$B$6:$K$73,MATCH(L9,'[2]mil trainer'!$B$6:$B$73,0),8),INDEX('[2]mil trainer'!$B$6:$K$73,MATCH(M9,'[2]mil trainer'!$B$6:$B$73,0),8)) -> BAE Systems | J9: 2 | K9: =INDEX('[1]Pt1-DATA'!$A$5:$M$13349,MATCH(A9,'[1]Pt1-DATA'!$C$5:$C$13349,0),6) -> A | L9: Mission computers | N9: 111607
A10: 167#811 | B10: =IFERROR(INDEX('[1]Pt1-DATA'!$C:$D,MATCH(A10,'[1]Pt1-DATA'!$C:$C,0),2),"") -> 60728 | C10: =IFERROR(INDEX('[2]mil trainer'!$B$6:$K$73,MATCH(L10,'[2]mil trainer'!$B$6:$B$73,0),4)*1000,INDEX('[2]mil trainer'!$B$6:$K$73,MATCH(M10,'[2]mil trainer'!$B$6:$B$73,0),4)*1000) -> 60000 | D10: =B10*(1+'Federal Reserve PPI AC Parts'!$E$12) -> 67918.37504 | E10: =C10*(1+'Federal Reserve PPI AC Parts'!$E$12) -> 67104.17768 | F10: Used Model 2024 | G10: 67918.37504 | H10: 0.01213333333 | I10: =IFERROR(INDEX('[2]mil trainer'!$B$6:$K$73,MATCH(L10,'[2]mil trainer'!$B$6:$B$73,0),8),INDEX('[2]mil trainer'!$B$6:$K$73,MATCH(M10,'[2]mil trainer'!$B$6:$B$73,0),8)) -> ????? | J10: 3 | K10: =INDEX('[1]Pt1-DATA'!$A$5:$M$13349,MATCH(A10,'[1]Pt1-DATA'!$C$5:$C$13349,0),6) -> G | L10: Main displays | N10: 60728
A11: 167#812 | B11: =IFERROR(INDEX('[1]Pt1-DATA'!$C:$D,MATCH(A11,'[1]Pt1-DATA'!$C:$C,0),2),"") -> 50606 | C11: =IFERROR(INDEX('[2]mil trainer'!$B$6:$K$73,MATCH(L11,'[2]mil trainer'!$B$6:$B$73,0),4)*1000,INDEX('[2]mil trainer'!$B$6:$K$73,MATCH(M11,'[2]mil trainer'!$B$6:$B$73,0),4)*1000) -> 50000 | D11: =B11*(1+'Federal Reserve PPI AC Parts'!$E$12) -> 56597.90026 | E11: =C11*(1+'Federal Reserve PPI AC Parts'!$E$12) -> 55920.14807 | F11: Used Model 2024 | G11: 56597.90026 | H11: 0.01212 | I11: =IFERROR(INDEX('[2]mil trainer'!$B$6:$K$73,MATCH(L11,'[2]mil trainer'!$B$6:$B$73,0),8),INDEX('[2]mil trainer'!$B$6:$K$73,MATCH(M11,'[2]mil trainer'!$B$6:$B$73,0),8)) -> ????? | J11: 1 | K11: =INDEX('[1]Pt1-DATA'!$A$5:$M$13349,MATCH(A11,'[1]Pt1-DATA'!$C$5:$C$13349,0),6) -> A | L11: Display processor | N11: 50606
A12: 167#813 | B12: =IFERROR(INDEX('[1]Pt1-DATA'!$C:$D,MATCH(A12,'[1]Pt1-DATA'!$C:$C,0),2),"") -> 48760 | C12: =IFERROR(INDEX('[2]mil trainer'!$B$6:$K$73,MATCH(L12,'[2]mil trainer'!$B$6:$B$73,0),4)*1000,INDEX('[2]mil trainer'!$B$6:$K$73,MATCH(M12,'[2]mil trainer'!$B$6:$B$73,0),4)*1000) -> 40000 | D12: =B12*(1+'Federal Reserve PPI AC Parts'!$E$12) -> 54533.3284 | E12: =C12*(1+'Federal Reserve PPI AC Parts'!$E$12) -> 44736.11846 | F12: Used Model 2024 | G12: 54533.3284 | H12: 0.219 | I12: =IFERROR(INDEX('[2]mil trainer'!$B$6:$K$73,MATCH(L12,'[2]mil trainer'!$B$6:$B$73,0),8),INDEX('[2]mil trainer'!$B$6:$K$73,MATCH(M12,'[2]mil trainer'!$B$6:$B$73,0),8)) -> Northrop Grumman LINS 300 | J12: 2 | K12: =INDEX('[1]Pt1-DATA'!$A$5:$M$13349,MATCH(A12,'[1]Pt1-DATA'!$C$5:$C$13349,0),6) -> A | L12: IN/GPS system | N12: 48760
A13: 167#814 | B13: =IFERROR(INDEX('[1]Pt1-DATA'!$C:$D,MATCH(A13,'[1]Pt1-DATA'!$C:$C,0),2),"") -> 81034 | C13: =IFERROR(INDEX('[2]mil trainer'!$B$6:$K$73,MATCH(L13,'[2]mil trainer'!$B$6:$B$73,0),4)*1000,INDEX('[2]mil trainer'!$B$6:$K$73,MATCH(M13,'[2]mil trainer'!$B$6:$B$73,0),4)*1000) -> 40000 | D13: =B13*(1+'Federal Reserve PPI AC Parts'!$E$12) -> 90628.66557 | E13: =C13*(1+'Federal Reserve PPI AC Parts'!$E$12) -> 44736.11846 | F13: Used Model 2024 | G13: 90628.66557 | H13: 1.02585 | I13: =IFERROR(INDEX('[2]mil trainer'!$B$6:$K$73,MATCH(L13,'[2]mil trainer'!$B$6:$B$73,0),8),INDEX('[2]mil trainer'!$B$6:$K$73,MATCH(M13,'[2]mil trainer'!$B$6:$B$73,0),8)) -> Northrop Grumman NG AG-66H | J13: 1 | K13: =INDEX('[1]Pt1-DATA'!$A$5:$M$13349,MATCH(A13,'[1]Pt1-DATA'!$C$5:$C$13349,0),6) -> A | L13: Multi mode radar | N13: 81034
A14: 167#815 | B14: =IFERROR(INDEX('[1]Pt1-DATA'!$C:$D,MATCH(A14,'[1]Pt1-DATA'!$C:$C,0),2),"") -> 49498 | C14: =IFERROR(INDEX('[2]mil trainer'!$B$6:$K$73,MATCH(L14,'[2]mil trainer'!$B$6:$B$73,0),4)*1000,INDEX('[2]mil trainer'!$B$6:$K$73,MATCH(M14,'[2]mil trainer'!$B$6:$B$73,0),4)*1000) -> 45000 | D14: =B14*(1+'Federal Reserve PPI AC Parts'!$E$12) -> 55358.70978 | E14: =C14*(1+'Federal Reserve PPI AC Parts'!$E$12) -> 50328.13326 | F14: Used Model 2024 | G14: 55358.70978 | H14: 0.09995555556 | I14: =IFERROR(INDEX('[2]mil trainer'!$B$6:$K$73,MATCH(L14,'[2]mil trainer'!$B$6:$B$73,0),8),INDEX('[2]mil trainer'!$B$6:$K$73,MATCH(M14,'[2]mil trainer'!$B$6:$B$73,0),8)) -> Collins | J14: 3 | K14: =INDEX('[1]Pt1-DATA'!$A$5:$M$13349,MATCH(A14,'[1]Pt1-DATA'!$C$5:$C$13349,0),6) -> A | L14: Air Data smart sensor | N14: 49498
A15: 167#816 | B15: =IFERROR(INDEX('[1]Pt1-DATA'!$C:$D,MATCH(A15,'[1]Pt1-DATA'!$C:$C,0),2),"") -> 54998 | C15: =IFERROR(INDEX('[2]mil trainer'!$B$6:$K$73,MATCH(L15,'[2]mil trainer'!$B$6:$B$73,0),4)*1000,INDEX('[2]mil trainer'!$B$6:$K$73,MATCH(M15,'[2]mil trainer'!$B$6:$B$73,0),4)*1000) -> 30000 | D15: =B15*(1+'Federal Reserve PPI AC Parts'!$E$12) -> 61509.92607 | E15: =C15*(1+'Federal Reserve PPI AC Parts'!$E$12) -> 33552.08884 | F15: Used Model 2024 | G15: 61509.92607 | H15: 0.8332666667 | I15: =IFERROR(INDEX('[2]mil trainer'!$B$6:$K$73,MATCH(L15,'[2]mil trainer'!$B$6:$B$73,0),8),INDEX('[2]mil trainer'!$B$6:$K$73,MATCH(M15,'[2]mil trainer'!$B$6:$B$73,0),8)) -> 0 | J15: 2 | K15: =INDEX('[1]Pt1-DATA'!$A$5:$M$13349,MATCH(A15,'[1]Pt1-DATA'!$C$5:$C$13349,0),6) -> A | L15: FLIR sensors | N15: 54998
A16: 167#817 | B16: =IFERROR(INDEX('[1]Pt1-DATA'!$C:$D,MATCH(A16,'[1]Pt1-DATA'!$C:$C,0),2),"") -> 26597 | C16: =IFERROR(INDEX('[2]mil trainer'!$B$6:$K$73,MATCH(L16,'[2]mil trainer'!$B$6:$B$73,0),4)*1000,INDEX('[2]mil trainer'!$B$6:$K$73,MATCH(M16,'[2]mil trainer'!$B$6:$B$73,0),4)*1000) -> 30000 | D16: =B16*(1+'Federal Reserve PPI AC Parts'!$E$12) -> 29746.16356 | E16: =C16*(1+'Federal Reserve PPI AC Parts'!$E$12) -> 33552.08884 | F16: Used Model 2024 | G16: 29746.16356 | H16: -0.1134333333 | I16: =IFERROR(INDEX('[2]mil trainer'!$B$6:$K$73,MATCH(L16,'[2]mil trainer'!$B$6:$B$73,0),8),INDEX('[2]mil trainer'!$B$6:$K$73,MATCH(M16,'[2]mil trainer'!$B$6:$B$73,0),8)) -> 0 | J16: 1 | K16: =INDEX('[1]Pt1-DATA'!$A$5:$M$13349,MATCH(A16,'[1]Pt1-DATA'!$C$5:$C$13349,0),6) -> A | L16: Navigation receiver | N16: 26597
A17: 167#818 | B17: =IFERROR(INDEX('[1]Pt1-DATA'!$C:$D,MATCH(A17,'[1]Pt1-DATA'!$C:$C,0),2),"") -> 68491 | C17: =IFERROR(INDEX('[2]mil trainer'!$B$6:$K$73,MATCH(L17,'[2]mil trainer'!$B$6:$B$73,0),4)*1000,INDEX('[2]mil trainer'!$B$6:$K$73,MATCH(M17,'[2]mil trainer'!$B$6:$B$73,0),4)*1000) -> 30000 | D17: =B17*(1+'Federal Reserve PPI AC Parts'!$E$12) -> 76600.53723 | E17: =C17*(1+'Federal Reserve PPI AC Parts'!$E$12) -> 33552.08884 | F17: Used Model 2024 | G17: 76600.53723 | H17: 1.283033333 | I17: =IFERROR(INDEX('[2]mil trainer'!$B$6:$K$73,MATCH(L17,'[2]mil trainer'!$B$6:$B$73,0),8),INDEX('[2]mil trainer'!$B$6:$K$73,MATCH(M17,'[2]mil trainer'!$B$6:$B$73,0),8)) -> ??? | J17: 1 | K17: =INDEX('[1]Pt1-DATA'!$A$5:$M$13349,MATCH(A17,'[1]Pt1-DATA'!$C$5:$C$13349,0),6) -> B | L17: Radio receivers | N17: 68491
A18: 167#819 | B18: =IFERROR(INDEX('[1]Pt1-DATA'!$C:$D,MATCH(A18,'[1]Pt1-DATA'!$C:$C,0),2),"") -> 78124 | C18: =IFERROR(INDEX('[2]mil trainer'!$B$6:$K$73,MATCH(L18,'[2]mil trainer'!$B$6:$B$73,0),4)*1000,INDEX('[2]mil trainer'!$B$6:$K$73,MATCH(M18,'[2]mil trainer'!$B$6:$B$73,0),4)*1000) -> 50000 | D18: =B18*(1+'Federal Reserve PPI AC Parts'!$E$12) -> 87374.11296 | E18: =C18*(1+'Federal Reserve PPI AC Parts'!$E$12) -> 55920.14807 | F18: Used Model 2024 | G18: 87374.11296 | H18: 0.56248 | I18: =IFERROR(INDEX('[2]mil trainer'!$B$6:$K$73,MATCH(L18,'[2]mil trainer'!$B$6:$B$73,0),8),INDEX('[2]mil trainer'!$B$6:$K$73,MATCH(M18,'[2]mil trainer'!$B$6:$B$73,0),8)) -> ??? | J18: 2 | K18: =INDEX('[1]Pt1-DATA'!$A$5:$M$13349,MATCH(A18,'[1]Pt1-DATA'!$C$5:$C$13349,0),6) -> A | L18: Stores Management System | N18: 78124
A19: 167#820 | B19: =IFERROR(INDEX('[1]Pt1-DATA'!$C:$D,MATCH(A19,'[1]Pt1-DATA'!$C:$C,0),2),"") -> 75910 | C19: =IFERROR(INDEX('[2]mil trainer'!$B$6:$K$73,MATCH(L19,'[2]mil trainer'!$B$6:$B$73,0),4)*1000,INDEX('[2]mil trainer'!$B$6:$K$73,MATCH(M19,'[2]mil trainer'!$B$6:$B$73,0),4)*1000) -> 75000 | D19: =B19*(1+'Federal Reserve PPI AC Parts'!$E$12) -> 84897.9688 | E19: =C19*(1+'Federal Reserve PPI AC Parts'!$E$12) -> 83880.2221 | F19: Used Model 2024 | G19: 84897.9688 | H19: 0.01213333333 | I19: =IFERROR(INDEX('[2]mil trainer'!$B$6:$K$73,MATCH(L19,'[2]mil trainer'!$B$6:$B$73,0),8),INDEX('[2]mil trainer'!$B$6:$K$73,MATCH(M19,'[2]mil trainer'!$B$6:$B$73,0),8)) -> 0 | J19: 1 | K19: =INDEX('[1]Pt1-DATA'!$A$5:$M$13349,MATCH(A19,'[1]Pt1-DATA'!$C$5:$C$13349,0),6) -> A | L19: Dual redundant digital bus | N19: 75910
A20: 167#821 | B20: =IFERROR(INDEX('[1]Pt1-DATA'!$C:$D,MATCH(A20,'[1]Pt1-DATA'!$C:$C,0),2),"") -> 74794 | C20: =IFERROR(INDEX('[2]mil trainer'!$B$6:$K$73,MATCH(L20,'[2]mil trainer'!$B$6:$B$73,0),4)*1000,INDEX('[2]mil trainer'!$B$6:$K$73,MATCH(M20,'[2]mil trainer'!$B$6:$B$73,0),4)*1000) -> 35000 | D20: =B20*(1+'Federal Reserve PPI AC Parts'!$E$12) -> 83649.83109 | E20: =C20*(1+'Federal Reserve PPI AC Parts'!$E$12) -> 39144.10365 | F20: Used Model 2024 | G20: 83649.83109 | H20: 1.136971429 | I20: =IFERROR(INDEX('[2]mil trainer'!$B$6:$K$73,MATCH(L20,'[2]mil trainer'!$B$6:$B$73,0),8),INDEX('[2]mil trainer'!$B$6:$K$73,MATCH(M20,'[2]mil trainer'!$B$6:$B$73,0),8)) -> 0 | J20: 1 | K20: =INDEX('[1]Pt1-DATA'!$A$5:$M$13349,MATCH(A20,'[1]Pt1-DATA'!$C$5:$C$13349,0),6) -> B | L20: Digital Data link/transfer | N20: 74794
A21: 167#878 | B21: =IFERROR(INDEX('[1]Pt1-DATA'!$C:$D,MATCH(A21,'[1]Pt1-DATA'!$C:$C,0),2),"") -> 82497 | C21: =IFERROR(INDEX('[2]mil trainer'!$B$6:$K$73,MATCH(L21,'[2]mil trainer'!$B$6:$B$73,0),4)*1000,INDEX('[2]mil trainer'!$B$6:$K$73,MATCH(M21,'[2]mil trainer'!$B$6:$B$73,0),4)*1000) ->  | D21: =B21*(1+'Federal Reserve PPI AC Parts'!$E$12) -> 92264.88911 | E21: =C21*(1+'Federal Reserve PPI AC Parts'!$E$12) ->  | F21: Used Model 2024 | G21: 92264.88911 | I21: =IFERROR(INDEX('[2]mil trainer'!$B$6:$K$73,MATCH(L21,'[2]mil trainer'!$B$6:$B$73,0),8),INDEX('[2]mil trainer'!$B$6:$K$73,MATCH(M21,'[2]mil trainer'!$B$6:$B$73,0),8)) ->  | J21: 1 | K21: =INDEX('[1]Pt1-DATA'!$A$5:$M$13349,MATCH(A21,'[1]Pt1-DATA'!$C$5:$C$13349,0),6) -> G | L21: Sensors IFF, other | N21: 82497
A22: 167#879 | B22: =IFERROR(INDEX('[1]Pt1-DATA'!$C:$D,MATCH(A22,'[1]Pt1-DATA'!$C:$C,0),2),"") -> 114566 | C22: =IFERROR(INDEX('[2]mil trainer'!$B$6:$K$73,MATCH(L22,'[2]mil trainer'!$B$6:$B$73,0),4)*1000,INDEX('[2]mil trainer'!$B$6:$K$73,MATCH(M22,'[2]mil trainer'!$B$6:$B$73,0),4)*1000) ->  | D22: =B22*(1+'Federal Reserve PPI AC Parts'!$E$12) -> 128130.9537 | E22: =C22*(1+'Federal Reserve PPI AC Parts'!$E$12) ->  | F22: Used Model 2024 | G22: 128130.9537 | I22: =IFERROR(INDEX('[2]mil trainer'!$B$6:$K$73,MATCH(L22,'[2]mil trainer'!$B$6:$B$73,0),8),INDEX('[2]mil trainer'!$B$6:$K$73,MATCH(M22,'[2]mil trainer'!$B$6:$B$73,0),8)) ->  | J22: 1 | K22: =INDEX('[1]Pt1-DATA'!$A$5:$M$13349,MATCH(A22,'[1]Pt1-DATA'!$C$5:$C$13349,0),6) -> S | L22: Software | N22: 114566
A23: 167#1056 | B23: =IFERROR(INDEX('[1]Pt1-DATA'!$C:$D,MATCH(A23,'[1]Pt1-DATA'!$C:$C,0),2),"") -> 575 | C23: =IFERROR(INDEX('[2]mil trainer'!$B$6:$K$73,MATCH(L23,'[2]mil trainer'!$B$6:$B$73,0),4)*1000,INDEX('[2]mil trainer'!$B$6:$K$73,MATCH(M23,'[2]mil trainer'!$B$6:$B$73,0),4)*1000) ->  | D23: =B23*(1+'Federal Reserve PPI AC Parts'!$E$12) -> 643.0817028 | E23: =C23*(1+'Federal Reserve PPI AC Parts'!$E$12) ->  | F23: Used Model 2024 | G23: 643.0817028 | I23: =IFERROR(INDEX('[2]mil trainer'!$B$6:$K$73,MATCH(L23,'[2]mil trainer'!$B$6:$B$73,0),8),INDEX('[2]mil trainer'!$B$6:$K$73,MATCH(M23,'[2]mil trainer'!$B$6:$B$73,0),8)) ->  | J23: 1 | K23: =INDEX('[1]Pt1-DATA'!$A$5:$M$13349,MATCH(A23,'[1]Pt1-DATA'!$C$5:$C$13349,0),6) -> AF | L23: Avionics Harnesses | N23: 575
A24: 167#1057 | B24: =IFERROR(INDEX('[1]Pt1-DATA'!$C:$D,MATCH(A24,'[1]Pt1-DATA'!$C:$C,0),2),"") -> 4094 | C24: =IFERROR(INDEX('[2]mil trainer'!$B$6:$K$73,MATCH(L24,'[2]mil trainer'!$B$6:$B$73,0),4)*1000,INDEX('[2]mil trainer'!$B$6:$K$73,MATCH(M24,'[2]mil trainer'!$B$6:$B$73,0),4)*1000) ->  | D24: =B24*(1+'Federal Reserve PPI AC Parts'!$E$12) -> 4578.741724 | E24: =C24*(1+'Federal Reserve PPI AC Parts'!$E$12) ->  | F24: Used Model 2024 | G24: 4578.741724 | I24: =IFERROR(INDEX('[2]mil trainer'!$B$6:$K$73,MATCH(L24,'[2]mil trainer'!$B$6:$B$73,0),8),INDEX('[2]mil trainer'!$B$6:$K$73,MATCH(M24,'[2]mil trainer'!$B$6:$B$73,0),8)) ->  | J24: 1 | K24: =INDEX('[1]Pt1-DATA'!$A$5:$M$13349,MATCH(A24,'[1]Pt1-DATA'!$C$5:$C$13349,0),6) -> AF | L24: Avionics Harnesses | N24: 4094
A25: 167#1058 | B25: =IFERROR(INDEX('[1]Pt1-DATA'!$C:$D,MATCH(A25,'[1]Pt1-DATA'!$C:$C,0),2),"") -> 4950 | C25: =IFERROR(INDEX('[2]mil trainer'!$B$6:$K$73,MATCH(L25,'[2]mil trainer'!$B$6:$B$73,0),4)*1000,INDEX('[2]mil trainer'!$B$6:$K$73,MATCH(M25,'[2]mil trainer'!$B$6:$B$73,0),4)*1000) ->  | D25: =B25*(1+'Federal Reserve PPI AC Parts'!$E$12) -> 5536.094659 | E25: =C25*(1+'Federal Reserve PPI AC Parts'!$E$12) ->  | F25: Used Model 2024 | G25: 5536.094659 | I25: =IFERROR(INDEX('[2]mil trainer'!$B$6:$K$73,MATCH(L25,'[2]mil trainer'!$B$6:$B$73,0),8),INDEX('[2]mil trainer'!$B$6:$K$73,MATCH(M25,'[2]mil trainer'!$B$6:$B$73,0),8)) ->  | J25: 1 | K25: =INDEX('[1]Pt1-DATA'!$A$5:$M$13349,MATCH(A25,'[1]Pt1-DATA'!$C$5:$C$13349,0),6) -> AF | L25: Avionics Harnesses | N25: 4950
A26: 167#1059 | B26: =IFERROR(INDEX('[1]Pt1-DATA'!$C:$D,MATCH(A26,'[1]Pt1-DATA'!$C:$C,0),2),"") -> 1024 | C26: =IFERROR(INDEX('[2]mil trainer'!$B$6:$K$73,MATCH(L26,'[2]mil trainer'!$B$6:$B$73,0),4)*1000,INDEX('[2]mil trainer'!$B$6:$K$73,MATCH(M26,'[2]mil trainer'!$B$6:$B$73,0),4)*1000) ->  | D26: =B26*(1+'Federal Reserve PPI AC Parts'!$E$12) -> 1145.244632 | E26: =C26*(1+'Federal Reserve PPI AC Parts'!$E$12) ->  | F26: Used Model 2024 | G26: 1145.244632 | I26: =IFERROR(INDEX('[2]mil trainer'!$B$6:$K$73,MATCH(L26,'[2]mil trainer'!$B$6:$B$73,0),8),INDEX('[2]mil trainer'!$B$6:$K$73,MATCH(M26,'[2]mil trainer'!$B$6:$B$73,0),8)) ->  | J26: 1 | K26: =INDEX('[1]Pt1-DATA'!$A$5:$M$13349,MATCH(A26,'[1]Pt1-DATA'!$C$5:$C$13349,0),6) -> AF | L26: Avionics Harnesses | N26: 1024

Sheet bizjet
A1: Aircraft: | B1: =INDEX('[3]Pt1-AvionicsComponentCosts'!$A$11:$E$384,MATCH(VALUE(LEFT(A5,SEARCH("#",A5)-1)),'[3]Pt1-AvionicsComponentCosts'!$A$11:$A$384,0),5) -> Bombardier Global 5000
B2: Avionics Cost 2020 | G2: Avionics Cost 2024 | I2: % Change 2020 - 2024
B3: =SUMPRODUCT(B5:B80,J5:J80) -> 2101332 | G3: =SUMPRODUCT(G5:G80,J5:J80) -> 2781900 | I3: =($G$3-$B$3)/$B$3 -> 0.323874571
B4: Model 2020 | C4: PW 2020 | D4: 2024 PPI Model | E4: 2024 PPI PW | F4: Notes | G4: 2024 AE Estimate | H4: Pct Change | I4: Source | J4: #/AC | K4: Factor | L4: Item | M4: Alt Item (PW) | N4: previous
A5: 36#709 | B5: =IFERROR(INDEX('[1]Pt1-DATA'!$C:$D,MATCH(A5,'[1]Pt1-DATA'!$C:$C,0),2),"") -> 54797 | C5: =IFERROR(INDEX([2]bizjet!$B$6:$K$73,MATCH(L5,[2]bizjet!$B$6:$B$73,0),4)*1000,INDEX([2]bizjet!$B$6:$K$73,MATCH(M5,[2]bizjet!$B$6:$B$73,0),4)*1000) -> 30000 | D5: =B5*(1+'Federal Reserve PPI AC Parts'!$E$12) -> 61285.12708 | E5: =C5*(1+'Federal Reserve PPI AC Parts'!$E$12) -> 33552.08884 | F5: PW Low | G5: 63000 | H5: =(B5-C5)/C5 -> 0.8265666667 | I5: =IFERROR(INDEX([2]bizjet!$B$6:$K$73,MATCH(L5,[2]bizjet!$B$6:$B$73,0),7),INDEX([2]bizjet!$B$6:$K$73,MATCH(M5,[2]bizjet!$B$6:$B$73,0),7)) -> HWL | J5: 2 | K5: =INDEX('[1]Pt1-DATA'!$A$5:$M$13349,MATCH(A5,'[1]Pt1-DATA'!$C$5:$C$13349,0),6) -> I | L5: FMGC | M5: Flight Management FMS 1 & 2 (FMS 3 optional | N5: 54797
A6: 36#710 | B6: =IFERROR(INDEX('[1]Pt1-DATA'!$C:$D,MATCH(A6,'[1]Pt1-DATA'!$C:$C,0),2),"") -> 26094 | C6: =IFERROR(INDEX([2]bizjet!$B$6:$K$73,MATCH(L6,[2]bizjet!$B$6:$B$73,0),4)*1000,INDEX([2]bizjet!$B$6:$K$73,MATCH(M6,[2]bizjet!$B$6:$B$73,0),4)*1000) -> 25000 | D6: =B6*(1+'Federal Reserve PPI AC Parts'!$E$12) -> 29183.60687 | E6: =C6*(1+'Federal Reserve PPI AC Parts'!$E$12) -> 27960.07403 | F6: Validated PW 2020 | G6: 30000 | H6: =(B6-C6)/C6 -> 0.04376 | I6: =IFERROR(INDEX([2]bizjet!$B$6:$K$73,MATCH(L6,[2]bizjet!$B$6:$B$73,0),7),INDEX([2]bizjet!$B$6:$K$73,MATCH(M6,[2]bizjet!$B$6:$B$73,0),7)) -> HWL | J6: 2 | K6: =INDEX('[1]Pt1-DATA'!$A$5:$M$13349,MATCH(A6,'[1]Pt1-DATA'!$C$5:$C$13349,0),6) -> G | L6: MCDU | M6: MCDU inputs | N6: 26094
A7: 36#721 | B7: =IFERROR(INDEX('[1]Pt1-DATA'!$C:$D,MATCH(A7,'[1]Pt1-DATA'!$C:$C,0),2),"") -> 26597 | C7: =IFERROR(INDEX([2]bizjet!$B$6:$K$73,MATCH(L7,[2]bizjet!$B$6:$B$73,0),4)*1000,INDEX([2]bizjet!$B$6:$K$73,MATCH(M7,[2]bizjet!$B$6:$B$73,0),4)*1000) -> 30000 | D7: =B7*(1+'Federal Reserve PPI AC Parts'!$E$12) -> 29746.16356 | E7: =C7*(1+'Federal Reserve PPI AC Parts'!$E$12) -> 33552.08884 | F7: Validated PW 2020 | G7: 34000 | H7: -0.1134333333 | I7: =IFERROR(INDEX([2]bizjet!$B$6:$K$73,MATCH(L7,[2]bizjet!$B$6:$B$73,0),7),INDEX([2]bizjet!$B$6:$K$73,MATCH(M7,[2]bizjet!$B$6:$B$73,0),7)) -> HWL | J7: 3 | K7: =INDEX('[1]Pt1-DATA'!$A$5:$M$13349,MATCH(A7,'[1]Pt1-DATA'!$C$5:$C$13349,0),6) -> P1 | L7: Air Data Modules (ADM) | M7: Air Data Computers | N7: 26597
A8: 36#722 | B8: =IFERROR(INDEX('[1]Pt1-DATA'!$C:$D,MATCH(A8,'[1]Pt1-DATA'!$C:$C,0),2),"") -> 10999 | C8: =IFERROR(INDEX([2]bizjet!$B$6:$K$73,MATCH(L8,[2]bizjet!$B$6:$B$73,0),4)*1000,INDEX([2]bizjet!$B$6:$K$73,MATCH(M8,[2]bizjet!$B$6:$B$73,0),4)*1000) -> 10000 | D8: =B8*(1+'Federal Reserve PPI AC Parts'!$E$12) -> 12301.31417 | E8: =C8*(1+'Federal Reserve PPI AC Parts'!$E$12) -> 11184.02961 | F8: Validated PW 2020 | G8: 12000 | H8: 0.0999 | I8: =IFERROR(INDEX([2]bizjet!$B$6:$K$73,MATCH(L8,[2]bizjet!$B$6:$B$73,0),7),INDEX([2]bizjet!$B$6:$K$73,MATCH(M8,[2]bizjet!$B$6:$B$73,0),7)) -> Collins ?? | J8: 4 | K8: =INDEX('[1]Pt1-DATA'!$A$5:$M$13349,MATCH(A8,'[1]Pt1-DATA'!$C$5:$C$13349,0),6) -> G1 | L8: Air data probes (pitot/static) | M8: Pitot Static sensors | N8: 10999
A9: 36#727 | B9: =IFERROR(INDEX('[1]Pt1-DATA'!$C:$D,MATCH(A9,'[1]Pt1-DATA'!$C:$C,0),2),"") -> 35424 | C9: =IFERROR(INDEX([2]bizjet!$B$6:$K$73,MATCH(L9,[2]bizjet!$B$6:$B$73,0),4)*1000,INDEX([2]bizjet!$B$6:$K$73,MATCH(M9,[2]bizjet!$B$6:$B$73,0),4)*1000) -> 40000 | D9: =B9*(1+'Federal Reserve PPI AC Parts'!$E$12) -> 39618.3065 | E9: =C9*(1+'Federal Reserve PPI AC Parts'!$E$12) -> 44736.11846 | F9: Validated PW 2020 | G9: 45000 | H9: -0.1144 | I9: =IFERROR(INDEX([2]bizjet!$B$6:$K$73,MATCH(L9,[2]bizjet!$B$6:$B$73,0),7),INDEX([2]bizjet!$B$6:$K$73,MATCH(M9,[2]bizjet!$B$6:$B$73,0),7)) -> HWL | J9: 1 | K9: =INDEX('[1]Pt1-DATA'!$A$5:$M$13349,MATCH(A9,'[1]Pt1-DATA'!$C$5:$C$13349,0),6) -> F | L9: Navigation display (EFIS) | M9: Display units | N9: 35424
A10: 36#747 | B10: =IFERROR(INDEX('[1]Pt1-DATA'!$C:$D,MATCH(A10,'[1]Pt1-DATA'!$C:$C,0),2),"") -> 0 | C10: =IFERROR(INDEX([2]bizjet!$B$6:$K$73,MATCH(L10,[2]bizjet!$B$6:$B$73,0),4)*1000,INDEX([2]bizjet!$B$6:$K$73,MATCH(M10,[2]bizjet!$B$6:$B$73,0),4)*1000) -> 20000 | D10: =B10*(1+'Federal Reserve PPI AC Parts'!$E$12) -> 0 | E10: =C10*(1+'Federal Reserve PPI AC Parts'!$E$12) -> 22368.05923 | F10: Validated PW 2020 | G10: 23000 | H10: -1 | I10: =IFERROR(INDEX([2]bizjet!$B$6:$K$73,MATCH(L10,[2]bizjet!$B$6:$B$73,0),7),INDEX([2]bizjet!$B$6:$K$73,MATCH(M10,[2]bizjet!$B$6:$B$73,0),7)) -> HWL | J10: 1 | K10: =INDEX('[1]Pt1-DATA'!$A$5:$M$13349,MATCH(A10,'[1]Pt1-DATA'!$C$5:$C$13349,0),6) -> A | L10: WX control panel | M10: WX Radar Controller | N10: 0
A11: 36#750 | B11: =IFERROR(INDEX('[1]Pt1-DATA'!$C:$D,MATCH(A11,'[1]Pt1-DATA'!$C:$C,0),2),"") -> 0 | C11: =IFERROR(INDEX([2]bizjet!$B$6:$K$73,MATCH(L11,[2]bizjet!$B$6:$B$73,0),4)*1000,INDEX([2]bizjet!$B$6:$K$73,MATCH(M11,[2]bizjet!$B$6:$B$73,0),4)*1000) ->  | D11: =B11*(1+'Federal Reserve PPI AC Parts'!$E$12) -> 0 | E11: =C11*(1+'Federal Reserve PPI AC Parts'!$E$12) ->  | G11: 0 | I11: =IFERROR(INDEX([2]bizjet!$B$6:$K$73,MATCH(L11,[2]bizjet!$B$6:$B$73,0),7),INDEX([2]bizjet!$B$6:$K$73,MATCH(M11,[2]bizjet!$B$6:$B$73,0),7)) ->  | J11: 1 | K11: =INDEX('[1]Pt1-DATA'!$A$5:$M$13349,MATCH(A11,'[1]Pt1-DATA'!$C$5:$C$13349,0),6) -> A | L11: TCAS antennas | N11: 0
A12: 36#752 | B12: =IFERROR(INDEX('[1]Pt1-DATA'!$C:$D,MATCH(A12,'[1]Pt1-DATA'!$C:$C,0),2),"") -> 14677 | C12: =IFERROR(INDEX([2]bizjet!$B$6:$K$73,MATCH(L12,[2]bizjet!$B$6:$B$73,0),4)*1000,INDEX([2]bizjet!$B$6:$K$73,MATCH(M12,[2]bizjet!$B$6:$B$73,0),4)*1000) -> 15000 | D12: =B12*(1+'Federal Reserve PPI AC Parts'!$E$12) -> 16414.80026 | E12: =C12*(1+'Federal Reserve PPI AC Parts'!$E$12) -> 16776.04442 | F12: Validated PW 2020 | G12: 17000 | H12: -0.02153333333 | I12: =IFERROR(INDEX([2]bizjet!$B$6:$K$73,MATCH(L12,[2]bizjet!$B$6:$B$73,0),7),INDEX([2]bizjet!$B$6:$K$73,MATCH(M12,[2]bizjet!$B$6:$B$73,0),7)) -> ??? | J12: 1 | K12: =INDEX('[1]Pt1-DATA'!$A$5:$M$13349,MATCH(A12,'[1]Pt1-DATA'!$C$5:$C$13349,0),6) -> E | L12: Cockpit Voice Recorder | M12: Cockpit Data Recorder | N12: 14677
A13: 36#754 | B13: =IFERROR(INDEX('[1]Pt1-DATA'!$C:$D,MATCH(A13,'[1]Pt1-DATA'!$C:$C,0),2),"") -> 17261 | C13: =IFERROR(INDEX([2]bizjet!$B$6:$K$73,MATCH(L13,[2]bizjet!$B$6:$B$73,0),4)*1000,INDEX([2]bizjet!$B$6:$K$73,MATCH(M13,[2]bizjet!$B$6:$B$73,0),4)*1000) -> 15000 | D13: =B13*(1+'Federal Reserve PPI AC Parts'!$E$12) -> 19304.75352 | E13: =C13*(1+'Federal Reserve PPI AC Parts'!$E$12) -> 16776.04442 | F13: PW Low | G13: 20000 | H13: 0.1507333333 | I13: =IFERROR(INDEX([2]bizjet!$B$6:$K$73,MATCH(L13,[2]bizjet!$B$6:$B$73,0),7),INDEX([2]bizjet!$B$6:$K$73,MATCH(M13,[2]bizjet!$B$6:$B$73,0),7)) -> ??? | J13: 1 | K13: =INDEX('[1]Pt1-DATA'!$A$5:$M$13349,MATCH(A13,'[1]Pt1-DATA'!$C$5:$C$13349,0),6) -> G | L13: Flight Data Recorder | N13: 17261
A14: 36#764 | B14: =IFERROR(INDEX('[1]Pt1-DATA'!$C:$D,MATCH(A14,'[1]Pt1-DATA'!$C:$C,0),2),"") -> 17731 | C14: =IFERROR(INDEX([2]bizjet!$B$6:$K$73,MATCH(L14,[2]bizjet!$B$6:$B$73,0),4)*1000,INDEX([2]bizjet!$B$6:$K$73,MATCH(M14,[2]bizjet!$B$6:$B$73,0),4)*1000) -> 20000 | D14: =B14*(1+'Federal Reserve PPI AC Parts'!$E$12) -> 19830.40291 | E14: =C14*(1+'Federal Reserve PPI AC Parts'!$E$12) -> 22368.05923 | F14: Validated PW 2020 | G14: 23000 | H14: -0.11345 | I14: =IFERROR(INDEX([2]bizjet!$B$6:$K$73,MATCH(L14,[2]bizjet!$B$6:$B$73,0),7),INDEX([2]bizjet!$B$6:$K$73,MATCH(M14,[2]bizjet!$B$6:$B$73,0),7)) -> ???? | J14: 1 | K14: =INDEX('[1]Pt1-DATA'!$A$5:$M$13349,MATCH(A14,'[1]Pt1-DATA'!$C$5:$C$13349,0),6) -> H1 | L14: Radar altimeters | M14: Radio Altimeter System | N14: 17731
A15: 36#765 | B15: =IFERROR(INDEX('[1]Pt1-DATA'!$C:$D,MATCH(A15,'[1]Pt1-DATA'!$C:$C,0),2),"") -> 10121 | C15: =IFERROR(INDEX([2]bizjet!$B$6:$K$73,MATCH(L15,[2]bizjet!$B$6:$B$73,0),4)*1000,INDEX([2]bizjet!$B$6:$K$73,MATCH(M15,[2]bizjet!$B$6:$B$73,0),4)*1000) -> 40000 | D15: =B15*(1+'Federal Reserve PPI AC Parts'!$E$12) -> 11319.35637 | E15: =C15*(1+'Federal Reserve PPI AC Parts'!$E$12) -> 44736.11846 | F15: Validated PW 2020 | G15: 45000 | H15: -0.746975 | I15: =IFERROR(INDEX([2]bizjet!$B$6:$K$73,MATCH(L15,[2]bizjet!$B$6:$B$73,0),7),INDEX([2]bizjet!$B$6:$K$73,MATCH(M15,[2]bizjet!$B$6:$B$73,0),7)) -> HWL | J15: 2 | K15: =INDEX('[1]Pt1-DATA'!$A$5:$M$13349,MATCH(A15,'[1]Pt1-DATA'!$C$5:$C$13349,0),6) -> F | L15: Multi Function Display | M15: Display units | N15: 10121
A16: 36#771 | B16: =IFERROR(INDEX('[1]Pt1-DATA'!$C:$D,MATCH(A16,'[1]Pt1-DATA'!$C:$C,0),2),"") -> 34520 | C16: =IFERROR(INDEX([2]bizjet!$B$6:$K$73,MATCH(L16,[2]bizjet!$B$6:$B$73,0),4)*1000,INDEX([2]bizjet!$B$6:$K$73,MATCH(M16,[2]bizjet!$B$6:$B$73,0),4)*1000) ->  | D16: =B16*(1+'Federal Reserve PPI AC Parts'!$E$12) -> 38607.27023 | E16: =C16*(1+'Federal Reserve PPI AC Parts'!$E$12) ->  | G16: 0 | I16: =IFERROR(INDEX([2]bizjet!$B$6:$K$73,MATCH(L16,[2]bizjet!$B$6:$B$73,0),7),INDEX([2]bizjet!$B$6:$K$73,MATCH(M16,[2]bizjet!$B$6:$B$73,0),7)) ->  | J16: 4 | K16: =INDEX('[1]Pt1-DATA'!$A$5:$M$13349,MATCH(A16,'[1]Pt1-DATA'!$C$5:$C$13349,0),6) -> E | L16: Data Management Unit | N16: 34520
A17: 36#773 | B17: =IFERROR(INDEX('[1]Pt1-DATA'!$C:$D,MATCH(A17,'[1]Pt1-DATA'!$C:$C,0),2),"") -> 72906 | C17: =IFERROR(INDEX([2]bizjet!$B$6:$K$73,MATCH(L17,[2]bizjet!$B$6:$B$73,0),4)*1000,INDEX([2]bizjet!$B$6:$K$73,MATCH(M17,[2]bizjet!$B$6:$B$73,0),4)*1000) -> 40000 | D17: =B17*(1+'Federal Reserve PPI AC Parts'!$E$12) -> 81538.2863 | E17: =C17*(1+'Federal Reserve PPI AC Parts'!$E$12) -> 44736.11846 | F17: PW Low | G17: 82000 | H17: 0.82265 | I17: =IFERROR(INDEX([2]bizjet!$B$6:$K$73,MATCH(L17,[2]bizjet!$B$6:$B$73,0),7),INDEX([2]bizjet!$B$6:$K$73,MATCH(M17,[2]bizjet!$B$6:$B$73,0),7)) -> HWL | J17: 2 | K17: =INDEX('[1]Pt1-DATA'!$A$5:$M$13349,MATCH(A17,'[1]Pt1-DATA'!$C$5:$C$13349,0),6) -> C | L17: Common Core processing | M17: Integrated Avionics computers (IACs) | N17: 72906
A18: 36#775 | B18: =IFERROR(INDEX('[1]Pt1-DATA'!$C:$D,MATCH(A18,'[1]Pt1-DATA'!$C:$C,0),2),"") -> 41660 | C18: =IFERROR(INDEX([2]bizjet!$B$6:$K$73,MATCH(L18,[2]bizjet!$B$6:$B$73,0),4)*1000,INDEX([2]bizjet!$B$6:$K$73,MATCH(M18,[2]bizjet!$B$6:$B$73,0),4)*1000) ->  | D18: =B18*(1+'Federal Reserve PPI AC Parts'!$E$12) -> 46592.66737 | E18: =C18*(1+'Federal Reserve PPI AC Parts'!$E$12) ->  | G18: 0 | I18: =IFERROR(INDEX([2]bizjet!$B$6:$K$73,MATCH(L18,[2]bizjet!$B$6:$B$73,0),7),INDEX([2]bizjet!$B$6:$K$73,MATCH(M18,[2]bizjet!$B$6:$B$73,0),7)) ->  | J18: 1 | K18: =INDEX('[1]Pt1-DATA'!$A$5:$M$13349,MATCH(A18,'[1]Pt1-DATA'!$C$5:$C$13349,0),6) -> C | L18: Common Data Network | N18: 41660
A19: 36#804 | B19: =IFERROR(INDEX('[1]Pt1-DATA'!$C:$D,MATCH(A19,'[1]Pt1-DATA'!$C:$C,0),2),"") -> 8965 | C19: =IFERROR(INDEX([2]bizjet!$B$6:$K$73,MATCH(L19,[2]bizjet!$B$6:$B$73,0),4)*1000,INDEX([2]bizjet!$B$6:$K$73,MATCH(M19,[2]bizjet!$B$6:$B$73,0),4)*1000) -> 30000 | D19: =B19*(1+'Federal Reserve PPI AC Parts'!$E$12) -> 10026.48255 | E19: =C19*(1+'Federal Reserve PPI AC Parts'!$E$12) -> 33552.08884 | F19: Validated PW 2020 | G19: 34000 | H19: -0.7011666667 | I19: =IFERROR(INDEX([2]bizjet!$B$6:$K$73,MATCH(L19,[2]bizjet!$B$6:$B$73,0),7),INDEX([2]bizjet!$B$6:$K$73,MATCH(M19,[2]bizjet!$B$6:$B$73,0),7)) -> HWL | J19: 1 | K19: =INDEX('[1]Pt1-DATA'!$A$5:$M$13349,MATCH(A19,'[1]Pt1-DATA'!$C$5:$C$13349,0),6) -> E | L19: Flight Guidance System (A/Pilot) | M19: Auto pilot system | N19: 8965
A20: 36#806 | B20: =IFERROR(INDEX('[1]Pt1-DATA'!$C:$D,MATCH(A20,'[1]Pt1-DATA'!$C:$C,0),2),"") -> 24461 | C20: =IFERROR(INDEX([2]bizjet!$B$6:$K$73,MATCH(L20,[2]bizjet!$B$6:$B$73,0),4)*1000,INDEX([2]bizjet!$B$6:$K$73,MATCH(M20,[2]bizjet!$B$6:$B$73,0),4)*1000) -> 25000 | D20: =B20*(1+'Federal Reserve PPI AC Parts'!$E$12) -> 27357.25484 | E20: =C20*(1+'Federal Reserve PPI AC Parts'!$E$12) -> 27960.07403 | F20: Validated PW 2020 | G20: 28000 | H20: -0.02156 | I20: =IFERROR(INDEX([2]bizjet!$B$6:$K$73,MATCH(L20,[2]bizjet!$B$6:$B$73,0),7),INDEX([2]bizjet!$B$6:$K$73,MATCH(M20,[2]bizjet!$B$6:$B$73,0),7)) -> ??? | J20: 3 | K20: =INDEX('[1]Pt1-DATA'!$A$5:$M$13349,MATCH(A20,'[1]Pt1-DATA'!$C$5:$C$13349,0),6) -> F | L20: Radio Antennas | M20: Radio antenna, amplifier, sat data | N20: 24461
A21: 36#811 | B21: =IFERROR(INDEX('[1]Pt1-DATA'!$C:$D,MATCH(A21,'[1]Pt1-DATA'!$C:$C,0),2),"") -> 40485 | C21: =IFERROR(INDEX([2]bizjet!$B$6:$K$73,MATCH(L21,[2]bizjet!$B$6:$B$73,0),4)*1000,INDEX([2]bizjet!$B$6:$K$73,MATCH(M21,[2]bizjet!$B$6:$B$73,0),4)*1000) -> 40000 | D21: =B21*(1+'Federal Reserve PPI AC Parts'!$E$12) -> 45278.54389 | E21: =C21*(1+'Federal Reserve PPI AC Parts'!$E$12) -> 44736.11846 | F21: Validated PW 2020 | G21: 45000 | H21: 0.012125 | I21: =IFERROR(INDEX([2]bizjet!$B$6:$K$73,MATCH(L21,[2]bizjet!$B$6:$B$73,0),7),INDEX([2]bizjet!$B$6:$K$73,MATCH(M21,[2]bizjet!$B$6:$B$73,0),7)) -> HWL | J21: 6 | K21: =INDEX('[1]Pt1-DATA'!$A$5:$M$13349,MATCH(A21,'[1]Pt1-DATA'!$C$5:$C$13349,0),6) -> E | L21: Main displays | M21: Display units | N21: 40485
A22: 36#822 | B22: =IFERROR(INDEX('[1]Pt1-DATA'!$C:$D,MATCH(A22,'[1]Pt1-DATA'!$C:$C,0),2),"") -> 93736 | C22: =IFERROR(INDEX([2]bizjet!$B$6:$K$73,MATCH(L22,[2]bizjet!$B$6:$B$73,0),4)*1000,INDEX([2]bizjet!$B$6:$K$73,MATCH(M22,[2]bizjet!$B$6:$B$73,0),4)*1000) -> 40000 | D22: =B22*(1+'Federal Reserve PPI AC Parts'!$E$12) -> 104834.62 | E22: =C22*(1+'Federal Reserve PPI AC Parts'!$E$12) -> 44736.11846 | F22: PW Low | G22: 105000 | H22: 1.3434 | I22: =IFERROR(INDEX([2]bizjet!$B$6:$K$73,MATCH(L22,[2]bizjet!$B$6:$B$73,0),7),INDEX([2]bizjet!$B$6:$K$73,MATCH(M22,[2]bizjet!$B$6:$B$73,0),7)) -> HWL | J22: 3 | K22: =INDEX('[1]Pt1-DATA'!$A$5:$M$13349,MATCH(A22,'[1]Pt1-DATA'!$C$5:$C$13349,0),6) -> E | L22: Integrated Avionics computers (IACs) | N22: 93736
A23: 36#823 | B23: =IFERROR(INDEX('[1]Pt1-DATA'!$C:$D,MATCH(A23,'[1]Pt1-DATA'!$C:$C,0),2),"") -> 25303 | C23: =IFERROR(INDEX([2]bizjet!$B$6:$K$73,MATCH(L23,[2]bizjet!$B$6:$B$73,0),4)*1000,INDEX([2]bizjet!$B$6:$K$73,MATCH(M23,[2]bizjet!$B$6:$B$73,0),4)*1000) -> 25000 | D23: =B23*(1+'Federal Reserve PPI AC Parts'!$E$12) -> 28298.95013 | E23: =C23*(1+'Federal Reserve PPI AC Parts'!$E$12) -> 27960.07403 | F23: Validated PW 2020 | G23: 28000 | H23: 0.01212 | I23: =IFERROR(INDEX([2]bizjet!$B$6:$K$73,MATCH(L23,[2]bizjet!$B$6:$B$73,0),7),INDEX([2]bizjet!$B$6:$K$73,MATCH(M23,[2]bizjet!$B$6:$B$73,0),7)) -> Collins | J23: 1 | K23: =INDEX('[1]Pt1-DATA'!$A$5:$M$13349,MATCH(A23,'[1]Pt1-DATA'!$C$5:$C$13349,0),6) -> E | L23: Standby display unit | N23: 25303
A24: 36#824 | B24: =IFERROR(INDEX('[1]Pt1-DATA'!$C:$D,MATCH(A24,'[1]Pt1-DATA'!$C:$C,0),2),"") -> 8097 | C24: =IFERROR(INDEX([2]bizjet!$B$6:$K$73,MATCH(L24,[2]bizjet!$B$6:$B$73,0),4)*1000,INDEX([2]bizjet!$B$6:$K$73,MATCH(M24,[2]bizjet!$B$6:$B$73,0),4)*1000) -> 8000 | D24: =B24*(1+'Federal Reserve PPI AC Parts'!$E$12) -> 9055.708778 | E24: =C24*(1+'Federal Reserve PPI AC Parts'!$E$12) -> 8947.223691 | F24: Validated PW 2020 | G24: 9000 | H24: 0.012125 | I24: =IFERROR(INDEX([2]bizjet!$B$6:$K$73,MATCH(L24,[2]bizjet!$B$6:$B$73,0),7),INDEX([2]bizjet!$B$6:$K$73,MATCH(M24,[2]bizjet!$B$6:$B$73,0),7)) -> ??? | J24: 2 | K24: =INDEX('[1]Pt1-DATA'!$A$5:$M$13349,MATCH(A24,'[1]Pt1-DATA'!$C$5:$C$13349,0),6) -> E | L24: PFD Control panels | N24: 8097
A25: 36#825 | B25: =IFERROR(INDEX('[1]Pt1-DATA'!$C:$D,MATCH(A25,'[1]Pt1-DATA'!$C:$C,0),2),"") -> 37353 | C25: =IFERROR(INDEX([2]bizjet!$B$6:$K$73,MATCH(L25,[2]bizjet!$B$6:$B$73,0),4)*1000,INDEX([2]bizjet!$B$6:$K$73,MATCH(M25,[2]bizjet!$B$6:$B$73,0),4)*1000) -> 30000 | D25: =B25*(1+'Federal Reserve PPI AC Parts'!$E$12) -> 41775.70582 | E25: =C25*(1+'Federal Reserve PPI AC Parts'!$E$12) -> 33552.08884 | F25: PW Low | G25: 42000 | H25: 0.2451 | I25: =IFERROR(INDEX([2]bizjet!$B$6:$K$73,MATCH(L25,[2]bizjet!$B$6:$B$73,0),7),INDEX([2]bizjet!$B$6:$K$73,MATCH(M25,[2]bizjet!$B$6:$B$73,0),7)) -> HWL | J25: 1 | K25: =INDEX('[1]Pt1-DATA'!$A$5:$M$13349,MATCH(A25,'[1]Pt1-DATA'!$C$5:$C$13349,0),6) -> F | L25: Auto pilot system | N25: 37353
A26: 36#826 | B26: =IFERROR(INDEX('[1]Pt1-DATA'!$C:$D,MATCH(A26,'[1]Pt1-DATA'!$C:$C,0),2),"") -> 35461 | C26: =IFERROR(INDEX([2]bizjet!$B$6:$K$73,MATCH(L26,[2]bizjet!$B$6:$B$73,0),4)*1000,INDEX([2]bizjet!$B$6:$K$73,MATCH(M26,[2]bizjet!$B$6:$B$73,0),4)*1000) -> 45000 | D26: =B26*(1+'Federal Reserve PPI AC Parts'!$E$12) -> 39659.68741 | E26: =C26*(1+'Federal Reserve PPI AC Parts'!$E$12) -> 50328.13326 | F26: Validated PW 2020 | G26: 51000 | H26: -0.2119777778 | I26: =IFERROR(INDEX([2]bizjet!$B$6:$K$73,MATCH(L26,[2]bizjet!$B$6:$B$73,0),7),INDEX([2]bizjet!$B$6:$K$73,MATCH(M26,[2]bizjet!$B$6:$B$73,0),7)) -> HWL | J26: 3 | K26: =INDEX('[1]Pt1-DATA'!$A$5:$M$13349,MATCH(A26,'[1]Pt1-DATA'!$C$5:$C$13349,0),6) -> E | L26: Inertial Ref Unit (IRU) | N26: 35461
A27: 36#827 | B27: =IFERROR(INDEX('[1]Pt1-DATA'!$C:$D,MATCH(A27,'[1]Pt1-DATA'!$C:$C,0),2),"") -> 8097 | C27: =IFERROR(INDEX([2]bizjet!$B$6:$K$73,MATCH(L27,[2]bizjet!$B$6:$B$73,0),4)*1000,INDEX([2]bizjet!$B$6:$K$73,MATCH(M27,[2]bizjet!$B$6:$B$73,0),4)*1000) -> 8000 | D27: =B27*(1+'Federal Reserve PPI AC Parts'!$E$12) -> 9055.708778 | E27: =C27*(1+'Federal Reserve PPI AC Parts'!$E$12) -> 8947.223691 | F27: Validated PW 2020 | G27: 9000 | H27: 0.012125 | I27: =IFERROR(INDEX([2]bizjet!$B$6:$K$73,MATCH(L27,[2]bizjet!$B$6:$B$73,0),7),INDEX([2]bizjet!$B$6:$K$73,MATCH(M27,[2]bizjet!$B$6:$B$73,0),7)) -> HWL | J27: 1 | K27: =INDEX('[1]Pt1-DATA'!$A$5:$M$13349,MATCH(A27,'[1]Pt1-DATA'!$C$5:$C$13349,0),6) -> E | L27: EICAS Controller panel | N27: 8097
A28: 36#828 | B28: =IFERROR(INDEX('[1]Pt1-DATA'!$C:$D,MATCH(A28,'[1]Pt1-DATA'!$C:$C,0),2),"") -> 17612 | C28: =IFERROR(INDEX([2]bizjet!$B$6:$K$73,MATCH(L28,[2]bizjet!$B$6:$B$73,0),4)*1000,INDEX([2]bizjet!$B$6:$K$73,MATCH(M28,[2]bizjet!$B$6:$B$73,0),4)*1000) -> 18000 | D28: =B28*(1+'Federal Reserve PPI AC Parts'!$E$12) -> 19697.31296 | E28: =C28*(1+'Federal Reserve PPI AC Parts'!$E$12) -> 20131.25331 | F28: Validated PW 2020 | G28: 20000 | H28: -0.02155555556 | I28: =IFERROR(INDEX([2]bizjet!$B$6:$K$73,MATCH(L28,[2]bizjet!$B$6:$B$73,0),7),INDEX([2]bizjet!$B$6:$K$73,MATCH(M28,[2]bizjet!$B$6:$B$73,0),7)) -> HWL | J28: 2 | K28: =INDEX('[1]Pt1-DATA'!$A$5:$M$13349,MATCH(A28,'[1]Pt1-DATA'!$C$5:$C$13349,0),6) -> E | L28: ATC Transponder | N28: 17612
A29: 36#829 | B29: =IFERROR(INDEX('[1]Pt1-DATA'!$C:$D,MATCH(A29,'[1]Pt1-DATA'!$C:$C,0),2),"") -> 40517 | C29: =IFERROR(INDEX([2]bizjet!$B$6:$K$73,MATCH(L29,[2]bizjet!$B$6:$B$73,0),4)*1000,INDEX([2]bizjet!$B$6:$K$73,MATCH(M29,[2]bizjet!$B$6:$B$73,0),4)*1000) -> 50000 | D29: =B29*(1+'Federal Reserve PPI AC Parts'!$E$12) -> 45314.33279 | E29: =C29*(1+'Federal Reserve PPI AC Parts'!$E$12) -> 55920.14807 | F29: Validated PW 2020 | G29: 56000 | H29: -0.18966 | I29: =IFERROR(INDEX([2]bizjet!$B$6:$K$73,MATCH(L29,[2]bizjet!$B$6:$B$73,0),7),INDEX([2]bizjet!$B$6:$K$73,MATCH(M29,[2]bizjet!$B$6:$B$73,0),7)) -> ???? | J29: 1 | K29: =INDEX('[1]Pt1-DATA'!$A$5:$M$13349,MATCH(A29,'[1]Pt1-DATA'!$C$5:$C$13349,0),6) -> E | L29: Radar Antenna (nose nounted) | N29: 40517
A30: 36#830 | B30: =IFERROR(INDEX('[1]Pt1-DATA'!$C:$D,MATCH(A30,'[1]Pt1-DATA'!$C:$C,0),2),"") -> 21526 | C30: =IFERROR(INDEX([2]bizjet!$B$6:$K$73,MATCH(L30,[2]bizjet!$B$6:$B$73,0),4)*1000,INDEX([2]bizjet!$B$6:$K$73,MATCH(M30,[2]bizjet!$B$6:$B$73,0),4)*1000) -> 25000 | D30: =B30*(1+'Federal Reserve PPI AC Parts'!$E$12) -> 24074.74215 | E30: =C30*(1+'Federal Reserve PPI AC Parts'!$E$12) -> 27960.07403 | F30: Validated PW 2020 | G30: 28000 | H30: -0.13896 | I30: =IFERROR(INDEX([2]bizjet!$B$6:$K$73,MATCH(L30,[2]bizjet!$B$6:$B$73,0),7),INDEX([2]bizjet!$B$6:$K$73,MATCH(M30,[2]bizjet!$B$6:$B$73,0),7)) -> ??? | J30: 3 | K30: =INDEX('[1]Pt1-DATA'!$A$5:$M$13349,MATCH(A30,'[1]Pt1-DATA'!$C$5:$C$13349,0),6) -> E | L30: Radio antenna, amplifier, sat data | N30: 21526
A31: 36#831 | B31: =IFERROR(INDEX('[1]Pt1-DATA'!$C:$D,MATCH(A31,'[1]Pt1-DATA'!$C:$C,0),2),"") -> 26597 | C31: =IFERROR(INDEX([2]bizjet!$B$6:$K$73,MATCH(L31,[2]bizjet!$B$6:$B$73,0),4)*1000,INDEX([2]bizjet!$B$6:$K$73,MATCH(M31,[2]bizjet!$B$6:$B$73,0),4)*1000) -> 25000 | D31: =B31*(1+'Federal Reserve PPI AC Parts'!$E$12) -> 29746.16356 | E31: =C31*(1+'Federal Reserve PPI AC Parts'!$E$12) -> 27960.07403 | F31: Validated PW 2020 | G31: 28000 | H31: 0.06388 | I31: =IFERROR(INDEX([2]bizjet!$B$6:$K$73,MATCH(L31,[2]bizjet!$B$6:$B$73,0),7),INDEX([2]bizjet!$B$6:$K$73,MATCH(M31,[2]bizjet!$B$6:$B$73,0),7)) -> ??? | J31: 1 | K31: =INDEX('[1]Pt1-DATA'!$A$5:$M$13349,MATCH(A31,'[1]Pt1-DATA'!$C$5:$C$13349,0),6) -> E | L31: Radio antenna, amplifier, sat data | N31: 26597
A32: 36#832 | B32: =IFERROR(INDEX('[1]Pt1-DATA'!$C:$D,MATCH(A32,'[1]Pt1-DATA'!$C:$C,0),2),"") -> 21526 | C32: =IFERROR(INDEX([2]bizjet!$B$6:$K$73,MATCH(L32,[2]bizjet!$B$6:$B$73,0),4)*1000,INDEX([2]bizjet!$B$6:$K$73,MATCH(M32,[2]bizjet!$B$6:$B$73,0),4)*1000) -> 25000 | D32: =B32*(1+'Federal Reserve PPI AC Parts'!$E$12) -> 24074.74215 | E32: =C32*(1+'Federal Reserve PPI AC Parts'!$E$12) -> 27960.07403 | F32: Validated PW 2020 | G32: 28000 | H32: -0.13896 | I32: =IFERROR(INDEX([2]bizjet!$B$6:$K$73,MATCH(L32,[2]bizjet!$B$6:$B$73,0),7),INDEX([2]bizjet!$B$6:$K$73,MATCH(M32,[2]bizjet!$B$6:$B$73,0),7)) -> 0 | J32: 2 | K32: =INDEX('[1]Pt1-DATA'!$A$5:$M$13349,MATCH(A32,'[1]Pt1-DATA'!$C$5:$C$13349,0),6) -> E | L32: Comms Management System | N32: 21526
A33: 36#878 | B33: =IFERROR(INDEX('[1]Pt1-DATA'!$C:$D,MATCH(A33,'[1]Pt1-DATA'!$C:$C,0),2),"") -> 82497 | C33: =IFERROR(INDEX([2]bizjet!$B$6:$K$73,MATCH(L33,[2]bizjet!$B$6:$B$73,0),4)*1000,INDEX([2]bizjet!$B$6:$K$73,MATCH(M33,[2]bizjet!$B$6:$B$73,0),4)*1000) ->  | D33: =B33*(1+'Federal Reserve PPI AC Parts'!$E$12) -> 92264.88911 | E33: =C33*(1+'Federal Reserve PPI AC Parts'!$E$12) ->  | F33: Validated Model 2020 | G33: 93000 | I33: =IFERROR(INDEX([2]bizjet!$B$6:$K$73,MATCH(L33,[2]bizjet!$B$6:$B$73,0),7),INDEX([2]bizjet!$B$6:$K$73,MATCH(M33,[2]bizjet!$B$6:$B$73,0),7)) ->  | J33: 1 | K33: =INDEX('[1]Pt1-DATA'!$A$5:$M$13349,MATCH(A33,'[1]Pt1-DATA'!$C$5:$C$13349,0),6) -> G1 | L33: Sensors IFF, other | N33: 82497
A34: 36#879 | B34: =IFERROR(INDEX('[1]Pt1-DATA'!$C:$D,MATCH(A34,'[1]Pt1-DATA'!$C:$C,0),2),"") -> 107012 | C34: =IFERROR(INDEX([2]bizjet!$B$6:$K$73,MATCH(L34,[2]bizjet!$B$6:$B$73,0),4)*1000,INDEX([2]bizjet!$B$6:$K$73,MATCH(M34,[2]bizjet!$B$6:$B$73,0),4)*1000) ->  | D34: =B34*(1+'Federal Reserve PPI AC Parts'!$E$12) -> 119682.5377 | E34: =C34*(1+'Federal Reserve PPI AC Parts'!$E$12) ->  | F34: Validated Model 2020 | G34: 120000 | I34: =IFERROR(INDEX([2]bizjet!$B$6:$K$73,MATCH(L34,[2]bizjet!$B$6:$B$73,0),7),INDEX([2]bizjet!$B$6:$K$73,MATCH(M34,[2]bizjet!$B$6:$B$73,0),7)) ->  | J34: 1 | K34: =INDEX('[1]Pt1-DATA'!$A$5:$M$13349,MATCH(A34,'[1]Pt1-DATA'!$C$5:$C$13349,0),6) -> Q | L34: Software | N34: 107012
A35: 36#880 | B35: =IFERROR(INDEX('[1]Pt1-DATA'!$C:$D,MATCH(A35,'[1]Pt1-DATA'!$C:$C,0),2),"") -> 8800 | C35: =IFERROR(INDEX([2]bizjet!$B$6:$K$73,MATCH(L35,[2]bizjet!$B$6:$B$73,0),4)*1000,INDEX([2]bizjet!$B$6:$K$73,MATCH(M35,[2]bizjet!$B$6:$B$73,0),4)*1000) ->  | D35: =B35*(1+'Federal Reserve PPI AC Parts'!$E$12) -> 9841.94606 | E35: =C35*(1+'Federal Reserve PPI AC Parts'!$E$12) ->  | F35: Validated Model 2020 | G35: 10000 | I35: =IFERROR(INDEX([2]bizjet!$B$6:$K$73,MATCH(L35,[2]bizjet!$B$6:$B$73,0),7),INDEX([2]bizjet!$B$6:$K$73,MATCH(M35,[2]bizjet!$B$6:$B$73,0),7)) ->  | J35: 8 | K35: =INDEX('[1]Pt1-DATA'!$A$5:$M$13349,MATCH(A35,'[1]Pt1-DATA'!$C$5:$C$13349,0),6) -> E | L35: Air data sensors | N35: 8800
A36: 36#884 | B36: =IFERROR(INDEX('[1]Pt1-DATA'!$C:$D,MATCH(A36,'[1]Pt1-DATA'!$C:$C,0),2),"") -> 75969 | C36: =IFERROR(INDEX([2]bizjet!$B$6:$K$73,MATCH(L36,[2]bizjet!$B$6:$B$73,0),4)*1000,INDEX([2]bizjet!$B$6:$K$73,MATCH(M36,[2]bizjet!$B$6:$B$73,0),4)*1000) ->  | D36: =B36*(1+'Federal Reserve PPI AC Parts'!$E$12) -> 84963.95457 | E36: =C36*(1+'Federal Reserve PPI AC Parts'!$E$12) ->  | F36: Validated Model 2020 | G36: 85000 | I36: =IFERROR(INDEX([2]bizjet!$B$6:$K$73,MATCH(L36,[2]bizjet!$B$6:$B$73,0),7),INDEX([2]bizjet!$B$6:$K$73,MATCH(M36,[2]bizjet!$B$6:$B$73,0),7)) ->  | J36: 1 | K36: =INDEX('[1]Pt1-DATA'!$A$5:$M$13349,MATCH(A36,'[1]Pt1-DATA'!$C$5:$C$13349,0),6) -> E | L36: Sensor suite WX radar etc | N36: 75969
A37: 36#1056 | B37: =IFERROR(INDEX('[1]Pt1-DATA'!$C:$D,MATCH(A37,'[1]Pt1-DATA'!$C:$C,0),2),"") -> 2119 | C37: =IFERROR(INDEX([2]bizjet!$B$6:$K$73,MATCH(L37,[2]bizjet!$B$6:$B$73,0),4)*1000,INDEX([2]bizjet!$B$6:$K$73,MATCH(M37,[2]bizjet!$B$6:$B$73,0),4)*1000) ->  | D37: =B37*(1+'Federal Reserve PPI AC Parts'!$E$12) -> 2369.895875 | E37: =C37*(1+'Federal Reserve PPI AC Parts'!$E$12) ->  | F37: Validated Model 2020 | G37: 2400 | I37: =IFERROR(INDEX([2]bizjet!$B$6:$K$73,MATCH(L37,[2]bizjet!$B$6:$B$73,0),7),INDEX([2]bizjet!$B$6:$K$73,MATCH(M37,[2]bizjet!$B$6:$B$73,0),7)) ->  | J37: 1 | K37: =INDEX('[1]Pt1-DATA'!$A$5:$M$13349,MATCH(A37,'[1]Pt1-DATA'!$C$5:$C$13349,0),6) -> BL | L37: Avionics Harnesses | N37: 2119
A38: 36#1057 | B38: =IFERROR(INDEX('[1]Pt1-DATA'!$C:$D,MATCH(A38,'[1]Pt1-DATA'!$C:$C,0),2),"") -> 15092 | C38: =IFERROR(INDEX([2]bizjet!$B$6:$K$73,MATCH(L38,[2]bizjet!$B$6:$B$73,0),4)*1000,INDEX([2]bizjet!$B$6:$K$73,MATCH(M38,[2]bizjet!$B$6:$B$73,0),4)*1000) ->  | D38: =B38*(1+'Federal Reserve PPI AC Parts'!$E$12) -> 16878.93749 | E38: =C38*(1+'Federal Reserve PPI AC Parts'!$E$12) ->  | F38: Validated Model 2020 | G38: 17000 | I38: =IFERROR(INDEX([2]bizjet!$B$6:$K$73,MATCH(L38,[2]bizjet!$B$6:$B$73,0),7),INDEX([2]bizjet!$B$6:$K$73,MATCH(M38,[2]bizjet!$B$6:$B$73,0),7)) ->  | J38: 1 | K38: =INDEX('[1]Pt1-DATA'!$A$5:$M$13349,MATCH(A38,'[1]Pt1-DATA'!$C$5:$C$13349,0),6) -> BL | L38: Avionics Harnesses | N38: 15092
A39: 36#1058 | B39: =IFERROR(INDEX('[1]Pt1-DATA'!$C:$D,MATCH(A39,'[1]Pt1-DATA'!$C:$C,0),2),"") -> 18250 | C39: =IFERROR(INDEX([2]bizjet!$B$6:$K$73,MATCH(L39,[2]bizjet!$B$6:$B$73,0),4)*1000,INDEX([2]bizjet!$B$6:$K$73,MATCH(M39,[2]bizjet!$B$6:$B$73,0),4)*1000) ->  | D39: =B39*(1+'Federal Reserve PPI AC Parts'!$E$12) -> 20410.85405 | E39: =C39*(1+'Federal Reserve PPI AC Parts'!$E$12) ->  | F39: Validated Model 2020 | G39: 21000 | I39: =IFERROR(INDEX([2]bizjet!$B$6:$K$73,MATCH(L39,[2]bizjet!$B$6:$B$73,0),7),INDEX([2]bizjet!$B$6:$K$73,MATCH(M39,[2]bizjet!$B$6:$B$73,0),7)) ->  | J39: 1 | K39: =INDEX('[1]Pt1-DATA'!$A$5:$M$13349,MATCH(A39,'[1]Pt1-DATA'!$C$5:$C$13349,0),6) -> BL | L39: Avionics Harnesses | N39: 18250
A40: 36#1059 | B40: =IFERROR(INDEX('[1]Pt1-DATA'!$C:$D,MATCH(A40,'[1]Pt1-DATA'!$C:$C,0),2),"") -> 3773 | C40: =IFERROR(INDEX([2]bizjet!$B$6:$K$73,MATCH(L40,[2]bizjet!$B$6:$B$73,0),4)*1000,INDEX([2]bizjet!$B$6:$K$73,MATCH(M40,[2]bizjet!$B$6:$B$73,0),4)*1000) ->  | D40: =B40*(1+'Federal Reserve PPI AC Parts'!$E$12) -> 4219.734373 | E40: =C40*(1+'Federal Reserve PPI AC Parts'!$E$12) ->  | F40: Validated Model 2020 | G40: 4500 | I40: =IFERROR(INDEX([2]bizjet!$B$6:$K$73,MATCH(L40,[2]bizjet!$B$6:$B$73,0),7),INDEX([2]bizjet!$B$6:$K$73,MATCH(M40,[2]bizjet!$B$6:$B$73,0),7)) ->  | J40: 1 | K40: =INDEX('[1]Pt1-DATA'!$A$5:$M$13349,MATCH(A40,'[1]Pt1-DATA'!$C$5:$C$13349,0),6) -> BL | L40: Avionics Harnesses | N40: 3773
B41: =IFERROR(INDEX('[1]Pt1-DATA'!$C:$D,MATCH(A41,'[1]Pt1-DATA'!$C:$C,0),2),"") ->  | C41: =IFERROR(INDEX([2]bizjet!$B$6:$K$73,MATCH(L41,[2]bizjet!$B$6:$B$73,0),4)*1000,INDEX([2]bizjet!$B$6:$K$73,MATCH(M41,[2]bizjet!$B$6:$B$73,0),4)*1000) -> 30000 | D41: =B41*(1+'Federal Reserve PPI AC Parts'!$E$12) ->  | E41: =C41*(1+'Federal Reserve PPI AC Parts'!$E$12) -> 33552.08884 | F41: Validated PW 2020 | G41: 34000 | H41: =(B41-C41)/C41 ->  | I41: =IFERROR(INDEX([2]bizjet!$B$6:$K$73,MATCH(L41,[2]bizjet!$B$6:$B$73,0),7),INDEX([2]bizjet!$B$6:$K$73,MATCH(M41,[2]bizjet!$B$6:$B$73,0),7)) -> HWL | J41: 1 | K41: =INDEX('[1]Pt1-DATA'!$A$5:$M$13349,MATCH(A41,'[1]Pt1-DATA'!$C$5:$C$13349,0),6) ->  | M41: Data Acquisition Units (DAUs)
B42: =IFERROR(INDEX('[1]Pt1-DATA'!$C:$D,MATCH(A42,'[1]Pt1-DATA'!$C:$C,0),2),"") ->  | C42: =IFERROR(INDEX([2]bizjet!$B$6:$K$73,MATCH(L42,[2]bizjet!$B$6:$B$73,0),4)*1000,INDEX([2]bizjet!$B$6:$K$73,MATCH(M42,[2]bizjet!$B$6:$B$73,0),4)*1000) -> 10000 | D42: =B42*(1+'Federal Reserve PPI AC Parts'!$E$12) ->  | E42: =C42*(1+'Federal Reserve PPI AC Parts'!$E$12) -> 11184.02961 | F42: Validated PW 2020 | G42: 12000 | I42: =IFERROR(INDEX([2]bizjet!$B$6:$K$73,MATCH(L42,[2]bizjet!$B$6:$B$73,0),7),INDEX([2]bizjet!$B$6:$K$73,MATCH(M42,[2]bizjet!$B$6:$B$73,0),7)) -> ??/ | J42: 2 | K42: =INDEX('[1]Pt1-DATA'!$A$5:$M$13349,MATCH(A42,'[1]Pt1-DATA'!$C$5:$C$13349,0),6) ->  | M42: MFD control panels
B43: =IFERROR(INDEX('[1]Pt1-DATA'!$C:$D,MATCH(A43,'[1]Pt1-DATA'!$C:$C,0),2),"") ->  | C43: =IFERROR(INDEX([2]bizjet!$B$6:$K$73,MATCH(L43,[2]bizjet!$B$6:$B$73,0),4)*1000,INDEX([2]bizjet!$B$6:$K$73,MATCH(M43,[2]bizjet!$B$6:$B$73,0),4)*1000) -> 35000 | D43: =B43*(1+'Federal Reserve PPI AC Parts'!$E$12) ->  | E43: =C43*(1+'Federal Reserve PPI AC Parts'!$E$12) -> 39144.10365 | F43: Validated PW 2020 | G43: 40000 | I43: =IFERROR(INDEX([2]bizjet!$B$6:$K$73,MATCH(L43,[2]bizjet!$B$6:$B$73,0),7),INDEX([2]bizjet!$B$6:$K$73,MATCH(M43,[2]bizjet!$B$6:$B$73,0),7)) -> HWL | J43: 2 | K43: =INDEX('[1]Pt1-DATA'!$A$5:$M$13349,MATCH(A43,'[1]Pt1-DATA'!$C$5:$C$13349,0),6) ->  | M43: Navigation Control Display unit
B44: =IFERROR(INDEX('[1]Pt1-DATA'!$C:$D,MATCH(A44,'[1]Pt1-DATA'!$C:$C,0),2),"") ->  | C44: =IFERROR(INDEX([2]bizjet!$B$6:$K$73,MATCH(L44,[2]bizjet!$B$6:$B$73,0),4)*1000,INDEX([2]bizjet!$B$6:$K$73,MATCH(M44,[2]bizjet!$B$6:$B$73,0),4)*1000) -> 12000 | D44: =B44*(1+'Federal Reserve PPI AC Parts'!$E$12) ->  | E44: =C44*(1+'Federal Reserve PPI AC Parts'!$E$12) -> 13420.83554 | F44: Validated PW 2020 | G44: 14000 | I44: =IFERROR(INDEX([2]bizjet!$B$6:$K$73,MATCH(L44,[2]bizjet!$B$6:$B$73,0),7),INDEX([2]bizjet!$B$6:$K$73,MATCH(M44,[2]bizjet!$B$6:$B$73,0),7)) -> HWL | J44: 2 | K44: =INDEX('[1]Pt1-DATA'!$A$5:$M$13349,MATCH(A44,'[1]Pt1-DATA'!$C$5:$C$13349,0),6) ->  | M44: Flight Gudance Control panel (A/Pilot etc)
B45: =IFERROR(INDEX('[1]Pt1-DATA'!$C:$D,MATCH(A45,'[1]Pt1-DATA'!$C:$C,0),2),"") ->  | C45: =IFERROR(INDEX([2]bizjet!$B$6:$K$73,MATCH(L45,[2]bizjet!$B$6:$B$73,0),4)*1000,INDEX([2]bizjet!$B$6:$K$73,MATCH(M45,[2]bizjet!$B$6:$B$73,0),4)*1000) -> 15000 | D45: =B45*(1+'Federal Reserve PPI AC Parts'!$E$12) ->  | E45: =C45*(1+'Federal Reserve PPI AC Parts'!$E$12) -> 16776.04442 | F45: Validated PW 2020 | G45: 17000 | I45: =IFERROR(INDEX([2]bizjet!$B$6:$K$73,MATCH(L45,[2]bizjet!$B$6:$B$73,0),7),INDEX([2]bizjet!$B$6:$K$73,MATCH(M45,[2]bizjet!$B$6:$B$73,0),7)) -> HWL | J45: 2 | K45: =INDEX('[1]Pt1-DATA'!$A$5:$M$13349,MATCH(A45,'[1]Pt1-DATA'!$C$5:$C$13349,0),6) ->  | M45: TCAS transceiver
B46: =IFERROR(INDEX('[1]Pt1-DATA'!$C:$D,MATCH(A46,'[1]Pt1-DATA'!$C:$C,0),2),"") ->  | C46: =IFERROR(INDEX([2]bizjet!$B$6:$K$73,MATCH(L46,[2]bizjet!$B$6:$B$73,0),4)*1000,INDEX([2]bizjet!$B$6:$K$73,MATCH(M46,[2]bizjet!$B$6:$B$73,0),4)*1000) -> 0 | D46: =B46*(1+'Federal Reserve PPI AC Parts'!$E$12) ->  | E46: =C46*(1+'Federal Reserve PPI AC Parts'!$E$12) -> 0 | F46: Validated PW 2020 | G46: 0 | I46: =IFERROR(INDEX([2]bizjet!$B$6:$K$73,MATCH(L46,[2]bizjet!$B$6:$B$73,0),7),INDEX([2]bizjet!$B$6:$K$73,MATCH(M46,[2]bizjet!$B$6:$B$73,0),7)) -> HWL | J46: 2 | K46: =INDEX('[1]Pt1-DATA'!$A$5:$M$13349,MATCH(A46,'[1]Pt1-DATA'!$C$5:$C$13349,0),6) ->  | M46: Radio Management Unit (integrated Nav and Comms unit)
B47: =IFERROR(INDEX('[1]Pt1-DATA'!$C:$D,MATCH(A47,'[1]Pt1-DATA'!$C:$C,0),2),"") ->  | C47: =IFERROR(INDEX([2]bizjet!$B$6:$K$73,MATCH(L47,[2]bizjet!$B$6:$B$73,0),4)*1000,INDEX([2]bizjet!$B$6:$K$73,MATCH(M47,[2]bizjet!$B$6:$B$73,0),4)*1000) -> 50000 | D47: =B47*(1+'Federal Reserve PPI AC Parts'!$E$12) ->  | E47: =C47*(1+'Federal Reserve PPI AC Parts'!$E$12) -> 55920.14807 | F47: Validated PW 2020 | G47: 56000 | I47: =IFERROR(INDEX([2]bizjet!$B$6:$K$73,MATCH(L47,[2]bizjet!$B$6:$B$73,0),7),INDEX([2]bizjet!$B$6:$K$73,MATCH(M47,[2]bizjet!$B$6:$B$73,0),7)) -> 0 | J47: 2 | K47: =INDEX('[1]Pt1-DATA'!$A$5:$M$13349,MATCH(A47,'[1]Pt1-DATA'!$C$5:$C$13349,0),6) ->  | M47: Comms part
B48: =IFERROR(INDEX('[1]Pt1-DATA'!$C:$D,MATCH(A48,'[1]Pt1-DATA'!$C:$C,0),2),"") ->  | C48: =IFERROR(INDEX([2]bizjet!$B$6:$K$73,MATCH(L48,[2]bizjet!$B$6:$B$73,0),4)*1000,INDEX([2]bizjet!$B$6:$K$73,MATCH(M48,[2]bizjet!$B$6:$B$73,0),4)*1000) -> 50000 | D48: =B48*(1+'Federal Reserve PPI AC Parts'!$E$12) ->  | E48: =C48*(1+'Federal Reserve PPI AC Parts'!$E$12) -> 55920.14807 | F48: Validated PW 2020 | G48: 56000 | I48: =IFERROR(INDEX([2]bizjet!$B$6:$K$73,MATCH(L48,[2]bizjet!$B$6:$B$73,0),7),INDEX([2]bizjet!$B$6:$K$73,MATCH(M48,[2]bizjet!$B$6:$B$73,0),7)) -> 0 | J48: 2 | K48: =INDEX('[1]Pt1-DATA'!$A$5:$M$13349,MATCH(A48,'[1]Pt1-DATA'!$C$5:$C$13349,0),6) ->  | M48: Nav part

Sheet Mil trans
A1: Aircraft: | B1: =INDEX('[3]Pt1-AvionicsComponentCosts'!$A$11:$E$384,MATCH(VALUE(LEFT(A5,SEARCH("#",A5)-1)),'[3]Pt1-AvionicsComponentCosts'!$A$11:$A$384,0),5) -> Airbus A400M Atlas
B2: Avionics Cost 2020 | G2: Avionics Cost 2024 | I2: % Change 2020 - 2024
B3: =SUMPRODUCT(B5:B80,J5:J80) -> 4699824 | G3: =SUMPRODUCT(G5:G80,J5:J80) -> 5379321.405 | I3: =($G$3-$B$3)/$B$3 -> 0.1445793301
B4: Model 2020 | C4: PW 2020 | D4: 2024 PPI Model | E4: 2024 PPI PW | F4: Notes | G4: 2024 AE Estimate | H4: Pct Change | I4: Source | J4: #/AC | K4: Factor | L4: Item | M4: Alt Item (PW) | N4: previous
A5: 150#710 | B5: =IFERROR(INDEX('[1]Pt1-DATA'!$C:$D,MATCH(A5,'[1]Pt1-DATA'!$C:$C,0),2),"") -> 46970 | C5: =IFERROR(INDEX('[2]Mil trans'!$B$6:$K$73,MATCH(L5,'[2]Mil trans'!$B$6:$B$73,0),4)*1000,INDEX('[2]Mil trans'!$B$6:$K$73,MATCH(M5,'[2]Mil trans'!$B$6:$B$73,0),4)*1000) -> 40000 | D5: =B5*(1+'Federal Reserve PPI AC Parts'!$E$12) -> 52531.3871 | E5: =C5*(1+'Federal Reserve PPI AC Parts'!$E$12) -> 44736.11846 | F5: Used Model 2024 | G5: =D5 -> 52531.3871 | H5: =(B5-C5)/C5 -> 0.17425 | I5: =IFERROR(INDEX('[2]Mil trans'!$B$6:$K$73,MATCH(L5,'[2]Mil trans'!$B$6:$B$73,0),7),INDEX('[2]Mil trans'!$B$6:$K$73,MATCH(M5,'[2]Mil trans'!$B$6:$B$73,0),7)) -> Thales | J5: 2 | K5: =INDEX('[1]Pt1-DATA'!$A$5:$M$13349,MATCH(A5,'[1]Pt1-DATA'!$C$5:$C$13349,0),6) -> K | L5: MCDU | M5: FMS MCDUs | N5: 46970
A6: 150#721 | B6: =IFERROR(INDEX('[1]Pt1-DATA'!$C:$D,MATCH(A6,'[1]Pt1-DATA'!$C:$C,0),2),"") -> 26597 | C6: =IFERROR(INDEX('[2]Mil trans'!$B$6:$K$73,MATCH(L6,'[2]Mil trans'!$B$6:$B$73,0),4)*1000,INDEX('[2]Mil trans'!$B$6:$K$73,MATCH(M6,'[2]Mil trans'!$B$6:$B$73,0),4)*1000) -> 25000 | D6: =B6*(1+'Federal Reserve PPI AC Parts'!$E$12) -> 29746.16356 | E6: =C6*(1+'Federal Reserve PPI AC Parts'!$E$12) -> 27960.07403 | F6: Used Model 2024 | G6: =D6 -> 29746.16356 | H6: =(B6-C6)/C6 -> 0.06388 | I6: =IFERROR(INDEX('[2]Mil trans'!$B$6:$K$73,MATCH(L6,'[2]Mil trans'!$B$6:$B$73,0),7),INDEX('[2]Mil trans'!$B$6:$K$73,MATCH(M6,'[2]Mil trans'!$B$6:$B$73,0),7)) -> 0 | J6: 2 | K6: =INDEX('[1]Pt1-DATA'!$A$5:$M$13349,MATCH(A6,'[1]Pt1-DATA'!$C$5:$C$13349,0),6) -> P | L6: Air Data Modules (ADM) | M6: Air Data Computers | N6: 26597
A7: 150#722 | B7: =IFERROR(INDEX('[1]Pt1-DATA'!$C:$D,MATCH(A7,'[1]Pt1-DATA'!$C:$C,0),2),"") -> 13200 | C7: =IFERROR(INDEX('[2]Mil trans'!$B$6:$K$73,MATCH(L7,'[2]Mil trans'!$B$6:$B$73,0),4)*1000,INDEX('[2]Mil trans'!$B$6:$K$73,MATCH(M7,'[2]Mil trans'!$B$6:$B$73,0),4)*1000) -> 10000 | D7: =B7*(1+'Federal Reserve PPI AC Parts'!$E$12) -> 14762.91909 | E7: =C7*(1+'Federal Reserve PPI AC Parts'!$E$12) -> 11184.02961 | F7: Used Model 2024 | G7: 14762.91909 | H7: 0.32 | I7: =IFERROR(INDEX('[2]Mil trans'!$B$6:$K$73,MATCH(L7,'[2]Mil trans'!$B$6:$B$73,0),7),INDEX('[2]Mil trans'!$B$6:$K$73,MATCH(M7,'[2]Mil trans'!$B$6:$B$73,0),7)) -> 0 | J7: 8 | K7: =INDEX('[1]Pt1-DATA'!$A$5:$M$13349,MATCH(A7,'[1]Pt1-DATA'!$C$5:$C$13349,0),6) -> I1 | L7: Air data probes (pitot/static) | M7: Air data pitot static sensors | N7: 13200
A8: 150#723 | B8: =IFERROR(INDEX('[1]Pt1-DATA'!$C:$D,MATCH(A8,'[1]Pt1-DATA'!$C:$C,0),2),"") -> 44327 | C8: =IFERROR(INDEX('[2]Mil trans'!$B$6:$K$73,MATCH(L8,'[2]Mil trans'!$B$6:$B$73,0),4)*1000,INDEX('[2]Mil trans'!$B$6:$K$73,MATCH(M8,'[2]Mil trans'!$B$6:$B$73,0),4)*1000) -> 80000 | D8: =B8*(1+'Federal Reserve PPI AC Parts'!$E$12) -> 49575.44807 | E8: =C8*(1+'Federal Reserve PPI AC Parts'!$E$12) -> 89472.23691 | F8: Used Model 2024 | G8: 49575.44807 | H8: -0.4459125 | I8: =IFERROR(INDEX('[2]Mil trans'!$B$6:$K$73,MATCH(L8,'[2]Mil trans'!$B$6:$B$73,0),7),INDEX('[2]Mil trans'!$B$6:$K$73,MATCH(M8,'[2]Mil trans'!$B$6:$B$73,0),7)) -> Thales | J8: 2 | K8: =INDEX('[1]Pt1-DATA'!$A$5:$M$13349,MATCH(A8,'[1]Pt1-DATA'!$C$5:$C$13349,0),6) -> D1 | L8: Multi Mode Receiver (MMR) | M8: Multi Mode Receiver incl | N8: 44327
A9: 150#726 | B9: =IFERROR(INDEX('[1]Pt1-DATA'!$C:$D,MATCH(A9,'[1]Pt1-DATA'!$C:$C,0),2),"") -> 65788 | C9: =IFERROR(INDEX('[2]Mil trans'!$B$6:$K$73,MATCH(L9,'[2]Mil trans'!$B$6:$B$73,0),4)*1000,INDEX('[2]Mil trans'!$B$6:$K$73,MATCH(M9,'[2]Mil trans'!$B$6:$B$73,0),4)*1000) -> 65000 | D9: =B9*(1+'Federal Reserve PPI AC Parts'!$E$12) -> 73577.49402 | E9: =C9*(1+'Federal Reserve PPI AC Parts'!$E$12) -> 72696.19249 | F9: Used Model 2024 | G9: 73577.49402 | H9: 0.01212307692 | I9: =IFERROR(INDEX('[2]Mil trans'!$B$6:$K$73,MATCH(L9,'[2]Mil trans'!$B$6:$B$73,0),7),INDEX('[2]Mil trans'!$B$6:$K$73,MATCH(M9,'[2]Mil trans'!$B$6:$B$73,0),7)) -> Thales | J9: 6 | K9: =INDEX('[1]Pt1-DATA'!$A$5:$M$13349,MATCH(A9,'[1]Pt1-DATA'!$C$5:$C$13349,0),6) -> F | L9: Primary Flight Display (EFIS) | M9: Cockpit displays | N9: 65788
A10: 150#730 | B10: =IFERROR(INDEX('[1]Pt1-DATA'!$C:$D,MATCH(A10,'[1]Pt1-DATA'!$C:$C,0),2),"") -> 151818 | C10: =IFERROR(INDEX('[2]Mil trans'!$B$6:$K$73,MATCH(L10,'[2]Mil trans'!$B$6:$B$73,0),4)*1000,INDEX('[2]Mil trans'!$B$6:$K$73,MATCH(M10,'[2]Mil trans'!$B$6:$B$73,0),4)*1000) -> 125000 | D10: =B10*(1+'Federal Reserve PPI AC Parts'!$E$12) -> 169793.7008 | E10: =C10*(1+'Federal Reserve PPI AC Parts'!$E$12) -> 139800.3702 | F10: Used Model 2024 | G10: 169793.7008 | H10: 0.214544 | I10: =IFERROR(INDEX('[2]Mil trans'!$B$6:$K$73,MATCH(L10,'[2]Mil trans'!$B$6:$B$73,0),7),INDEX('[2]Mil trans'!$B$6:$K$73,MATCH(M10,'[2]Mil trans'!$B$6:$B$73,0),7)) -> Thales | J10: 2 | K10: =INDEX('[1]Pt1-DATA'!$A$5:$M$13349,MATCH(A10,'[1]Pt1-DATA'!$C$5:$C$13349,0),6) -> H | L10: HUD display system | M10: Head Up Displays (incl Enhanced Synthetic Vision( | N10: 151818
A11: 150#764 | B11: =IFERROR(INDEX('[1]Pt1-DATA'!$C:$D,MATCH(A11,'[1]Pt1-DATA'!$C:$C,0),2),"") -> 15958 | C11: =IFERROR(INDEX('[2]Mil trans'!$B$6:$K$73,MATCH(L11,'[2]Mil trans'!$B$6:$B$73,0),4)*1000,INDEX('[2]Mil trans'!$B$6:$K$73,MATCH(M11,'[2]Mil trans'!$B$6:$B$73,0),4)*1000) -> 15000 | D11: =B11*(1+'Federal Reserve PPI AC Parts'!$E$12) -> 17847.47446 | E11: =C11*(1+'Federal Reserve PPI AC Parts'!$E$12) -> 16776.04442 | F11: Used Model 2024 | G11: 17847.47446 | H11: 0.06386666667 | I11: =IFERROR(INDEX('[2]Mil trans'!$B$6:$K$73,MATCH(L11,'[2]Mil trans'!$B$6:$B$73,0),7),INDEX('[2]Mil trans'!$B$6:$K$73,MATCH(M11,'[2]Mil trans'!$B$6:$B$73,0),7)) -> HWL ? | J11: 2 | K11: =INDEX('[1]Pt1-DATA'!$A$5:$M$13349,MATCH(A11,'[1]Pt1-DATA'!$C$5:$C$13349,0),6) -> F1 | L11: Radar altimeters | N11: 15958
A12: 150#814 | B12: =IFERROR(INDEX('[1]Pt1-DATA'!$C:$D,MATCH(A12,'[1]Pt1-DATA'!$C:$C,0),2),"") -> 81034 | C12: =IFERROR(INDEX('[2]Mil trans'!$B$6:$K$73,MATCH(L12,'[2]Mil trans'!$B$6:$B$73,0),4)*1000,INDEX('[2]Mil trans'!$B$6:$K$73,MATCH(M12,'[2]Mil trans'!$B$6:$B$73,0),4)*1000) ->  | D12: =B12*(1+'Federal Reserve PPI AC Parts'!$E$12) -> 90628.66557 | E12: =C12*(1+'Federal Reserve PPI AC Parts'!$E$12) ->  | F12: Used Model 2024 | G12: 90628.66557 | I12: =IFERROR(INDEX('[2]Mil trans'!$B$6:$K$73,MATCH(L12,'[2]Mil trans'!$B$6:$B$73,0),7),INDEX('[2]Mil trans'!$B$6:$K$73,MATCH(M12,'[2]Mil trans'!$B$6:$B$73,0),7)) ->  | J12: 3 | K12: =INDEX('[1]Pt1-DATA'!$A$5:$M$13349,MATCH(A12,'[1]Pt1-DATA'!$C$5:$C$13349,0),6) -> A | L12: Multi mode radar | N12: 81034
A13: 150#825 | B13: =IFERROR(INDEX('[1]Pt1-DATA'!$C:$D,MATCH(A13,'[1]Pt1-DATA'!$C:$C,0),2),"") -> 97116 | C13: =IFERROR(INDEX('[2]Mil trans'!$B$6:$K$73,MATCH(L13,'[2]Mil trans'!$B$6:$B$73,0),4)*1000,INDEX('[2]Mil trans'!$B$6:$K$73,MATCH(M13,'[2]Mil trans'!$B$6:$B$73,0),4)*1000) ->  | D13: =B13*(1+'Federal Reserve PPI AC Parts'!$E$12) -> 108614.822 | E13: =C13*(1+'Federal Reserve PPI AC Parts'!$E$12) ->  | F13: Used Model 2024 | G13: 108614.822 | I13: =IFERROR(INDEX('[2]Mil trans'!$B$6:$K$73,MATCH(L13,'[2]Mil trans'!$B$6:$B$73,0),7),INDEX('[2]Mil trans'!$B$6:$K$73,MATCH(M13,'[2]Mil trans'!$B$6:$B$73,0),7)) ->  | J13: 1 | K13: =INDEX('[1]Pt1-DATA'!$A$5:$M$13349,MATCH(A13,'[1]Pt1-DATA'!$C$5:$C$13349,0),6) -> N | L13: Auto pilot system | N13: 97116
A14: 150#833 | B14: =IFERROR(INDEX('[1]Pt1-DATA'!$C:$D,MATCH(A14,'[1]Pt1-DATA'!$C:$C,0),2),"") -> 676984 | C14: =IFERROR(INDEX('[2]Mil trans'!$B$6:$K$73,MATCH(L14,'[2]Mil trans'!$B$6:$B$73,0),4)*1000,INDEX('[2]Mil trans'!$B$6:$K$73,MATCH(M14,'[2]Mil trans'!$B$6:$B$73,0),4)*1000) -> 500000 | D14: =B14*(1+'Federal Reserve PPI AC Parts'!$E$12) -> 757140.9104 | E14: =C14*(1+'Federal Reserve PPI AC Parts'!$E$12) -> 559201.4807 | F14: Used Model 2024 | G14: 757140.9104 | H14: 0.353968 | I14: =IFERROR(INDEX('[2]Mil trans'!$B$6:$K$73,MATCH(L14,'[2]Mil trans'!$B$6:$B$73,0),7),INDEX('[2]Mil trans'!$B$6:$K$73,MATCH(M14,'[2]Mil trans'!$B$6:$B$73,0),7)) -> Thales | J14: 1 | K14: =INDEX('[1]Pt1-DATA'!$A$5:$M$13349,MATCH(A14,'[1]Pt1-DATA'!$C$5:$C$13349,0),6) -> C | L14: IMA | N14: 676984
A15: 150#834 | B15: =IFERROR(INDEX('[1]Pt1-DATA'!$C:$D,MATCH(A15,'[1]Pt1-DATA'!$C:$C,0),2),"") -> 44327 | C15: =IFERROR(INDEX('[2]Mil trans'!$B$6:$K$73,MATCH(L15,'[2]Mil trans'!$B$6:$B$73,0),4)*1000,INDEX('[2]Mil trans'!$B$6:$K$73,MATCH(M15,'[2]Mil trans'!$B$6:$B$73,0),4)*1000) -> 40000 | D15: =B15*(1+'Federal Reserve PPI AC Parts'!$E$12) -> 49575.44807 | E15: =C15*(1+'Federal Reserve PPI AC Parts'!$E$12) -> 44736.11846 | F15: Used Model 2024 | G15: 49575.44807 | H15: 0.108175 | I15: =IFERROR(INDEX('[2]Mil trans'!$B$6:$K$73,MATCH(L15,'[2]Mil trans'!$B$6:$B$73,0),7),INDEX('[2]Mil trans'!$B$6:$K$73,MATCH(M15,'[2]Mil trans'!$B$6:$B$73,0),7)) -> 0 | J15: 3 | K15: =INDEX('[1]Pt1-DATA'!$A$5:$M$13349,MATCH(A15,'[1]Pt1-DATA'!$C$5:$C$13349,0),6) -> A | L15: Inertial Reference System | N15: 44327
A16: 150#835 | B16: =IFERROR(INDEX('[1]Pt1-DATA'!$C:$D,MATCH(A16,'[1]Pt1-DATA'!$C:$C,0),2),"") -> 78282 | C16: =IFERROR(INDEX('[2]Mil trans'!$B$6:$K$73,MATCH(L16,'[2]Mil trans'!$B$6:$B$73,0),4)*1000,INDEX('[2]Mil trans'!$B$6:$K$73,MATCH(M16,'[2]Mil trans'!$B$6:$B$73,0),4)*1000) -> 75000 | D16: =B16*(1+'Federal Reserve PPI AC Parts'!$E$12) -> 87550.82062 | E16: =C16*(1+'Federal Reserve PPI AC Parts'!$E$12) -> 83880.2221 | F16: Used Model 2024 | G16: 87550.82062 | H16: 0.04376 | I16: =IFERROR(INDEX('[2]Mil trans'!$B$6:$K$73,MATCH(L16,'[2]Mil trans'!$B$6:$B$73,0),7),INDEX('[2]Mil trans'!$B$6:$K$73,MATCH(M16,'[2]Mil trans'!$B$6:$B$73,0),7)) -> Thales | J16: 2 | K16: =INDEX('[1]Pt1-DATA'!$A$5:$M$13349,MATCH(A16,'[1]Pt1-DATA'!$C$5:$C$13349,0),6) -> A | L16: Flight Management System | N16: 78282
A17: 150#836 | B17: =IFERROR(INDEX('[1]Pt1-DATA'!$C:$D,MATCH(A17,'[1]Pt1-DATA'!$C:$C,0),2),"") -> 20243 | C17: =IFERROR(INDEX('[2]Mil trans'!$B$6:$K$73,MATCH(L17,'[2]Mil trans'!$B$6:$B$73,0),4)*1000,INDEX('[2]Mil trans'!$B$6:$K$73,MATCH(M17,'[2]Mil trans'!$B$6:$B$73,0),4)*1000) -> 20000 | D17: =B17*(1+'Federal Reserve PPI AC Parts'!$E$12) -> 22639.83115 | E17: =C17*(1+'Federal Reserve PPI AC Parts'!$E$12) -> 22368.05923 | F17: Used Model 2024 | G17: 22639.83115 | H17: 0.01215 | I17: =IFERROR(INDEX('[2]Mil trans'!$B$6:$K$73,MATCH(L17,'[2]Mil trans'!$B$6:$B$73,0),7),INDEX('[2]Mil trans'!$B$6:$K$73,MATCH(M17,'[2]Mil trans'!$B$6:$B$73,0),7)) -> Thales | J17: 2 | K17: =INDEX('[1]Pt1-DATA'!$A$5:$M$13349,MATCH(A17,'[1]Pt1-DATA'!$C$5:$C$13349,0),6) -> A | L17: Keyboard cursor Control Units (KCCU) | N17: 20243
A18: 150#837 | B18: =IFERROR(INDEX('[1]Pt1-DATA'!$C:$D,MATCH(A18,'[1]Pt1-DATA'!$C:$C,0),2),"") -> 167409 | C18: =IFERROR(INDEX('[2]Mil trans'!$B$6:$K$73,MATCH(L18,'[2]Mil trans'!$B$6:$B$73,0),4)*1000,INDEX('[2]Mil trans'!$B$6:$K$73,MATCH(M18,'[2]Mil trans'!$B$6:$B$73,0),4)*1000) -> 75000 | D18: =B18*(1+'Federal Reserve PPI AC Parts'!$E$12) -> 187230.7214 | E18: =C18*(1+'Federal Reserve PPI AC Parts'!$E$12) -> 83880.2221 | F18: Used Model 2024 | G18: 187230.7214 | H18: 1.23212 | I18: =IFERROR(INDEX('[2]Mil trans'!$B$6:$K$73,MATCH(L18,'[2]Mil trans'!$B$6:$B$73,0),7),INDEX('[2]Mil trans'!$B$6:$K$73,MATCH(M18,'[2]Mil trans'!$B$6:$B$73,0),7)) -> Thales?? | J18: 2 | K18: =INDEX('[1]Pt1-DATA'!$A$5:$M$13349,MATCH(A18,'[1]Pt1-DATA'!$C$5:$C$13349,0),6) -> A | L18: Military Mission Management System | N18: 167409
A19: 150#838 | B19: =IFERROR(INDEX('[1]Pt1-DATA'!$C:$D,MATCH(A19,'[1]Pt1-DATA'!$C:$C,0),2),"") -> 22164 | C19: =IFERROR(INDEX('[2]Mil trans'!$B$6:$K$73,MATCH(L19,'[2]Mil trans'!$B$6:$B$73,0),4)*1000,INDEX('[2]Mil trans'!$B$6:$K$73,MATCH(M19,'[2]Mil trans'!$B$6:$B$73,0),4)*1000) -> 15000 | D19: =B19*(1+'Federal Reserve PPI AC Parts'!$E$12) -> 24788.28324 | E19: =C19*(1+'Federal Reserve PPI AC Parts'!$E$12) -> 16776.04442 | F19: Used Model 2024 | G19: 24788.28324 | H19: 0.4776 | I19: =IFERROR(INDEX('[2]Mil trans'!$B$6:$K$73,MATCH(L19,'[2]Mil trans'!$B$6:$B$73,0),7),INDEX('[2]Mil trans'!$B$6:$K$73,MATCH(M19,'[2]Mil trans'!$B$6:$B$73,0),7)) -> 0 | J19: 2 | K19: =INDEX('[1]Pt1-DATA'!$A$5:$M$13349,MATCH(A19,'[1]Pt1-DATA'!$C$5:$C$13349,0),6) -> A | L19: TACAN | N19: 22164
A20: 150#839 | B20: =IFERROR(INDEX('[1]Pt1-DATA'!$C:$D,MATCH(A20,'[1]Pt1-DATA'!$C:$C,0),2),"") -> 136744 | C20: =IFERROR(INDEX('[2]Mil trans'!$B$6:$K$73,MATCH(L20,'[2]Mil trans'!$B$6:$B$73,0),4)*1000,INDEX('[2]Mil trans'!$B$6:$K$73,MATCH(M20,'[2]Mil trans'!$B$6:$B$73,0),4)*1000) -> 75000 | D20: =B20*(1+'Federal Reserve PPI AC Parts'!$E$12) -> 152934.8946 | E20: =C20*(1+'Federal Reserve PPI AC Parts'!$E$12) -> 83880.2221 | F20: Used Model 2024 | G20: 152934.8946 | H20: 0.8232533333 | I20: =IFERROR(INDEX('[2]Mil trans'!$B$6:$K$73,MATCH(L20,'[2]Mil trans'!$B$6:$B$73,0),7),INDEX('[2]Mil trans'!$B$6:$K$73,MATCH(M20,'[2]Mil trans'!$B$6:$B$73,0),7)) -> HWL | J20: 1 | K20: =INDEX('[1]Pt1-DATA'!$A$5:$M$13349,MATCH(A20,'[1]Pt1-DATA'!$C$5:$C$13349,0),6) -> A | L20: Aircraft Environment Surveillance System (AESS) | N20: 136744
A21: 150#840 | B21: =IFERROR(INDEX('[1]Pt1-DATA'!$C:$D,MATCH(A21,'[1]Pt1-DATA'!$C:$C,0),2),"") -> 73384 | C21: =IFERROR(INDEX('[2]Mil trans'!$B$6:$K$73,MATCH(L21,'[2]Mil trans'!$B$6:$B$73,0),4)*1000,INDEX('[2]Mil trans'!$B$6:$K$73,MATCH(M21,'[2]Mil trans'!$B$6:$B$73,0),4)*1000) -> 75000 | D21: =B21*(1+'Federal Reserve PPI AC Parts'!$E$12) -> 82072.88292 | E21: =C21*(1+'Federal Reserve PPI AC Parts'!$E$12) -> 83880.2221 | F21: Used Model 2024 | G21: 82072.88292 | H21: -0.02154666667 | I21: =IFERROR(INDEX('[2]Mil trans'!$B$6:$K$73,MATCH(L21,'[2]Mil trans'!$B$6:$B$73,0),7),INDEX('[2]Mil trans'!$B$6:$K$73,MATCH(M21,'[2]Mil trans'!$B$6:$B$73,0),7)) -> Collins | J21: 1 | K21: =INDEX('[1]Pt1-DATA'!$A$5:$M$13349,MATCH(A21,'[1]Pt1-DATA'!$C$5:$C$13349,0),6) -> A | L21: HF-9500 High Frequency Communications System | N21: 73384
A22: 150#841 | B22: =IFERROR(INDEX('[1]Pt1-DATA'!$C:$D,MATCH(A22,'[1]Pt1-DATA'!$C:$C,0),2),"") -> 115069 | C22: =IFERROR(INDEX('[2]Mil trans'!$B$6:$K$73,MATCH(L22,'[2]Mil trans'!$B$6:$B$73,0),4)*1000,INDEX('[2]Mil trans'!$B$6:$K$73,MATCH(M22,'[2]Mil trans'!$B$6:$B$73,0),4)*1000) -> 100000 | D22: =B22*(1+'Federal Reserve PPI AC Parts'!$E$12) -> 128693.5104 | E22: =C22*(1+'Federal Reserve PPI AC Parts'!$E$12) -> 111840.2961 | F22: Used Model 2024 | G22: 128693.5104 | H22: 0.15069 | I22: =IFERROR(INDEX('[2]Mil trans'!$B$6:$K$73,MATCH(L22,'[2]Mil trans'!$B$6:$B$73,0),7),INDEX('[2]Mil trans'!$B$6:$K$73,MATCH(M22,'[2]Mil trans'!$B$6:$B$73,0),7)) -> Collins | J22: 1 | K22: =INDEX('[1]Pt1-DATA'!$A$5:$M$13349,MATCH(A22,'[1]Pt1-DATA'!$C$5:$C$13349,0),6) -> A | L22: AFDX databus | N22: 115069
A23: 150#842 | B23: =IFERROR(INDEX('[1]Pt1-DATA'!$C:$D,MATCH(A23,'[1]Pt1-DATA'!$C:$C,0),2),"") -> 39138 | C23: =IFERROR(INDEX('[2]Mil trans'!$B$6:$K$73,MATCH(L23,'[2]Mil trans'!$B$6:$B$73,0),4)*1000,INDEX('[2]Mil trans'!$B$6:$K$73,MATCH(M23,'[2]Mil trans'!$B$6:$B$73,0),4)*1000) -> 40000 | D23: =B23*(1+'Federal Reserve PPI AC Parts'!$E$12) -> 43772.0551 | E23: =C23*(1+'Federal Reserve PPI AC Parts'!$E$12) -> 44736.11846 | F23: Used Model 2024 | G23: 43772.0551 | H23: -0.02155 | I23: =IFERROR(INDEX('[2]Mil trans'!$B$6:$K$73,MATCH(L23,'[2]Mil trans'!$B$6:$B$73,0),7),INDEX('[2]Mil trans'!$B$6:$K$73,MATCH(M23,'[2]Mil trans'!$B$6:$B$73,0),7)) -> Collins | J23: 2 | K23: =INDEX('[1]Pt1-DATA'!$A$5:$M$13349,MATCH(A23,'[1]Pt1-DATA'!$C$5:$C$13349,0),6) -> A | L23: Avionics Comms Router (ACR) | N23: 39138
A24: 150#843 | B24: =IFERROR(INDEX('[1]Pt1-DATA'!$C:$D,MATCH(A24,'[1]Pt1-DATA'!$C:$C,0),2),"") -> 58707 | C24: =IFERROR(INDEX('[2]Mil trans'!$B$6:$K$73,MATCH(L24,'[2]Mil trans'!$B$6:$B$73,0),4)*1000,INDEX('[2]Mil trans'!$B$6:$K$73,MATCH(M24,'[2]Mil trans'!$B$6:$B$73,0),4)*1000) -> 60000 | D24: =B24*(1+'Federal Reserve PPI AC Parts'!$E$12) -> 65658.08265 | E24: =C24*(1+'Federal Reserve PPI AC Parts'!$E$12) -> 67104.17768 | F24: Used Model 2024 | G24: 65658.08265 | H24: -0.02155 | I24: =IFERROR(INDEX('[2]Mil trans'!$B$6:$K$73,MATCH(L24,'[2]Mil trans'!$B$6:$B$73,0),7),INDEX('[2]Mil trans'!$B$6:$K$73,MATCH(M24,'[2]Mil trans'!$B$6:$B$73,0),7)) -> Thales | J24: 1 | K24: =INDEX('[1]Pt1-DATA'!$A$5:$M$13349,MATCH(A24,'[1]Pt1-DATA'!$C$5:$C$13349,0),6) -> A | L24: Central Crypto System | N24: 58707
A25: 150#844 | B25: =IFERROR(INDEX('[1]Pt1-DATA'!$C:$D,MATCH(A25,'[1]Pt1-DATA'!$C:$C,0),2),"") -> 54998 | C25: =IFERROR(INDEX('[2]Mil trans'!$B$6:$K$73,MATCH(L25,'[2]Mil trans'!$B$6:$B$73,0),4)*1000,INDEX('[2]Mil trans'!$B$6:$K$73,MATCH(M25,'[2]Mil trans'!$B$6:$B$73,0),4)*1000) -> 35000 | D25: =B25*(1+'Federal Reserve PPI AC Parts'!$E$12) -> 61509.92607 | E25: =C25*(1+'Federal Reserve PPI AC Parts'!$E$12) -> 39144.10365 | F25: Used Model 2024 | G25: 61509.92607 | H25: 0.5713714286 | I25: =IFERROR(INDEX('[2]Mil trans'!$B$6:$K$73,MATCH(L25,'[2]Mil trans'!$B$6:$B$73,0),7),INDEX('[2]Mil trans'!$B$6:$K$73,MATCH(M25,'[2]Mil trans'!$B$6:$B$73,0),7)) -> Thales | J25: 3 | K25: =INDEX('[1]Pt1-DATA'!$A$5:$M$13349,MATCH(A25,'[1]Pt1-DATA'!$C$5:$C$13349,0),6) -> A | L25: Mulit InfraRed alerting System (MIRAS) Sensors | N25: 54998
A26: 150#845 | B26: =IFERROR(INDEX('[1]Pt1-DATA'!$C:$D,MATCH(A26,'[1]Pt1-DATA'!$C:$C,0),2),"") -> 195311 | C26: =IFERROR(INDEX('[2]Mil trans'!$B$6:$K$73,MATCH(L26,'[2]Mil trans'!$B$6:$B$73,0),4)*1000,INDEX('[2]Mil trans'!$B$6:$K$73,MATCH(M26,'[2]Mil trans'!$B$6:$B$73,0),4)*1000) -> 150000 | D26: =B26*(1+'Federal Reserve PPI AC Parts'!$E$12) -> 218436.4008 | E26: =C26*(1+'Federal Reserve PPI AC Parts'!$E$12) -> 167760.4442 | F26: Used Model 2024 | G26: 218436.4008 | H26: 0.3020733333 | I26: =IFERROR(INDEX('[2]Mil trans'!$B$6:$K$73,MATCH(L26,'[2]Mil trans'!$B$6:$B$73,0),7),INDEX('[2]Mil trans'!$B$6:$K$73,MATCH(M26,'[2]Mil trans'!$B$6:$B$73,0),7)) -> Thales, EADS, Diehl, Safran | J26: 1 | K26: =INDEX('[1]Pt1-DATA'!$A$5:$M$13349,MATCH(A26,'[1]Pt1-DATA'!$C$5:$C$13349,0),6) -> A | L26: Directed InfraRed Counter Measures | N26: 195311
A27: 150#846 | B27: =IFERROR(INDEX('[1]Pt1-DATA'!$C:$D,MATCH(A27,'[1]Pt1-DATA'!$C:$C,0),2),"") -> 167409 | C27: =IFERROR(INDEX('[2]Mil trans'!$B$6:$K$73,MATCH(L27,'[2]Mil trans'!$B$6:$B$73,0),4)*1000,INDEX('[2]Mil trans'!$B$6:$K$73,MATCH(M27,'[2]Mil trans'!$B$6:$B$73,0),4)*1000) -> 75000 | D27: =B27*(1+'Federal Reserve PPI AC Parts'!$E$12) -> 187230.7214 | E27: =C27*(1+'Federal Reserve PPI AC Parts'!$E$12) -> 83880.2221 | F27: Used Model 2024 | G27: 187230.7214 | H27: 1.23212 | I27: =IFERROR(INDEX('[2]Mil trans'!$B$6:$K$73,MATCH(L27,'[2]Mil trans'!$B$6:$B$73,0),7),INDEX('[2]Mil trans'!$B$6:$K$73,MATCH(M27,'[2]Mil trans'!$B$6:$B$73,0),7)) -> ???/ | J27: 1 | K27: =INDEX('[1]Pt1-DATA'!$A$5:$M$13349,MATCH(A27,'[1]Pt1-DATA'!$C$5:$C$13349,0),6) -> A | L27: Defensive Aids Computer | N27: 167409
A28: 150#866 | B28: =IFERROR(INDEX('[1]Pt1-DATA'!$C:$D,MATCH(A28,'[1]Pt1-DATA'!$C:$C,0),2),"") -> 150669 | C28: =IFERROR(INDEX('[2]Mil trans'!$B$6:$K$73,MATCH(L28,'[2]Mil trans'!$B$6:$B$73,0),4)*1000,INDEX('[2]Mil trans'!$B$6:$K$73,MATCH(M28,'[2]Mil trans'!$B$6:$B$73,0),4)*1000) -> 125000 | D28: =B28*(1+'Federal Reserve PPI AC Parts'!$E$12) -> 168508.6558 | E28: =C28*(1+'Federal Reserve PPI AC Parts'!$E$12) -> 139800.3702 | F28: Used Model 2024 | G28: 168508.6558 | H28: 0.205352 | I28: =IFERROR(INDEX('[2]Mil trans'!$B$6:$K$73,MATCH(L28,'[2]Mil trans'!$B$6:$B$73,0),7),INDEX('[2]Mil trans'!$B$6:$K$73,MATCH(M28,'[2]Mil trans'!$B$6:$B$73,0),7)) -> MBDA | J28: 1 | K28: =INDEX('[1]Pt1-DATA'!$A$5:$M$13349,MATCH(A28,'[1]Pt1-DATA'!$C$5:$C$13349,0),6) -> C | L28: Defensive counter measures | M28: Defensive Aids Sub System (DASS) | N28: 150669
A29: 150#878 | B29: =IFERROR(INDEX('[1]Pt1-DATA'!$C:$D,MATCH(A29,'[1]Pt1-DATA'!$C:$C,0),2),"") -> 137496 | C29: =IFERROR(INDEX('[2]Mil trans'!$B$6:$K$73,MATCH(L29,'[2]Mil trans'!$B$6:$B$73,0),4)*1000,INDEX('[2]Mil trans'!$B$6:$K$73,MATCH(M29,'[2]Mil trans'!$B$6:$B$73,0),4)*1000) ->  | D29: =B29*(1+'Federal Reserve PPI AC Parts'!$E$12) -> 153775.9336 | E29: =C29*(1+'Federal Reserve PPI AC Parts'!$E$12) ->  | F29: Used Model 2024 | G29: 153775.9336 | I29: =IFERROR(INDEX('[2]Mil trans'!$B$6:$K$73,MATCH(L29,'[2]Mil trans'!$B$6:$B$73,0),7),INDEX('[2]Mil trans'!$B$6:$K$73,MATCH(M29,'[2]Mil trans'!$B$6:$B$73,0),7)) ->  | J29: 1 | K29: =INDEX('[1]Pt1-DATA'!$A$5:$M$13349,MATCH(A29,'[1]Pt1-DATA'!$C$5:$C$13349,0),6) -> I | L29: Sensors IFF, other | N29: 137496
A30: 150#879 | B30: =IFERROR(INDEX('[1]Pt1-DATA'!$C:$D,MATCH(A30,'[1]Pt1-DATA'!$C:$C,0),2),"") -> 279491 | C30: =IFERROR(INDEX('[2]Mil trans'!$B$6:$K$73,MATCH(L30,'[2]Mil trans'!$B$6:$B$73,0),4)*1000,INDEX('[2]Mil trans'!$B$6:$K$73,MATCH(M30,'[2]Mil trans'!$B$6:$B$73,0),4)*1000) ->  | D30: =B30*(1+'Federal Reserve PPI AC Parts'!$E$12) -> 312583.5621 | E30: =C30*(1+'Federal Reserve PPI AC Parts'!$E$12) ->  | F30: Used Model 2024 | G30: 312583.5621 | I30: =IFERROR(INDEX('[2]Mil trans'!$B$6:$K$73,MATCH(L30,'[2]Mil trans'!$B$6:$B$73,0),7),INDEX('[2]Mil trans'!$B$6:$K$73,MATCH(M30,'[2]Mil trans'!$B$6:$B$73,0),7)) ->  | J30: 1 | K30: =INDEX('[1]Pt1-DATA'!$A$5:$M$13349,MATCH(A30,'[1]Pt1-DATA'!$C$5:$C$13349,0),6) -> AC | L30: Software | N30: 279491
A31: 150#882 | B31: =IFERROR(INDEX('[1]Pt1-DATA'!$C:$D,MATCH(A31,'[1]Pt1-DATA'!$C:$C,0),2),"") -> 78114 | C31: =IFERROR(INDEX('[2]Mil trans'!$B$6:$K$73,MATCH(L31,'[2]Mil trans'!$B$6:$B$73,0),4)*1000,INDEX('[2]Mil trans'!$B$6:$K$73,MATCH(M31,'[2]Mil trans'!$B$6:$B$73,0),4)*1000) ->  | D31: =B31*(1+'Federal Reserve PPI AC Parts'!$E$12) -> 87362.92893 | E31: =C31*(1+'Federal Reserve PPI AC Parts'!$E$12) ->  | F31: Used Model 2024 | G31: 87362.92893 | I31: =IFERROR(INDEX('[2]Mil trans'!$B$6:$K$73,MATCH(L31,'[2]Mil trans'!$B$6:$B$73,0),7),INDEX('[2]Mil trans'!$B$6:$K$73,MATCH(M31,'[2]Mil trans'!$B$6:$B$73,0),7)) ->  | J31: 2 | K31: =INDEX('[1]Pt1-DATA'!$A$5:$M$13349,MATCH(A31,'[1]Pt1-DATA'!$C$5:$C$13349,0),6) -> A | L31: Aircraft avionics management unit | N31: 78114
A32: 150#1056 | B32: =IFERROR(INDEX('[1]Pt1-DATA'!$C:$D,MATCH(A32,'[1]Pt1-DATA'!$C:$C,0),2),"") -> 10154 | C32: =IFERROR(INDEX('[2]Mil trans'!$B$6:$K$73,MATCH(L32,'[2]Mil trans'!$B$6:$B$73,0),4)*1000,INDEX('[2]Mil trans'!$B$6:$K$73,MATCH(M32,'[2]Mil trans'!$B$6:$B$73,0),4)*1000) ->  | D32: =B32*(1+'Federal Reserve PPI AC Parts'!$E$12) -> 11356.26367 | E32: =C32*(1+'Federal Reserve PPI AC Parts'!$E$12) ->  | F32: Used Model 2024 | G32: 11356.26367 | I32: =IFERROR(INDEX('[2]Mil trans'!$B$6:$K$73,MATCH(L32,'[2]Mil trans'!$B$6:$B$73,0),7),INDEX('[2]Mil trans'!$B$6:$K$73,MATCH(M32,'[2]Mil trans'!$B$6:$B$73,0),7)) ->  | J32: 1 | K32: =INDEX('[1]Pt1-DATA'!$A$5:$M$13349,MATCH(A32,'[1]Pt1-DATA'!$C$5:$C$13349,0),6) -> CO | L32: Avionics Harnesses | N32: 10154
A33: 150#1057 | B33: =IFERROR(INDEX('[1]Pt1-DATA'!$C:$D,MATCH(A33,'[1]Pt1-DATA'!$C:$C,0),2),"") -> 72316 | C33: =IFERROR(INDEX('[2]Mil trans'!$B$6:$K$73,MATCH(L33,'[2]Mil trans'!$B$6:$B$73,0),4)*1000,INDEX('[2]Mil trans'!$B$6:$K$73,MATCH(M33,'[2]Mil trans'!$B$6:$B$73,0),4)*1000) ->  | D33: =B33*(1+'Federal Reserve PPI AC Parts'!$E$12) -> 80878.42856 | E33: =C33*(1+'Federal Reserve PPI AC Parts'!$E$12) ->  | F33: Used Model 2024 | G33: 80878.42856 | I33: =IFERROR(INDEX('[2]Mil trans'!$B$6:$K$73,MATCH(L33,'[2]Mil trans'!$B$6:$B$73,0),7),INDEX('[2]Mil trans'!$B$6:$K$73,MATCH(M33,'[2]Mil trans'!$B$6:$B$73,0),7)) ->  | J33: 1 | K33: =INDEX('[1]Pt1-DATA'!$A$5:$M$13349,MATCH(A33,'[1]Pt1-DATA'!$C$5:$C$13349,0),6) -> CP | L33: Avionics Harnesses | N33: 72316
A34: 150#1058 | B34: =IFERROR(INDEX('[1]Pt1-DATA'!$C:$D,MATCH(A34,'[1]Pt1-DATA'!$C:$C,0),2),"") -> 87450 | C34: =IFERROR(INDEX('[2]Mil trans'!$B$6:$K$73,MATCH(L34,'[2]Mil trans'!$B$6:$B$73,0),4)*1000,INDEX('[2]Mil trans'!$B$6:$K$73,MATCH(M34,'[2]Mil trans'!$B$6:$B$73,0),4)*1000) ->  | D34: =B34*(1+'Federal Reserve PPI AC Parts'!$E$12) -> 97804.33897 | E34: =C34*(1+'Federal Reserve PPI AC Parts'!$E$12) ->  | F34: Used Model 2024 | G34: 97804.33897 | I34: =IFERROR(INDEX('[2]Mil trans'!$B$6:$K$73,MATCH(L34,'[2]Mil trans'!$B$6:$B$73,0),7),INDEX('[2]Mil trans'!$B$6:$K$73,MATCH(M34,'[2]Mil trans'!$B$6:$B$73,0),7)) ->  | J34: 1 | K34: =INDEX('[1]Pt1-DATA'!$A$5:$M$13349,MATCH(A34,'[1]Pt1-DATA'!$C$5:$C$13349,0),6) -> CO | L34: Avionics Harnesses | N34: 87450
A35: 150#1059 | B35: =IFERROR(INDEX('[1]Pt1-DATA'!$C:$D,MATCH(A35,'[1]Pt1-DATA'!$C:$C,0),2),"") -> 18079 | C35: =IFERROR(INDEX('[2]Mil trans'!$B$6:$K$73,MATCH(L35,'[2]Mil trans'!$B$6:$B$73,0),4)*1000,INDEX('[2]Mil trans'!$B$6:$K$73,MATCH(M35,'[2]Mil trans'!$B$6:$B$73,0),4)*1000) ->  | D35: =B35*(1+'Federal Reserve PPI AC Parts'!$E$12) -> 20219.60714 | E35: =C35*(1+'Federal Reserve PPI AC Parts'!$E$12) ->  | F35: Used Model 2024 | G35: 20219.60714 | H35: =(B35-C35)/C35 ->  | I35: =IFERROR(INDEX('[2]Mil trans'!$B$6:$K$73,MATCH(L35,'[2]Mil trans'!$B$6:$B$73,0),7),INDEX('[2]Mil trans'!$B$6:$K$73,MATCH(M35,'[2]Mil trans'!$B$6:$B$73,0),7)) ->  | J35: 1 | K35: =INDEX('[1]Pt1-DATA'!$A$5:$M$13349,MATCH(A35,'[1]Pt1-DATA'!$C$5:$C$13349,0),6) -> CP | L35: Avionics Harnesses | N35: 18079
B36: =IFERROR(INDEX('[1]Pt1-DATA'!$C:$D,MATCH(A36,'[1]Pt1-DATA'!$C:$C,0),2),"") ->  | C36: =IFERROR(INDEX('[2]Mil trans'!$B$6:$K$73,MATCH(L36,'[2]Mil trans'!$B$6:$B$73,0),4)*1000,INDEX('[2]Mil trans'!$B$6:$K$73,MATCH(M36,'[2]Mil trans'!$B$6:$B$73,0),4)*1000) -> 75000 | D36: =B36*(1+'Federal Reserve PPI AC Parts'!$E$12) ->  | E36: =C36*(1+'Federal Reserve PPI AC Parts'!$E$12) -> 83880.2221 | F36: Used PW 2024 | G36: =E36 -> 83880.2221 | H36: =(B36-C36)/C36 ->  | I36: =IFERROR(INDEX('[2]Mil trans'!$B$6:$K$73,MATCH(L36,'[2]Mil trans'!$B$6:$B$73,0),7),INDEX('[2]Mil trans'!$B$6:$K$73,MATCH(M36,'[2]Mil trans'!$B$6:$B$73,0),7)) -> 0 | J36: 1 | M36: Terrain Masking Low Level Flight System (TMLLFS
B37: =IFERROR(INDEX('[1]Pt1-DATA'!$C:$D,MATCH(A37,'[1]Pt1-DATA'!$C:$C,0),2),"") ->  | C37: =IFERROR(INDEX('[2]Mil trans'!$B$6:$K$73,MATCH(L37,'[2]Mil trans'!$B$6:$B$73,0),4)*1000,INDEX('[2]Mil trans'!$B$6:$K$73,MATCH(M37,'[2]Mil trans'!$B$6:$B$73,0),4)*1000) -> 35000 | D37: =B37*(1+'Federal Reserve PPI AC Parts'!$E$12) ->  | E37: =C37*(1+'Federal Reserve PPI AC Parts'!$E$12) -> 39144.10365 | F37: Used PW 2024 | G37: =E37 -> 39144.10365 | H37: =(B37-C37)/C37 ->  | I37: =IFERROR(INDEX('[2]Mil trans'!$B$6:$K$73,MATCH(L37,'[2]Mil trans'!$B$6:$B$73,0),7),INDEX('[2]Mil trans'!$B$6:$K$73,MATCH(M37,'[2]Mil trans'!$B$6:$B$73,0),7)) -> ????? | J37: 1 | M37: Formation Keeping System (video surv)

Sheet rotorcraft mil
A1: Aircraft: | B1: =INDEX('[3]Pt1-AvionicsComponentCosts'!$A$11:$E$384,MATCH(VALUE(LEFT(A5,SEARCH("#",A5)-1)),'[3]Pt1-AvionicsComponentCosts'!$A$11:$A$384,0),5) -> Boeing AH-64 Apache
B2: Avionics Cost 2020 | G2: Avionics Cost 2024 | I2: % Change 2020 - 2024
B3: =SUMPRODUCT(B5:B80,J5:J80) -> 1898859 | G3: =SUMPRODUCT(G5:G80,J5:J80) -> 2100171.533 | I3: =($G$3-$B$3)/$B$3 -> 0.1060176311
B4: Model 2020 | C4: PW 2020 | D4: 2024 PPI Model | E4: 2024 PPI PW | F4: Notes | G4: 2024 AE Estimate | H4: Pct Change | I4: Source | J4: #/AC | K4: Factor | L4: Item | M4: Alt Item (PW) | N4: previous
A5: 98#735 | B5: =IFERROR(INDEX('[1]Pt1-DATA'!$C:$D,MATCH(A5,'[1]Pt1-DATA'!$C:$C,0),2),"") -> 25303 | C5: =IFERROR(INDEX('[2]rotorcraft mil'!$B$6:$K$73,MATCH(L5,'[2]rotorcraft mil'!$B$6:$B$73,0),4)*1000,INDEX('[2]rotorcraft mil'!$B$6:$K$73,MATCH(M5,'[2]rotorcraft mil'!$B$6:$B$73,0),4)*1000) -> 25000 | D5: =B5*(1+'Federal Reserve PPI AC Parts'!$E$12) -> 28298.95013 | E5: =C5*(1+'Federal Reserve PPI AC Parts'!$E$12) -> 27960.07403 | F5: Used Model 2024 | G5: =B5 -> 25303 | H5: =(B5-C5)/C5 -> 0.01212 | I5: =IFERROR(INDEX('[2]rotorcraft mil'!$B$6:$K$73,MATCH(L5,'[2]rotorcraft mil'!$B$6:$B$73,0),7),INDEX('[2]rotorcraft mil'!$B$6:$K$73,MATCH(M5,'[2]rotorcraft mil'!$B$6:$B$73,0),7)) -> 0 | J5: 1 | K5: =INDEX('[1]Pt1-DATA'!$A$5:$M$13349,MATCH(A5,'[1]Pt1-DATA'!$C$5:$C$13349,0),6) -> C | L5: Integrated Standby Instrument System | M5: Standy instrument | N5: 25303
A6: 98#765 | B6: =IFERROR(INDEX('[1]Pt1-DATA'!$C:$D,MATCH(A6,'[1]Pt1-DATA'!$C:$C,0),2),"") -> 50606 | C6: =IFERROR(INDEX('[2]rotorcraft mil'!$B$6:$K$73,MATCH(L6,'[2]rotorcraft mil'!$B$6:$B$73,0),4)*1000,INDEX('[2]rotorcraft mil'!$B$6:$K$73,MATCH(M6,'[2]rotorcraft mil'!$B$6:$B$73,0),4)*1000) ->  | D6: =B6*(1+'Federal Reserve PPI AC Parts'!$E$12) -> 56597.90026 | E6: =C6*(1+'Federal Reserve PPI AC Parts'!$E$12) ->  | F6: Used Model 2024 | G6: =B6 -> 50606 | H6: =(B6-C6)/C6 ->  | I6: =IFERROR(INDEX('[2]rotorcraft mil'!$B$6:$K$73,MATCH(L6,'[2]rotorcraft mil'!$B$6:$B$73,0),7),INDEX('[2]rotorcraft mil'!$B$6:$K$73,MATCH(M6,'[2]rotorcraft mil'!$B$6:$B$73,0),7)) ->  | J6: 2 | K6: =INDEX('[1]Pt1-DATA'!$A$5:$M$13349,MATCH(A6,'[1]Pt1-DATA'!$C$5:$C$13349,0),6) -> L | L6: Multi Function Display | N6: 50606
A7: 98#793 | B7: =IFERROR(INDEX('[1]Pt1-DATA'!$C:$D,MATCH(A7,'[1]Pt1-DATA'!$C:$C,0),2),"") -> 101212 | C7: =IFERROR(INDEX('[2]rotorcraft mil'!$B$6:$K$73,MATCH(L7,'[2]rotorcraft mil'!$B$6:$B$73,0),4)*1000,INDEX('[2]rotorcraft mil'!$B$6:$K$73,MATCH(M7,'[2]rotorcraft mil'!$B$6:$B$73,0),4)*1000) -> 75000 | D7: =B7*(1+'Federal Reserve PPI AC Parts'!$E$12) -> 113195.8005 | E7: =C7*(1+'Federal Reserve PPI AC Parts'!$E$12) -> 83880.2221 | F7: Used Model 2024 | G7: 101212 | H7: 0.3494933333 | I7: =IFERROR(INDEX('[2]rotorcraft mil'!$B$6:$K$73,MATCH(L7,'[2]rotorcraft mil'!$B$6:$B$73,0),7),INDEX('[2]rotorcraft mil'!$B$6:$K$73,MATCH(M7,'[2]rotorcraft mil'!$B$6:$B$73,0),7)) -> 0 | J7: 1 | K7: =INDEX('[1]Pt1-DATA'!$A$5:$M$13349,MATCH(A7,'[1]Pt1-DATA'!$C$5:$C$13349,0),6) -> A | L7: Pilot Helmet Mounted Display System | M7: Integrated Helmet and display system | N7: 101212
A8: 98#795 | B8: =IFERROR(INDEX('[1]Pt1-DATA'!$C:$D,MATCH(A8,'[1]Pt1-DATA'!$C:$C,0),2),"") -> 111607 | C8: =IFERROR(INDEX('[2]rotorcraft mil'!$B$6:$K$73,MATCH(L8,'[2]rotorcraft mil'!$B$6:$B$73,0),4)*1000,INDEX('[2]rotorcraft mil'!$B$6:$K$73,MATCH(M8,'[2]rotorcraft mil'!$B$6:$B$73,0),4)*1000) ->  | D8: =B8*(1+'Federal Reserve PPI AC Parts'!$E$12) -> 124821.5993 | E8: =C8*(1+'Federal Reserve PPI AC Parts'!$E$12) ->  | F8: Used Model 2024 | G8: 111607 | I8: =IFERROR(INDEX('[2]rotorcraft mil'!$B$6:$K$73,MATCH(L8,'[2]rotorcraft mil'!$B$6:$B$73,0),7),INDEX('[2]rotorcraft mil'!$B$6:$K$73,MATCH(M8,'[2]rotorcraft mil'!$B$6:$B$73,0),7)) ->  | J8: 2 | K8: =INDEX('[1]Pt1-DATA'!$A$5:$M$13349,MATCH(A8,'[1]Pt1-DATA'!$C$5:$C$13349,0),6) -> A1 | L8: Mission computers | N8: 111607
A9: 98#825 | B9: =IFERROR(INDEX('[1]Pt1-DATA'!$C:$D,MATCH(A9,'[1]Pt1-DATA'!$C:$C,0),2),"") -> 59764 | C9: =IFERROR(INDEX('[2]rotorcraft mil'!$B$6:$K$73,MATCH(L9,'[2]rotorcraft mil'!$B$6:$B$73,0),4)*1000,INDEX('[2]rotorcraft mil'!$B$6:$K$73,MATCH(M9,'[2]rotorcraft mil'!$B$6:$B$73,0),4)*1000) ->  | D9: =B9*(1+'Federal Reserve PPI AC Parts'!$E$12) -> 66840.23458 | E9: =C9*(1+'Federal Reserve PPI AC Parts'!$E$12) ->  | F9: Used Model 2024 | G9: 59764 | I9: =IFERROR(INDEX('[2]rotorcraft mil'!$B$6:$K$73,MATCH(L9,'[2]rotorcraft mil'!$B$6:$B$73,0),7),INDEX('[2]rotorcraft mil'!$B$6:$K$73,MATCH(M9,'[2]rotorcraft mil'!$B$6:$B$73,0),7)) ->  | J9: 1 | K9: =INDEX('[1]Pt1-DATA'!$A$5:$M$13349,MATCH(A9,'[1]Pt1-DATA'!$C$5:$C$13349,0),6) -> K | L9: Auto pilot system | N9: 59764
A10: 98#829 | B10: =IFERROR(INDEX('[1]Pt1-DATA'!$C:$D,MATCH(A10,'[1]Pt1-DATA'!$C:$C,0),2),"") -> 98253 | C10: =IFERROR(INDEX('[2]rotorcraft mil'!$B$6:$K$73,MATCH(L10,'[2]rotorcraft mil'!$B$6:$B$73,0),4)*1000,INDEX('[2]rotorcraft mil'!$B$6:$K$73,MATCH(M10,'[2]rotorcraft mil'!$B$6:$B$73,0),4)*1000) ->  | D10: =B10*(1+'Federal Reserve PPI AC Parts'!$E$12) -> 109886.4462 | E10: =C10*(1+'Federal Reserve PPI AC Parts'!$E$12) ->  | F10: Used Model 2024 | G10: 98253 | I10: =IFERROR(INDEX('[2]rotorcraft mil'!$B$6:$K$73,MATCH(L10,'[2]rotorcraft mil'!$B$6:$B$73,0),7),INDEX('[2]rotorcraft mil'!$B$6:$K$73,MATCH(M10,'[2]rotorcraft mil'!$B$6:$B$73,0),7)) ->  | J10: 1 | K10: =INDEX('[1]Pt1-DATA'!$A$5:$M$13349,MATCH(A10,'[1]Pt1-DATA'!$C$5:$C$13349,0),6) -> G | L10: Radar Antenna (nose nounted) | N10: 98253
A11: 98#833 | B11: =IFERROR(INDEX('[1]Pt1-DATA'!$C:$D,MATCH(A11,'[1]Pt1-DATA'!$C:$C,0),2),"") -> 156228 | C11: =IFERROR(INDEX('[2]rotorcraft mil'!$B$6:$K$73,MATCH(L11,'[2]rotorcraft mil'!$B$6:$B$73,0),4)*1000,INDEX('[2]rotorcraft mil'!$B$6:$K$73,MATCH(M11,'[2]rotorcraft mil'!$B$6:$B$73,0),4)*1000) ->  | D11: =B11*(1+'Federal Reserve PPI AC Parts'!$E$12) -> 174725.8579 | E11: =C11*(1+'Federal Reserve PPI AC Parts'!$E$12) ->  | F11: Used Model 2024 | G11: 156228 | I11: =IFERROR(INDEX('[2]rotorcraft mil'!$B$6:$K$73,MATCH(L11,'[2]rotorcraft mil'!$B$6:$B$73,0),7),INDEX('[2]rotorcraft mil'!$B$6:$K$73,MATCH(M11,'[2]rotorcraft mil'!$B$6:$B$73,0),7)) ->  | J11: 1 | K11: =INDEX('[1]Pt1-DATA'!$A$5:$M$13349,MATCH(A11,'[1]Pt1-DATA'!$C$5:$C$13349,0),6) -> A | L11: IMA | N11: 156228
A12: 98#847 | B12: =IFERROR(INDEX('[1]Pt1-DATA'!$C:$D,MATCH(A12,'[1]Pt1-DATA'!$C:$C,0),2),"") -> 25303 | C12: =IFERROR(INDEX('[2]rotorcraft mil'!$B$6:$K$73,MATCH(L12,'[2]rotorcraft mil'!$B$6:$B$73,0),4)*1000,INDEX('[2]rotorcraft mil'!$B$6:$K$73,MATCH(M12,'[2]rotorcraft mil'!$B$6:$B$73,0),4)*1000) -> 20000 | D12: =B12*(1+'Federal Reserve PPI AC Parts'!$E$12) -> 28298.95013 | E12: =C12*(1+'Federal Reserve PPI AC Parts'!$E$12) -> 22368.05923 | F12: Used Model 2024 | G12: 25303 | H12: 0.26515 | I12: =IFERROR(INDEX('[2]rotorcraft mil'!$B$6:$K$73,MATCH(L12,'[2]rotorcraft mil'!$B$6:$B$73,0),7),INDEX('[2]rotorcraft mil'!$B$6:$K$73,MATCH(M12,'[2]rotorcraft mil'!$B$6:$B$73,0),7)) -> 0 | J12: 2 | K12: =INDEX('[1]Pt1-DATA'!$A$5:$M$13349,MATCH(A12,'[1]Pt1-DATA'!$C$5:$C$13349,0),6) -> G | L12: Engine/fuel/ displays | N12: 25303
A13: 98#848 | B13: =IFERROR(INDEX('[1]Pt1-DATA'!$C:$D,MATCH(A13,'[1]Pt1-DATA'!$C:$C,0),2),"") -> 53193 | C13: =IFERROR(INDEX('[2]rotorcraft mil'!$B$6:$K$73,MATCH(L13,'[2]rotorcraft mil'!$B$6:$B$73,0),4)*1000,INDEX('[2]rotorcraft mil'!$B$6:$K$73,MATCH(M13,'[2]rotorcraft mil'!$B$6:$B$73,0),4)*1000) -> 75000 | D13: =B13*(1+'Federal Reserve PPI AC Parts'!$E$12) -> 59491.20873 | E13: =C13*(1+'Federal Reserve PPI AC Parts'!$E$12) -> 83880.2221 | F13: Used Model 2024 | G13: 53193 | H13: -0.29076 | I13: =IFERROR(INDEX('[2]rotorcraft mil'!$B$6:$K$73,MATCH(L13,'[2]rotorcraft mil'!$B$6:$B$73,0),7),INDEX('[2]rotorcraft mil'!$B$6:$K$73,MATCH(M13,'[2]rotorcraft mil'!$B$6:$B$73,0),7)) -> HWL | J13: 2 | K13: =INDEX('[1]Pt1-DATA'!$A$5:$M$13349,MATCH(A13,'[1]Pt1-DATA'!$C$5:$C$13349,0),6) -> J | L13: Embedded GPS/INS | M13: Embedded GPS/INS (Heading and Attitude Ref System) | N13: 53193
A14: 98#849 | B14: =IFERROR(INDEX('[1]Pt1-DATA'!$C:$D,MATCH(A14,'[1]Pt1-DATA'!$C:$C,0),2),"") -> 53814 | C14: =IFERROR(INDEX('[2]rotorcraft mil'!$B$6:$K$73,MATCH(L14,'[2]rotorcraft mil'!$B$6:$B$73,0),4)*1000,INDEX('[2]rotorcraft mil'!$B$6:$K$73,MATCH(M14,'[2]rotorcraft mil'!$B$6:$B$73,0),4)*1000) -> 35000 | D14: =B14*(1+'Federal Reserve PPI AC Parts'!$E$12) -> 60185.73696 | E14: =C14*(1+'Federal Reserve PPI AC Parts'!$E$12) -> 39144.10365 | F14: Used Model 2024 | G14: 53814 | H14: 0.5375428571 | I14: =IFERROR(INDEX('[2]rotorcraft mil'!$B$6:$K$73,MATCH(L14,'[2]rotorcraft mil'!$B$6:$B$73,0),7),INDEX('[2]rotorcraft mil'!$B$6:$K$73,MATCH(M14,'[2]rotorcraft mil'!$B$6:$B$73,0),7)) -> LM | J14: 1 | K14: =INDEX('[1]Pt1-DATA'!$A$5:$M$13349,MATCH(A14,'[1]Pt1-DATA'!$C$5:$C$13349,0),6) -> A | L14: Joint tactical radio system (JTRS), | M14: joint tactical radio system (JTRS), | N14: 53814
A15: 98#850 | B15: =IFERROR(INDEX('[1]Pt1-DATA'!$C:$D,MATCH(A15,'[1]Pt1-DATA'!$C:$C,0),2),"") -> 20243 | C15: =IFERROR(INDEX('[2]rotorcraft mil'!$B$6:$K$73,MATCH(L15,'[2]rotorcraft mil'!$B$6:$B$73,0),4)*1000,INDEX('[2]rotorcraft mil'!$B$6:$K$73,MATCH(M15,'[2]rotorcraft mil'!$B$6:$B$73,0),4)*1000) -> 20000 | D15: =B15*(1+'Federal Reserve PPI AC Parts'!$E$12) -> 22639.83115 | E15: =C15*(1+'Federal Reserve PPI AC Parts'!$E$12) -> 22368.05923 | F15: Used Model 2024 | G15: 20243 | H15: 0.01215 | I15: =IFERROR(INDEX('[2]rotorcraft mil'!$B$6:$K$73,MATCH(L15,'[2]rotorcraft mil'!$B$6:$B$73,0),7),INDEX('[2]rotorcraft mil'!$B$6:$K$73,MATCH(M15,'[2]rotorcraft mil'!$B$6:$B$73,0),7)) -> NG | J15: 1 | K15: =INDEX('[1]Pt1-DATA'!$A$5:$M$13349,MATCH(A15,'[1]Pt1-DATA'!$C$5:$C$13349,0),6) -> A | L15: Pilot Night Vision Sensors (PNVS) systems | M15: Pilot Night Vision Sensors (PNVS) systems | N15: 20243
A16: 98#851 | B16: =IFERROR(INDEX('[1]Pt1-DATA'!$C:$D,MATCH(A16,'[1]Pt1-DATA'!$C:$C,0),2),"") -> 82497 | C16: =IFERROR(INDEX('[2]rotorcraft mil'!$B$6:$K$73,MATCH(L16,'[2]rotorcraft mil'!$B$6:$B$73,0),4)*1000,INDEX('[2]rotorcraft mil'!$B$6:$K$73,MATCH(M16,'[2]rotorcraft mil'!$B$6:$B$73,0),4)*1000) -> 40000 | D16: =B16*(1+'Federal Reserve PPI AC Parts'!$E$12) -> 92264.88911 | E16: =C16*(1+'Federal Reserve PPI AC Parts'!$E$12) -> 44736.11846 | F16: Used Model 2024 | G16: 82497 | H16: 1.062425 | I16: =IFERROR(INDEX('[2]rotorcraft mil'!$B$6:$K$73,MATCH(L16,'[2]rotorcraft mil'!$B$6:$B$73,0),7),INDEX('[2]rotorcraft mil'!$B$6:$K$73,MATCH(M16,'[2]rotorcraft mil'!$B$6:$B$73,0),7)) -> NG | J16: 1 | K16: =INDEX('[1]Pt1-DATA'!$A$5:$M$13349,MATCH(A16,'[1]Pt1-DATA'!$C$5:$C$13349,0),6) -> A | L16: Millimeter wave fire-control radar, frequency interferometer, fire-and-forget radar | M16: Northrop Grumman AN/APG-78 millimeter wave fire-control radar, frequency interferometer, fire-and-forget radar | N16: 82497
A17: 98#852 | B17: =IFERROR(INDEX('[1]Pt1-DATA'!$C:$D,MATCH(A17,'[1]Pt1-DATA'!$C:$C,0),2),"") -> 78124 | C17: =IFERROR(INDEX('[2]rotorcraft mil'!$B$6:$K$73,MATCH(L17,'[2]rotorcraft mil'!$B$6:$B$73,0),4)*1000,INDEX('[2]rotorcraft mil'!$B$6:$K$73,MATCH(M17,'[2]rotorcraft mil'!$B$6:$B$73,0),4)*1000) -> 30000 | D17: =B17*(1+'Federal Reserve PPI AC Parts'!$E$12) -> 87374.11296 | E17: =C17*(1+'Federal Reserve PPI AC Parts'!$E$12) -> 33552.08884 | F17: Used Model 2024 | G17: 78124 | H17: 1.604133333 | I17: =IFERROR(INDEX('[2]rotorcraft mil'!$B$6:$K$73,MATCH(L17,'[2]rotorcraft mil'!$B$6:$B$73,0),7),INDEX('[2]rotorcraft mil'!$B$6:$K$73,MATCH(M17,'[2]rotorcraft mil'!$B$6:$B$73,0),7)) -> LM | J17: 1 | K17: =INDEX('[1]Pt1-DATA'!$A$5:$M$13349,MATCH(A17,'[1]Pt1-DATA'!$C$5:$C$13349,0),6) -> A | L17: Modernized Target Acquisition Designation Sight (M-TADS) | M17: Lockheed Martin Apache Arrowhead Modernized Target Acquisition Designation Sight (M-TADS) | N17: 78124
A18: 98#853 | B18: =IFERROR(INDEX('[1]Pt1-DATA'!$C:$D,MATCH(A18,'[1]Pt1-DATA'!$C:$C,0),2),"") -> 28767 | C18: =IFERROR(INDEX('[2]rotorcraft mil'!$B$6:$K$73,MATCH(L18,'[2]rotorcraft mil'!$B$6:$B$73,0),4)*1000,INDEX('[2]rotorcraft mil'!$B$6:$K$73,MATCH(M18,'[2]rotorcraft mil'!$B$6:$B$73,0),4)*1000) -> 18000 | D18: =B18*(1+'Federal Reserve PPI AC Parts'!$E$12) -> 32173.09799 | E18: =C18*(1+'Federal Reserve PPI AC Parts'!$E$12) -> 20131.25331 | F18: Used Model 2024 | G18: 28767 | H18: 0.5981666667 | I18: =IFERROR(INDEX('[2]rotorcraft mil'!$B$6:$K$73,MATCH(L18,'[2]rotorcraft mil'!$B$6:$B$73,0),7),INDEX('[2]rotorcraft mil'!$B$6:$K$73,MATCH(M18,'[2]rotorcraft mil'!$B$6:$B$73,0),7)) -> GE Aviation | J18: 1 | K18: =INDEX('[1]Pt1-DATA'!$A$5:$M$13349,MATCH(A18,'[1]Pt1-DATA'!$C$5:$C$13349,0),6) -> A | L18: Interface maintenance data recorders | N18: 28767
A19: 98#854 | B19: =IFERROR(INDEX('[1]Pt1-DATA'!$C:$D,MATCH(A19,'[1]Pt1-DATA'!$C:$C,0),2),"") -> 24461 | C19: =IFERROR(INDEX('[2]rotorcraft mil'!$B$6:$K$73,MATCH(L19,'[2]rotorcraft mil'!$B$6:$B$73,0),4)*1000,INDEX('[2]rotorcraft mil'!$B$6:$K$73,MATCH(M19,'[2]rotorcraft mil'!$B$6:$B$73,0),4)*1000) -> 25000 | D19: =B19*(1+'Federal Reserve PPI AC Parts'!$E$12) -> 27357.25484 | E19: =C19*(1+'Federal Reserve PPI AC Parts'!$E$12) -> 27960.07403 | F19: Used Model 2024 | G19: 24461 | H19: -0.02156 | I19: =IFERROR(INDEX('[2]rotorcraft mil'!$B$6:$K$73,MATCH(L19,'[2]rotorcraft mil'!$B$6:$B$73,0),7),INDEX('[2]rotorcraft mil'!$B$6:$K$73,MATCH(M19,'[2]rotorcraft mil'!$B$6:$B$73,0),7)) -> 0 | J19: 1 | K19: =INDEX('[1]Pt1-DATA'!$A$5:$M$13349,MATCH(A19,'[1]Pt1-DATA'!$C$5:$C$13349,0),6) -> A | L19: Target data acquisition | M19: Link 16 target data acquisition | N19: 24461
A20: 98#855 | B20: =IFERROR(INDEX('[1]Pt1-DATA'!$C:$D,MATCH(A20,'[1]Pt1-DATA'!$C:$C,0),2),"") -> 43999 | C20: =IFERROR(INDEX('[2]rotorcraft mil'!$B$6:$K$73,MATCH(L20,'[2]rotorcraft mil'!$B$6:$B$73,0),4)*1000,INDEX('[2]rotorcraft mil'!$B$6:$K$73,MATCH(M20,'[2]rotorcraft mil'!$B$6:$B$73,0),4)*1000) -> 25000 | D20: =B20*(1+'Federal Reserve PPI AC Parts'!$E$12) -> 49208.6119 | E20: =C20*(1+'Federal Reserve PPI AC Parts'!$E$12) -> 27960.07403 | F20: Used Model 2024 | G20: 43999 | H20: 0.75996 | I20: =IFERROR(INDEX('[2]rotorcraft mil'!$B$6:$K$73,MATCH(L20,'[2]rotorcraft mil'!$B$6:$B$73,0),7),INDEX('[2]rotorcraft mil'!$B$6:$K$73,MATCH(M20,'[2]rotorcraft mil'!$B$6:$B$73,0),7)) -> Nothrop Grumman | J20: 2 | K20: =INDEX('[1]Pt1-DATA'!$A$5:$M$13349,MATCH(A20,'[1]Pt1-DATA'!$C$5:$C$13349,0),6) -> A | L20: Radar warning receivers | M20: AN / APR-39A (V) radar warning receivers | N20: 43999
